{"text_format":"3","workbook":"xlsx","n_sheets":37,"sheets":["Index","GeneralInfo","Declaration","Summary","Taxonomy","Shareholding Pattern","IndHUF","CGAndSG","Banks","OtherIND","Individuals","Government","Institutions","FPIPromoter","OtherForeign","MutuaFund","VentureCap","AIF","FVC","FPI_Insti","Bank_Insti","Insurance","Pension","Other_Insti","CG&SG&PI","Indivisual(aI)","Indivisual(aII)","NBFC","EmpTrust","OD","Other_NonInsti","DRHolder","EBT","Unclaimed_Prom","PAC_Public","Unclaimed_Public","TextBlock"],"not_rendered":{"images":1,"macros":1,"defined_names":2},"read":"whole","date_system":"1900"}

{"sheet":"Index","index":0,"n_rows":52,"n_cols":10,"rows_kept":52,"merged":[[5,4,5,8],[6,5,6,8],[7,5,7,8],[8,5,8,8],[9,5,9,8],[12,3,12,9],[13,3,13,9],[14,3,14,9],[17,3,17,9],[18,3,18,9],[19,3,19,9],[20,3,20,9],[21,3,21,9],[22,3,22,9],[25,3,25,9],[26,4,26,8],[27,4,27,8],[28,4,28,8],[29,4,29,8],[32,3,32,9],[33,3,33,9],[34,3,34,9],[35,3,35,9],[36,3,36,9],[37,3,37,9],[38,3,38,9],[39,3,39,9],[42,3,42,9],[43,3,43,9],[44,3,44,9],[45,3,45,9],[46,3,46,9],[47,3,47,9],[48,3,48,9],[49,3,49,9],[50,3,50,9],[51,3,51,9]]}
[]
[]
[]
[]
[]
[{"$nulls":4},"                                      XBRL Excel Utility"]
[{"$nulls":4},"1.","Overview"]
[{"$nulls":4},"2.","Before you begin"]
[{"$nulls":4},"3.","Index"]
[{"$nulls":4},"4.","Steps for filing Shareholding Pattern"]
[]
[]
[{"$nulls":3},"1. Overview"]
[{"$nulls":3},"The excel utility can be used for creating the XBRL/XML file for efiling of shareholding pattern. "]
[{"$nulls":3},"Shareholding pattern XBRL filling consists of two processes. Firstly generation of XBRL/XML file of the Shareholding pattern, and upload of generated XBRL/XML file to BSE Listing Center."]
[]
[]
[{"$nulls":3}," 2.  Before you begin"]
[{"$nulls":3},"1. The version of Microsoft Excel in your system should be Microsoft Office Excel 2007 and above."]
[{"$nulls":3},"2. The system should have a file compression software to unzip excel utility file."]
[{"$nulls":3},"3. Make sure that you have downloaded the latest Excel Utility from BSE Website to your local system."]
[{"$nulls":3},"4. Make sure that you have downloaded the Chrome Browser to view report generated from Excel utility"]
[{"$nulls":3},"5. Please enable the Macros (if disabled) as per instructions given in manual, so that all the functionalities of  Excel Utility works fine. Please first go through Enable Macro - Manual attached with zip file."]
[]
[]
[{"$nulls":3},"3. Index "]
[{"$nulls":3},1,"Details of general information about company",{"$nulls":4},"General Info"]
[{"$nulls":3},2,"Declaration",{"$nulls":4},"Declaration"]
[{"$nulls":3},3,"Summary",{"$nulls":4},"Summary"]
[{"$nulls":3},4,"Shareholding Pattern",{"$nulls":4},"Shareholding Pattern"]
[]
[]
[{"$nulls":3},"4. Steps for Filing Shareholding Pattern"]
[{"$nulls":3},"I.  Fill up the data: Navigate to each field of every section in the sheet to provide applicable data in correct format.  (Formats will get reflected while filling data.)  \n   - Use paste special command to paste data from other sheet.\n"]
[{"$nulls":3},"II. Validating Sheets:  Click on the ''Validate \"  button to ensure that the sheet has been properly filled and also data has been furnished in proper format. If there are some errors on the sheet, excel utility will prompt you about the same."]
[{"$nulls":3},"III. Validate All Sheets:  Click on the ''Home\"  button. And then click on \"Validate All Sheet\" button to ensure that all sheets has been properly filled and validated successfully. If there are some errors on the sheet, excel utility will prompt you about the same and stop validation at the same time. After correction, once again follow the same procedure to validate all sheets."]
[{"$nulls":3},"Excel Utility will not allow you to generate XBRL/XML until you rectify all errors. "]
[{"$nulls":3},"IV. Generate XML :   Excel Utility will not allow you to generate XBRL/XML unless successful validation of all sheet is completed. Now click on 'Generate XML'' to generate XBRL/XML file. \n    - Save the XBRL/XML file in your desired folder in local system. "]
[{"$nulls":3},"V. Generate Report :   Excel Utility will allow you to generate Report. Now click on 'Generate Report'' to generate html report.   \n     - Save the HTML Report file in your desired folder in local system.     \n     - To view HTML Report open \"Chrome Web Browser\" . \n     - To print report in PDF Format, Click on print button and save as PDF. "]
[{"$nulls":3},"VI. Upload XML file to BSE Listing Center: For uploading the XBRL/XML file generated through  Utility, login to BSE Listing Center and upload generated xml file. On Upload screen provide the required information and browse to select XML file and submit the XML.\n"]
[]
[]
[{"$nulls":3},"5. Fill up the Shareholding Pattern"]
[{"$nulls":3},"1. Cells with red fonts indicate mandatory fields. "]
[{"$nulls":3},"2. If mandatory field is left empty, then Utility will not allow you to proceed further for generating XML."]
[{"$nulls":3},"3. You are not allowed to enter data in the Grey Cells."]
[{"$nulls":3},"4. If fields are not applicable to your company then leave it blank. Do not insert Zero unless it is a mandatory field."]
[{"$nulls":3},"5. Data provided must be in correct format, otherwise Utility will not allow you to proceed further for generating XML."]
[{"$nulls":3},"6. Adding new rows: Sections such as Promoters details allow you to enter as much data in a tabular form. You can Click on  \"Add\" to add more rows.\n\nTo add more than one row you must fill data in the mandatory fields of the previous row."]
[{"$nulls":3},"7. Deleting rows: Rows that has been added can be removed by clicking the button \"Delete\". A popup will ask you to provide the range of rows you want to delete. "]
[{"$nulls":3},"8. Select data from \"Dropdown list\" wherever applicable. "]
[{"$nulls":3},"9. Adding Notes:  Click on \"Add Notes\" button to add notes "]

{"sheet":"GeneralInfo","index":1,"n_rows":15,"n_cols":21,"rows_kept":15,"merged":[[7,4,7,5],[17,4,17,5],[19,3,19,4]]}
[{"$nulls":17},"Equity Shares","Pre-listing","June","Yes"]
[{"$nulls":17},"Preference Shares","Quarterly","September","No"]
[{"$nulls":17},"Differential Voting Rights","Capital Restructuring","December"]
[{"$nulls":19},"March"]
[]
[]
[{"$nulls":12},"Regulation 31 (1) (a)"]
[{"$nulls":4},"General information about company",{"$nulls":7},"Regulation 31 (1) (b)"]
[{"$nulls":4},"Scrip code",531301,{"$nulls":6},"Regulation 31 (1) (c)"]
[{"$nulls":4},"Name of the company","HIGH STREET FILATEX LIMITED"]
[{"$nulls":4},"Class of Security","Equity Shares"]
[{"$nulls":4},"Type of report","Quarterly"]
[{"$nulls":4},"Quarter Ended / Date of Report (For Prelisting / Allotment)","31-03-2016",null,null," "]
[{"$nulls":4},"Date of allotment / extinguishment (in case Capital Restructuring selected) / Listing Date",""]
[{"$nulls":4},"Shareholding pattern filed under",{"$f":"IF(F12=S1,M7,IF(F12=S2,M8,IF(F12=S3,M9,\"\")))","v":"Regulation 31 (1) (b)"}]

{"sheet":"Declaration","index":2,"n_rows":15,"n_cols":21,"rows_kept":15}
["Micro@213Vista",{"$nulls":18},"Micro@213Vista","Yes"]
[{"$nulls":20},"No"]
[]
[]
[]
[]
[]
[{"$nulls":4},"Sr. No.","Particular","Yes/No"]
[{"$nulls":4},1,"Whether the Listed Entity has issued any partly paid up shares?","No",{"$nulls":8},1,null,"Whether the listed entity has issued any partly paid up shares"]
[{"$nulls":4},2,"Whether the Listed Entity has issued any Convertible Securities ?","No",{"$nulls":8},1,null,"Whether the listed entity has issued any convertible securities"]
[{"$nulls":4},3,"Whether the Listed Entity has issued any Warrants ?","No",{"$nulls":8},1,null,"Whether the listed entity has issued any warrants"]
[{"$nulls":4},4,"Whether the Listed Entity has any shares against which depository receipts are issued?","No",{"$nulls":8},1,null,"Whether the listed entity has any shares against which depository receipts are issued"]
[{"$nulls":4},5,"Whether the Listed Entity has any shares in locked-in?","No",{"$nulls":8},1,null,"Whether the listed entity has any shares in locked-in"]
[{"$nulls":4},6,"Whether any shares held by promoters are pledge or otherwise encumbered?","No",{"$nulls":8},1,null,"Whether any shares held by promoters are pledge or otherwise encumbered"]
[{"$nulls":4},7,"Whether company has equity shares with differential voting rights?","No",{"$nulls":8},1,null,"Whether company has equity shares with differential voting rights"]

{"sheet":"Summary","index":3,"n_rows":18,"n_cols":25,"rows_kept":18,"merged":[[7,4,7,24],[8,4,8,24],[9,4,11,4],[9,5,11,5],[9,6,11,6],[9,7,11,7],[9,8,11,8],[9,9,11,9],[9,10,11,10],[9,11,11,11],[9,12,9,15],[9,16,11,16],[9,17,11,17],[9,18,11,18],[9,19,11,19],[9,20,10,21],[9,22,10,23],[9,24,11,24],[10,12,10,14],[10,15,11,15]]}
[]
[{"$nulls":6},"Number of shareholders","Number of fully paid up equity shares","Number of partly paid-up equity shares","Number of shares underlying outstanding depository receipts","Total number of shares","Shareholding as a percentage of total number of shares held by promoters and public shareholders and custodians or DR holders","Number of voting rights held by same class of securities","Number of voting rights held by differential voting rights","Total Number of voting rights","Percentage of total number of voting rights","Number of shares underlying outstanding convertible securities","Number of warrant","Total shareholding as a percentage assuming full conversion of convertible securities","Total shareholding as a percentage assuming full conversion of convertible securities","Number of the locked-in-shares ","Locked-in-shares as a percentage of total number of shares","Pledged or encumbered - number of shares","Pledged or encumbered shares held as percentage of total number of shares","Number of equity shares held in dematerialized form"]
[]
[]
[]
[]
[]
[{"$nulls":4},"Table I - Summary Statement holding of specified securities"]
[{"$nulls":4},"Note  : Data will be automatically populated from shareholding pattern sheet -  Data Entry Restricted in this sheet"]
[{"$nulls":4},"Category\n(I)","Category of shareholder\n(II)","Nos. Of shareholders\n(III)","No. of fully paid up equity shares held\n(IV)","No. Of Partly paid-up equity shares held\n(V)","No. Of shares underlying Depository Receipts\n(VI)","Total nos. shares\nheld\n(VII) = (IV)+(V)+ (VI)","Shareholding as a % of total no. of shares (calculated as per SCRR, 1957)\n(VIII)\nAs a % of (A+B+C2)","Number of Voting Rights\nheld in each class of\nsecurities\n(IX)",{"$nulls":3},"No. Of Shares Underlying Outstanding convertible securities\n(X)","No. Of Warrants\n(Xi)","No. Of Shares Underlying Outstanding convertible securities and No. Of Warrants\n(Xi) (a)","Shareholding , as a % assuming full conversion of convertible securities ( as a percentage of diluted share capital)\n(XI)= (VII)+(X)\nAs a % of (A+B+C2)","Number of Locked in shares\n(XII)",null,"Number of Shares pledged or otherwise encumbered\n(XIII)",null,"Number of equity shares held in dematerialized form \n(XIV)"]
[{"$nulls":12},"No of Voting  (XIV)  Rights",null,null,"Total as a % of\n(A+B+C)"]
[{"$nulls":12},"Class\neg:\nX","Class\neg:y","Total",{"$nulls":5},"No.\n(a)","As a % of total Shares held\n(b)","No.\n(a)","As a % of total Shares held\n(b)"]
[{"$nulls":4},"(A)","Promoter & Promoter Group",{"$f":"+IFERROR(IF(COUNT('Shareholding Pattern'!H26),('Shareholding Pattern'!H26),\"\"),\"\")","v":2},{"$f":"+IFERROR(IF(COUNT('Shareholding Pattern'!I26),('Shareholding Pattern'!I26),\"\"),\"\")","v":158144},{"$f":"+IFERROR(IF(COUNT('Shareholding Pattern'!J26),('Shareholding Pattern'!J26),\"\"),\"\")","v":""},{"$f":"+IFERROR(IF(COUNT('Shareholding Pattern'!K26),('Shareholding Pattern'!K26),\"\"),\"\")","v":""},{"$f":"+IFERROR(IF(COUNT('Shareholding Pattern'!L26),('Shareholding Pattern'!L26),\"\"),\"\")","v":158144},{"$f":"+IFERROR(IF(COUNT('Shareholding Pattern'!M26),('Shareholding Pattern'!M26),\"\"),\"\")","v":24.44},{"$f":"+IFERROR(IF(COUNT('Shareholding Pattern'!N26),('Shareholding Pattern'!N26),\"\"),\"\")","v":{"v":158144,"d":"158,144.00"}},{"$f":"+IFERROR(IF(COUNT('Shareholding Pattern'!O26),('Shareholding Pattern'!O26),\"\"),\"\")","v":""},{"$f":"+IFERROR(IF(COUNT('Shareholding Pattern'!P26),('Shareholding Pattern'!P26),\"\"),\"\")","v":{"v":158144,"d":"158,144.00"}},{"$f":"+IFERROR(IF(COUNT('Shareholding Pattern'!Q26),('Shareholding Pattern'!Q26),\"\"),\"\")","v":24.44},{"$f":"+IFERROR(IF(COUNT('Shareholding Pattern'!R26),('Shareholding Pattern'!R26),\"\"),\"\")","v":""},{"$f":"+IFERROR(IF(COUNT('Shareholding Pattern'!S26),('Shareholding Pattern'!S26),\"\"),\"\")","v":""},{"$f":"+IFERROR(IF(COUNT('Shareholding Pattern'!T26),('Shareholding Pattern'!T26),\"\"),\"\")","v":""},{"$f":"+IFERROR(IF(COUNT('Shareholding Pattern'!U26),('Shareholding Pattern'!U26),\"\"),\"\")","v":24.44},{"$f":"+IFERROR(IF(COUNT('Shareholding Pattern'!V26),('Shareholding Pattern'!V26),\"\"),\"\")","v":""},{"$f":"+IFERROR(IF(COUNT('Shareholding Pattern'!W26),('Shareholding Pattern'!W26),\"\"),\"\")","v":""},{"$f":"+IFERROR(IF(COUNT('Shareholding Pattern'!X26),('Shareholding Pattern'!X26),\"\"),\"\")","v":""},{"$f":"+IFERROR(IF(COUNT('Shareholding Pattern'!Y26),('Shareholding Pattern'!Y26),\"\"),\"\")","v":""},{"$f":"+IFERROR(IF(COUNT('Shareholding Pattern'!Z26),('Shareholding Pattern'!Z26),\"\"),\"\")","v":158144}]
[{"$nulls":4},"(B)","Public",{"$f":"+IFERROR(IF(COUNT('Shareholding Pattern'!H50),('Shareholding Pattern'!H50),\"\"),\"\")","v":3304},{"$f":"+IFERROR(IF(COUNT('Shareholding Pattern'!I50),('Shareholding Pattern'!I50),\"\"),\"\")","v":488856},{"$f":"+IFERROR(IF(COUNT('Shareholding Pattern'!J50),('Shareholding Pattern'!J50),\"\"),\"\")","v":""},{"$f":"+IFERROR(IF(COUNT('Shareholding Pattern'!K50),('Shareholding Pattern'!K50),\"\"),\"\")","v":""},{"$f":"+IFERROR(IF(COUNT('Shareholding Pattern'!L50),('Shareholding Pattern'!L50),\"\"),\"\")","v":488856},{"$f":"+IFERROR(IF(COUNT('Shareholding Pattern'!M50),('Shareholding Pattern'!M50),\"\"),\"\")","v":75.56},{"$f":"+IFERROR(IF(COUNT('Shareholding Pattern'!N50),('Shareholding Pattern'!N50),\"\"),\"\")","v":{"v":488856,"d":"488,856.00"}},{"$f":"+IFERROR(IF(COUNT('Shareholding Pattern'!O50),('Shareholding Pattern'!O50),\"\"),\"\")","v":""},{"$f":"+IFERROR(IF(COUNT('Shareholding Pattern'!P50),('Shareholding Pattern'!P50),\"\"),\"\")","v":{"v":488856,"d":"488,856.00"}},{"$f":"+IFERROR(IF(COUNT('Shareholding Pattern'!Q50),('Shareholding Pattern'!Q50),\"\"),\"\")","v":75.56},{"$f":"+IFERROR(IF(COUNT('Shareholding Pattern'!R50),('Shareholding Pattern'!R50),\"\"),\"\")","v":""},{"$f":"+IFERROR(IF(COUNT('Shareholding Pattern'!S50),('Shareholding Pattern'!S50),\"\"),\"\")","v":""},{"$f":"+IFERROR(IF(COUNT('Shareholding Pattern'!T50),('Shareholding Pattern'!T50),\"\"),\"\")","v":""},{"$f":"+IFERROR(IF(COUNT('Shareholding Pattern'!U50),('Shareholding Pattern'!U50),\"\"),\"\")","v":75.56},{"$f":"+IFERROR(IF(COUNT('Shareholding Pattern'!V50),('Shareholding Pattern'!V50),\"\"),\"\")","v":""},{"$f":"+IFERROR(IF(COUNT('Shareholding Pattern'!W50),('Shareholding Pattern'!W50),\"\"),\"\")","v":""},{"$f":"+IFERROR(IF(COUNT('Shareholding Pattern'!X50),('Shareholding Pattern'!X50),\"\"),\"\")","v":""},{"$f":"+IFERROR(IF(COUNT('Shareholding Pattern'!Y50),('Shareholding Pattern'!Y50),\"\"),\"\")","v":""},{"$f":"+IFERROR(IF(COUNT('Shareholding Pattern'!Z50),('Shareholding Pattern'!Z50),\"\"),\"\")","v":343184}]
[{"$nulls":4},"(C)","Non Promoter- Non Public",{"$f":"+IFERROR(IF(COUNT('Shareholding Pattern'!H56),('Shareholding Pattern'!H56),\"\"),\"\")","v":""},{"$f":"+IFERROR(IF(COUNT('Shareholding Pattern'!I56),('Shareholding Pattern'!I56),\"\"),\"\")","v":""},{"$f":"+IFERROR(IF(COUNT('Shareholding Pattern'!J56),('Shareholding Pattern'!J56),\"\"),\"\")","v":""},{"$f":"+IFERROR(IF(COUNT('Shareholding Pattern'!K56),('Shareholding Pattern'!K56),\"\"),\"\")","v":""},{"$f":"+IFERROR(IF(COUNT('Shareholding Pattern'!L56),('Shareholding Pattern'!L56),\"\"),\"\")","v":""},{"$f":"+IFERROR(IF(COUNT('Shareholding Pattern'!M56),('Shareholding Pattern'!M56),\"\"),\"\")","v":""},{"$f":"+IFERROR(IF(COUNT('Shareholding Pattern'!N56),('Shareholding Pattern'!N56),\"\"),\"\")","v":""},{"$f":"+IFERROR(IF(COUNT('Shareholding Pattern'!O56),('Shareholding Pattern'!O56),\"\"),\"\")","v":""},{"$f":"+IFERROR(IF(COUNT('Shareholding Pattern'!P56),('Shareholding Pattern'!P56),\"\"),\"\")","v":""},{"$f":"+IFERROR(IF(COUNT('Shareholding Pattern'!Q56),('Shareholding Pattern'!Q56),\"\"),\"\")","v":""},{"$f":"+IFERROR(IF(COUNT('Shareholding Pattern'!R56),('Shareholding Pattern'!R56),\"\"),\"\")","v":""},{"$f":"+IFERROR(IF(COUNT('Shareholding Pattern'!S56),('Shareholding Pattern'!S56),\"\"),\"\")","v":""},{"$f":"+IFERROR(IF(COUNT('Shareholding Pattern'!T56),('Shareholding Pattern'!T56),\"\"),\"\")","v":""},{"$f":"+IFERROR(IF(COUNT('Shareholding Pattern'!U56),('Shareholding Pattern'!U56),\"\"),\"\")","v":""},{"$f":"+IFERROR(IF(COUNT('Shareholding Pattern'!V56),('Shareholding Pattern'!V56),\"\"),\"\")","v":""},{"$f":"+IFERROR(IF(COUNT('Shareholding Pattern'!W56),('Shareholding Pattern'!W56),\"\"),\"\")","v":""},{"$f":"+IFERROR(IF(COUNT('Shareholding Pattern'!X56),('Shareholding Pattern'!X56),\"\"),\"\")","v":""},{"$f":"+IFERROR(IF(COUNT('Shareholding Pattern'!Y56),('Shareholding Pattern'!Y56),\"\"),\"\")","v":""},{"$f":"+IFERROR(IF(COUNT('Shareholding Pattern'!Z56),('Shareholding Pattern'!Z56),\"\"),\"\")","v":""}]
[{"$nulls":4},"(C1)","Shares underlying DRs",{"$f":"+IFERROR(IF(COUNT('Shareholding Pattern'!H54),('Shareholding Pattern'!H54),\"\"),\"\")","v":""},{"$f":"+IFERROR(IF(COUNT('Shareholding Pattern'!I54),('Shareholding Pattern'!I54),\"\"),\"\")","v":""},{"$f":"+IFERROR(IF(COUNT('Shareholding Pattern'!J54),('Shareholding Pattern'!J54),\"\"),\"\")","v":""},{"$f":"+IFERROR(IF(COUNT('Shareholding Pattern'!K54),('Shareholding Pattern'!K54),\"\"),\"\")","v":""},{"$f":"+IFERROR(IF(COUNT('Shareholding Pattern'!L54),('Shareholding Pattern'!L54),\"\"),\"\")","v":""},{"$f":"+IFERROR(IF(COUNT('Shareholding Pattern'!M54),('Shareholding Pattern'!M54),\"\"),\"\")","v":""},{"$f":"+IFERROR(IF(COUNT('Shareholding Pattern'!N54),('Shareholding Pattern'!N54),\"\"),\"\")","v":""},{"$f":"+IFERROR(IF(COUNT('Shareholding Pattern'!O54),('Shareholding Pattern'!O54),\"\"),\"\")","v":""},{"$f":"+IFERROR(IF(COUNT('Shareholding Pattern'!P54),('Shareholding Pattern'!P54),\"\"),\"\")","v":""},{"$f":"+IFERROR(IF(COUNT('Shareholding Pattern'!Q54),('Shareholding Pattern'!Q54),\"\"),\"\")","v":""},{"$f":"+IFERROR(IF(COUNT('Shareholding Pattern'!R54),('Shareholding Pattern'!R54),\"\"),\"\")","v":""},{"$f":"+IFERROR(IF(COUNT('Shareholding Pattern'!S54),('Shareholding Pattern'!S54),\"\"),\"\")","v":""},{"$f":"+IFERROR(IF(COUNT('Shareholding Pattern'!T54),('Shareholding Pattern'!T54),\"\"),\"\")","v":""},{"$f":"+IFERROR(IF(COUNT('Shareholding Pattern'!U54),('Shareholding Pattern'!U54),\"\"),\"\")","v":""},{"$f":"+IFERROR(IF(COUNT('Shareholding Pattern'!V54),('Shareholding Pattern'!V54),\"\"),\"\")","v":""},{"$f":"+IFERROR(IF(COUNT('Shareholding Pattern'!W54),('Shareholding Pattern'!W54),\"\"),\"\")","v":""},{"$f":"+IFERROR(IF(COUNT('Shareholding Pattern'!X54),('Shareholding Pattern'!X54),\"\"),\"\")","v":""},{"$f":"+IFERROR(IF(COUNT('Shareholding Pattern'!Y54),('Shareholding Pattern'!Y54),\"\"),\"\")","v":""},{"$f":"+IFERROR(IF(COUNT('Shareholding Pattern'!Z54),('Shareholding Pattern'!Z54),\"\"),\"\")","v":""}]
[{"$nulls":4},"(C2)","Shares held by Employee Trusts",{"$f":"+IFERROR(IF(COUNT('Shareholding Pattern'!H55),('Shareholding Pattern'!H55),\"\"),\"\")","v":""},{"$f":"+IFERROR(IF(COUNT('Shareholding Pattern'!I55),('Shareholding Pattern'!I55),\"\"),\"\")","v":""},{"$f":"+IFERROR(IF(COUNT('Shareholding Pattern'!J55),('Shareholding Pattern'!J55),\"\"),\"\")","v":""},{"$f":"+IFERROR(IF(COUNT('Shareholding Pattern'!K55),('Shareholding Pattern'!K55),\"\"),\"\")","v":""},{"$f":"+IFERROR(IF(COUNT('Shareholding Pattern'!L55),('Shareholding Pattern'!L55),\"\"),\"\")","v":""},{"$f":"+IFERROR(IF(COUNT('Shareholding Pattern'!M55),('Shareholding Pattern'!M55),\"\"),\"\")","v":""},{"$f":"+IFERROR(IF(COUNT('Shareholding Pattern'!N55),('Shareholding Pattern'!N55),\"\"),\"\")","v":""},{"$f":"+IFERROR(IF(COUNT('Shareholding Pattern'!O55),('Shareholding Pattern'!O55),\"\"),\"\")","v":""},{"$f":"+IFERROR(IF(COUNT('Shareholding Pattern'!P55),('Shareholding Pattern'!P55),\"\"),\"\")","v":""},{"$f":"+IFERROR(IF(COUNT('Shareholding Pattern'!Q55),('Shareholding Pattern'!Q55),\"\"),\"\")","v":""},{"$f":"+IFERROR(IF(COUNT('Shareholding Pattern'!R55),('Shareholding Pattern'!R55),\"\"),\"\")","v":""},{"$f":"+IFERROR(IF(COUNT('Shareholding Pattern'!S55),('Shareholding Pattern'!S55),\"\"),\"\")","v":""},{"$f":"+IFERROR(IF(COUNT('Shareholding Pattern'!T55),('Shareholding Pattern'!T55),\"\"),\"\")","v":""},{"$f":"+IFERROR(IF(COUNT('Shareholding Pattern'!U55),('Shareholding Pattern'!U55),\"\"),\"\")","v":""},{"$f":"+IFERROR(IF(COUNT('Shareholding Pattern'!V55),('Shareholding Pattern'!V55),\"\"),\"\")","v":""},{"$f":"+IFERROR(IF(COUNT('Shareholding Pattern'!W55),('Shareholding Pattern'!W55),\"\"),\"\")","v":""},{"$f":"+IFERROR(IF(COUNT('Shareholding Pattern'!X55),('Shareholding Pattern'!X55),\"\"),\"\")","v":""},{"$f":"+IFERROR(IF(COUNT('Shareholding Pattern'!Y55),('Shareholding Pattern'!Y55),\"\"),\"\")","v":""},{"$f":"+IFERROR(IF(COUNT('Shareholding Pattern'!Z55),('Shareholding Pattern'!Z55),\"\"),\"\")","v":""}]
[{"$nulls":5},"Total",{"$f":"+IFERROR(IF(COUNT('Shareholding Pattern'!H58),('Shareholding Pattern'!H58),\"\"),\"\")","v":3306},{"$f":"+IFERROR(IF(COUNT('Shareholding Pattern'!I58),('Shareholding Pattern'!I58),\"\"),\"\")","v":647000},{"$f":"+IFERROR(IF(COUNT('Shareholding Pattern'!J58),('Shareholding Pattern'!J58),\"\"),\"\")","v":""},{"$f":"+IFERROR(IF(COUNT('Shareholding Pattern'!K58),('Shareholding Pattern'!K58),\"\"),\"\")","v":""},{"$f":"+IFERROR(IF(COUNT('Shareholding Pattern'!L58),('Shareholding Pattern'!L58),\"\"),\"\")","v":647000},{"$f":"+IFERROR(IF(COUNT('Shareholding Pattern'!M58),('Shareholding Pattern'!M58),\"\"),\"\")","v":""},{"$f":"+IFERROR(IF(COUNT('Shareholding Pattern'!N58),('Shareholding Pattern'!N58),\"\"),\"\")","v":647000},{"$f":"+IFERROR(IF(COUNT('Shareholding Pattern'!O58),('Shareholding Pattern'!O58),\"\"),\"\")","v":""},{"$f":"+IFERROR(IF(COUNT('Shareholding Pattern'!P58),('Shareholding Pattern'!P58),\"\"),\"\")","v":647000},{"$f":"+IFERROR(IF(COUNT('Shareholding Pattern'!Q58),('Shareholding Pattern'!Q58),\"\"),\"\")","v":100},{"$f":"+IFERROR(IF(COUNT('Shareholding Pattern'!R58),('Shareholding Pattern'!R58),\"\"),\"\")","v":""},{"$f":"+IFERROR(IF(COUNT('Shareholding Pattern'!S58),('Shareholding Pattern'!S58),\"\"),\"\")","v":""},{"$f":"+IFERROR(IF(COUNT('Shareholding Pattern'!T58),('Shareholding Pattern'!T58),\"\"),\"\")","v":""},{"$f":"+IFERROR(IF(COUNT('Shareholding Pattern'!U58),('Shareholding Pattern'!U58),\"\"),\"\")","v":100},{"$f":"+IFERROR(IF(COUNT('Shareholding Pattern'!V58),('Shareholding Pattern'!V58),\"\"),\"\")","v":""},{"$f":"+IFERROR(IF(COUNT('Shareholding Pattern'!W58),('Shareholding Pattern'!W58),\"\"),\"\")","v":""},{"$f":"+IFERROR(IF(COUNT('Shareholding Pattern'!X58),('Shareholding Pattern'!X58),\"\"),\"\")","v":""},{"$f":"+IFERROR(IF(COUNT('Shareholding Pattern'!Y58),('Shareholding Pattern'!Y58),\"\"),\"\")","v":""},{"$f":"+IFERROR(IF(COUNT('Shareholding Pattern'!Z58),('Shareholding Pattern'!Z58),\"\"),\"\")","v":501328}]

{"sheet":"Taxonomy","index":4,"n_rows":700,"n_cols":33,"rows_kept":700,"hidden":true}
["prefix","label","name","depth","order","ID","label1","label2","ScheduleName","Type","enumerations","substitutionGroup","balance","periodType","abstract","nillable","xbrldt:typedDomainRef","Type","restriction base","role","Publisher","Name","Name","Paragraph","Paragraph","busssinesRules"]
["in-bse-shp","GeneralInformationAbstract","General information [Abstract]",null,0,"in-bse-shp_GeneralInformationAbstract",null,null,"DetailsOfGeneralInformationAboutCompany","xbrli:stringItemType",0,"xbrli:item",0,"duration","true","true"]
["in-bse-shp","ScripCode","Scrip code",null,1,"in-bse-shp_ScripCode","GeneralInformationAbstract","ScripCode","DetailsOfGeneralInformationAboutCompany","in-bse-shp-types:ScripCode",0,"xbrli:item",0,"duration","false","true",{"$nulls":9},"This is a mandatory field. Should be valid SCRIP CODE  as per BSE Scrip Code Format. "]
["in-bse-shp","NameOfTheCompany","Name of the company",null,2,"in-bse-shp_NameOfTheCompany","GeneralInformationAbstract","NameOfTheCompany","DetailsOfGeneralInformationAboutCompany","xbrli:stringItemType",0,"xbrli:item",0,"duration","true","true",{"$nulls":9},"This is a mandatory field. Please enter company name."]
["in-bse-shp","ClassOfSecurity","Class of Security",null,3,"in-bse-shp_ClassOfSecurity","GeneralInformationAbstract","ClassOfSecurity","DetailsOfGeneralInformationAboutCompany","in-bse-shp-types:ClassOfSecurity",0,"xbrli:item",0,"duration","false","true"]
["in-bse-shp","TypeOfReport","Type of report",null,4,"in-bse-shp_TypeOfReport","GeneralInformationAbstract","TypeOfReport","DetailsOfGeneralInformationAboutCompany","in-bse-shp-types:TypeOfReport","(Pre-listing)(Quarterly)(Additional)","xbrli:item",0,"duration","false","true",{"$nulls":9},"This is a mandatory field. Please select value from the drop-down."]
["in-bse-shp","DateOfReport","Quarter Ended / Date of Report (For Prelisting / Allotment)",null,5,"in-bse-shp_DateOfReport","GeneralInformationAbstract","DateOfReport","DetailsOfGeneralInformationAboutCompany","xbrli:dateItemType",0,"xbrli:item",0,"instant","false","true",{"$nulls":9},"This is a mandatory field if you select type of report as \"Quarterly\". Please enter date in \"dd-mm-yyyy\" format."]
["in-bse-shp","DateOfAllotmentOrListing","Date of allotment / extinguishment (in case Capital Restructuring selected) / Listing Date",null,6,"in-bse-shp_DateOfAllotment","GeneralInformationAbstract","DateOfAllotment","DetailsOfGeneralInformationAboutCompany","xbrli:dateItemType",null,"xbrli:item",null,"instant","false","true",{"$nulls":9},"This is a mandatory field if you select type of report as \"Pre-listing\" or \"Capital Restructuring\". Please enter date in \"dd-mm-yyyy\" format."]
["in-bse-shp","ShareholdingPatternFiledUnder","Shareholding pattern filed under",null,8,"in-bse-shp_ShareholdingPatternFiledUnder","GeneralInformationAbstract","ShareholdingPatternFiledUnder","DetailsOfGeneralInformationAboutCompany","in-bse-shp-types:TypeOfShareholdingPattern",0,"xbrli:item",0,"duration","false","true"]
["in-bse-shp","WhetherCompanyHasEquitySharesWithDifferentialVotingRights","Whether company has equity shares with differential voting rights?",null,9,"in-bse-shp_WhetherCompanyHasEquitySharesWithDifferentialVotingRights","GeneralInformationAbstract","WhetherCompanyHasEquitySharesWithDifferentialVotingRights","DetailsOfGeneralInformationAboutCompany","xbrli:booleanItemType",0,"xbrli:item",0,"instant","false","true"]
["in-bse-shp","WhetherTheListedEntityHasIssuedAnyPartlyPaidUpShares","Whether the Listed Entity has issued any partly paid up shares?",null,10,"in-bse-shp_WhetherTheListedEntityHasIssuedAnyPartlyPaidUpShares","GeneralInformationAbstract","WhetherTheListedEntityHasIssuedAnyPartlyPaidUpShares","DetailsOfGeneralInformationAboutCompany","xbrli:booleanItemType",0,"xbrli:item",0,"instant","false","true"]
["in-bse-shp","WhetherTheListedEntityHasIssuedAnyConvertibleSecurities","Whether the Listed Entity has issued any Convertible Securities ?",null,11,"in-bse-shp_WhetherTheListedEntityHasIssuedAnyConvertibleSecurities","GeneralInformationAbstract","WhetherTheListedEntityHasIssuedAnyConvertibleSecurities","DetailsOfGeneralInformationAboutCompany","xbrli:booleanItemType",0,"xbrli:item",0,"instant","false","true"]
["in-bse-shp","WhetherTheListedEntityHasIssuedAnyWarrants","Whether the Listed Entity has issued any Warrants ?",null,12,"in-bse-shp_WhetherTheListedEntityHasIssuedAnyWarrants","GeneralInformationAbstract","WhetherTheListedEntityHasIssuedAnyWarrants","DetailsOfGeneralInformationAboutCompany","xbrli:booleanItemType",0,"xbrli:item",0,"instant","false","true"]
["in-bse-shp","WhetherTheListedEntityHasAnySharesAgainstWhichDepositoryReceiptsAreIssued","Whether the Listed Entity has any shares against which depository receipts are issued?",null,13,"in-bse-shp_WhetherTheListedEntityHasAnySharesAgainstWhichDepositoryReceiptsAreIssued","GeneralInformationAbstract","WhetherTheListedEntityHasAnySharesAgainstWhichDepositoryReceiptsAreIssued","DetailsOfGeneralInformationAboutCompany","xbrli:booleanItemType",0,"xbrli:item",0,"instant","false","true"]
["in-bse-shp","WhetherTheListedEntityHasAnySharesInLockedIn","Whether the Listed Entity has any shares in locked-in?",null,14,"in-bse-shp_WhetherTheListedEntityHasAnySharesInLockedIn","GeneralInformationAbstract","WhetherTheListedEntityHasAnySharesInLockedIn","DetailsOfGeneralInformationAboutCompany","xbrli:booleanItemType",0,"xbrli:item",0,"instant","false","true"]
["in-bse-shp","WhetherAnySharesHeldByPromotersArePledgeOrOtherwiseEncumbered","Whether any shares held by promoters are pledge or otherwise encumbered?",null,15,"in-bse-shp_WhetherAnySharesHeldByPromotersArePledgeOrOtherwiseEncumbered","GeneralInformationAbstract","WhetherAnySharesHeldByPromotersArePledgeOrOtherwiseEncumbered","DetailsOfGeneralInformationAboutCompany","xbrli:booleanItemType",0,"xbrli:item",0,"instant","false","true"]
["in-bse-shp","DetailsOfSpecifiedSecuritiesAbstract","Details of specified securities [Abstract]",null,null,"in-bse-shp_DetailsOfSpecifiedSecuritiesAbstract",null,null,"SummaryStatementHoldingOfSpecifiedSecurities","xbrli:stringItemType",0,"xbrli:item",0,"duration","true","true"]
["in-bse-shp","DetailsOfSpecifiedSecuritiesTable","Details of specified securities [Table]",null,1,"in-bse-shp_DetailsOfSpecifiedSecuritiesTable","DetailsOfSpecifiedSecuritiesAbstract","DetailsOfSpecifiedSecuritiesTable","SummaryStatementHoldingOfSpecifiedSecurities","xbrli:stringItemType",0,"xbrldt:hypercubeItem",0,"duration","true","true"]
["in-bse-shp","CategoryOfShareholdersAxis","Category of shareholders [Axis]",null,1,"in-bse-shp_CategoryOfShareholdersAxis","DetailsOfSpecifiedSecuritiesTable","CategoryOfShareholdersAxis","SummaryStatementHoldingOfSpecifiedSecurities","xbrli:stringItemType",0,"xbrldt:dimensionItem",0,"duration","true","true"]
["in-bse-shp","ShareholdingPatternMember","Shareholding pattern [Member]",null,1,"in-bse-shp_ShareholdingPatternMember","CategoryOfShareholdersAxis","ShareholdingPatternMember","SummaryStatementHoldingOfSpecifiedSecurities","nonnum:domainItemType",0,"xbrli:item",0,"duration","true","true"]
["in-bse-shp","ShareholdingOfPromoterAndPromoterGroupMember","Shareholding of promoter and promoter group [Member]",null,1,"in-bse-shp_ShareholdingOfPromoterAndPromoterGroupMember","ShareholdingPatternMember","ShareholdingOfPromoterAndPromoterGroupMember","SummaryStatementHoldingOfSpecifiedSecurities","nonnum:domainItemType",0,"xbrli:item",0,"duration","true","true"]
["in-bse-shp","PublicShareholdingMember","Public shareholding [Member]",null,2,"in-bse-shp_PublicShareholdingMember","ShareholdingPatternMember","PublicShareholdingMember","SummaryStatementHoldingOfSpecifiedSecurities","nonnum:domainItemType",0,"xbrli:item",0,"duration","true","true"]
["in-bse-shp","CustodianOrDRHolderMember","Custodian or DR holder [Member]",null,3,"in-bse-shp_CustodianOrDRHolderMember","ShareholdingPatternMember","CustodianOrDRHolderMember","SummaryStatementHoldingOfSpecifiedSecurities","nonnum:domainItemType",0,"xbrli:item",0,"duration","true","true"]
["in-bse-shp","EmployeeBenefitsTrustsMember","Employee benefits trusts [Member]",null,4,"in-bse-shp_EmployeeBenefitsTrustsMember","ShareholdingPatternMember","EmployeeBenefitsTrustsMember","SummaryStatementHoldingOfSpecifiedSecurities","nonnum:domainItemType",0,"xbrli:item",0,"duration","true","true"]
["in-bse-shp","DetailsOfSpecifiedSecuritiesLineItems","Details of specified securities [Line items]",null,2,"in-bse-shp_DetailsOfSpecifiedSecuritiesLineItems","DetailsOfSpecifiedSecuritiesAbstract","DetailsOfSpecifiedSecuritiesLineItems","SummaryStatementHoldingOfSpecifiedSecurities","xbrli:stringItemType",0,"xbrli:item",0,"duration","true","true"]
["in-bse-shp","NumberOfShareholders","Number of shareholders",null,1,"in-bse-shp_NumberOfShareholders","DetailsOfSpecifiedSecuritiesLineItems","NumberOfShareholders","SummaryStatementHoldingOfSpecifiedSecurities","xbrli:decimalItemType",0,"xbrli:item",0,"instant","false","true"]
["in-bse-shp","NumberOfFullyPaidUpEquityShares","Number of fully paid up equity shares",null,2,"in-bse-shp_NumberOfFullyPaidUpEquityShares","DetailsOfSpecifiedSecuritiesLineItems","NumberOfFullyPaidUpEquityShares","SummaryStatementHoldingOfSpecifiedSecurities","xbrli:sharesItemType",0,"xbrli:item",0,"instant","false","true"]
["in-bse-shp","NumberOfPartlyPaidUpEquityShares","Number of partly paid-up equity shares",null,3,"in-bse-shp_NumberOfPartlyPaidUpEquityShares","DetailsOfSpecifiedSecuritiesLineItems","NumberOfPartlyPaidUpEquityShares","SummaryStatementHoldingOfSpecifiedSecurities","xbrli:sharesItemType",0,"xbrli:item",0,"instant","false","true"]
["in-bse-shp","NumberOfSharesUnderlyingOutstandingDepositoryReceipts","Number of shares underlying outstanding depository receipts",null,4,"in-bse-shp_NumberOfSharesUnderlyingOutstandingDepositoryReceipts","DetailsOfSpecifiedSecuritiesLineItems","NumberOfSharesUnderlyingOutstandingDepositoryReceipts","SummaryStatementHoldingOfSpecifiedSecurities","xbrli:sharesItemType",0,"xbrli:item",0,"instant","false","true"]
["in-bse-shp","NumberOfShares","Total number of shares",null,5,"in-bse-shp_NumberOfShares","DetailsOfSpecifiedSecuritiesLineItems","NumberOfShares","SummaryStatementHoldingOfSpecifiedSecurities","xbrli:sharesItemType",0,"xbrli:item",0,"instant","false","true"]
["in-bse-shp","ShareholdingAsAPercentageOfTotalNumberOfShares","Shareholding as a percentage of total number of shares held by promoters and public shareholders and custodians or DR holders",null,6,"in-bse-shp_ShareholdingAsAPercentageOfTotalNumberOfShares","DetailsOfSpecifiedSecuritiesLineItems","ShareholdingAsAPercentageOfTotalNumberOfShares","SummaryStatementHoldingOfSpecifiedSecurities","num:percentItemType",0,"xbrli:item",0,"instant","false","true",{"$nulls":9},"In case of public share holding percentage can not be less than one percentage.",{"$nulls":6},1]
["in-bse-shp","NumberOfVotingRightsHeldInEachClassOfSecuritiesAbstract","Number of voting rights held in each class of securities [Abstract]",null,7,"in-bse-shp_NumberOfVotingRightsHeldInEachClassOfSecuritiesAbstract","DetailsOfSpecifiedSecuritiesLineItems","NumberOfVotingRightsHeldInEachClassOfSecuritiesAbstract","SummaryStatementHoldingOfSpecifiedSecurities","xbrli:stringItemType",0,"xbrli:item",0,"duration","true","true"]
["in-bse-shp","NumberOfVotingRightsHeldBySameClassOfSecurities","Number of voting rights held by same class of securities",null,1,"in-bse-shp_NumberOfVotingRightsHeldBySameClassOfSecurities","NumberOfVotingRightsHeldInEachClassOfSecuritiesAbstract","NumberOfVotingRightsHeldBySameClassOfSecurities","SummaryStatementHoldingOfSpecifiedSecurities","xbrli:decimalItemType",0,"xbrli:item",0,"instant","false","true",{"$nulls":9},"Value must be equal to Fully paid up shares"]
["in-bse-shp","NumberOfVotingRightsHeldByDifferentialVotingRights","Number of voting rights held by differential voting rights",null,2,"in-bse-shp_NumberOfVotingRightsHeldByDifferentialVotingRights","NumberOfVotingRightsHeldInEachClassOfSecuritiesAbstract","NumberOfVotingRightsHeldByDifferentialVotingRights","SummaryStatementHoldingOfSpecifiedSecurities","xbrli:decimalItemType",0,"xbrli:item",0,"instant","false","true"]
["in-bse-shp","NumberOfVotingRights","Total number of voting rights",null,3,"in-bse-shp_NumberOfVotingRights","NumberOfVotingRightsHeldInEachClassOfSecuritiesAbstract","NumberOfVotingRights","SummaryStatementHoldingOfSpecifiedSecurities","xbrli:decimalItemType",0,"xbrli:item",0,"instant","false","true"]
["in-bse-shp","PercentageOfTotalVotingRights","Percentage of total number of voting rights",null,4,"in-bse-shp_PercentageOfTotalVotingRights","NumberOfVotingRightsHeldInEachClassOfSecuritiesAbstract","PercentageOfTotalVotingRights","SummaryStatementHoldingOfSpecifiedSecurities","num:percentItemType",0,"xbrli:item",0,"instant","false","true",{"$nulls":9},"Percentage of total number of voting rights"]
["in-bse-shp","NumberOfSharesUnderlyingOutstandingConvertibleSecurities","Number of shares underlying outstanding convertible securities",null,8,"in-bse-shp_NumberOfSharesUnderlyingOutstandingConvertibleSecurities","DetailsOfSpecifiedSecuritiesLineItems","NumberOfSharesUnderlyingOutstandingConvertibleSecurities","SummaryStatementHoldingOfSpecifiedSecurities","xbrli:sharesItemType",0,"xbrli:item",0,"instant","false","true"]
["in-bse-shp","NumberOfWarrants","Number of warrant",null,9,"in-bse-shp_NumberOfWarrants","DetailsOfSpecifiedSecuritiesLineItems","NumberOfWarrants","SummaryStatementHoldingOfSpecifiedSecurities","xbrli:sharesItemType",0,"xbrli:item",0,"instant","false","true"]
["in-bse-shp","NumberOfConvertibleSecuritiesAndWarrants","Number of warrant and convertible securities",null,10,"in-bse-shp_NumberOfConvertibleSecuritiesAndWarrants","DetailsOfSpecifiedSecuritiesLineItems","NumberOfConvertibleSecuritiesAndWarrants","SummaryStatementHoldingOfSpecifiedSecurities","xbrli:sharesItemType",0,"xbrli:item",0,"instant","false","true"]
["in-bse-shp","ShareholdingAsAPercentageAssumingFullConversionOfConvertibleSecuritiesAndWarrants","Total shareholding as a percentage assuming full conversion of convertible securities",null,11,"in-bse-shp_ShareholdingAsAPercentageAssumingFullConversionOfConvertibleSecuritiesAndWarrants","DetailsOfSpecifiedSecuritiesLineItems","ShareholdingAsAPercentageAssumingFullConversionOfConvertibleSecuritiesAndWarrants","SummaryStatementHoldingOfSpecifiedSecurities","num:percentItemType",0,"xbrli:item",0,"instant","false","true",{"$nulls":9},"Total shareholding as a percentage assuming full conversion of convertible securities"]
["in-bse-shp","DetailsOfTheLockedInSharesAbstract","Details of the locked-in-shares [Abstract]",null,12,"in-bse-shp_DetailsOfTheLockedInSharesAbstract","DetailsOfSpecifiedSecuritiesLineItems","DetailsOfTheLockedInSharesAbstract","SummaryStatementHoldingOfSpecifiedSecurities","xbrli:stringItemType",0,"xbrli:item",0,"duration","true","true"]
["in-bse-shp","NumberOfTheLockedInShares","Number of the locked-in-shares ",null,1,"in-bse-shp_NumberOfTheLockedInShares","DetailsOfTheLockedInSharesAbstract","NumberOfTheLockedInShares","SummaryStatementHoldingOfSpecifiedSecurities","xbrli:sharesItemType",0,"xbrli:item",0,"instant","false","true",{"$nulls":9},"Value should be less than or equal to fully paid up shares"]
["in-bse-shp","LockedInSharesAsAPercentageOfTotalNumberOfShares","Locked-in-shares as a percentage of total number of shares",null,2,"in-bse-shp_","DetailsOfTheLockedInSharesAbstract","LockedInSharesAsAPercentageOfTotalNumberOfShares","SummaryStatementHoldingOfSpecifiedSecurities","num:percentItemType",0,"xbrli:item",0,"instant","false","true",{"$nulls":9},"Locked-in-shares as a percentage of total number of shares"]
["in-bse-shp","NumberOfSharesPledgedOrOtherwiseEncumberedAbstract","Number of Shares pledged or otherwise encumbered [Abstract]",null,13,"in-bse-shp_NumberOfSharesPledgedOrOtherwiseEncumberedAbstract","DetailsOfSpecifiedSecuritiesLineItems","NumberOfSharesPledgedOrOtherwiseEncumberedAbstract","SummaryStatementHoldingOfSpecifiedSecurities","xbrli:stringItemType",0,"xbrli:item",0,"duration","true","true"]
["in-bse-shp","PledgedOrEncumberedNumberOfShares","Pledged or encumbered - number of shares",null,1,"in-bse-shp_PledgedOrEncumberedNumberOfShares","NumberOfSharesPledgedOrOtherwiseEncumberedAbstract","PledgedOrEncumberedNumberOfShares","SummaryStatementHoldingOfSpecifiedSecurities","xbrli:sharesItemType",0,"xbrli:item",0,"instant","false","true",{"$nulls":9},"Value should be less than or equal to fully paid up shares"]
["in-bse-shp","PledgedOrEncumberedSharesHeldAsPercentageOfTotalNumberOfShares","Pledged or encumbered shares held as percentage of total number of shares",null,2,"in-bse-shp_PledgedOrEncumberedSharesHeldAsPercentageOfTotalNumberOfShares","NumberOfSharesPledgedOrOtherwiseEncumberedAbstract","PledgedOrEncumberedSharesHeldAsPercentageOfTotalNumberOfShares","SummaryStatementHoldingOfSpecifiedSecurities","num:percentItemType",0,"xbrli:item",0,"instant","false","true",{"$nulls":9},"Pledged or encumbered shares held as percentage of total number of shares"]
["in-bse-shp","NumberOfEquitySharesHeldInDematerializedForm","Number of equity shares held in dematerialized form",null,14,"in-bse-shp_NumberOfEquitySharesHeldInDematerializedForm","DetailsOfSpecifiedSecuritiesLineItems","NumberOfEquitySharesHeldInDematerializedForm","SummaryStatementHoldingOfSpecifiedSecurities","xbrli:sharesItemType",0,"xbrli:item",0,"instant","false","true",{"$nulls":9},"Value should be less than or equal to total no of shares.","Value should be less than or equal to total no of shares."]
["in-bse-shp","DetailsOfShareholdingPatternAbstract","Details of shareholding pattern [Abstract]",null,1,"in-bse-shp_DetailsOfShareholdingPatternAbstract",null,null,"StatementShowingShareholdingPattern","xbrli:stringItemType",0,"xbrli:item",0,"duration","true","true"]
["in-bse-shp","DetailsOfShareholdingPatternTable","Details of shareholding pattern [Table]",null,1,"in-bse-shp_DetailsOfShareholdingPatternTable","DetailsOfShareholdingPatternAbstract","DetailsOfShareholdingPatternTable","StatementShowingShareholdingPattern","xbrli:stringItemType",0,"xbrldt:hypercubeItem",0,"duration","true","true"]
["in-bse-shp","CategoryOfShareholdersAxis","Category of shareholders [Axis]",null,1,"in-bse-shp_CategoryOfShareholdersAxis","DetailsOfShareholdingPatternTable","CategoryOfShareholdersAxis","StatementShowingShareholdingPattern","xbrli:stringItemType",0,"xbrldt:dimensionItem",0,"duration","true","true"]
["in-bse-shp","ShareholdingPatternMember","Shareholding pattern [Member]",null,1,"in-bse-shp_ShareholdingPatternMember","CategoryOfShareholdersAxis","ShareholdingPatternMember","StatementShowingShareholdingPattern","nonnum:domainItemType",0,"xbrli:item",0,"duration","true","true"]
["in-bse-shp","ShareholdingOfPromoterAndPromoterGroupMember","Shareholding of promoter and promoter group [Member]",null,1,"in-bse-shp_ShareholdingOfPromoterAndPromoterGroupMember","ShareholdingPatternMember","ShareholdingOfPromoterAndPromoterGroupMember","StatementShowingShareholdingPattern","nonnum:domainItemType",0,"xbrli:item",0,"duration","true","true"]
["in-bse-shp","IndianMember","Indian [Member]",null,1,"in-bse-shp_IndianMember","ShareholdingOfPromoterAndPromoterGroupMember","IndianMember","StatementShowingShareholdingPattern","nonnum:domainItemType",0,"xbrli:item",0,"duration","true","true"]
["in-bse-shp","IndividualsOrHinduUndividedFamilyMember","Individuals or Hindu undivided family [Member]",null,1,"in-bse-shp_IndividualsOrHinduUndividedFamilyMember","IndianMember","IndividualsOrHinduUndividedFamilyMember","StatementShowingShareholdingPattern","nonnum:domainItemType",0,"xbrli:item",0,"duration","true","true"]
["in-bse-shp","CentralGovernmentOrStateGovernmentSMember","Central government or State government(s) [Member]",null,2,"in-bse-shp_CentralGovernmentOrStateGovernmentSMember","IndianMember","CentralGovernmentOrStateGovernmentSMember","StatementShowingShareholdingPattern","nonnum:domainItemType",0,"xbrli:item",0,"duration","true","true"]
["in-bse-shp","IndianFinancialInstitutionsOrBanksMember","Indian - financial institutions or banks [Member]",null,3,"in-bse-shp_IndianFinancialInstitutionsOrBanksMember","IndianMember","IndianFinancialInstitutionsOrBanksMember","StatementShowingShareholdingPattern","nonnum:domainItemType",0,"xbrli:item",0,"duration","true","true"]
["in-bse-shp","OtherIndianShareholdersMember","Other Indian shareholders [Member]",null,4,"in-bse-shp_OtherIndianShareholdersMember","IndianMember","OtherIndianShareholdersMember","StatementShowingShareholdingPattern","nonnum:domainItemType",0,"xbrli:item",0,"duration","true","true"]
["in-bse-shp","ForeignMember","Foreign [Member]",null,2,"in-bse-shp_ForeignMember","ShareholdingOfPromoterAndPromoterGroupMember","ForeignMember","StatementShowingShareholdingPattern","nonnum:domainItemType",0,"xbrli:item",0,"duration","true","true"]
["in-bse-shp","NonResidentIndividualsOrForeignIndividualsMember","Non-resident individuals or foreign individuals [Member]",null,1,"in-bse-shp_NonResidentIndividualsOrForeignIndividualsMember","ForeignMember","NonResidentIndividualsOrForeignIndividualsMember","StatementShowingShareholdingPattern","nonnum:domainItemType",0,"xbrli:item",0,"duration","true","true"]
["in-bse-shp","ForeignGovernmentMember","Foreign - Government [Member]",null,2,"in-bse-shp_ForeignGovernmentMember","ForeignMember","ForeignGovernmentMember","StatementShowingShareholdingPattern","nonnum:domainItemType",0,"xbrli:item",0,"duration","true","true"]
["in-bse-shp","ForeignInstitutionsMember","Foreign - institutions [Member]",null,3,"in-bse-shp_ForeignInstitutionsMember","ForeignMember","ForeignInstitutionsMember","StatementShowingShareholdingPattern","nonnum:domainItemType",0,"xbrli:item",0,"duration","true","true"]
["in-bse-shp","ForeignPortfolioInvestorMember","Foreign portfolio investor [Member]",null,4,"in-bse-shp_ForeignPortfolioInvestorMember","ForeignMember","ForeignPortfolioInvestorMember","StatementShowingShareholdingPattern","nonnum:domainItemType",0,"xbrli:item",0,"duration","true","true"]
["in-bse-shp","OtherForeignShareholdersMember","Other foreign shareholders [Member]",null,5,"in-bse-shp_OtherForeignShareholdersMember","ForeignMember","OtherForeignShareholdersMember","StatementShowingShareholdingPattern","nonnum:domainItemType",0,"xbrli:item",0,"duration","true","true"]
["in-bse-shp","PublicShareholdingMember","Public shareholding [Member]",null,2,"in-bse-shp_PublicShareholdingMember","ShareholdingPatternMember","PublicShareholdingMember","StatementShowingShareholdingPattern","nonnum:domainItemType",0,"xbrli:item",0,"duration","true","true"]
["in-bse-shp","InstitutionsMember","Institutions [Member]",null,1,"in-bse-shp_InstitutionsMember","PublicShareholdingMember","InstitutionsMember","StatementShowingShareholdingPattern","nonnum:domainItemType",0,"xbrli:item",0,"duration","true","true"]
["in-bse-shp","MutualFundsOrUtiMember","Mutual funds or UTI [Member]",null,1,"in-bse-shp_MutualFundsOrUtiMember","InstitutionsMember","MutualFundsOrUtiMember","StatementShowingShareholdingPattern","nonnum:domainItemType",0,"xbrli:item",0,"duration","true","true"]
["in-bse-shp","VentureCapitalFundsMember","Venture capital funds [Member]",null,2,"in-bse-shp_VentureCapitalFundsMember","InstitutionsMember","VentureCapitalFundsMember","StatementShowingShareholdingPattern","nonnum:domainItemType",0,"xbrli:item",0,"duration","true","true"]
["in-bse-shp","AlternativeInvestmentFundsMember","Alternative investment funds [Member]",null,3,"in-bse-shp_AlternativeInvestmentFundsMember","InstitutionsMember","AlternativeInvestmentFundsMember","StatementShowingShareholdingPattern","nonnum:domainItemType",0,"xbrli:item",0,"duration","true","true"]
["in-bse-shp","ForeignVentureCapitalInvestorsMember","Foreign venture capital investors [Member]",null,4,"in-bse-shp_ForeignVentureCapitalInvestorsMember","InstitutionsMember","ForeignVentureCapitalInvestorsMember","StatementShowingShareholdingPattern","nonnum:domainItemType",0,"xbrli:item",0,"duration","true","true"]
["in-bse-shp","InstitutionsForeignPortfolioInvestorMember","Institutions - Foreign portfolio investor [Member]",null,5,"in-bse-shp_InstitutionsForeignPortfolioInvestorMember","InstitutionsMember","InstitutionsForeignPortfolioInvestorMember","StatementShowingShareholdingPattern","nonnum:domainItemType",0,"xbrli:item",0,"duration","true","true"]
["in-bse-shp","FinancialInstitutionOrBanksMember","Financial Institution or Banks [Member]",null,6,"in-bse-shp_FinancialInstitutionOrBanksMember","InstitutionsMember","FinancialInstitutionOrBanksMember","StatementShowingShareholdingPattern","nonnum:domainItemType",0,"xbrli:item",0,"duration","true","true"]
["in-bse-shp","InsuranceCompaniesMember","Insurance Companies [Member]",null,7,"in-bse-shp_InsuranceCompaniesMember","InstitutionsMember","InsuranceCompaniesMember","StatementShowingShareholdingPattern","nonnum:domainItemType",0,"xbrli:item",0,"duration","true","true"]
["in-bse-shp","ProvidentFundsOrPensionFundsMember","Provident Funds or pension funds [Member]",null,8,"in-bse-shp_ProvidentFundsOrPensionFundsMember","InstitutionsMember","ProvidentFundsOrPensionFundsMember","StatementShowingShareholdingPattern","nonnum:domainItemType",0,"xbrli:item",0,"duration","true","true"]
["in-bse-shp","OtherInstitutionsMember","Other institutions [Member]",null,9,"in-bse-shp_OtherInstitutionsMember","InstitutionsMember","OtherInstitutionsMember","StatementShowingShareholdingPattern","nonnum:domainItemType",0,"xbrli:item",0,"duration","true","true"]
["in-bse-shp","GovermentsMember","Goverments [Member]",null,2,"in-bse-shp_GovermentsMember","PublicShareholdingMember","GovermentsMember","StatementShowingShareholdingPattern","nonnum:domainItemType",0,"xbrli:item",0,"duration","true","true"]
["in-bse-shp","CentralGovernmentOrStateGovernmentSOrPresidentOfIndiaMember","Central Government or State Government(s) or President of India [Member]",null,2,"in-bse-shp_CentralGovernmentOrStateGovernmentSOrPresidentOfIndiaMember","PublicShareholdingMember","CentralGovernmentOrStateGovernmentSOrPresidentOfIndiaMember","StatementShowingShareholdingPattern","nonnum:domainItemType",0,"xbrli:item",0,"duration","true","true"]
["in-bse-shp","NonInstitutionsMember","Non-institutions [Member]",null,3,"in-bse-shp_NonInstitutionsMember","PublicShareholdingMember","NonInstitutionsMember","StatementShowingShareholdingPattern","nonnum:domainItemType",0,"xbrli:item",0,"duration","true","true"]
["in-bse-shp","IndividualsMember","Individuals [Member]",null,1,"in-bse-shp_IndividualsMember","NonInstitutionsMember","IndividualsMember","StatementShowingShareholdingPattern","nonnum:domainItemType",0,"xbrli:item",0,"duration","true","true"]
["in-bse-shp","IndividualShareholdersHoldingNominalShareCapitalUpToRsTwoLakhMember","Individual shareholders holding nominal share capital up to Rs two lakh [Member]",null,1,"in-bse-shp_IndividualShareholdersHoldingNominalShareCapitalUpToRsTwoLakhMember","IndividualsMember","IndividualShareholdersHoldingNominalShareCapitalUpToRsTwoLakhMember","StatementShowingShareholdingPattern","nonnum:domainItemType",0,"xbrli:item",0,"duration","true","true"]
["in-bse-shp","IndividualShareholdersHoldingNominalShareCapitalInExcessOfRsTwoLakhMember","Individual shareholders holding nominal share capital in excess of Rs two lakh [Member]",null,2,"in-bse-shp_IndividualShareholdersHoldingNominalShareCapitalInExcessOfRsTwoLakhMember","IndividualsMember","IndividualShareholdersHoldingNominalShareCapitalInExcessOfRsTwoLakhMember","StatementShowingShareholdingPattern","nonnum:domainItemType",0,"xbrli:item",0,"duration","true","true"]
["in-bse-shp","NBFCsRegisteredWithRbiMember","NBFCs registered with RBI [Member]",null,2,"in-bse-shp_NBFCsRegisteredWithRbiMember","NonInstitutionsMember","NBFCsRegisteredWithRbiMember","StatementShowingShareholdingPattern","nonnum:domainItemType",0,"xbrli:item",0,"duration","true","true"]
["in-bse-shp","EmployeeTrustsMember","Employee Trusts [Member]",null,3,"in-bse-shp_EmployeeTrustsMember","NonInstitutionsMember","EmployeeTrustsMember","StatementShowingShareholdingPattern","nonnum:domainItemType",0,"xbrli:item",0,"duration","true","true",{"$nulls":9},"fkldsfk"]
["in-bse-shp","OverseasDepositoriesMember","Overseas Depositories [Member]",null,4,"in-bse-shp_OverseasDepositoriesMember","NonInstitutionsMember","OverseasDepositoriesMember","StatementShowingShareholdingPattern","nonnum:domainItemType",0,"xbrli:item",0,"duration","true","true"]
["in-bse-shp","OtherNonInstitutionsMember","Other non-institutions [Member]",null,5,"in-bse-shp_OtherNonInstitutionsMember","NonInstitutionsMember","OtherNonInstitutionsMember","StatementShowingShareholdingPattern","nonnum:domainItemType",0,"xbrli:item",0,"duration","true","true"]
["in-bse-shp","SharesHeldByNonPromoterNonPublicShareholdersMember","Shares held by non-promoter non-public shareholders [Member]",null,3,"in-bse-shp_SharesHeldByNonPromoterNonPublicShareholdersMember","PublicShareholdingMember","SharesHeldByNonPromoterNonPublicShareholdersMember","StatementShowingShareholdingPattern","nonnum:domainItemType",0,"xbrli:item",0,"duration","true","true"]
["in-bse-shp","CustodianOrDRHolderMember","Custodian or DR holder [Member]",null,1,"in-bse-shp_CustodianOrDRHolderMember","SharesHeldByNonPromoterNonPublicShareholdersMember","CustodianOrDRHolderMember","StatementShowingShareholdingPattern","nonnum:domainItemType",0,"xbrli:item",0,"duration","true","true"]
["in-bse-shp","EmployeeBenefitsTrustsMember","Employee benefits trusts [Member]",null,2,"in-bse-shp_EmployeeBenefitsTrustsMember","SharesHeldByNonPromoterNonPublicShareholdersMember","EmployeeBenefitsTrustsMember","StatementShowingShareholdingPattern","nonnum:domainItemType",0,"xbrli:item",0,"duration","true","true"]
["in-bse-shp","DetailsOfShareholdingPatternLineItems","Details of shareholding pattern  [Line items]",null,2,"in-bse-shp_DetailsOfShareholdingPatternLineItems","DetailsOfShareholdingPatternAbstract","DetailsOfShareholdingPatternLineItems","StatementShowingShareholdingPattern","xbrli:stringItemType",0,"xbrli:item",0,"duration","true","true"]
["in-bse-shp","NumberOfShareholders","Number of shareholders",null,1,"in-bse-shp_NumberOfShareholders","DetailsOfShareholdingPatternLineItems","NumberOfShareholders","StatementShowingShareholdingPattern","xbrli:decimalItemType",0,"xbrli:item",0,"instant","false","true"]
["in-bse-shp","NumberOfFullyPaidUpEquityShares","Number of fully paid up equity shares",null,2,"in-bse-shp_NumberOfFullyPaidUpEquityShares","DetailsOfShareholdingPatternLineItems","NumberOfFullyPaidUpEquityShares","StatementShowingShareholdingPattern","xbrli:sharesItemType",0,"xbrli:item",0,"instant","false","true"]
["in-bse-shp","NumberOfPartlyPaidUpEquityShares","Number of partly paid-up equity shares",null,3,"in-bse-shp_NumberOfPartlyPaidUpEquityShares","DetailsOfShareholdingPatternLineItems","NumberOfPartlyPaidUpEquityShares","StatementShowingShareholdingPattern","xbrli:sharesItemType",0,"xbrli:item",0,"instant","false","true"]
["in-bse-shp","NumberOfSharesUnderlyingOutstandingDepositoryReceipts","Number of shares underlying outstanding depository receipts",null,4,"in-bse-shp_NumberOfSharesUnderlyingOutstandingDepositoryReceipts","DetailsOfShareholdingPatternLineItems","NumberOfSharesUnderlyingOutstandingDepositoryReceipts","StatementShowingShareholdingPattern","xbrli:sharesItemType",0,"xbrli:item",0,"instant","false","true"]
["in-bse-shp","NumberOfVotingRightsHeldInEachClassOfSecuritiesAbstract","Number of voting rights held in each class of securities [Abstract]",null,7,"in-bse-shp_NumberOfVotingRightsHeldInEachClassOfSecuritiesAbstract","DetailsOfShareholdingPatternLineItems","NumberOfVotingRightsHeldInEachClassOfSecuritiesAbstract","StatementShowingShareholdingPattern","xbrli:stringItemType",0,"xbrli:item",0,"duration","true","true"]
["in-bse-shp","NumberOfVotingRightsHeldBySameClassOfSecurities","Number of voting rights held by same class of securities",null,1,"in-bse-shp_NumberOfVotingRightsHeldBySameClassOfSecurities","NumberOfVotingRightsHeldInEachClassOfSecuritiesAbstract","NumberOfVotingRightsHeldBySameClassOfSecurities","StatementShowingShareholdingPattern","xbrli:decimalItemType",0,"xbrli:item",0,"instant","false","true"]
["in-bse-shp","NumberOfVotingRightsHeldByDifferentialVotingRights","Number of voting rights held by differential voting rights",null,2,"in-bse-shp_NumberOfVotingRightsHeldByDifferentialVotingRights","NumberOfVotingRightsHeldInEachClassOfSecuritiesAbstract","NumberOfVotingRightsHeldByDifferentialVotingRights","StatementShowingShareholdingPattern","xbrli:decimalItemType",0,"xbrli:item",0,"instant","false","true"]
["in-bse-shp","NumberOfVotingRights","Total number of voting rights",null,3,"in-bse-shp_NumberOfVotingRights","NumberOfVotingRightsHeldInEachClassOfSecuritiesAbstract","NumberOfVotingRights","StatementShowingShareholdingPattern","xbrli:decimalItemType",0,"xbrli:item",0,"instant","false","true"]
["in-bse-shp","NumberOfSharesUnderlyingOutstandingConvertibleSecurities","Number of shares underlying outstanding convertible securities",null,8,"in-bse-shp_NumberOfSharesUnderlyingOutstandingConvertibleSecurities","DetailsOfShareholdingPatternLineItems","NumberOfSharesUnderlyingOutstandingConvertibleSecurities","StatementShowingShareholdingPattern","xbrli:sharesItemType",0,"xbrli:item",0,"instant","false","true"]
["in-bse-shp","DetailsOfTheLockedInSharesAbstract","Details of the locked-in-shares [Abstract]",null,12,"in-bse-shp_DetailsOfTheLockedInSharesAbstract","DetailsOfShareholdingPatternLineItems","DetailsOfTheLockedInSharesAbstract","StatementShowingShareholdingPattern","xbrli:stringItemType",0,"xbrli:item",0,"duration","true","true"]
["in-bse-shp","NumberOfTheLockedInShares","Number of the locked-in-shares ",null,13,"in-bse-shp_NumberOfTheLockedInShares","DetailsOfTheLockedInSharesAbstract","NumberOfTheLockedInShares","StatementShowingShareholdingPattern","xbrli:sharesItemType",0,"xbrli:item",0,"instant","false","true"]
["in-bse-shp","LockedInSharesAsAPercentageOfTotalNumberOfShares","Locked-in-shares as a percentage of total number of shares",null,14,"in-bse-shp_LockedInSharesAsAPercentageOfTotalNumberOfShares","DetailsOfTheLockedInSharesAbstract","LockedInSharesAsAPercentageOfTotalNumberOfShares","StatementShowingShareholdingPattern","num:percentItemType",0,"xbrli:item",0,"instant","false","true"]
["in-bse-shp","NumberOfSharesPledgedOrOtherwiseEncumberedAbstract","Number of Shares pledged or otherwise encumbered [Abstract]",null,15,"in-bse-shp_NumberOfSharesPledgedOrOtherwiseEncumberedAbstract","DetailsOfShareholdingPatternLineItems","NumberOfSharesPledgedOrOtherwiseEncumberedAbstract","StatementShowingShareholdingPattern","xbrli:stringItemType",0,"xbrli:item",0,"duration","true","true"]
["in-bse-shp","PledgedOrEncumberedNumberOfShares","Pledged or encumbered - number of shares",null,16,"in-bse-shp_PledgedOrEncumberedNumberOfShares","NumberOfSharesPledgedOrOtherwiseEncumberedAbstract","PledgedOrEncumberedNumberOfShares","StatementShowingShareholdingPattern","xbrli:sharesItemType",0,"xbrli:item",0,"instant","false","true"]
["in-bse-shp","PledgedOrEncumberedSharesHeldAsPercentageOfTotalNumberOfShares","Pledged or encumbered shares held as percentage of total number of shares",null,17,"in-bse-shp_PledgedOrEncumberedSharesHeldAsPercentageOfTotalNumberOfShares","NumberOfSharesPledgedOrOtherwiseEncumberedAbstract","PledgedOrEncumberedSharesHeldAsPercentageOfTotalNumberOfShares","StatementShowingShareholdingPattern","num:percentItemType",0,"xbrli:item",0,"instant","false","true"]
["in-bse-shp","NumberOfEquitySharesHeldInDematerializedForm","Number of equity shares held in dematerialized form",null,18,"in-bse-shp_NumberOfEquitySharesHeldInDematerializedForm","DetailsOfShareholdingPatternLineItems","NumberOfEquitySharesHeldInDematerializedForm","StatementShowingShareholdingPattern","xbrli:sharesItemType",0,"xbrli:item",0,"instant","false","true"]
["in-bse-shp","DisclosureOfNotesOnShareholdingPatternExplanatoryTextBlock","Disclosure of notes on shareholding pattern",{"$nulls":6},"nonnum:textBlockItemType",null,"xbrli:item",0,"instant","false","true"]
["in-bse-shp","DetailsOfSharesHeldByIndividualsOrHUFAbstract","Details of shares held by Individuals or HUF [Abstract]",null,null,"in-bse-shp_DetailsOfSharesHeldByIndividualsOrHUFAbstract",null,null,"ShareholdingPatternIndividualsOrHUF","xbrli:stringItemType",0,"xbrli:item",0,"duration","true","true"]
["in-bse-shp","DetailsOfSharesHeldByIndividualsOrHUFTable","Details of shares held by Individuals or HUF [Table]",null,1,"in-bse-shp_DetailsOfSharesHeldByIndividualsOrHUFTable","DetailsOfSharesHeldByIndividualsOrHUFAbstract","DetailsOfSharesHeldByIndividualsOrHUFTable","ShareholdingPatternIndividualsOrHUF","xbrli:stringItemType",0,"xbrldt:hypercubeItem",0,"duration","true","true"]
["in-bse-shp","DetailsSharesHeldByIndividualsOrHUFAxis","Details shares held by Individuals or HUF  [Axis]",null,1,"in-bse-shp_DetailsSharesHeldByIndividualsOrHUFAxis","DetailsOfSharesHeldByIndividualsOrHUFTable","DetailsSharesHeldByIndividualsOrHUFAxis","ShareholdingPatternIndividualsOrHUF","xbrli:stringItemType",0,"xbrldt:dimensionItem",0,"duration","true","true"]
["in-bse-shp","DetailsOfSharesHeldByIndividualsOrHUFLineItems","Details of shares held by Individuals or HUF [Line items]",null,2,"in-bse-shp_DetailsOfSharesHeldByIndividualsOrHUFLineItems","DetailsOfSharesHeldByIndividualsOrHUFAbstract","DetailsOfSharesHeldByIndividualsOrHUFLineItems","ShareholdingPatternIndividualsOrHUF","xbrli:stringItemType",0,"xbrli:item",0,"duration","true","true"]
["in-bse-shp","NameOfTheShareholder","Name of shareholder",null,1,"in-bse-shp_NameOfTheShareholder","DetailsOfSharesHeldByIndividualsOrHUFLineItems","NameOfTheShareholder","ShareholdingPatternIndividualsOrHUF","xbrli:stringItemType",0,"xbrli:item",0,"duration","false","true"]
["in-bse-shp","PermanentAccountNumberOfShareholder","Permanent account number of shareholder",null,2,"in-bse-shp_PermenantAccountNumberOfShareholder","DetailsOfSharesHeldByIndividualsOrHUFLineItems","PermenantAccountNumberOfShareholder","ShareholdingPatternIndividualsOrHUF","in-bse-shp-types:PermanentAccountNumber",0,"xbrli:item",0,"duration","false","true",{"$nulls":9},"[A-Z][A-Z][A-Z][A-Z][A-Z][0-9][0-9][0-9][0-9][A-Z]\n\nIn absence of PAN write : ZZZZZ9999Z"]
["in-bse-shp","NumberOfFullyPaidUpEquityShares","Number of fully paid up equity shares",null,3,"in-bse-shp_NumberOfFullyPaidUpEquityShares","DetailsOfSharesHeldByIndividualsOrHUFLineItems","NumberOfFullyPaidUpEquityShares","ShareholdingPatternIndividualsOrHUF","xbrli:sharesItemType",0,"xbrli:item",0,"instant","false","true"]
["in-bse-shp","NumberOfPartlyPaidUpEquityShares","Number of partly paid-up equity shares",null,4,"in-bse-shp_NumberOfPartlyPaidUpEquityShares","DetailsOfSharesHeldByIndividualsOrHUFLineItems","NumberOfPartlyPaidUpEquityShares","ShareholdingPatternIndividualsOrHUF","xbrli:sharesItemType",0,"xbrli:item",0,"instant","false","true"]
["in-bse-shp","NumberOfSharesUnderlyingOutstandingDepositoryReceipts","Number of shares underlying outstanding depository receipts",null,5,"in-bse-shp_NumberOfSharesUnderlyingOutstandingDepositoryReceipts","DetailsOfSharesHeldByIndividualsOrHUFLineItems","NumberOfSharesUnderlyingOutstandingDepositoryReceipts","ShareholdingPatternIndividualsOrHUF","xbrli:sharesItemType",0,"xbrli:item",0,"instant","false","true"]
["in-bse-shp","NumberOfVotingRightsHeldInEachClassOfSecuritiesAbstract","Number of voting rights held in each class of securities [Abstract]",null,8,"in-bse-shp_NumberOfVotingRightsHeldInEachClassOfSecuritiesAbstract","DetailsOfSharesHeldByIndividualsOrHUFLineItems","NumberOfVotingRightsHeldInEachClassOfSecuritiesAbstract","ShareholdingPatternIndividualsOrHUF","xbrli:stringItemType",0,"xbrli:item",0,"duration","true","true"]
["in-bse-shp","NumberOfVotingRightsHeldBySameClassOfSecurities","Number of voting rights held by same class of securities",null,1,"in-bse-shp_NumberOfVotingRightsHeldBySameClassOfSecurities","NumberOfVotingRightsHeldInEachClassOfSecuritiesAbstract","NumberOfVotingRightsHeldBySameClassOfSecurities","ShareholdingPatternIndividualsOrHUF","xbrli:decimalItemType",0,"xbrli:item",0,"instant","false","true"]
["in-bse-shp","NumberOfVotingRightsHeldByDifferentialVotingRights","Number of voting rights held by differential voting rights",null,2,"in-bse-shp_NumberOfVotingRightsHeldByDifferentialVotingRights","NumberOfVotingRightsHeldInEachClassOfSecuritiesAbstract","NumberOfVotingRightsHeldByDifferentialVotingRights","ShareholdingPatternIndividualsOrHUF","xbrli:decimalItemType",0,"xbrli:item",0,"instant","false","true"]
["in-bse-shp","NumberOfVotingRights","Total number of voting rights",null,3,"in-bse-shp_NumberOfVotingRights","NumberOfVotingRightsHeldInEachClassOfSecuritiesAbstract","NumberOfVotingRights","ShareholdingPatternIndividualsOrHUF","xbrli:decimalItemType",0,"xbrli:item",0,"instant","false","true"]
["in-bse-shp","PercentageOfTotalVotingRights","Percentage of total number of voting rights",null,4,"in-bse-shp_PercentageOfTotalVotingRights","NumberOfVotingRightsHeldInEachClassOfSecuritiesAbstract","PercentageOfTotalVotingRights","ShareholdingPatternIndividualsOrHUF","num:percentItemType",0,"xbrli:item",0,"instant","false","true"]
["in-bse-shp","NumberOfSharesUnderlyingOutstandingConvertibleSecurities","Number of shares underlying outstanding convertible securities",null,9,"in-bse-shp_NumberOfSharesUnderlyingOutstandingConvertibleSecurities","DetailsOfSharesHeldByIndividualsOrHUFLineItems","NumberOfSharesUnderlyingOutstandingConvertibleSecurities","ShareholdingPatternIndividualsOrHUF","xbrli:sharesItemType",0,"xbrli:item",0,"instant","false","true"]
["in-bse-shp","DetailsOfTheLockedInSharesAbstract","Details of the locked-in-shares [Abstract]",null,13,"in-bse-shp_DetailsOfTheLockedInSharesAbstract","DetailsOfSharesHeldByIndividualsOrHUFLineItems","DetailsOfTheLockedInSharesAbstract","ShareholdingPatternIndividualsOrHUF","xbrli:stringItemType",0,"xbrli:item",0,"duration","true","true"]
["in-bse-shp","NumberOfTheLockedInShares","Number of the locked-in-shares ",null,1,"in-bse-shp_NumberOfTheLockedInShares","DetailsOfTheLockedInSharesAbstract","NumberOfTheLockedInShares","ShareholdingPatternIndividualsOrHUF","xbrli:sharesItemType",0,"xbrli:item",0,"instant","false","true"]
["in-bse-shp","LockedInSharesAsAPercentageOfTotalNumberOfShares","Locked-in-shares as a percentage of total number of shares",null,2,"in-bse-shp_LockedInSharesAsAPercentageOfTotalNumberOfShares","DetailsOfTheLockedInSharesAbstract","LockedInSharesAsAPercentageOfTotalNumberOfShares","ShareholdingPatternIndividualsOrHUF","num:percentItemType",0,"xbrli:item",0,"instant","false","true"]
["in-bse-shp","NumberOfSharesPledgedOrOtherwiseEncumberedAbstract","Number of Shares pledged or otherwise encumbered [Abstract]",null,14,"in-bse-shp_NumberOfSharesPledgedOrOtherwiseEncumberedAbstract","DetailsOfSharesHeldByIndividualsOrHUFLineItems","NumberOfSharesPledgedOrOtherwiseEncumberedAbstract","ShareholdingPatternIndividualsOrHUF","xbrli:stringItemType",0,"xbrli:item",0,"duration","true","true"]
["in-bse-shp","PledgedOrEncumberedNumberOfShares","Pledged or encumbered - number of shares",null,1,"in-bse-shp_PledgedOrEncumberedNumberOfShares","NumberOfSharesPledgedOrOtherwiseEncumberedAbstract","PledgedOrEncumberedNumberOfShares","ShareholdingPatternIndividualsOrHUF","xbrli:sharesItemType",0,"xbrli:item",0,"instant","false","true"]
["in-bse-shp","PledgedOrEncumberedSharesHeldAsPercentageOfTotalNumberOfShares","Pledged or encumbered shares held as percentage of total number of shares",null,2,"in-bse-shp_PledgedOrEncumberedSharesHeldAsPercentageOfTotalNumberOfShares","NumberOfSharesPledgedOrOtherwiseEncumberedAbstract","PledgedOrEncumberedSharesHeldAsPercentageOfTotalNumberOfShares","ShareholdingPatternIndividualsOrHUF","num:percentItemType",0,"xbrli:item",0,"instant","false","true"]
["in-bse-shp","NumberOfEquitySharesHeldInDematerializedForm","Number of equity shares held in dematerialized form",null,15,"in-bse-shp_NumberOfEquitySharesHeldInDematerializedForm","DetailsOfSharesHeldByIndividualsOrHUFLineItems","NumberOfEquitySharesHeldInDematerializedForm","ShareholdingPatternIndividualsOrHUF","xbrli:sharesItemType",0,"xbrli:item",0,"instant","false","true"]
["in-bse-shp","DetailsOfSharesHeldByCentralGovernmentOrStateGovernmentsAbstract","Details of shares held by Central government or State government(s) [Abstract]",null,null,"in-bse-shp_DetailsOfSharesHeldByCentralGovernmentOrStateGovernmentsAbstract",null,null,"ShareholdingPatternCentralGovernmentOrStateGovernments","xbrli:stringItemType",0,"xbrli:item",0,"duration","true","true"]
["in-bse-shp","DetailsOfSharesHeldByCentralGovernmentOrStateGovernmentsTable","Details of shares held by Central government or State government(s) [Table]",null,1,"in-bse-shp_DetailsOfSharesHeldByCentralGovernmentOrStateGovernmentsTable","DetailsOfSharesHeldByCentralGovernmentOrStateGovernmentsAbstract","DetailsOfSharesHeldByCentralGovernmentOrStateGovernmentsTable","ShareholdingPatternCentralGovernmentOrStateGovernments","xbrli:stringItemType",0,"xbrldt:hypercubeItem",0,"duration","true","true"]
["in-bse-shp","DetailsOfSharesHeldByCentralGovernmentOrStateGovernmentsAxis","Details shares held by Central government or State government(s) [Axis]",null,1,"in-bse-shp_DetailsOfSharesHeldByCentralGovernmentOrStateGovernmentsAxis","DetailsOfSharesHeldByCentralGovernmentOrStateGovernmentsTable","DetailsOfSharesHeldByCentralGovernmentOrStateGovernmentsAxis","ShareholdingPatternCentralGovernmentOrStateGovernments","xbrli:stringItemType",0,"xbrldt:dimensionItem",0,"duration","true","true"]
["in-bse-shp","DetailsOfSharesHeldByCentralGovernmentOrStateGovernmentsLineItems","Details of shares held by Central government or State government(s) [Line items]",null,2,"in-bse-shp_DetailsOfSharesHeldByCentralGovernmentOrStateGovernmentsLineItems","DetailsOfSharesHeldByCentralGovernmentOrStateGovernmentsAbstract","DetailsOfSharesHeldByCentralGovernmentOrStateGovernmentsLineItems","ShareholdingPatternCentralGovernmentOrStateGovernments","xbrli:stringItemType",0,"xbrli:item",0,"duration","true","true"]
[]
["in-bse-shp","PermanentAccountNumberOfShareholder","Permanent account number of shareholder",null,2,"in-bse-shp_PermenantAccountNumberOfShareholder","DetailsOfSharesHeldByCentralGovernmentOrStateGovernmentsLineItems","PermenantAccountNumberOfShareholder","ShareholdingPatternCentralGovernmentOrStateGovernments","xbrli:PermenantAccountNumberOfShareholder",0,"xbrli:item",0,"duration","false","true"]
["in-bse-shp","NumberOfFullyPaidUpEquityShares","Number of fully paid up equity shares",null,3,"in-bse-shp_NumberOfFullyPaidUpEquityShares","DetailsOfSharesHeldByCentralGovernmentOrStateGovernmentsLineItems","NumberOfFullyPaidUpEquityShares","ShareholdingPatternCentralGovernmentOrStateGovernments","xbrli:sharesItemType",0,"xbrli:item",0,"instant","false","true"]
["in-bse-shp","NumberOfPartlyPaidUpEquityShares","Number of partly paid-up equity shares",null,4,"in-bse-shp_NumberOfPartlyPaidUpEquityShares","DetailsOfSharesHeldByCentralGovernmentOrStateGovernmentsLineItems","NumberOfPartlyPaidUpEquityShares","ShareholdingPatternCentralGovernmentOrStateGovernments","xbrli:sharesItemType",0,"xbrli:item",0,"instant","false","true"]
["in-bse-shp","NumberOfSharesUnderlyingOutstandingDepositoryReceipts","Number of shares underlying outstanding depository receipts",null,5,"in-bse-shp_NumberOfSharesUnderlyingOutstandingDepositoryReceipts","DetailsOfSharesHeldByCentralGovernmentOrStateGovernmentsLineItems","NumberOfSharesUnderlyingOutstandingDepositoryReceipts","ShareholdingPatternCentralGovernmentOrStateGovernments","xbrli:sharesItemType",0,"xbrli:item",0,"instant","false","true"]
["in-bse-shp","NumberOfVotingRightsHeldInEachClassOfSecuritiesAbstract","Number of voting rights held in each class of securities [Abstract]",null,8,"in-bse-shp_NumberOfVotingRightsHeldInEachClassOfSecuritiesAbstract","DetailsOfSharesHeldByCentralGovernmentOrStateGovernmentsLineItems","NumberOfVotingRightsHeldInEachClassOfSecuritiesAbstract","ShareholdingPatternCentralGovernmentOrStateGovernments","xbrli:stringItemType",0,"xbrli:item",0,"duration","true","true"]
["in-bse-shp","NumberOfVotingRightsHeldBySameClassOfSecurities","Number of voting rights held by same class of securities",null,1,"in-bse-shp_NumberOfVotingRightsHeldBySameClassOfSecurities","NumberOfVotingRightsHeldInEachClassOfSecuritiesAbstract","NumberOfVotingRightsHeldBySameClassOfSecurities","ShareholdingPatternCentralGovernmentOrStateGovernments","xbrli:decimalItemType",0,"xbrli:item",0,"instant","false","true"]
["in-bse-shp","NumberOfVotingRightsHeldByDifferentialVotingRights","Number of voting rights held by differential voting rights",null,2,"in-bse-shp_NumberOfVotingRightsHeldByDifferentialVotingRights","NumberOfVotingRightsHeldInEachClassOfSecuritiesAbstract","NumberOfVotingRightsHeldByDifferentialVotingRights","ShareholdingPatternCentralGovernmentOrStateGovernments","xbrli:decimalItemType",0,"xbrli:item",0,"instant","false","true"]
["in-bse-shp","NumberOfVotingRights","Total number of voting rights",null,3,"in-bse-shp_NumberOfVotingRights","NumberOfVotingRightsHeldInEachClassOfSecuritiesAbstract","NumberOfVotingRights","ShareholdingPatternCentralGovernmentOrStateGovernments","xbrli:decimalItemType",0,"xbrli:item",0,"instant","false","true"]
["in-bse-shp","NumberOfSharesUnderlyingOutstandingConvertibleSecurities","Number of shares underlying outstanding convertible securities",null,9,"in-bse-shp_NumberOfSharesUnderlyingOutstandingConvertibleSecurities","DetailsOfSharesHeldByCentralGovernmentOrStateGovernmentsLineItems","NumberOfSharesUnderlyingOutstandingConvertibleSecurities","ShareholdingPatternCentralGovernmentOrStateGovernments","xbrli:sharesItemType",0,"xbrli:item",0,"instant","false","true"]
["in-bse-shp","DetailsOfTheLockedInSharesAbstract","Details of the locked-in-shares [Abstract]",null,13,"in-bse-shp_DetailsOfTheLockedInSharesAbstract","DetailsOfSharesHeldByCentralGovernmentOrStateGovernmentsLineItems","DetailsOfTheLockedInSharesAbstract","ShareholdingPatternCentralGovernmentOrStateGovernments","xbrli:stringItemType",0,"xbrli:item",0,"duration","true","true"]
["in-bse-shp","NumberOfTheLockedInShares","Number of the locked-in-shares ",null,1,"in-bse-shp_NumberOfTheLockedInShares","DetailsOfTheLockedInSharesAbstract","NumberOfTheLockedInShares","ShareholdingPatternCentralGovernmentOrStateGovernments","xbrli:sharesItemType",0,"xbrli:item",0,"instant","false","true"]
["in-bse-shp","LockedInSharesAsAPercentageOfTotalNumberOfShares","Locked-in-shares as a percentage of total number of shares",null,2,"in-bse-shp_LockedInSharesAsAPercentageOfTotalNumberOfShares","DetailsOfTheLockedInSharesAbstract","LockedInSharesAsAPercentageOfTotalNumberOfShares","ShareholdingPatternCentralGovernmentOrStateGovernments","num:percentItemType",0,"xbrli:item",0,"instant","false","true"]
["in-bse-shp","NumberOfSharesPledgedOrOtherwiseEncumberedAbstract","Number of Shares pledged or otherwise encumbered [Abstract]",null,14,"in-bse-shp_NumberOfSharesPledgedOrOtherwiseEncumberedAbstract","DetailsOfSharesHeldByCentralGovernmentOrStateGovernmentsLineItems","NumberOfSharesPledgedOrOtherwiseEncumberedAbstract","ShareholdingPatternCentralGovernmentOrStateGovernments","xbrli:stringItemType",0,"xbrli:item",0,"duration","true","true"]
["in-bse-shp","PledgedOrEncumberedNumberOfShares","Pledged or encumbered - number of shares",null,1,"in-bse-shp_PledgedOrEncumberedNumberOfShares","NumberOfSharesPledgedOrOtherwiseEncumberedAbstract","PledgedOrEncumberedNumberOfShares","ShareholdingPatternCentralGovernmentOrStateGovernments","xbrli:sharesItemType",0,"xbrli:item",0,"instant","false","true"]
["in-bse-shp","PledgedOrEncumberedSharesHeldAsPercentageOfTotalNumberOfShares","Pledged or encumbered shares held as percentage of total number of shares",null,2,"in-bse-shp_PledgedOrEncumberedSharesHeldAsPercentageOfTotalNumberOfShares","NumberOfSharesPledgedOrOtherwiseEncumberedAbstract","PledgedOrEncumberedSharesHeldAsPercentageOfTotalNumberOfShares","ShareholdingPatternCentralGovernmentOrStateGovernments","num:percentItemType",0,"xbrli:item",0,"instant","false","true"]
["in-bse-shp","NumberOfEquitySharesHeldInDematerializedForm","Number of equity shares held in dematerialized form",null,15,"in-bse-shp_NumberOfEquitySharesHeldInDematerializedForm","DetailsOfSharesHeldByCentralGovernmentOrStateGovernmentsLineItems","NumberOfEquitySharesHeldInDematerializedForm","ShareholdingPatternCentralGovernmentOrStateGovernments","xbrli:sharesItemType",0,"xbrli:item",0,"instant","false","true"]
["in-bse-shp","DetailsOfSharesHeldByIndianFinancialInstitutionsOrBanksAbstract","Details of shares held by Indian - financial institutions or banks [Abstract]",null,null,"in-bse-shp_DetailsOfSharesHeldByIndianFinancialInstitutionsOrBanksAbstract",null,null,"ShareholdingPatternIndianFinancialInstitutionsOrBanks","xbrli:stringItemType",0,"xbrli:item",0,"duration","true","true"]
["in-bse-shp","DetailsOfSharesHeldByIndianFinancialInstitutionsOrBanksTable","Details of shares held by Indian - financial institutions or banks [Table]",null,1,"in-bse-shp_DetailsOfSharesHeldByIndianFinancialInstitutionsOrBanksTable","DetailsOfSharesHeldByIndianFinancialInstitutionsOrBanksAbstract","DetailsOfSharesHeldByIndianFinancialInstitutionsOrBanksTable","ShareholdingPatternIndianFinancialInstitutionsOrBanks","xbrli:stringItemType",0,"xbrldt:hypercubeItem",0,"duration","true","true"]
["in-bse-shp","DetailsOfSharesHeldByIndianFinancialInstitutionsOrBanksAxis","Details of shares held by Indian - financial institutions or banks  [Axis]",null,1,"in-bse-shp_DetailsOfSharesHeldByIndianFinancialInstitutionsOrBanksAxis","DetailsOfSharesHeldByIndianFinancialInstitutionsOrBanksTable","DetailsOfSharesHeldByIndianFinancialInstitutionsOrBanksAxis","ShareholdingPatternIndianFinancialInstitutionsOrBanks","xbrli:stringItemType",0,"xbrldt:dimensionItem",0,"duration","true","true"]
["in-bse-shp","DetailsOfSharesHeldByIndianFinancialInstitutionsOrBanksLineItems","Details of shares held by Indian - financial institutions or banks [Line items]",null,2,"in-bse-shp_DetailsOfSharesHeldByIndianFinancialInstitutionsOrBanksLineItems","DetailsOfSharesHeldByIndianFinancialInstitutionsOrBanksAbstract","DetailsOfSharesHeldByIndianFinancialInstitutionsOrBanksLineItems","ShareholdingPatternIndianFinancialInstitutionsOrBanks","xbrli:stringItemType",0,"xbrli:item",0,"duration","true","true"]
[]
["in-bse-shp","PermanentAccountNumberOfShareholder","Permanent account number of shareholder",null,2,"in-bse-shp_PermenantAccountNumberOfShareholder","DetailsOfSharesHeldByIndianFinancialInstitutionsOrBanksLineItems","PermenantAccountNumberOfShareholder","ShareholdingPatternIndianFinancialInstitutionsOrBanks","xbrli:PermenantAccountNumberOfShareholder",0,"xbrli:item",0,"duration","false","true"]
["in-bse-shp","NumberOfFullyPaidUpEquityShares","Number of fully paid up equity shares",null,3,"in-bse-shp_NumberOfFullyPaidUpEquityShares","DetailsOfSharesHeldByIndianFinancialInstitutionsOrBanksLineItems","NumberOfFullyPaidUpEquityShares","ShareholdingPatternIndianFinancialInstitutionsOrBanks","xbrli:sharesItemType",0,"xbrli:item",0,"instant","false","true"]
["in-bse-shp","NumberOfPartlyPaidUpEquityShares","Number of partly paid-up equity shares",null,4,"in-bse-shp_NumberOfPartlyPaidUpEquityShares","DetailsOfSharesHeldByIndianFinancialInstitutionsOrBanksLineItems","NumberOfPartlyPaidUpEquityShares","ShareholdingPatternIndianFinancialInstitutionsOrBanks","xbrli:sharesItemType",0,"xbrli:item",0,"instant","false","true"]
["in-bse-shp","NumberOfSharesUnderlyingOutstandingDepositoryReceipts","Number of shares underlying outstanding depository receipts",null,5,"in-bse-shp_NumberOfSharesUnderlyingOutstandingDepositoryReceipts","DetailsOfSharesHeldByIndianFinancialInstitutionsOrBanksLineItems","NumberOfSharesUnderlyingOutstandingDepositoryReceipts","ShareholdingPatternIndianFinancialInstitutionsOrBanks","xbrli:sharesItemType",0,"xbrli:item",0,"instant","false","true"]
["in-bse-shp","NumberOfVotingRightsHeldInEachClassOfSecuritiesAbstract","Number of voting rights held in each class of securities [Abstract]",null,8,"in-bse-shp_NumberOfVotingRightsHeldInEachClassOfSecuritiesAbstract","DetailsOfSharesHeldByIndianFinancialInstitutionsOrBanksLineItems","NumberOfVotingRightsHeldInEachClassOfSecuritiesAbstract","ShareholdingPatternIndianFinancialInstitutionsOrBanks","xbrli:stringItemType",0,"xbrli:item",0,"duration","true","true"]
["in-bse-shp","NumberOfVotingRightsHeldBySameClassOfSecurities","Number of voting rights held by same class of securities",null,1,"in-bse-shp_NumberOfVotingRightsHeldBySameClassOfSecurities","NumberOfVotingRightsHeldInEachClassOfSecuritiesAbstract","NumberOfVotingRightsHeldBySameClassOfSecurities","ShareholdingPatternIndianFinancialInstitutionsOrBanks","xbrli:decimalItemType",0,"xbrli:item",0,"instant","false","true"]
["in-bse-shp","NumberOfVotingRightsHeldByDifferentialVotingRights","Number of voting rights held by differential voting rights",null,2,"in-bse-shp_NumberOfVotingRightsHeldByDifferentialVotingRights","NumberOfVotingRightsHeldInEachClassOfSecuritiesAbstract","NumberOfVotingRightsHeldByDifferentialVotingRights","ShareholdingPatternIndianFinancialInstitutionsOrBanks","xbrli:decimalItemType",0,"xbrli:item",0,"instant","false","true"]
["in-bse-shp","NumberOfVotingRights","Total number of voting rights",null,3,"in-bse-shp_NumberOfVotingRights","NumberOfVotingRightsHeldInEachClassOfSecuritiesAbstract","NumberOfVotingRights","ShareholdingPatternIndianFinancialInstitutionsOrBanks","xbrli:decimalItemType",0,"xbrli:item",0,"instant","false","true"]
["in-bse-shp","NumberOfSharesUnderlyingOutstandingConvertibleSecurities","Number of shares underlying outstanding convertible securities",null,9,"in-bse-shp_NumberOfSharesUnderlyingOutstandingConvertibleSecurities","DetailsOfSharesHeldByIndianFinancialInstitutionsOrBanksLineItems","NumberOfSharesUnderlyingOutstandingConvertibleSecurities","ShareholdingPatternIndianFinancialInstitutionsOrBanks","xbrli:sharesItemType",0,"xbrli:item",0,"instant","false","true"]
["in-bse-shp","DetailsOfTheLockedInSharesAbstract","Details of the locked-in-shares [Abstract]",null,13,"in-bse-shp_DetailsOfTheLockedInSharesAbstract","DetailsOfSharesHeldByIndianFinancialInstitutionsOrBanksLineItems","DetailsOfTheLockedInSharesAbstract","ShareholdingPatternIndianFinancialInstitutionsOrBanks","xbrli:stringItemType",0,"xbrli:item",0,"duration","true","true"]
["in-bse-shp","NumberOfTheLockedInShares","Number of the locked-in-shares ",null,1,"in-bse-shp_NumberOfTheLockedInShares","DetailsOfTheLockedInSharesAbstract","NumberOfTheLockedInShares","ShareholdingPatternIndianFinancialInstitutionsOrBanks","xbrli:sharesItemType",0,"xbrli:item",0,"instant","false","true"]
["in-bse-shp","LockedInSharesAsAPercentageOfTotalNumberOfShares","Locked-in-shares as a percentage of total number of shares",null,2,"in-bse-shp_LockedInSharesAsAPercentageOfTotalNumberOfShares","DetailsOfTheLockedInSharesAbstract","LockedInSharesAsAPercentageOfTotalNumberOfShares","ShareholdingPatternIndianFinancialInstitutionsOrBanks","num:percentItemType",0,"xbrli:item",0,"instant","false","true"]
["in-bse-shp","NumberOfSharesPledgedOrOtherwiseEncumberedAbstract","Number of Shares pledged or otherwise encumbered [Abstract]",null,14,"in-bse-shp_NumberOfSharesPledgedOrOtherwiseEncumberedAbstract","DetailsOfSharesHeldByIndianFinancialInstitutionsOrBanksLineItems","NumberOfSharesPledgedOrOtherwiseEncumberedAbstract","ShareholdingPatternIndianFinancialInstitutionsOrBanks","xbrli:stringItemType",0,"xbrli:item",0,"duration","true","true"]
["in-bse-shp","PledgedOrEncumberedNumberOfShares","Pledged or encumbered - number of shares",null,1,"in-bse-shp_PledgedOrEncumberedNumberOfShares","NumberOfSharesPledgedOrOtherwiseEncumberedAbstract","PledgedOrEncumberedNumberOfShares","ShareholdingPatternIndianFinancialInstitutionsOrBanks","xbrli:sharesItemType",0,"xbrli:item",0,"instant","false","true"]
["in-bse-shp","PledgedOrEncumberedSharesHeldAsPercentageOfTotalNumberOfShares","Pledged or encumbered shares held as percentage of total number of shares",null,2,"in-bse-shp_PledgedOrEncumberedSharesHeldAsPercentageOfTotalNumberOfShares","NumberOfSharesPledgedOrOtherwiseEncumberedAbstract","PledgedOrEncumberedSharesHeldAsPercentageOfTotalNumberOfShares","ShareholdingPatternIndianFinancialInstitutionsOrBanks","num:percentItemType",0,"xbrli:item",0,"instant","false","true"]
["in-bse-shp","NumberOfEquitySharesHeldInDematerializedForm","Number of equity shares held in dematerialized form",null,15,"in-bse-shp_NumberOfEquitySharesHeldInDematerializedForm","DetailsOfSharesHeldByIndianFinancialInstitutionsOrBanksLineItems","NumberOfEquitySharesHeldInDematerializedForm","ShareholdingPatternIndianFinancialInstitutionsOrBanks","xbrli:sharesItemType",0,"xbrli:item",0,"instant","false","true"]
["in-bse-shp","DetailsOfSharesHeldByNonResidentIndividualsOrForeignIndividualsAbstract","Details of shares held by non-resident individuals or foreign individuals [Abstract]",null,16,"in-bse-shp_DetailsOfSharesHeldByNonResidentIndividualsOrForeignIndividualsAbstract",null,null,"ShareholdingPatternNonResidentIndividualsOrForeignIndividuals","xbrli:stringItemType",0,"xbrli:item",0,"duration","true","true"]
["in-bse-shp","DetailsOfSharesHeldByNonResidentIndividualsOrForeignIndividualsTable","Details of shares held by non-resident individuals or foreign individuals [Table]",null,1,"in-bse-shp_DetailsOfSharesHeldByNonResidentIndividualsOrForeignIndividualsTable","DetailsOfSharesHeldByNonResidentIndividualsOrForeignIndividualsAbstract","DetailsOfSharesHeldByNonResidentIndividualsOrForeignIndividualsTable","ShareholdingPatternNonResidentIndividualsOrForeignIndividuals","xbrli:stringItemType",0,"xbrldt:hypercubeItem",0,"duration","true","true"]
["in-bse-shp","DetailsOfSharesHeldByNonResidentIndividualsOrForeignIndividualsAxis","Details of shares held by non-resident individuals or foreign individuals [Axis]",null,1,"in-bse-shp_DetailsOfSharesHeldByNonResidentIndividualsOrForeignIndividualsAxis","DetailsOfSharesHeldByNonResidentIndividualsOrForeignIndividualsTable","DetailsOfSharesHeldByNonResidentIndividualsOrForeignIndividualsAxis","ShareholdingPatternNonResidentIndividualsOrForeignIndividuals","xbrli:stringItemType",0,"xbrldt:dimensionItem",0,"duration","true","true"]
["in-bse-shp","DetailsOfSharesHeldByNonResidentIndividualsOrForeignIndividualsLineItems","Details of shares held by non-resident individuals or foreign individuals [Line items]",null,2,"in-bse-shp_DetailsOfSharesHeldByNonResidentIndividualsOrForeignIndividualsLineItems","DetailsOfSharesHeldByNonResidentIndividualsOrForeignIndividualsAbstract","DetailsOfSharesHeldByNonResidentIndividualsOrForeignIndividualsLineItems","ShareholdingPatternNonResidentIndividualsOrForeignIndividuals","xbrli:stringItemType",0,"xbrli:item",0,"duration","true","true"]
[]
["in-bse-shp","PermanentAccountNumberOfShareholder","Permanent account number of shareholder",null,2,"in-bse-shp_PermenantAccountNumberOfShareholder","DetailsOfSharesHeldByNonResidentIndividualsOrForeignIndividualsLineItems","PermenantAccountNumberOfShareholder","ShareholdingPatternNonResidentIndividualsOrForeignIndividuals","xbrli:PermenantAccountNumberOfShareholder",0,"xbrli:item",0,"duration","false","true"]
["in-bse-shp","NumberOfFullyPaidUpEquityShares","Number of fully paid up equity shares",null,3,"in-bse-shp_NumberOfFullyPaidUpEquityShares","DetailsOfSharesHeldByNonResidentIndividualsOrForeignIndividualsLineItems","NumberOfFullyPaidUpEquityShares","ShareholdingPatternNonResidentIndividualsOrForeignIndividuals","xbrli:sharesItemType",0,"xbrli:item",0,"instant","false","true"]
["in-bse-shp","NumberOfPartlyPaidUpEquityShares","Number of partly paid-up equity shares",null,4,"in-bse-shp_NumberOfPartlyPaidUpEquityShares","DetailsOfSharesHeldByNonResidentIndividualsOrForeignIndividualsLineItems","NumberOfPartlyPaidUpEquityShares","ShareholdingPatternNonResidentIndividualsOrForeignIndividuals","xbrli:sharesItemType",0,"xbrli:item",0,"instant","false","true"]
["in-bse-shp","NumberOfSharesUnderlyingOutstandingDepositoryReceipts","Number of shares underlying outstanding depository receipts",null,5,"in-bse-shp_NumberOfSharesUnderlyingOutstandingDepositoryReceipts","DetailsOfSharesHeldByNonResidentIndividualsOrForeignIndividualsLineItems","NumberOfSharesUnderlyingOutstandingDepositoryReceipts","ShareholdingPatternNonResidentIndividualsOrForeignIndividuals","xbrli:sharesItemType",0,"xbrli:item",0,"instant","false","true"]
["in-bse-shp","NumberOfVotingRightsHeldInEachClassOfSecuritiesAbstract","Number of voting rights held in each class of securities [Abstract]",null,8,"in-bse-shp_NumberOfVotingRightsHeldInEachClassOfSecuritiesAbstract","DetailsOfSharesHeldByNonResidentIndividualsOrForeignIndividualsLineItems","NumberOfVotingRightsHeldInEachClassOfSecuritiesAbstract","ShareholdingPatternNonResidentIndividualsOrForeignIndividuals","xbrli:stringItemType",0,"xbrli:item",0,"duration","true","true"]
["in-bse-shp","NumberOfVotingRightsHeldBySameClassOfSecurities","Number of voting rights held by same class of securities",null,1,"in-bse-shp_NumberOfVotingRightsHeldBySameClassOfSecurities","NumberOfVotingRightsHeldInEachClassOfSecuritiesAbstract","NumberOfVotingRightsHeldBySameClassOfSecurities","ShareholdingPatternNonResidentIndividualsOrForeignIndividuals","xbrli:decimalItemType",0,"xbrli:item",0,"instant","false","true"]
["in-bse-shp","NumberOfVotingRightsHeldByDifferentialVotingRights","Number of voting rights held by differential voting rights",null,2,"in-bse-shp_NumberOfVotingRightsHeldByDifferentialVotingRights","NumberOfVotingRightsHeldInEachClassOfSecuritiesAbstract","NumberOfVotingRightsHeldByDifferentialVotingRights","ShareholdingPatternNonResidentIndividualsOrForeignIndividuals","xbrli:decimalItemType",0,"xbrli:item",0,"instant","false","true"]
["in-bse-shp","NumberOfVotingRights","Total number of voting rights",null,3,"in-bse-shp_NumberOfVotingRights","NumberOfVotingRightsHeldInEachClassOfSecuritiesAbstract","NumberOfVotingRights","ShareholdingPatternNonResidentIndividualsOrForeignIndividuals","xbrli:decimalItemType",0,"xbrli:item",0,"instant","false","true"]
["in-bse-shp","NumberOfSharesUnderlyingOutstandingConvertibleSecurities","Number of shares underlying outstanding convertible securities",null,9,"in-bse-shp_NumberOfSharesUnderlyingOutstandingConvertibleSecurities","DetailsOfSharesHeldByNonResidentIndividualsOrForeignIndividualsLineItems","NumberOfSharesUnderlyingOutstandingConvertibleSecurities","ShareholdingPatternNonResidentIndividualsOrForeignIndividuals","xbrli:sharesItemType",0,"xbrli:item",0,"instant","false","true"]
["in-bse-shp","DetailsOfTheLockedInSharesAbstract","Details of the locked-in-shares [Abstract]",null,13,"in-bse-shp_DetailsOfTheLockedInSharesAbstract","DetailsOfSharesHeldByNonResidentIndividualsOrForeignIndividualsLineItems","DetailsOfTheLockedInSharesAbstract","ShareholdingPatternNonResidentIndividualsOrForeignIndividuals","xbrli:stringItemType",0,"xbrli:item",0,"duration","true","true"]
["in-bse-shp","NumberOfTheLockedInShares","Number of the locked-in-shares ",null,1,"in-bse-shp_NumberOfTheLockedInShares","DetailsOfTheLockedInSharesAbstract","NumberOfTheLockedInShares","ShareholdingPatternNonResidentIndividualsOrForeignIndividuals","xbrli:sharesItemType",0,"xbrli:item",0,"instant","false","true"]
["in-bse-shp","LockedInSharesAsAPercentageOfTotalNumberOfShares","Locked-in-shares as a percentage of total number of shares",null,2,"in-bse-shp_LockedInSharesAsAPercentageOfTotalNumberOfShares","DetailsOfTheLockedInSharesAbstract","LockedInSharesAsAPercentageOfTotalNumberOfShares","ShareholdingPatternNonResidentIndividualsOrForeignIndividuals","num:percentItemType",0,"xbrli:item",0,"instant","false","true"]
["in-bse-shp","NumberOfSharesPledgedOrOtherwiseEncumberedAbstract","Number of Shares pledged or otherwise encumbered [Abstract]",null,14,"in-bse-shp_NumberOfSharesPledgedOrOtherwiseEncumberedAbstract","DetailsOfSharesHeldByNonResidentIndividualsOrForeignIndividualsLineItems","NumberOfSharesPledgedOrOtherwiseEncumberedAbstract","ShareholdingPatternNonResidentIndividualsOrForeignIndividuals","xbrli:stringItemType",0,"xbrli:item",0,"duration","true","true"]
["in-bse-shp","PledgedOrEncumberedNumberOfShares","Pledged or encumbered - number of shares",null,1,"in-bse-shp_PledgedOrEncumberedNumberOfShares","NumberOfSharesPledgedOrOtherwiseEncumberedAbstract","PledgedOrEncumberedNumberOfShares","ShareholdingPatternNonResidentIndividualsOrForeignIndividuals","xbrli:sharesItemType",0,"xbrli:item",0,"instant","false","true"]
["in-bse-shp","PledgedOrEncumberedSharesHeldAsPercentageOfTotalNumberOfShares","Pledged or encumbered shares held as percentage of total number of shares",null,2,"in-bse-shp_PledgedOrEncumberedSharesHeldAsPercentageOfTotalNumberOfShares","NumberOfSharesPledgedOrOtherwiseEncumberedAbstract","PledgedOrEncumberedSharesHeldAsPercentageOfTotalNumberOfShares","ShareholdingPatternNonResidentIndividualsOrForeignIndividuals","num:percentItemType",0,"xbrli:item",0,"instant","false","true"]
["in-bse-shp","NumberOfEquitySharesHeldInDematerializedForm","Number of equity shares held in dematerialized form",null,15,"in-bse-shp_NumberOfEquitySharesHeldInDematerializedForm","DetailsOfSharesHeldByNonResidentIndividualsOrForeignIndividualsLineItems","NumberOfEquitySharesHeldInDematerializedForm","ShareholdingPatternNonResidentIndividualsOrForeignIndividuals","xbrli:sharesItemType",0,"xbrli:item",0,"instant","false","true"]
["in-bse-shp","DetailsOfSharesHeldByForeignGovernmentAbstract","Details of shares held by Foreign - Government [Abstract]",null,null,"in-bse-shp_DetailsOfSharesHeldByForeignGovernmentAbstract",null,null,"ShareholdingPatternForeignGovernment","xbrli:stringItemType",0,"xbrli:item",0,"duration","true","true"]
["in-bse-shp","DetailsOfSharesHeldByForeignGovernmentTable","Details of shares held by Foreign - Government [Table]",null,1,"in-bse-shp_DetailsOfSharesHeldByForeignGovernmentTable","DetailsOfSharesHeldByForeignGovernmentAbstract","DetailsOfSharesHeldByForeignGovernmentTable","ShareholdingPatternForeignGovernment","xbrli:stringItemType",0,"xbrldt:hypercubeItem",0,"duration","true","true"]
["in-bse-shp","DetailsOfSharesHeldByForeignGovernmentAxis","Details of shares held by Foreign - Government [Axis]",null,1,"in-bse-shp_DetailsOfSharesHeldByForeignGovernmentAxis","DetailsOfSharesHeldByForeignGovernmentTable","DetailsOfSharesHeldByForeignGovernmentAxis","ShareholdingPatternForeignGovernment","xbrli:stringItemType",0,"xbrldt:dimensionItem",0,"duration","true","true"]
["in-bse-shp","DetailsOfSharesHeldByForeignGovernmentLineItems","Details of shares held by Foreign - Government [Line items]",null,2,"in-bse-shp_DetailsOfSharesHeldByForeignGovernmentLineItems","DetailsOfSharesHeldByForeignGovernmentAbstract","DetailsOfSharesHeldByForeignGovernmentLineItems","ShareholdingPatternForeignGovernment","xbrli:stringItemType",0,"xbrli:item",0,"duration","true","true"]
[]
["in-bse-shp","PermanentAccountNumberOfShareholder","Permanent account number of shareholder",null,2,"in-bse-shp_PermenantAccountNumberOfShareholder","DetailsOfSharesHeldByForeignGovernmentLineItems","PermenantAccountNumberOfShareholder","ShareholdingPatternForeignGovernment","xbrli:PermenantAccountNumberOfShareholder",0,"xbrli:item",0,"duration","false","true"]
["in-bse-shp","NumberOfFullyPaidUpEquityShares","Number of fully paid up equity shares",null,3,"in-bse-shp_NumberOfFullyPaidUpEquityShares","DetailsOfSharesHeldByForeignGovernmentLineItems","NumberOfFullyPaidUpEquityShares","ShareholdingPatternForeignGovernment","xbrli:sharesItemType",0,"xbrli:item",0,"instant","false","true"]
["in-bse-shp","NumberOfPartlyPaidUpEquityShares","Number of partly paid-up equity shares",null,4,"in-bse-shp_NumberOfPartlyPaidUpEquityShares","DetailsOfSharesHeldByForeignGovernmentLineItems","NumberOfPartlyPaidUpEquityShares","ShareholdingPatternForeignGovernment","xbrli:sharesItemType",0,"xbrli:item",0,"instant","false","true"]
["in-bse-shp","NumberOfSharesUnderlyingOutstandingDepositoryReceipts","Number of shares underlying outstanding depository receipts",null,5,"in-bse-shp_NumberOfSharesUnderlyingOutstandingDepositoryReceipts","DetailsOfSharesHeldByForeignGovernmentLineItems","NumberOfSharesUnderlyingOutstandingDepositoryReceipts","ShareholdingPatternForeignGovernment","xbrli:sharesItemType",0,"xbrli:item",0,"instant","false","true"]
["in-bse-shp","NumberOfVotingRightsHeldInEachClassOfSecuritiesAbstract","Number of voting rights held in each class of securities [Abstract]",null,8,"in-bse-shp_NumberOfVotingRightsHeldInEachClassOfSecuritiesAbstract","DetailsOfSharesHeldByForeignGovernmentLineItems","NumberOfVotingRightsHeldInEachClassOfSecuritiesAbstract","ShareholdingPatternForeignGovernment","xbrli:stringItemType",0,"xbrli:item",0,"duration","true","true"]
["in-bse-shp","NumberOfVotingRightsHeldBySameClassOfSecurities","Number of voting rights held by same class of securities",null,1,"in-bse-shp_NumberOfVotingRightsHeldBySameClassOfSecurities","NumberOfVotingRightsHeldInEachClassOfSecuritiesAbstract","NumberOfVotingRightsHeldBySameClassOfSecurities","ShareholdingPatternForeignGovernment","xbrli:decimalItemType",0,"xbrli:item",0,"instant","false","true"]
["in-bse-shp","NumberOfVotingRightsHeldByDifferentialVotingRights","Number of voting rights held by differential voting rights",null,2,"in-bse-shp_NumberOfVotingRightsHeldByDifferentialVotingRights","NumberOfVotingRightsHeldInEachClassOfSecuritiesAbstract","NumberOfVotingRightsHeldByDifferentialVotingRights","ShareholdingPatternForeignGovernment","xbrli:decimalItemType",0,"xbrli:item",0,"instant","false","true"]
["in-bse-shp","NumberOfVotingRights","Total number of voting rights",null,3,"in-bse-shp_NumberOfVotingRights","NumberOfVotingRightsHeldInEachClassOfSecuritiesAbstract","NumberOfVotingRights","ShareholdingPatternForeignGovernment","xbrli:decimalItemType",0,"xbrli:item",0,"instant","false","true"]
["in-bse-shp","NumberOfSharesUnderlyingOutstandingConvertibleSecurities","Number of shares underlying outstanding convertible securities",null,9,"in-bse-shp_NumberOfSharesUnderlyingOutstandingConvertibleSecurities","DetailsOfSharesHeldByForeignGovernmentLineItems","NumberOfSharesUnderlyingOutstandingConvertibleSecurities","ShareholdingPatternForeignGovernment","xbrli:sharesItemType",0,"xbrli:item",0,"instant","false","true"]
["in-bse-shp","DetailsOfTheLockedInSharesAbstract","Details of the locked-in-shares [Abstract]",null,13,"in-bse-shp_DetailsOfTheLockedInSharesAbstract","DetailsOfSharesHeldByForeignGovernmentLineItems","DetailsOfTheLockedInSharesAbstract","ShareholdingPatternForeignGovernment","xbrli:stringItemType",0,"xbrli:item",0,"duration","true","true"]
["in-bse-shp","NumberOfTheLockedInShares","Number of the locked-in-shares ",null,1,"in-bse-shp_NumberOfTheLockedInShares","DetailsOfTheLockedInSharesAbstract","NumberOfTheLockedInShares","ShareholdingPatternForeignGovernment","xbrli:sharesItemType",0,"xbrli:item",0,"instant","false","true"]
["in-bse-shp","LockedInSharesAsAPercentageOfTotalNumberOfShares","Locked-in-shares as a percentage of total number of shares",null,2,"in-bse-shp_LockedInSharesAsAPercentageOfTotalNumberOfShares","DetailsOfTheLockedInSharesAbstract","LockedInSharesAsAPercentageOfTotalNumberOfShares","ShareholdingPatternForeignGovernment","num:percentItemType",0,"xbrli:item",0,"instant","false","true"]
["in-bse-shp","NumberOfSharesPledgedOrOtherwiseEncumberedAbstract","Number of Shares pledged or otherwise encumbered [Abstract]",null,14,"in-bse-shp_NumberOfSharesPledgedOrOtherwiseEncumberedAbstract","DetailsOfSharesHeldByForeignGovernmentLineItems","NumberOfSharesPledgedOrOtherwiseEncumberedAbstract","ShareholdingPatternForeignGovernment","xbrli:stringItemType",0,"xbrli:item",0,"duration","true","true"]
["in-bse-shp","PledgedOrEncumberedNumberOfShares","Pledged or encumbered - number of shares",null,1,"in-bse-shp_PledgedOrEncumberedNumberOfShares","NumberOfSharesPledgedOrOtherwiseEncumberedAbstract","PledgedOrEncumberedNumberOfShares","ShareholdingPatternForeignGovernment","xbrli:sharesItemType",0,"xbrli:item",0,"instant","false","true"]
["in-bse-shp","PledgedOrEncumberedSharesHeldAsPercentageOfTotalNumberOfShares","Pledged or encumbered shares held as percentage of total number of shares",null,2,"in-bse-shp_PledgedOrEncumberedSharesHeldAsPercentageOfTotalNumberOfShares","NumberOfSharesPledgedOrOtherwiseEncumberedAbstract","PledgedOrEncumberedSharesHeldAsPercentageOfTotalNumberOfShares","ShareholdingPatternForeignGovernment","num:percentItemType",0,"xbrli:item",0,"instant","false","true"]
["in-bse-shp","NumberOfEquitySharesHeldInDematerializedForm","Number of equity shares held in dematerialized form",null,15,"in-bse-shp_NumberOfEquitySharesHeldInDematerializedForm","DetailsOfSharesHeldByForeignGovernmentLineItems","NumberOfEquitySharesHeldInDematerializedForm","ShareholdingPatternForeignGovernment","xbrli:sharesItemType",0,"xbrli:item",0,"instant","false","true"]
["in-bse-shp","DetailsOfSharesHeldByForeignPortfolioInvestorAbstract","Details of shares held by Foreign portfolio investor [Abstract]",null,16,"in-bse-shp_DetailsOfSharesHeldByForeignPortfolioInvestorAbstract",null,"DetailsOfSharesHeldByForeignPortfolioInvestorAbstract","ShareholdingPatternForeignPortfolioInvestor","xbrli:stringItemType",0,"xbrli:item",0,"duration","true","true"]
["in-bse-shp","DetailsOfSharesHeldByForeignPortfolioInvestorTable","Details of shares held by Foreign portfolio investor [Table]",null,1,"in-bse-shp_DetailsOfSharesHeldByForeignPortfolioInvestorTable","DetailsOfSharesHeldByForeignPortfolioInvestorAbstract","DetailsOfSharesHeldByForeignPortfolioInvestorTable","ShareholdingPatternForeignPortfolioInvestor","xbrli:stringItemType",0,"xbrldt:hypercubeItem",0,"duration","true","true"]
["in-bse-shp","DetailsOfSharesHeldByForeignPortfolioInvestorAxis","Details of shares held by Foreign portfolio investor [Axis]",null,1,"in-bse-shp_DetailsOfSharesHeldByForeignPortfolioInvestorAxis","DetailsOfSharesHeldByForeignPortfolioInvestorTable","DetailsOfSharesHeldByForeignPortfolioInvestorAxis","ShareholdingPatternForeignPortfolioInvestor","xbrli:stringItemType",0,"xbrldt:dimensionItem",0,"duration","true","true"]
["in-bse-shp","DetailsOfSharesHeldByForeignPortfolioInvestorLineItems","Details of shares held by Foreign portfolio investor [Line items]",null,2,"in-bse-shp_DetailsOfSharesHeldByForeignPortfolioInvestorLineItems","DetailsOfSharesHeldByForeignPortfolioInvestorAbstract","DetailsOfSharesHeldByForeignPortfolioInvestorLineItems","ShareholdingPatternForeignPortfolioInvestor","xbrli:stringItemType",0,"xbrli:item",0,"duration","true","true"]
[]
["in-bse-shp","PermanentAccountNumberOfShareholder","Permanent account number of shareholder",null,2,"in-bse-shp_PermenantAccountNumberOfShareholder","DetailsOfSharesHeldByForeignPortfolioInvestorLineItems","PermenantAccountNumberOfShareholder","ShareholdingPatternForeignPortfolioInvestor","xbrli:PermenantAccountNumberOfShareholder",0,"xbrli:item",0,"duration","false","true"]
["in-bse-shp","NumberOfFullyPaidUpEquityShares","Number of fully paid up equity shares",null,3,"in-bse-shp_NumberOfFullyPaidUpEquityShares","DetailsOfSharesHeldByForeignPortfolioInvestorLineItems","NumberOfFullyPaidUpEquityShares","ShareholdingPatternForeignPortfolioInvestor","xbrli:sharesItemType",0,"xbrli:item",0,"instant","false","true"]
["in-bse-shp","NumberOfPartlyPaidUpEquityShares","Number of partly paid-up equity shares",null,4,"in-bse-shp_NumberOfPartlyPaidUpEquityShares","DetailsOfSharesHeldByForeignPortfolioInvestorLineItems","NumberOfPartlyPaidUpEquityShares","ShareholdingPatternForeignPortfolioInvestor","xbrli:sharesItemType",0,"xbrli:item",0,"instant","false","true"]
["in-bse-shp","NumberOfSharesUnderlyingOutstandingDepositoryReceipts","Number of shares underlying outstanding depository receipts",null,5,"in-bse-shp_NumberOfSharesUnderlyingOutstandingDepositoryReceipts","DetailsOfSharesHeldByForeignPortfolioInvestorLineItems","NumberOfSharesUnderlyingOutstandingDepositoryReceipts","ShareholdingPatternForeignPortfolioInvestor","xbrli:sharesItemType",0,"xbrli:item",0,"instant","false","true"]
["in-bse-shp","NumberOfVotingRightsHeldInEachClassOfSecuritiesAbstract","Number of voting rights held in each class of securities [Abstract]",null,8,"in-bse-shp_NumberOfVotingRightsHeldInEachClassOfSecuritiesAbstract","DetailsOfSharesHeldByForeignPortfolioInvestorLineItems","NumberOfVotingRightsHeldInEachClassOfSecuritiesAbstract","ShareholdingPatternForeignPortfolioInvestor","xbrli:stringItemType",0,"xbrli:item",0,"duration","true","true"]
["in-bse-shp","NumberOfVotingRightsHeldBySameClassOfSecurities","Number of voting rights held by same class of securities",null,1,"in-bse-shp_NumberOfVotingRightsHeldBySameClassOfSecurities","NumberOfVotingRightsHeldInEachClassOfSecuritiesAbstract","NumberOfVotingRightsHeldBySameClassOfSecurities","ShareholdingPatternForeignPortfolioInvestor","xbrli:decimalItemType",0,"xbrli:item",0,"instant","false","true"]
["in-bse-shp","NumberOfVotingRightsHeldByDifferentialVotingRights","Number of voting rights held by differential voting rights",null,2,"in-bse-shp_NumberOfVotingRightsHeldByDifferentialVotingRights","NumberOfVotingRightsHeldInEachClassOfSecuritiesAbstract","NumberOfVotingRightsHeldByDifferentialVotingRights","ShareholdingPatternForeignPortfolioInvestor","xbrli:decimalItemType",0,"xbrli:item",0,"instant","false","true"]
["in-bse-shp","NumberOfVotingRights","Total number of voting rights",null,3,"in-bse-shp_NumberOfVotingRights","NumberOfVotingRightsHeldInEachClassOfSecuritiesAbstract","NumberOfVotingRights","ShareholdingPatternForeignPortfolioInvestor","xbrli:decimalItemType",0,"xbrli:item",0,"instant","false","true"]
["in-bse-shp","NumberOfSharesUnderlyingOutstandingConvertibleSecurities","Number of shares underlying outstanding convertible securities",null,9,"in-bse-shp_NumberOfSharesUnderlyingOutstandingConvertibleSecurities","DetailsOfSharesHeldByForeignPortfolioInvestorLineItems","NumberOfSharesUnderlyingOutstandingConvertibleSecurities","ShareholdingPatternForeignPortfolioInvestor","xbrli:sharesItemType",0,"xbrli:item",0,"instant","false","true"]
["in-bse-shp","DetailsOfTheLockedInSharesAbstract","Details of the locked-in-shares [Abstract]",null,13,"in-bse-shp_DetailsOfTheLockedInSharesAbstract","DetailsOfSharesHeldByForeignPortfolioInvestorLineItems","DetailsOfTheLockedInSharesAbstract","ShareholdingPatternForeignPortfolioInvestor","xbrli:stringItemType",0,"xbrli:item",0,"duration","true","true"]
["in-bse-shp","NumberOfTheLockedInShares","Number of the locked-in-shares ",null,1,"in-bse-shp_NumberOfTheLockedInShares","DetailsOfTheLockedInSharesAbstract","NumberOfTheLockedInShares","ShareholdingPatternForeignPortfolioInvestor","xbrli:sharesItemType",0,"xbrli:item",0,"instant","false","true"]
["in-bse-shp","LockedInSharesAsAPercentageOfTotalNumberOfShares","Locked-in-shares as a percentage of total number of shares",null,2,"in-bse-shp_LockedInSharesAsAPercentageOfTotalNumberOfShares","DetailsOfTheLockedInSharesAbstract","LockedInSharesAsAPercentageOfTotalNumberOfShares","ShareholdingPatternForeignPortfolioInvestor","num:percentItemType",0,"xbrli:item",0,"instant","false","true"]
["in-bse-shp","NumberOfSharesPledgedOrOtherwiseEncumberedAbstract","Number of Shares pledged or otherwise encumbered [Abstract]",null,14,"in-bse-shp_NumberOfSharesPledgedOrOtherwiseEncumberedAbstract","DetailsOfSharesHeldByForeignPortfolioInvestorLineItems","NumberOfSharesPledgedOrOtherwiseEncumberedAbstract","ShareholdingPatternForeignPortfolioInvestor","xbrli:stringItemType",0,"xbrli:item",0,"duration","true","true"]
["in-bse-shp","PledgedOrEncumberedNumberOfShares","Pledged or encumbered - number of shares",null,1,"in-bse-shp_PledgedOrEncumberedNumberOfShares","NumberOfSharesPledgedOrOtherwiseEncumberedAbstract","PledgedOrEncumberedNumberOfShares","ShareholdingPatternForeignPortfolioInvestor","xbrli:sharesItemType",0,"xbrli:item",0,"instant","false","true"]
["in-bse-shp","PledgedOrEncumberedSharesHeldAsPercentageOfTotalNumberOfShares","Pledged or encumbered shares held as percentage of total number of shares",null,2,"in-bse-shp_PledgedOrEncumberedSharesHeldAsPercentageOfTotalNumberOfShares","NumberOfSharesPledgedOrOtherwiseEncumberedAbstract","PledgedOrEncumberedSharesHeldAsPercentageOfTotalNumberOfShares","ShareholdingPatternForeignPortfolioInvestor","num:percentItemType",0,"xbrli:item",0,"instant","false","true"]
["in-bse-shp","NumberOfEquitySharesHeldInDematerializedForm","Number of equity shares held in dematerialized form",null,15,"in-bse-shp_NumberOfEquitySharesHeldInDematerializedForm","DetailsOfSharesHeldByForeignPortfolioInvestorLineItems","NumberOfEquitySharesHeldInDematerializedForm","ShareholdingPatternForeignPortfolioInvestor","xbrli:sharesItemType",0,"xbrli:item",0,"instant","false","true"]
["in-bse-shp","DetailsOfSharesHeldByVentureCapitalFundsAbstract","Details of shares held by Venture capital funds [Abstract]",null,null,"in-bse-shp_DetailsOfSharesHeldByVentureCapitalFundsAbstract",null,null,"ShareholdingPatternVentureCapitalFunds","xbrli:stringItemType",0,"xbrli:item",0,"duration","true","true"]
["in-bse-shp","DetailsOfSharesHeldByVentureCapitalFundsTable","Details of shares held by Venture capital funds [Table]",null,1,"in-bse-shp_DetailsOfSharesHeldByVentureCapitalFundsTable","DetailsOfSharesHeldByVentureCapitalFundsAbstract","DetailsOfSharesHeldByVentureCapitalFundsTable","ShareholdingPatternVentureCapitalFunds","xbrli:stringItemType",0,"xbrldt:hypercubeItem",0,"duration","true","true"]
["in-bse-shp","DetailsOfSharesHeldByVentureCapitalFundsAxis","Details of shares held by Venture capital funds [Axis]",null,1,"in-bse-shp_DetailsOfSharesHeldByVentureCapitalFundsAxis","DetailsOfSharesHeldByVentureCapitalFundsTable","DetailsOfSharesHeldByVentureCapitalFundsAxis","ShareholdingPatternVentureCapitalFunds","xbrli:stringItemType",0,"xbrldt:dimensionItem",0,"duration","true","true"]
["in-bse-shp","DetailsOfSharesHeldByVentureCapitalFundsLineItems","Details of shares held by Venture capital funds [Line items]",null,2,"in-bse-shp_DetailsOfSharesHeldByVentureCapitalFundsLineItems","DetailsOfSharesHeldByVentureCapitalFundsAbstract","DetailsOfSharesHeldByVentureCapitalFundsLineItems","ShareholdingPatternVentureCapitalFunds","xbrli:stringItemType",0,"xbrli:item",0,"duration","true","true"]
[]
["in-bse-shp","PermanentAccountNumberOfShareholder","Permanent account number of shareholder",null,2,"in-bse-shp_PermenantAccountNumberOfShareholder","DetailsOfSharesHeldByVentureCapitalFundsLineItems","PermenantAccountNumberOfShareholder","ShareholdingPatternVentureCapitalFunds","xbrli:PermenantAccountNumberOfShareholder",0,"xbrli:item",0,"duration","false","true"]
["in-bse-shp","NumberOfFullyPaidUpEquityShares","Number of fully paid up equity shares",null,3,"in-bse-shp_NumberOfFullyPaidUpEquityShares","DetailsOfSharesHeldByVentureCapitalFundsLineItems","NumberOfFullyPaidUpEquityShares","ShareholdingPatternVentureCapitalFunds","xbrli:sharesItemType",0,"xbrli:item",0,"instant","false","true"]
["in-bse-shp","NumberOfPartlyPaidUpEquityShares","Number of partly paid-up equity shares",null,4,"in-bse-shp_NumberOfPartlyPaidUpEquityShares","DetailsOfSharesHeldByVentureCapitalFundsLineItems","NumberOfPartlyPaidUpEquityShares","ShareholdingPatternVentureCapitalFunds","xbrli:sharesItemType",0,"xbrli:item",0,"instant","false","true"]
["in-bse-shp","NumberOfSharesUnderlyingOutstandingDepositoryReceipts","Number of shares underlying outstanding depository receipts",null,5,"in-bse-shp_NumberOfSharesUnderlyingOutstandingDepositoryReceipts","DetailsOfSharesHeldByVentureCapitalFundsLineItems","NumberOfSharesUnderlyingOutstandingDepositoryReceipts","ShareholdingPatternVentureCapitalFunds","xbrli:sharesItemType",0,"xbrli:item",0,"instant","false","true"]
["in-bse-shp","NumberOfVotingRightsHeldInEachClassOfSecuritiesAbstract","Number of voting rights held in each class of securities [Abstract]",null,8,"in-bse-shp_NumberOfVotingRightsHeldInEachClassOfSecuritiesAbstract","DetailsOfSharesHeldByVentureCapitalFundsLineItems","NumberOfVotingRightsHeldInEachClassOfSecuritiesAbstract","ShareholdingPatternVentureCapitalFunds","xbrli:stringItemType",0,"xbrli:item",0,"duration","true","true"]
["in-bse-shp","NumberOfVotingRightsHeldBySameClassOfSecurities","Number of voting rights held by same class of securities",null,1,"in-bse-shp_NumberOfVotingRightsHeldBySameClassOfSecurities","NumberOfVotingRightsHeldInEachClassOfSecuritiesAbstract","NumberOfVotingRightsHeldBySameClassOfSecurities","ShareholdingPatternVentureCapitalFunds","xbrli:decimalItemType",0,"xbrli:item",0,"instant","false","true"]
["in-bse-shp","NumberOfVotingRightsHeldByDifferentialVotingRights","Number of voting rights held by differential voting rights",null,2,"in-bse-shp_NumberOfVotingRightsHeldByDifferentialVotingRights","NumberOfVotingRightsHeldInEachClassOfSecuritiesAbstract","NumberOfVotingRightsHeldByDifferentialVotingRights","ShareholdingPatternVentureCapitalFunds","xbrli:decimalItemType",0,"xbrli:item",0,"instant","false","true"]
["in-bse-shp","NumberOfVotingRights","Total number of voting rights",null,3,"in-bse-shp_NumberOfVotingRights","NumberOfVotingRightsHeldInEachClassOfSecuritiesAbstract","NumberOfVotingRights","ShareholdingPatternVentureCapitalFunds","xbrli:decimalItemType",0,"xbrli:item",0,"instant","false","true"]
["in-bse-shp","NumberOfSharesUnderlyingOutstandingConvertibleSecurities","Number of shares underlying outstanding convertible securities",null,9,"in-bse-shp_NumberOfSharesUnderlyingOutstandingConvertibleSecurities","DetailsOfSharesHeldByVentureCapitalFundsLineItems","NumberOfSharesUnderlyingOutstandingConvertibleSecurities","ShareholdingPatternVentureCapitalFunds","xbrli:sharesItemType",0,"xbrli:item",0,"instant","false","true"]
["in-bse-shp","DetailsOfTheLockedInSharesAbstract","Details of the locked-in-shares [Abstract]",null,13,"in-bse-shp_DetailsOfTheLockedInSharesAbstract","DetailsOfSharesHeldByVentureCapitalFundsLineItems","DetailsOfTheLockedInSharesAbstract","ShareholdingPatternVentureCapitalFunds","xbrli:stringItemType",0,"xbrli:item",0,"duration","true","true"]
["in-bse-shp","NumberOfTheLockedInShares","Number of the locked-in-shares ",null,1,"in-bse-shp_NumberOfTheLockedInShares","DetailsOfTheLockedInSharesAbstract","NumberOfTheLockedInShares","ShareholdingPatternVentureCapitalFunds","xbrli:sharesItemType",0,"xbrli:item",0,"instant","false","true"]
["in-bse-shp","LockedInSharesAsAPercentageOfTotalNumberOfShares","Locked-in-shares as a percentage of total number of shares",null,2,"in-bse-shp_LockedInSharesAsAPercentageOfTotalNumberOfShares","DetailsOfTheLockedInSharesAbstract","LockedInSharesAsAPercentageOfTotalNumberOfShares","ShareholdingPatternVentureCapitalFunds","num:percentItemType",0,"xbrli:item",0,"instant","false","true"]
["in-bse-shp","NumberOfSharesPledgedOrOtherwiseEncumberedAbstract","Number of Shares pledged or otherwise encumbered [Abstract]",null,14,"in-bse-shp_NumberOfSharesPledgedOrOtherwiseEncumberedAbstract","DetailsOfSharesHeldByVentureCapitalFundsLineItems","NumberOfSharesPledgedOrOtherwiseEncumberedAbstract","ShareholdingPatternVentureCapitalFunds","xbrli:stringItemType",0,"xbrli:item",0,"duration","true","true"]
["in-bse-shp","PledgedOrEncumberedNumberOfShares","Pledged or encumbered - number of shares",null,1,"in-bse-shp_PledgedOrEncumberedNumberOfShares","NumberOfSharesPledgedOrOtherwiseEncumberedAbstract","PledgedOrEncumberedNumberOfShares","ShareholdingPatternVentureCapitalFunds","xbrli:sharesItemType",0,"xbrli:item",0,"instant","false","true"]
["in-bse-shp","PledgedOrEncumberedSharesHeldAsPercentageOfTotalNumberOfShares","Pledged or encumbered shares held as percentage of total number of shares",null,2,"in-bse-shp_PledgedOrEncumberedSharesHeldAsPercentageOfTotalNumberOfShares","NumberOfSharesPledgedOrOtherwiseEncumberedAbstract","PledgedOrEncumberedSharesHeldAsPercentageOfTotalNumberOfShares","ShareholdingPatternVentureCapitalFunds","num:percentItemType",0,"xbrli:item",0,"instant","false","true"]
["in-bse-shp","NumberOfEquitySharesHeldInDematerializedForm","Number of equity shares held in dematerialized form",null,15,"in-bse-shp_NumberOfEquitySharesHeldInDematerializedForm","DetailsOfSharesHeldByVentureCapitalFundsLineItems","NumberOfEquitySharesHeldInDematerializedForm","ShareholdingPatternVentureCapitalFunds","xbrli:sharesItemType",0,"xbrli:item",0,"instant","false","true"]
["in-bse-shp","DetailsOfSharesHeldByAlternativeInvestmentFundsAbstract","Details of shares held by Alternative investment funds [Abstract]",null,16,"in-bse-shp_DetailsOfSharesHeldByAlternativeInvestmentFundsAbstract",null,null,"ShareholdingPatternAlternativeInvestmentFunds","xbrli:stringItemType",0,"xbrli:item",0,"duration","true","true"]
["in-bse-shp","DetailsOfSharesHeldByAlternativeInvestmentFundsTable","Details of shares held by Alternative investment funds [Table]",null,1,"in-bse-shp_DetailsOfSharesHeldByAlternativeInvestmentFundsTable","DetailsOfSharesHeldByAlternativeInvestmentFundsAbstract","DetailsOfSharesHeldByAlternativeInvestmentFundsTable","ShareholdingPatternAlternativeInvestmentFunds","xbrli:stringItemType",0,"xbrldt:hypercubeItem",0,"duration","true","true"]
["in-bse-shp","DetailsOfSharesHeldByAlternativeInvestmentFundsAxis","Details of shares held by Alternative investment funds [Axis]",null,1,"in-bse-shp_DetailsOfSharesHeldByAlternativeInvestmentFundsAxis","DetailsOfSharesHeldByAlternativeInvestmentFundsTable","DetailsOfSharesHeldByAlternativeInvestmentFundsAxis","ShareholdingPatternAlternativeInvestmentFunds","xbrli:stringItemType",0,"xbrldt:dimensionItem",0,"duration","true","true"]
["in-bse-shp","DetailsOfSharesHeldByAlternativeInvestmentFundsLineItems","Details of shares held by Alternative investment funds [Line items]",null,2,"in-bse-shp_DetailsOfSharesHeldByAlternativeInvestmentFundsLineItems","DetailsOfSharesHeldByAlternativeInvestmentFundsAbstract","DetailsOfSharesHeldByAlternativeInvestmentFundsLineItems","ShareholdingPatternAlternativeInvestmentFunds","xbrli:stringItemType",0,"xbrli:item",0,"duration","true","true"]
[]
["in-bse-shp","PermanentAccountNumberOfShareholder","Permanent account number of shareholder",null,2,"in-bse-shp_PermenantAccountNumberOfShareholder","DetailsOfSharesHeldByAlternativeInvestmentFundsLineItems","PermenantAccountNumberOfShareholder","ShareholdingPatternAlternativeInvestmentFunds","xbrli:PermenantAccountNumberOfShareholder",0,"xbrli:item",0,"duration","false","true"]
["in-bse-shp","NumberOfFullyPaidUpEquityShares","Number of fully paid up equity shares",null,3,"in-bse-shp_NumberOfFullyPaidUpEquityShares","DetailsOfSharesHeldByAlternativeInvestmentFundsLineItems","NumberOfFullyPaidUpEquityShares","ShareholdingPatternAlternativeInvestmentFunds","xbrli:sharesItemType",0,"xbrli:item",0,"instant","false","true"]
["in-bse-shp","NumberOfPartlyPaidUpEquityShares","Number of partly paid-up equity shares",null,4,"in-bse-shp_NumberOfPartlyPaidUpEquityShares","DetailsOfSharesHeldByAlternativeInvestmentFundsLineItems","NumberOfPartlyPaidUpEquityShares","ShareholdingPatternAlternativeInvestmentFunds","xbrli:sharesItemType",0,"xbrli:item",0,"instant","false","true"]
["in-bse-shp","NumberOfSharesUnderlyingOutstandingDepositoryReceipts","Number of shares underlying outstanding depository receipts",null,5,"in-bse-shp_NumberOfSharesUnderlyingOutstandingDepositoryReceipts","DetailsOfSharesHeldByAlternativeInvestmentFundsLineItems","NumberOfSharesUnderlyingOutstandingDepositoryReceipts","ShareholdingPatternAlternativeInvestmentFunds","xbrli:sharesItemType",0,"xbrli:item",0,"instant","false","true"]
["in-bse-shp","NumberOfVotingRightsHeldInEachClassOfSecuritiesAbstract","Number of voting rights held in each class of securities [Abstract]",null,8,"in-bse-shp_NumberOfVotingRightsHeldInEachClassOfSecuritiesAbstract","DetailsOfSharesHeldByAlternativeInvestmentFundsLineItems","NumberOfVotingRightsHeldInEachClassOfSecuritiesAbstract","ShareholdingPatternAlternativeInvestmentFunds","xbrli:stringItemType",0,"xbrli:item",0,"duration","true","true"]
["in-bse-shp","NumberOfVotingRightsHeldBySameClassOfSecurities","Number of voting rights held by same class of securities",null,1,"in-bse-shp_NumberOfVotingRightsHeldBySameClassOfSecurities","NumberOfVotingRightsHeldInEachClassOfSecuritiesAbstract","NumberOfVotingRightsHeldBySameClassOfSecurities","ShareholdingPatternAlternativeInvestmentFunds","xbrli:decimalItemType",0,"xbrli:item",0,"instant","false","true"]
["in-bse-shp","NumberOfVotingRightsHeldByDifferentialVotingRights","Number of voting rights held by differential voting rights",null,2,"in-bse-shp_NumberOfVotingRightsHeldByDifferentialVotingRights","NumberOfVotingRightsHeldInEachClassOfSecuritiesAbstract","NumberOfVotingRightsHeldByDifferentialVotingRights","ShareholdingPatternAlternativeInvestmentFunds","xbrli:decimalItemType",0,"xbrli:item",0,"instant","false","true"]
["in-bse-shp","NumberOfVotingRights","Total number of voting rights",null,3,"in-bse-shp_NumberOfVotingRights","NumberOfVotingRightsHeldInEachClassOfSecuritiesAbstract","NumberOfVotingRights","ShareholdingPatternAlternativeInvestmentFunds","xbrli:decimalItemType",0,"xbrli:item",0,"instant","false","true"]
["in-bse-shp","NumberOfSharesUnderlyingOutstandingConvertibleSecurities","Number of shares underlying outstanding convertible securities",null,9,"in-bse-shp_NumberOfSharesUnderlyingOutstandingConvertibleSecurities","DetailsOfSharesHeldByAlternativeInvestmentFundsLineItems","NumberOfSharesUnderlyingOutstandingConvertibleSecurities","ShareholdingPatternAlternativeInvestmentFunds","xbrli:sharesItemType",0,"xbrli:item",0,"instant","false","true"]
["in-bse-shp","DetailsOfTheLockedInSharesAbstract","Details of the locked-in-shares [Abstract]",null,13,"in-bse-shp_DetailsOfTheLockedInSharesAbstract","DetailsOfSharesHeldByAlternativeInvestmentFundsLineItems","DetailsOfTheLockedInSharesAbstract","ShareholdingPatternAlternativeInvestmentFunds","xbrli:stringItemType",0,"xbrli:item",0,"duration","true","true"]
["in-bse-shp","NumberOfTheLockedInShares","Number of the locked-in-shares ",null,1,"in-bse-shp_NumberOfTheLockedInShares","DetailsOfTheLockedInSharesAbstract","NumberOfTheLockedInShares","ShareholdingPatternAlternativeInvestmentFunds","xbrli:sharesItemType",0,"xbrli:item",0,"instant","false","true"]
["in-bse-shp","LockedInSharesAsAPercentageOfTotalNumberOfShares","Locked-in-shares as a percentage of total number of shares",null,2,"in-bse-shp_LockedInSharesAsAPercentageOfTotalNumberOfShares","DetailsOfTheLockedInSharesAbstract","LockedInSharesAsAPercentageOfTotalNumberOfShares","ShareholdingPatternAlternativeInvestmentFunds","num:percentItemType",0,"xbrli:item",0,"instant","false","true"]
["in-bse-shp","NumberOfSharesPledgedOrOtherwiseEncumberedAbstract","Number of Shares pledged or otherwise encumbered [Abstract]",null,14,"in-bse-shp_NumberOfSharesPledgedOrOtherwiseEncumberedAbstract","DetailsOfSharesHeldByAlternativeInvestmentFundsLineItems","NumberOfSharesPledgedOrOtherwiseEncumberedAbstract","ShareholdingPatternAlternativeInvestmentFunds","xbrli:stringItemType",0,"xbrli:item",0,"duration","true","true"]
["in-bse-shp","PledgedOrEncumberedNumberOfShares","Pledged or encumbered - number of shares",null,1,"in-bse-shp_PledgedOrEncumberedNumberOfShares","NumberOfSharesPledgedOrOtherwiseEncumberedAbstract","PledgedOrEncumberedNumberOfShares","ShareholdingPatternAlternativeInvestmentFunds","xbrli:sharesItemType",0,"xbrli:item",0,"instant","false","true"]
["in-bse-shp","PledgedOrEncumberedSharesHeldAsPercentageOfTotalNumberOfShares","Pledged or encumbered shares held as percentage of total number of shares",null,2,"in-bse-shp_PledgedOrEncumberedSharesHeldAsPercentageOfTotalNumberOfShares","NumberOfSharesPledgedOrOtherwiseEncumberedAbstract","PledgedOrEncumberedSharesHeldAsPercentageOfTotalNumberOfShares","ShareholdingPatternAlternativeInvestmentFunds","num:percentItemType",0,"xbrli:item",0,"instant","false","true"]
["in-bse-shp","NumberOfEquitySharesHeldInDematerializedForm","Number of equity shares held in dematerialized form",null,15,"in-bse-shp_NumberOfEquitySharesHeldInDematerializedForm","DetailsOfSharesHeldByAlternativeInvestmentFundsLineItems","NumberOfEquitySharesHeldInDematerializedForm","ShareholdingPatternAlternativeInvestmentFunds","xbrli:sharesItemType",0,"xbrli:item",0,"instant","false","true"]
["in-bse-shp","DetailsOfSharesHeldByForeignVentureCapitalInvestorsAbstract","Details of shares held by Foreign venture capital investors [Abstract]",null,null,"in-bse-shp_DetailsOfSharesHeldByForeignVentureCapitalInvestorsAbstract",null,"DetailsOfSharesHeldByForeignVentureCapitalInvestorsAbstract","ShareholdingPatternForeignVentureCapitalInvestors","xbrli:stringItemType",0,"xbrli:item",0,"duration","true","true"]
["in-bse-shp","DetailsOfSharesHeldByForeignVentureCapitalInvestorsTable","Details of shares held by Foreign venture capital investors [Table]",null,1,"in-bse-shp_DetailsOfSharesHeldByForeignVentureCapitalInvestorsTable","DetailsOfSharesHeldByForeignVentureCapitalInvestorsAbstract","DetailsOfSharesHeldByForeignVentureCapitalInvestorsTable","ShareholdingPatternForeignVentureCapitalInvestors","xbrli:stringItemType",0,"xbrldt:hypercubeItem",0,"duration","true","true"]
["in-bse-shp","DetailsOfSharesHeldByForeignVentureCapitalInvestorsAxis","Details of shares held by Foreign venture capital investors [Axis]",null,1,"in-bse-shp_DetailsOfSharesHeldByForeignVentureCapitalInvestorsAxis","DetailsOfSharesHeldByForeignVentureCapitalInvestorsTable","DetailsOfSharesHeldByForeignVentureCapitalInvestorsAxis","ShareholdingPatternForeignVentureCapitalInvestors","xbrli:stringItemType",0,"xbrldt:dimensionItem",0,"duration","true","true"]
["in-bse-shp","DetailsOfSharesHeldByForeignVentureCapitalInvestorsLineItems","Details of shares held by Foreign venture capital investors [Line items]",null,2,"in-bse-shp_DetailsOfSharesHeldByForeignVentureCapitalInvestorsLineItems","DetailsOfSharesHeldByForeignVentureCapitalInvestorsAbstract","DetailsOfSharesHeldByForeignVentureCapitalInvestorsLineItems","ShareholdingPatternForeignVentureCapitalInvestors","xbrli:stringItemType",0,"xbrli:item",0,"duration","true","true"]
[]
["in-bse-shp","PermanentAccountNumberOfShareholder","Permanent account number of shareholder",null,2,"in-bse-shp_PermenantAccountNumberOfShareholder","DetailsOfSharesHeldByForeignVentureCapitalInvestorsLineItems","PermenantAccountNumberOfShareholder","ShareholdingPatternForeignVentureCapitalInvestors","xbrli:PermenantAccountNumberOfShareholder",0,"xbrli:item",0,"duration","false","true"]
["in-bse-shp","NumberOfFullyPaidUpEquityShares","Number of fully paid up equity shares",null,3,"in-bse-shp_NumberOfFullyPaidUpEquityShares","DetailsOfSharesHeldByForeignVentureCapitalInvestorsLineItems","NumberOfFullyPaidUpEquityShares","ShareholdingPatternForeignVentureCapitalInvestors","xbrli:sharesItemType",0,"xbrli:item",0,"instant","false","true"]
["in-bse-shp","NumberOfPartlyPaidUpEquityShares","Number of partly paid-up equity shares",null,4,"in-bse-shp_NumberOfPartlyPaidUpEquityShares","DetailsOfSharesHeldByForeignVentureCapitalInvestorsLineItems","NumberOfPartlyPaidUpEquityShares","ShareholdingPatternForeignVentureCapitalInvestors","xbrli:sharesItemType",0,"xbrli:item",0,"instant","false","true"]
["in-bse-shp","NumberOfSharesUnderlyingOutstandingDepositoryReceipts","Number of shares underlying outstanding depository receipts",null,5,"in-bse-shp_NumberOfSharesUnderlyingOutstandingDepositoryReceipts","DetailsOfSharesHeldByForeignVentureCapitalInvestorsLineItems","NumberOfSharesUnderlyingOutstandingDepositoryReceipts","ShareholdingPatternForeignVentureCapitalInvestors","xbrli:sharesItemType",0,"xbrli:item",0,"instant","false","true"]
["in-bse-shp","NumberOfVotingRightsHeldInEachClassOfSecuritiesAbstract","Number of voting rights held in each class of securities [Abstract]",null,8,"in-bse-shp_NumberOfVotingRightsHeldInEachClassOfSecuritiesAbstract","DetailsOfSharesHeldByForeignVentureCapitalInvestorsLineItems","NumberOfVotingRightsHeldInEachClassOfSecuritiesAbstract","ShareholdingPatternForeignVentureCapitalInvestors","xbrli:stringItemType",0,"xbrli:item",0,"duration","true","true"]
["in-bse-shp","NumberOfVotingRightsHeldBySameClassOfSecurities","Number of voting rights held by same class of securities",null,1,"in-bse-shp_NumberOfVotingRightsHeldBySameClassOfSecurities","NumberOfVotingRightsHeldInEachClassOfSecuritiesAbstract","NumberOfVotingRightsHeldBySameClassOfSecurities","ShareholdingPatternForeignVentureCapitalInvestors","xbrli:decimalItemType",0,"xbrli:item",0,"instant","false","true"]
["in-bse-shp","NumberOfVotingRightsHeldByDifferentialVotingRights","Number of voting rights held by differential voting rights",null,2,"in-bse-shp_NumberOfVotingRightsHeldByDifferentialVotingRights","NumberOfVotingRightsHeldInEachClassOfSecuritiesAbstract","NumberOfVotingRightsHeldByDifferentialVotingRights","ShareholdingPatternForeignVentureCapitalInvestors","xbrli:decimalItemType",0,"xbrli:item",0,"instant","false","true"]
["in-bse-shp","NumberOfVotingRights","Total number of voting rights",null,3,"in-bse-shp_NumberOfVotingRights","NumberOfVotingRightsHeldInEachClassOfSecuritiesAbstract","NumberOfVotingRights","ShareholdingPatternForeignVentureCapitalInvestors","xbrli:decimalItemType",0,"xbrli:item",0,"instant","false","true"]
["in-bse-shp","NumberOfSharesUnderlyingOutstandingConvertibleSecurities","Number of shares underlying outstanding convertible securities",null,9,"in-bse-shp_NumberOfSharesUnderlyingOutstandingConvertibleSecurities","DetailsOfSharesHeldByForeignVentureCapitalInvestorsLineItems","NumberOfSharesUnderlyingOutstandingConvertibleSecurities","ShareholdingPatternForeignVentureCapitalInvestors","xbrli:sharesItemType",0,"xbrli:item",0,"instant","false","true"]
["in-bse-shp","DetailsOfTheLockedInSharesAbstract","Details of the locked-in-shares [Abstract]",null,13,"in-bse-shp_DetailsOfTheLockedInSharesAbstract","DetailsOfSharesHeldByForeignVentureCapitalInvestorsLineItems","DetailsOfTheLockedInSharesAbstract","ShareholdingPatternForeignVentureCapitalInvestors","xbrli:stringItemType",0,"xbrli:item",0,"duration","true","true"]
["in-bse-shp","NumberOfTheLockedInShares","Number of the locked-in-shares ",null,1,"in-bse-shp_NumberOfTheLockedInShares","DetailsOfTheLockedInSharesAbstract","NumberOfTheLockedInShares","ShareholdingPatternForeignVentureCapitalInvestors","xbrli:sharesItemType",0,"xbrli:item",0,"instant","false","true"]
["in-bse-shp","LockedInSharesAsAPercentageOfTotalNumberOfShares","Locked-in-shares as a percentage of total number of shares",null,2,"in-bse-shp_LockedInSharesAsAPercentageOfTotalNumberOfShares","DetailsOfTheLockedInSharesAbstract","LockedInSharesAsAPercentageOfTotalNumberOfShares","ShareholdingPatternForeignVentureCapitalInvestors","num:percentItemType",0,"xbrli:item",0,"instant","false","true"]
["in-bse-shp","NumberOfSharesPledgedOrOtherwiseEncumberedAbstract","Number of Shares pledged or otherwise encumbered [Abstract]",null,14,"in-bse-shp_NumberOfSharesPledgedOrOtherwiseEncumberedAbstract","DetailsOfSharesHeldByForeignVentureCapitalInvestorsLineItems","NumberOfSharesPledgedOrOtherwiseEncumberedAbstract","ShareholdingPatternForeignVentureCapitalInvestors","xbrli:stringItemType",0,"xbrli:item",0,"duration","true","true"]
["in-bse-shp","PledgedOrEncumberedNumberOfShares","Pledged or encumbered - number of shares",null,1,"in-bse-shp_PledgedOrEncumberedNumberOfShares","NumberOfSharesPledgedOrOtherwiseEncumberedAbstract","PledgedOrEncumberedNumberOfShares","ShareholdingPatternForeignVentureCapitalInvestors","xbrli:sharesItemType",0,"xbrli:item",0,"instant","false","true"]
["in-bse-shp","PledgedOrEncumberedSharesHeldAsPercentageOfTotalNumberOfShares","Pledged or encumbered shares held as percentage of total number of shares",null,2,"in-bse-shp_PledgedOrEncumberedSharesHeldAsPercentageOfTotalNumberOfShares","NumberOfSharesPledgedOrOtherwiseEncumberedAbstract","PledgedOrEncumberedSharesHeldAsPercentageOfTotalNumberOfShares","ShareholdingPatternForeignVentureCapitalInvestors","num:percentItemType",0,"xbrli:item",0,"instant","false","true"]
["in-bse-shp","NumberOfEquitySharesHeldInDematerializedForm","Number of equity shares held in dematerialized form",null,15,"in-bse-shp_NumberOfEquitySharesHeldInDematerializedForm","DetailsOfSharesHeldByForeignVentureCapitalInvestorsLineItems","NumberOfEquitySharesHeldInDematerializedForm","ShareholdingPatternForeignVentureCapitalInvestors","xbrli:sharesItemType",0,"xbrli:item",0,"instant","false","true"]
["in-bse-shp","DetailsOfSharesHeldByInstitutionsForeignPortfolioInvestorAbstract","Details of shares held by Institutions - Foreign portfolio investor [Abstract]",null,16,"in-bse-shp_DetailsOfSharesHeldByInstitutionsForeignPortfolioInvestorAbstract",null,null,"ShareholdingPatternInstitutionsForeignPortfolioInvestor","xbrli:stringItemType",0,"xbrli:item",0,"duration","true","true"]
["in-bse-shp","DetailsOfSharesHeldByInstitutionsForeignPortfolioInvestorTable","Details of shares held by Institutions - Foreign portfolio investor [Table]",null,1,"in-bse-shp_DetailsOfSharesHeldByInstitutionsForeignPortfolioInvestorTable","DetailsOfSharesHeldByInstitutionsForeignPortfolioInvestorAbstract","DetailsOfSharesHeldByInstitutionsForeignPortfolioInvestorTable","ShareholdingPatternInstitutionsForeignPortfolioInvestor","xbrli:stringItemType",0,"xbrldt:hypercubeItem",0,"duration","true","true"]
["in-bse-shp","DetailsOfSharesHeldByInstitutionsForeignPortfolioInvestorAxis","Details of shares held by Institutions - Foreign portfolio investor [Axis]",null,1,"in-bse-shp_DetailsOfSharesHeldByInstitutionsForeignPortfolioInvestorAxis","DetailsOfSharesHeldByInstitutionsForeignPortfolioInvestorTable","DetailsOfSharesHeldByInstitutionsForeignPortfolioInvestorAxis","ShareholdingPatternInstitutionsForeignPortfolioInvestor","xbrli:stringItemType",0,"xbrldt:dimensionItem",0,"duration","true","true"]
["in-bse-shp","DetailsOfSharesHeldByInstitutionsForeignPortfolioInvestorLineItems","Details of shares held by Institutions - Foreign portfolio investor [Line items]",null,2,"in-bse-shp_DetailsOfSharesHeldByInstitutionsForeignPortfolioInvestorLineItems","DetailsOfSharesHeldByInstitutionsForeignPortfolioInvestorAbstract","DetailsOfSharesHeldByInstitutionsForeignPortfolioInvestorLineItems","ShareholdingPatternInstitutionsForeignPortfolioInvestor","xbrli:stringItemType",0,"xbrli:item",0,"duration","true","true"]
[]
["in-bse-shp","PermanentAccountNumberOfShareholder","Permanent account number of shareholder",null,2,"in-bse-shp_PermenantAccountNumberOfShareholder","DetailsOfSharesHeldByInstitutionsForeignPortfolioInvestorLineItems","PermenantAccountNumberOfShareholder","ShareholdingPatternInstitutionsForeignPortfolioInvestor","xbrli:PermenantAccountNumberOfShareholder",0,"xbrli:item",0,"duration","false","true"]
["in-bse-shp","NumberOfFullyPaidUpEquityShares","Number of fully paid up equity shares",null,3,"in-bse-shp_NumberOfFullyPaidUpEquityShares","DetailsOfSharesHeldByInstitutionsForeignPortfolioInvestorLineItems","NumberOfFullyPaidUpEquityShares","ShareholdingPatternInstitutionsForeignPortfolioInvestor","xbrli:sharesItemType",0,"xbrli:item",0,"instant","false","true"]
["in-bse-shp","NumberOfPartlyPaidUpEquityShares","Number of partly paid-up equity shares",null,4,"in-bse-shp_NumberOfPartlyPaidUpEquityShares","DetailsOfSharesHeldByInstitutionsForeignPortfolioInvestorLineItems","NumberOfPartlyPaidUpEquityShares","ShareholdingPatternInstitutionsForeignPortfolioInvestor","xbrli:sharesItemType",0,"xbrli:item",0,"instant","false","true"]
["in-bse-shp","NumberOfSharesUnderlyingOutstandingDepositoryReceipts","Number of shares underlying outstanding depository receipts",null,5,"in-bse-shp_NumberOfSharesUnderlyingOutstandingDepositoryReceipts","DetailsOfSharesHeldByInstitutionsForeignPortfolioInvestorLineItems","NumberOfSharesUnderlyingOutstandingDepositoryReceipts","ShareholdingPatternInstitutionsForeignPortfolioInvestor","xbrli:sharesItemType",0,"xbrli:item",0,"instant","false","true"]
["in-bse-shp","NumberOfVotingRightsHeldInEachClassOfSecuritiesAbstract","Number of voting rights held in each class of securities [Abstract]",null,8,"in-bse-shp_NumberOfVotingRightsHeldInEachClassOfSecuritiesAbstract","DetailsOfSharesHeldByInstitutionsForeignPortfolioInvestorLineItems","NumberOfVotingRightsHeldInEachClassOfSecuritiesAbstract","ShareholdingPatternInstitutionsForeignPortfolioInvestor","xbrli:stringItemType",0,"xbrli:item",0,"duration","true","true"]
["in-bse-shp","NumberOfVotingRightsHeldBySameClassOfSecurities","Number of voting rights held by same class of securities",null,1,"in-bse-shp_NumberOfVotingRightsHeldBySameClassOfSecurities","NumberOfVotingRightsHeldInEachClassOfSecuritiesAbstract","NumberOfVotingRightsHeldBySameClassOfSecurities","ShareholdingPatternInstitutionsForeignPortfolioInvestor","xbrli:decimalItemType",0,"xbrli:item",0,"instant","false","true"]
["in-bse-shp","NumberOfVotingRightsHeldByDifferentialVotingRights","Number of voting rights held by differential voting rights",null,2,"in-bse-shp_NumberOfVotingRightsHeldByDifferentialVotingRights","NumberOfVotingRightsHeldInEachClassOfSecuritiesAbstract","NumberOfVotingRightsHeldByDifferentialVotingRights","ShareholdingPatternInstitutionsForeignPortfolioInvestor","xbrli:decimalItemType",0,"xbrli:item",0,"instant","false","true"]
["in-bse-shp","DetailsOfTheLockedInSharesAbstract","Details of the locked-in-shares [Abstract]",null,13,"in-bse-shp_DetailsOfTheLockedInSharesAbstract","DetailsOfSharesHeldByInstitutionsForeignPortfolioInvestorLineItems","DetailsOfTheLockedInSharesAbstract","ShareholdingPatternInstitutionsForeignPortfolioInvestor","xbrli:stringItemType",0,"xbrli:item",0,"duration","true","true"]
["in-bse-shp","NumberOfTheLockedInShares","Number of the locked-in-shares ",null,1,"in-bse-shp_NumberOfTheLockedInShares","DetailsOfTheLockedInSharesAbstract","NumberOfTheLockedInShares","ShareholdingPatternInstitutionsForeignPortfolioInvestor","xbrli:sharesItemType",0,"xbrli:item",0,"instant","false","true"]
["in-bse-shp","LockedInSharesAsAPercentageOfTotalNumberOfShares","Locked-in-shares as a percentage of total number of shares",null,2,"in-bse-shp_LockedInSharesAsAPercentageOfTotalNumberOfShares","DetailsOfTheLockedInSharesAbstract","LockedInSharesAsAPercentageOfTotalNumberOfShares","ShareholdingPatternInstitutionsForeignPortfolioInvestor","num:percentItemType",0,"xbrli:item",0,"instant","false","true"]
["in-bse-shp","NumberOfSharesPledgedOrOtherwiseEncumberedAbstract","Number of Shares pledged or otherwise encumbered [Abstract]",null,14,"in-bse-shp_NumberOfSharesPledgedOrOtherwiseEncumberedAbstract","DetailsOfSharesHeldByInstitutionsForeignPortfolioInvestorLineItems","NumberOfSharesPledgedOrOtherwiseEncumberedAbstract","ShareholdingPatternInstitutionsForeignPortfolioInvestor","xbrli:stringItemType",0,"xbrli:item",0,"duration","true","true"]
["in-bse-shp","PledgedOrEncumberedNumberOfShares","Pledged or encumbered - number of shares",null,1,"in-bse-shp_PledgedOrEncumberedNumberOfShares","NumberOfSharesPledgedOrOtherwiseEncumberedAbstract","PledgedOrEncumberedNumberOfShares","ShareholdingPatternInstitutionsForeignPortfolioInvestor","xbrli:sharesItemType",0,"xbrli:item",0,"instant","false","true"]
["in-bse-shp","PledgedOrEncumberedSharesHeldAsPercentageOfTotalNumberOfShares","Pledged or encumbered shares held as percentage of total number of shares",null,2,"in-bse-shp_PledgedOrEncumberedSharesHeldAsPercentageOfTotalNumberOfShares","NumberOfSharesPledgedOrOtherwiseEncumberedAbstract","PledgedOrEncumberedSharesHeldAsPercentageOfTotalNumberOfShares","ShareholdingPatternInstitutionsForeignPortfolioInvestor","num:percentItemType",0,"xbrli:item",0,"instant","false","true"]
["in-bse-shp","NumberOfEquitySharesHeldInDematerializedForm","Number of equity shares held in dematerialized form",null,15,"in-bse-shp_NumberOfEquitySharesHeldInDematerializedForm","DetailsOfSharesHeldByInstitutionsForeignPortfolioInvestorLineItems","NumberOfEquitySharesHeldInDematerializedForm","ShareholdingPatternInstitutionsForeignPortfolioInvestor","xbrli:sharesItemType",0,"xbrli:item",0,"instant","false","true"]
["in-bse-shp","DetailsOfSharesHeldByFinancialInstitutionOrBanksAbstract","Details of shares held by Financial Institution or Banks [Abstract]",null,null,"in-bse-shp_DetailsOfSharesHeldByFinancialInstitutionOrBanksAbstract",null,"DetailsOfSharesHeldByFinancialInstitutionOrBanksAbstract","ShareholdingPatternFinancialInstitutionOrBanks","xbrli:stringItemType",0,"xbrli:item",0,"duration","true","true"]
["in-bse-shp","DetailsOfSharesHeldByFinancialInstitutionOrBanksTable","Details of shares held by Financial Institution or Banks [Table]",null,1,"in-bse-shp_DetailsOfSharesHeldByFinancialInstitutionOrBanksTable","DetailsOfSharesHeldByFinancialInstitutionOrBanksAbstract","DetailsOfSharesHeldByFinancialInstitutionOrBanksTable","ShareholdingPatternFinancialInstitutionOrBanks","xbrli:stringItemType",0,"xbrldt:hypercubeItem",0,"duration","true","true"]
["in-bse-shp","DetailsOfSharesHeldByFinancialInstitutionOrBanksAxis","Details of shares held by Financial Institution or Banks [Axis]",null,1,"in-bse-shp_DetailsOfSharesHeldByFinancialInstitutionOrBanksAxis","DetailsOfSharesHeldByFinancialInstitutionOrBanksTable","DetailsOfSharesHeldByFinancialInstitutionOrBanksAxis","ShareholdingPatternFinancialInstitutionOrBanks","xbrli:stringItemType",0,"xbrldt:dimensionItem",0,"duration","true","true"]
["in-bse-shp","DetailsOfSharesHeldByFinancialInstitutionOrBanksLineItems","Details of shares held by Financial Institution or Banks [Line items]",null,2,"in-bse-shp_DetailsOfSharesHeldByFinancialInstitutionOrBanksLineItems","DetailsOfSharesHeldByFinancialInstitutionOrBanksAbstract","DetailsOfSharesHeldByFinancialInstitutionOrBanksLineItems","ShareholdingPatternFinancialInstitutionOrBanks","xbrli:stringItemType",0,"xbrli:item",0,"duration","true","true"]
[]
["in-bse-shp","PermanentAccountNumberOfShareholder","Permanent account number of shareholder",null,2,"in-bse-shp_PermenantAccountNumberOfShareholder","DetailsOfSharesHeldByFinancialInstitutionOrBanksLineItems","PermenantAccountNumberOfShareholder","ShareholdingPatternFinancialInstitutionOrBanks","xbrli:PermenantAccountNumberOfShareholder",0,"xbrli:item",0,"duration","false","true"]
["in-bse-shp","NumberOfFullyPaidUpEquityShares","Number of fully paid up equity shares",null,3,"in-bse-shp_NumberOfFullyPaidUpEquityShares","DetailsOfSharesHeldByFinancialInstitutionOrBanksLineItems","NumberOfFullyPaidUpEquityShares","ShareholdingPatternFinancialInstitutionOrBanks","xbrli:sharesItemType",0,"xbrli:item",0,"instant","false","true"]
["in-bse-shp","NumberOfPartlyPaidUpEquityShares","Number of partly paid-up equity shares",null,4,"in-bse-shp_NumberOfPartlyPaidUpEquityShares","DetailsOfSharesHeldByFinancialInstitutionOrBanksLineItems","NumberOfPartlyPaidUpEquityShares","ShareholdingPatternFinancialInstitutionOrBanks","xbrli:sharesItemType",0,"xbrli:item",0,"instant","false","true"]
["in-bse-shp","NumberOfSharesUnderlyingOutstandingDepositoryReceipts","Number of shares underlying outstanding depository receipts",null,5,"in-bse-shp_NumberOfSharesUnderlyingOutstandingDepositoryReceipts","DetailsOfSharesHeldByFinancialInstitutionOrBanksLineItems","NumberOfSharesUnderlyingOutstandingDepositoryReceipts","ShareholdingPatternFinancialInstitutionOrBanks","xbrli:sharesItemType",0,"xbrli:item",0,"instant","false","true"]
["in-bse-shp","NumberOfVotingRightsHeldInEachClassOfSecuritiesAbstract","Number of voting rights held in each class of securities [Abstract]",null,8,"in-bse-shp_NumberOfVotingRightsHeldInEachClassOfSecuritiesAbstract","DetailsOfSharesHeldByFinancialInstitutionOrBanksLineItems","NumberOfVotingRightsHeldInEachClassOfSecuritiesAbstract","ShareholdingPatternFinancialInstitutionOrBanks","xbrli:stringItemType",0,"xbrli:item",0,"duration","true","true"]
["in-bse-shp","NumberOfVotingRightsHeldBySameClassOfSecurities","Number of voting rights held by same class of securities",null,1,"in-bse-shp_NumberOfVotingRightsHeldBySameClassOfSecurities","NumberOfVotingRightsHeldInEachClassOfSecuritiesAbstract","NumberOfVotingRightsHeldBySameClassOfSecurities","ShareholdingPatternFinancialInstitutionOrBanks","xbrli:decimalItemType",0,"xbrli:item",0,"instant","false","true"]
["in-bse-shp","NumberOfVotingRightsHeldByDifferentialVotingRights","Number of voting rights held by differential voting rights",null,2,"in-bse-shp_NumberOfVotingRightsHeldByDifferentialVotingRights","NumberOfVotingRightsHeldInEachClassOfSecuritiesAbstract","NumberOfVotingRightsHeldByDifferentialVotingRights","ShareholdingPatternFinancialInstitutionOrBanks","xbrli:decimalItemType",0,"xbrli:item",0,"instant","false","true"]
["in-bse-shp","NumberOfVotingRights","Total number of voting rights",null,3,"in-bse-shp_NumberOfVotingRights","NumberOfVotingRightsHeldInEachClassOfSecuritiesAbstract","NumberOfVotingRights","ShareholdingPatternFinancialInstitutionOrBanks","xbrli:decimalItemType",0,"xbrli:item",0,"instant","false","true"]
["in-bse-shp","NumberOfSharesUnderlyingOutstandingConvertibleSecurities","Number of shares underlying outstanding convertible securities",null,9,"in-bse-shp_NumberOfSharesUnderlyingOutstandingConvertibleSecurities","DetailsOfSharesHeldByFinancialInstitutionOrBanksLineItems","NumberOfSharesUnderlyingOutstandingConvertibleSecurities","ShareholdingPatternFinancialInstitutionOrBanks","xbrli:sharesItemType",0,"xbrli:item",0,"instant","false","true"]
["in-bse-shp","DetailsOfTheLockedInSharesAbstract","Details of the locked-in-shares [Abstract]",null,13,"in-bse-shp_DetailsOfTheLockedInSharesAbstract","DetailsOfSharesHeldByFinancialInstitutionOrBanksLineItems","DetailsOfTheLockedInSharesAbstract","ShareholdingPatternFinancialInstitutionOrBanks","xbrli:stringItemType",0,"xbrli:item",0,"duration","true","true"]
["in-bse-shp","NumberOfTheLockedInShares","Number of the locked-in-shares ",null,1,"in-bse-shp_NumberOfTheLockedInShares","DetailsOfTheLockedInSharesAbstract","NumberOfTheLockedInShares","ShareholdingPatternFinancialInstitutionOrBanks","xbrli:sharesItemType",0,"xbrli:item",0,"instant","false","true"]
["in-bse-shp","LockedInSharesAsAPercentageOfTotalNumberOfShares","Locked-in-shares as a percentage of total number of shares",null,2,"in-bse-shp_LockedInSharesAsAPercentageOfTotalNumberOfShares","DetailsOfTheLockedInSharesAbstract","LockedInSharesAsAPercentageOfTotalNumberOfShares","ShareholdingPatternFinancialInstitutionOrBanks","num:percentItemType",0,"xbrli:item",0,"instant","false","true"]
["in-bse-shp","NumberOfSharesPledgedOrOtherwiseEncumberedAbstract","Number of Shares pledged or otherwise encumbered [Abstract]",null,14,"in-bse-shp_NumberOfSharesPledgedOrOtherwiseEncumberedAbstract","DetailsOfSharesHeldByFinancialInstitutionOrBanksLineItems","NumberOfSharesPledgedOrOtherwiseEncumberedAbstract","ShareholdingPatternFinancialInstitutionOrBanks","xbrli:stringItemType",0,"xbrli:item",0,"duration","true","true"]
["in-bse-shp","PledgedOrEncumberedNumberOfShares","Pledged or encumbered - number of shares",null,1,"in-bse-shp_PledgedOrEncumberedNumberOfShares","NumberOfSharesPledgedOrOtherwiseEncumberedAbstract","PledgedOrEncumberedNumberOfShares","ShareholdingPatternFinancialInstitutionOrBanks","xbrli:sharesItemType",0,"xbrli:item",0,"instant","false","true"]
["in-bse-shp","PledgedOrEncumberedSharesHeldAsPercentageOfTotalNumberOfShares","Pledged or encumbered shares held as percentage of total number of shares",null,2,"in-bse-shp_PledgedOrEncumberedSharesHeldAsPercentageOfTotalNumberOfShares","NumberOfSharesPledgedOrOtherwiseEncumberedAbstract","PledgedOrEncumberedSharesHeldAsPercentageOfTotalNumberOfShares","ShareholdingPatternFinancialInstitutionOrBanks","num:percentItemType",0,"xbrli:item",0,"instant","false","true"]
["in-bse-shp","NumberOfEquitySharesHeldInDematerializedForm","Number of equity shares held in dematerialized form",null,15,"in-bse-shp_NumberOfEquitySharesHeldInDematerializedForm","DetailsOfSharesHeldByFinancialInstitutionOrBanksLineItems","NumberOfEquitySharesHeldInDematerializedForm","ShareholdingPatternFinancialInstitutionOrBanks","xbrli:sharesItemType",0,"xbrli:item",0,"instant","false","true"]
["in-bse-shp","DetailsOfSharesHeldByInsuranceCompaniesAbstract","Details of shares held by Insurance Companies [Abstract]",null,16,"in-bse-shp_DetailsOfSharesHeldByInsuranceCompaniesAbstract",null,"DetailsOfSharesHeldByInsuranceCompaniesAbstract","ShareholdingPatternInsuranceCompanies","xbrli:stringItemType",0,"xbrli:item",0,"duration","true","true"]
["in-bse-shp","DetailsOfSharesHeldByInsuranceCompaniesTable","Details of shares held by Insurance Companies [Table]",null,1,"in-bse-shp_DetailsOfSharesHeldByInsuranceCompaniesTable","DetailsOfSharesHeldByInsuranceCompaniesAbstract","DetailsOfSharesHeldByInsuranceCompaniesTable","ShareholdingPatternInsuranceCompanies","xbrli:stringItemType",0,"xbrldt:hypercubeItem",0,"duration","true","true"]
["in-bse-shp","DetailsOfSharesHeldByInsuranceCompaniesAxis","Details of shares held by Insurance Companies [Axis]",null,1,"in-bse-shp_DetailsOfSharesHeldByInsuranceCompaniesAxis","DetailsOfSharesHeldByInsuranceCompaniesTable","DetailsOfSharesHeldByInsuranceCompaniesAxis","ShareholdingPatternInsuranceCompanies","xbrli:stringItemType",0,"xbrldt:dimensionItem",0,"duration","true","true"]
["in-bse-shp","DetailsOfSharesHeldByInsuranceCompaniesLineItems","Details of shares held by Insurance Companies [Line items]",null,2,"in-bse-shp_DetailsOfSharesHeldByInsuranceCompaniesLineItems","DetailsOfSharesHeldByInsuranceCompaniesAbstract","DetailsOfSharesHeldByInsuranceCompaniesLineItems","ShareholdingPatternInsuranceCompanies","xbrli:stringItemType",0,"xbrli:item",0,"duration","true","true"]
[]
["in-bse-shp","PermanentAccountNumberOfShareholder","Permanent account number of shareholder",null,2,"in-bse-shp_PermenantAccountNumberOfShareholder","DetailsOfSharesHeldByInsuranceCompaniesLineItems","PermenantAccountNumberOfShareholder","ShareholdingPatternInsuranceCompanies","xbrli:PermenantAccountNumberOfShareholder",0,"xbrli:item",0,"duration","false","true"]
["in-bse-shp","NumberOfFullyPaidUpEquityShares","Number of fully paid up equity shares",null,3,"in-bse-shp_NumberOfFullyPaidUpEquityShares","DetailsOfSharesHeldByInsuranceCompaniesLineItems","NumberOfFullyPaidUpEquityShares","ShareholdingPatternInsuranceCompanies","xbrli:sharesItemType",0,"xbrli:item",0,"instant","false","true"]
["in-bse-shp","NumberOfPartlyPaidUpEquityShares","Number of partly paid-up equity shares",null,4,"in-bse-shp_NumberOfPartlyPaidUpEquityShares","DetailsOfSharesHeldByInsuranceCompaniesLineItems","NumberOfPartlyPaidUpEquityShares","ShareholdingPatternInsuranceCompanies","xbrli:sharesItemType",0,"xbrli:item",0,"instant","false","true"]
["in-bse-shp","NumberOfSharesUnderlyingOutstandingDepositoryReceipts","Number of shares underlying outstanding depository receipts",null,5,"in-bse-shp_NumberOfSharesUnderlyingOutstandingDepositoryReceipts","DetailsOfSharesHeldByInsuranceCompaniesLineItems","NumberOfSharesUnderlyingOutstandingDepositoryReceipts","ShareholdingPatternInsuranceCompanies","xbrli:sharesItemType",0,"xbrli:item",0,"instant","false","true"]
["in-bse-shp","NumberOfVotingRightsHeldInEachClassOfSecuritiesAbstract","Number of voting rights held in each class of securities [Abstract]",null,8,"in-bse-shp_NumberOfVotingRightsHeldInEachClassOfSecuritiesAbstract","DetailsOfSharesHeldByInsuranceCompaniesLineItems","NumberOfVotingRightsHeldInEachClassOfSecuritiesAbstract","ShareholdingPatternInsuranceCompanies","xbrli:stringItemType",0,"xbrli:item",0,"duration","true","true"]
["in-bse-shp","NumberOfVotingRightsHeldBySameClassOfSecurities","Number of voting rights held by same class of securities",null,1,"in-bse-shp_NumberOfVotingRightsHeldBySameClassOfSecurities","NumberOfVotingRightsHeldInEachClassOfSecuritiesAbstract","NumberOfVotingRightsHeldBySameClassOfSecurities","ShareholdingPatternInsuranceCompanies","xbrli:decimalItemType",0,"xbrli:item",0,"instant","false","true"]
["in-bse-shp","NumberOfVotingRightsHeldByDifferentialVotingRights","Number of voting rights held by differential voting rights",null,2,"in-bse-shp_NumberOfVotingRightsHeldByDifferentialVotingRights","NumberOfVotingRightsHeldInEachClassOfSecuritiesAbstract","NumberOfVotingRightsHeldByDifferentialVotingRights","ShareholdingPatternInsuranceCompanies","xbrli:decimalItemType",0,"xbrli:item",0,"instant","false","true"]
["in-bse-shp","NumberOfVotingRights","Total number of voting rights",null,3,"in-bse-shp_NumberOfVotingRights","NumberOfVotingRightsHeldInEachClassOfSecuritiesAbstract","NumberOfVotingRights","ShareholdingPatternInsuranceCompanies","xbrli:decimalItemType",0,"xbrli:item",0,"instant","false","true"]
["in-bse-shp","NumberOfSharesUnderlyingOutstandingConvertibleSecurities","Number of shares underlying outstanding convertible securities",null,9,"in-bse-shp_NumberOfSharesUnderlyingOutstandingConvertibleSecurities","DetailsOfSharesHeldByInsuranceCompaniesLineItems","NumberOfSharesUnderlyingOutstandingConvertibleSecurities","ShareholdingPatternInsuranceCompanies","xbrli:sharesItemType",0,"xbrli:item",0,"instant","false","true"]
["in-bse-shp","DetailsOfTheLockedInSharesAbstract","Details of the locked-in-shares [Abstract]",null,13,"in-bse-shp_DetailsOfTheLockedInSharesAbstract","DetailsOfSharesHeldByInsuranceCompaniesLineItems","DetailsOfTheLockedInSharesAbstract","ShareholdingPatternInsuranceCompanies","xbrli:stringItemType",0,"xbrli:item",0,"duration","true","true"]
["in-bse-shp","NumberOfTheLockedInShares","Number of the locked-in-shares ",null,1,"in-bse-shp_NumberOfTheLockedInShares","DetailsOfTheLockedInSharesAbstract","NumberOfTheLockedInShares","ShareholdingPatternInsuranceCompanies","xbrli:sharesItemType",0,"xbrli:item",0,"instant","false","true"]
["in-bse-shp","LockedInSharesAsAPercentageOfTotalNumberOfShares","Locked-in-shares as a percentage of total number of shares",null,2,"in-bse-shp_LockedInSharesAsAPercentageOfTotalNumberOfShares","DetailsOfTheLockedInSharesAbstract","LockedInSharesAsAPercentageOfTotalNumberOfShares","ShareholdingPatternInsuranceCompanies","num:percentItemType",0,"xbrli:item",0,"instant","false","true"]
["in-bse-shp","NumberOfSharesPledgedOrOtherwiseEncumberedAbstract","Number of Shares pledged or otherwise encumbered [Abstract]",null,14,"in-bse-shp_NumberOfSharesPledgedOrOtherwiseEncumberedAbstract","DetailsOfSharesHeldByInsuranceCompaniesLineItems","NumberOfSharesPledgedOrOtherwiseEncumberedAbstract","ShareholdingPatternInsuranceCompanies","xbrli:stringItemType",0,"xbrli:item",0,"duration","true","true"]
["in-bse-shp","PledgedOrEncumberedNumberOfShares","Pledged or encumbered - number of shares",null,1,"in-bse-shp_PledgedOrEncumberedNumberOfShares","NumberOfSharesPledgedOrOtherwiseEncumberedAbstract","PledgedOrEncumberedNumberOfShares","ShareholdingPatternInsuranceCompanies","xbrli:sharesItemType",0,"xbrli:item",0,"instant","false","true"]
["in-bse-shp","PledgedOrEncumberedSharesHeldAsPercentageOfTotalNumberOfShares","Pledged or encumbered shares held as percentage of total number of shares",null,2,"in-bse-shp_PledgedOrEncumberedSharesHeldAsPercentageOfTotalNumberOfShares","NumberOfSharesPledgedOrOtherwiseEncumberedAbstract","PledgedOrEncumberedSharesHeldAsPercentageOfTotalNumberOfShares","ShareholdingPatternInsuranceCompanies","num:percentItemType",0,"xbrli:item",0,"instant","false","true"]
["in-bse-shp","NumberOfEquitySharesHeldInDematerializedForm","Number of equity shares held in dematerialized form",null,15,"in-bse-shp_NumberOfEquitySharesHeldInDematerializedForm","DetailsOfSharesHeldByInsuranceCompaniesLineItems","NumberOfEquitySharesHeldInDematerializedForm","ShareholdingPatternInsuranceCompanies","xbrli:sharesItemType",0,"xbrli:item",0,"instant","false","true"]
["in-bse-shp","DetailsOfSharesHeldByProvidentFundsOrPensionFundsAbstract","Details of shares held by Provident Funds or pension funds [Abstract]",null,null,"in-bse-shp_DetailsOfSharesHeldByProvidentFundsOrPensionFundsAbstract",null,"DetailsOfSharesHeldByProvidentFundsOrPensionFundsAbstract","ShareholdingPatternProvidentFundsOrPensionFunds","xbrli:stringItemType",0,"xbrli:item",0,"duration","true","true"]
["in-bse-shp","DetailsOfSharesHeldByProvidentFundsOrPensionFundsTable","Details of shares held by Provident Funds or pension funds [Table]",null,1,"in-bse-shp_DetailsOfSharesHeldByProvidentFundsOrPensionFundsTable","DetailsOfSharesHeldByProvidentFundsOrPensionFundsAbstract","DetailsOfSharesHeldByProvidentFundsOrPensionFundsTable","ShareholdingPatternProvidentFundsOrPensionFunds","xbrli:stringItemType",0,"xbrldt:hypercubeItem",0,"duration","true","true"]
["in-bse-shp","DetailsOfSharesHeldByProvidentFundsOrPensionFundsAxis","Details of shares held by Provident Funds or pension funds [Axis]",null,1,"in-bse-shp_DetailsOfSharesHeldByProvidentFundsOrPensionFundsAxis","DetailsOfSharesHeldByProvidentFundsOrPensionFundsTable","DetailsOfSharesHeldByProvidentFundsOrPensionFundsAxis","ShareholdingPatternProvidentFundsOrPensionFunds","xbrli:stringItemType",0,"xbrldt:dimensionItem",0,"duration","true","true"]
["in-bse-shp","DetailsOfSharesHeldByProvidentFundsOrPensionFundsLineItems","Details of shares held by Provident Funds or pension funds [Line items]",null,2,"in-bse-shp_DetailsOfSharesHeldByProvidentFundsOrPensionFundsLineItems","DetailsOfSharesHeldByProvidentFundsOrPensionFundsAbstract","DetailsOfSharesHeldByProvidentFundsOrPensionFundsLineItems","ShareholdingPatternProvidentFundsOrPensionFunds","xbrli:stringItemType",0,"xbrli:item",0,"duration","true","true"]
[]
["in-bse-shp","PermanentAccountNumberOfShareholder","Permanent account number of shareholder",null,2,"in-bse-shp_PermenantAccountNumberOfShareholder","DetailsOfSharesHeldByProvidentFundsOrPensionFundsLineItems","PermenantAccountNumberOfShareholder","ShareholdingPatternProvidentFundsOrPensionFunds","xbrli:PermenantAccountNumberOfShareholder",0,"xbrli:item",0,"duration","false","true"]
["in-bse-shp","NumberOfFullyPaidUpEquityShares","Number of fully paid up equity shares",null,3,"in-bse-shp_NumberOfFullyPaidUpEquityShares","DetailsOfSharesHeldByProvidentFundsOrPensionFundsLineItems","NumberOfFullyPaidUpEquityShares","ShareholdingPatternProvidentFundsOrPensionFunds","xbrli:sharesItemType",0,"xbrli:item",0,"instant","false","true"]
["in-bse-shp","NumberOfPartlyPaidUpEquityShares","Number of partly paid-up equity shares",null,4,"in-bse-shp_NumberOfPartlyPaidUpEquityShares","DetailsOfSharesHeldByProvidentFundsOrPensionFundsLineItems","NumberOfPartlyPaidUpEquityShares","ShareholdingPatternProvidentFundsOrPensionFunds","xbrli:sharesItemType",0,"xbrli:item",0,"instant","false","true"]
["in-bse-shp","NumberOfSharesUnderlyingOutstandingDepositoryReceipts","Number of shares underlying outstanding depository receipts",null,5,"in-bse-shp_NumberOfSharesUnderlyingOutstandingDepositoryReceipts","DetailsOfSharesHeldByProvidentFundsOrPensionFundsLineItems","NumberOfSharesUnderlyingOutstandingDepositoryReceipts","ShareholdingPatternProvidentFundsOrPensionFunds","xbrli:sharesItemType",0,"xbrli:item",0,"instant","false","true"]
["in-bse-shp","NumberOfVotingRightsHeldInEachClassOfSecuritiesAbstract","Number of voting rights held in each class of securities [Abstract]",null,8,"in-bse-shp_NumberOfVotingRightsHeldInEachClassOfSecuritiesAbstract","DetailsOfSharesHeldByProvidentFundsOrPensionFundsLineItems","NumberOfVotingRightsHeldInEachClassOfSecuritiesAbstract","ShareholdingPatternProvidentFundsOrPensionFunds","xbrli:stringItemType",0,"xbrli:item",0,"duration","true","true"]
["in-bse-shp","NumberOfVotingRightsHeldBySameClassOfSecurities","Number of voting rights held by same class of securities",null,1,"in-bse-shp_NumberOfVotingRightsHeldBySameClassOfSecurities","NumberOfVotingRightsHeldInEachClassOfSecuritiesAbstract","NumberOfVotingRightsHeldBySameClassOfSecurities","ShareholdingPatternProvidentFundsOrPensionFunds","xbrli:decimalItemType",0,"xbrli:item",0,"instant","false","true"]
["in-bse-shp","NumberOfVotingRightsHeldByDifferentialVotingRights","Number of voting rights held by differential voting rights",null,2,"in-bse-shp_NumberOfVotingRightsHeldByDifferentialVotingRights","NumberOfVotingRightsHeldInEachClassOfSecuritiesAbstract","NumberOfVotingRightsHeldByDifferentialVotingRights","ShareholdingPatternProvidentFundsOrPensionFunds","xbrli:decimalItemType",0,"xbrli:item",0,"instant","false","true"]
["in-bse-shp","NumberOfVotingRights","Total number of voting rights",null,3,"in-bse-shp_NumberOfVotingRights","NumberOfVotingRightsHeldInEachClassOfSecuritiesAbstract","NumberOfVotingRights","ShareholdingPatternProvidentFundsOrPensionFunds","xbrli:decimalItemType",0,"xbrli:item",0,"instant","false","true"]
["in-bse-shp","NumberOfSharesUnderlyingOutstandingConvertibleSecurities","Number of shares underlying outstanding convertible securities",null,9,"in-bse-shp_NumberOfSharesUnderlyingOutstandingConvertibleSecurities","DetailsOfSharesHeldByProvidentFundsOrPensionFundsLineItems","NumberOfSharesUnderlyingOutstandingConvertibleSecurities","ShareholdingPatternProvidentFundsOrPensionFunds","xbrli:sharesItemType",0,"xbrli:item",0,"instant","false","true"]
["in-bse-shp","DetailsOfTheLockedInSharesAbstract","Details of the locked-in-shares [Abstract]",null,13,"in-bse-shp_DetailsOfTheLockedInSharesAbstract","DetailsOfSharesHeldByProvidentFundsOrPensionFundsLineItems","DetailsOfTheLockedInSharesAbstract","ShareholdingPatternProvidentFundsOrPensionFunds","xbrli:stringItemType",0,"xbrli:item",0,"duration","true","true"]
["in-bse-shp","NumberOfTheLockedInShares","Number of the locked-in-shares ",null,1,"in-bse-shp_NumberOfTheLockedInShares","DetailsOfTheLockedInSharesAbstract","NumberOfTheLockedInShares","ShareholdingPatternProvidentFundsOrPensionFunds","xbrli:sharesItemType",0,"xbrli:item",0,"instant","false","true"]
["in-bse-shp","LockedInSharesAsAPercentageOfTotalNumberOfShares","Locked-in-shares as a percentage of total number of shares",null,2,"in-bse-shp_LockedInSharesAsAPercentageOfTotalNumberOfShares","DetailsOfTheLockedInSharesAbstract","LockedInSharesAsAPercentageOfTotalNumberOfShares","ShareholdingPatternProvidentFundsOrPensionFunds","num:percentItemType",0,"xbrli:item",0,"instant","false","true"]
["in-bse-shp","NumberOfSharesPledgedOrOtherwiseEncumberedAbstract","Number of Shares pledged or otherwise encumbered [Abstract]",null,14,"in-bse-shp_NumberOfSharesPledgedOrOtherwiseEncumberedAbstract","DetailsOfSharesHeldByProvidentFundsOrPensionFundsLineItems","NumberOfSharesPledgedOrOtherwiseEncumberedAbstract","ShareholdingPatternProvidentFundsOrPensionFunds","xbrli:stringItemType",0,"xbrli:item",0,"duration","true","true"]
["in-bse-shp","PledgedOrEncumberedNumberOfShares","Pledged or encumbered - number of shares",null,1,"in-bse-shp_PledgedOrEncumberedNumberOfShares","NumberOfSharesPledgedOrOtherwiseEncumberedAbstract","PledgedOrEncumberedNumberOfShares","ShareholdingPatternProvidentFundsOrPensionFunds","xbrli:sharesItemType",0,"xbrli:item",0,"instant","false","true"]
["in-bse-shp","PledgedOrEncumberedSharesHeldAsPercentageOfTotalNumberOfShares","Pledged or encumbered shares held as percentage of total number of shares",null,2,"in-bse-shp_PledgedOrEncumberedSharesHeldAsPercentageOfTotalNumberOfShares","NumberOfSharesPledgedOrOtherwiseEncumberedAbstract","PledgedOrEncumberedSharesHeldAsPercentageOfTotalNumberOfShares","ShareholdingPatternProvidentFundsOrPensionFunds","num:percentItemType",0,"xbrli:item",0,"instant","false","true"]
["in-bse-shp","NumberOfEquitySharesHeldInDematerializedForm","Number of equity shares held in dematerialized form",null,15,"in-bse-shp_NumberOfEquitySharesHeldInDematerializedForm","DetailsOfSharesHeldByProvidentFundsOrPensionFundsLineItems","NumberOfEquitySharesHeldInDematerializedForm","ShareholdingPatternProvidentFundsOrPensionFunds","xbrli:sharesItemType",0,"xbrli:item",0,"instant","false","true"]
["in-bse-shp","DetailsOfSharesHeldByCentralGovernmentOrStateGovernmentSOrPresidentOfIndiaAbstract","Details of shares held by Central Government or State Government(s) or President of India [Abstract]",null,null,"in-bse-shp_DetailsOfSharesHeldByCentralGovernmentOrStateGovernmentSOrPresidentOfIndiaAbstract",null,null,"ShareholdingPatternCentralGovernmentOrStateGovernmentSOrPresidentOfIndia","xbrli:stringItemType",0,"xbrli:item",0,"duration","true","true"]
["in-bse-shp","DetailsOfSharesHeldByCentralGovernmentOrStateGovernmentSOrPresidentOfIndiaTable","Details of shares held by Central Government or State Government(s) or President of India [Table]",null,1,"in-bse-shp_DetailsOfSharesHeldByCentralGovernmentOrStateGovernmentSOrPresidentOfIndiaTable","DetailsOfSharesHeldByCentralGovernmentOrStateGovernmentSOrPresidentOfIndiaAbstract","DetailsOfSharesHeldByCentralGovernmentOrStateGovernmentSOrPresidentOfIndiaTable","ShareholdingPatternCentralGovernmentOrStateGovernmentSOrPresidentOfIndia","xbrli:stringItemType",0,"xbrldt:hypercubeItem",0,"duration","true","true"]
["in-bse-shp","DetailsOfSharesHeldByCentralGovernmentOrStateGovernmentSOrPresidentOfIndiaAxis","Details of shares held by Central Government or State Government(s) or President of India [Axis]",null,1,"in-bse-shp_DetailsOfSharesHeldByCentralGovernmentOrStateGovernmentSOrPresidentOfIndiaAxis","DetailsOfSharesHeldByCentralGovernmentOrStateGovernmentSOrPresidentOfIndiaTable","DetailsOfSharesHeldByCentralGovernmentOrStateGovernmentSOrPresidentOfIndiaAxis","ShareholdingPatternCentralGovernmentOrStateGovernmentSOrPresidentOfIndia","xbrli:stringItemType",0,"xbrldt:dimensionItem",0,"duration","true","true"]
["in-bse-shp","DetailsOfSharesHeldByCentralGovernmentOrStateGovernmentSOrPresidentOfIndiaLineItems","Details of shares held by Central Government or State Government(s) or President of India [Line items]",null,2,"in-bse-shp_DetailsOfSharesHeldByCentralGovernmentOrStateGovernmentSOrPresidentOfIndiaLineItems","DetailsOfSharesHeldByCentralGovernmentOrStateGovernmentSOrPresidentOfIndiaAbstract","DetailsOfSharesHeldByCentralGovernmentOrStateGovernmentSOrPresidentOfIndiaLineItems","ShareholdingPatternCentralGovernmentOrStateGovernmentSOrPresidentOfIndia","xbrli:stringItemType",0,"xbrli:item",0,"duration","true","true"]
[]
["in-bse-shp","PermanentAccountNumberOfShareholder","Permanent account number of shareholder",null,2,"in-bse-shp_PermenantAccountNumberOfShareholder","DetailsOfSharesHeldByCentralGovernmentOrStateGovernmentSOrPresidentOfIndiaLineItems","PermenantAccountNumberOfShareholder","ShareholdingPatternCentralGovernmentOrStateGovernmentSOrPresidentOfIndia","xbrli:PermenantAccountNumberOfShareholder",0,"xbrli:item",0,"duration","false","true"]
["in-bse-shp","NumberOfFullyPaidUpEquityShares","Number of fully paid up equity shares",null,3,"in-bse-shp_NumberOfFullyPaidUpEquityShares","DetailsOfSharesHeldByCentralGovernmentOrStateGovernmentSOrPresidentOfIndiaLineItems","NumberOfFullyPaidUpEquityShares","ShareholdingPatternCentralGovernmentOrStateGovernmentSOrPresidentOfIndia","xbrli:sharesItemType",0,"xbrli:item",0,"instant","false","true"]
["in-bse-shp","NumberOfPartlyPaidUpEquityShares","Number of partly paid-up equity shares",null,4,"in-bse-shp_NumberOfPartlyPaidUpEquityShares","DetailsOfSharesHeldByCentralGovernmentOrStateGovernmentSOrPresidentOfIndiaLineItems","NumberOfPartlyPaidUpEquityShares","ShareholdingPatternCentralGovernmentOrStateGovernmentSOrPresidentOfIndia","xbrli:sharesItemType",0,"xbrli:item",0,"instant","false","true"]
["in-bse-shp","NumberOfSharesUnderlyingOutstandingDepositoryReceipts","Number of shares underlying outstanding depository receipts",null,5,"in-bse-shp_NumberOfSharesUnderlyingOutstandingDepositoryReceipts","DetailsOfSharesHeldByCentralGovernmentOrStateGovernmentSOrPresidentOfIndiaLineItems","NumberOfSharesUnderlyingOutstandingDepositoryReceipts","ShareholdingPatternCentralGovernmentOrStateGovernmentSOrPresidentOfIndia","xbrli:sharesItemType",0,"xbrli:item",0,"instant","false","true"]
["in-bse-shp","NumberOfVotingRightsHeldInEachClassOfSecuritiesAbstract","Number of voting rights held in each class of securities [Abstract]",null,8,"in-bse-shp_NumberOfVotingRightsHeldInEachClassOfSecuritiesAbstract","DetailsOfSharesHeldByCentralGovernmentOrStateGovernmentSOrPresidentOfIndiaLineItems","NumberOfVotingRightsHeldInEachClassOfSecuritiesAbstract","ShareholdingPatternCentralGovernmentOrStateGovernmentSOrPresidentOfIndia","xbrli:stringItemType",0,"xbrli:item",0,"duration","true","true"]
["in-bse-shp","NumberOfVotingRightsHeldBySameClassOfSecurities","Number of voting rights held by same class of securities",null,1,"in-bse-shp_NumberOfVotingRightsHeldBySameClassOfSecurities","DetailsOfSharesHeldByCentralGovernmentOrStateGovernmentSOrPresidentOfIndiaLineItems","NumberOfVotingRightsHeldBySameClassOfSecurities","ShareholdingPatternCentralGovernmentOrStateGovernmentSOrPresidentOfIndia","xbrli:decimalItemType",0,"xbrli:item",0,"instant","false","true"]
["in-bse-shp","NumberOfVotingRightsHeldByDifferentialVotingRights","Number of voting rights held by differential voting rights",null,2,"in-bse-shp_NumberOfVotingRightsHeldByDifferentialVotingRights","DetailsOfSharesHeldByCentralGovernmentOrStateGovernmentSOrPresidentOfIndiaLineItems","NumberOfVotingRightsHeldByDifferentialVotingRights","ShareholdingPatternCentralGovernmentOrStateGovernmentSOrPresidentOfIndia","xbrli:decimalItemType",0,"xbrli:item",0,"instant","false","true"]
["in-bse-shp","NumberOfVotingRights","Total number of voting rights",null,3,"in-bse-shp_NumberOfVotingRights","NumberOfVotingRightsHeldInEachClassOfSecuritiesAbstract","NumberOfVotingRights","ShareholdingPatternCentralGovernmentOrStateGovernmentSOrPresidentOfIndia","xbrli:decimalItemType",0,"xbrli:item",0,"instant","false","true"]
["in-bse-shp","NumberOfSharesUnderlyingOutstandingConvertibleSecurities","Number of shares underlying outstanding convertible securities",null,9,"in-bse-shp_NumberOfSharesUnderlyingOutstandingConvertibleSecurities","DetailsOfSharesHeldByCentralGovernmentOrStateGovernmentSOrPresidentOfIndiaLineItems","NumberOfSharesUnderlyingOutstandingConvertibleSecurities","ShareholdingPatternCentralGovernmentOrStateGovernmentSOrPresidentOfIndia","xbrli:sharesItemType",0,"xbrli:item",0,"instant","false","true"]
["in-bse-shp","DetailsOfTheLockedInSharesAbstract","Details of the locked-in-shares [Abstract]",null,13,"in-bse-shp_DetailsOfTheLockedInSharesAbstract","DetailsOfSharesHeldByCentralGovernmentOrStateGovernmentSOrPresidentOfIndiaLineItems","DetailsOfTheLockedInSharesAbstract","ShareholdingPatternCentralGovernmentOrStateGovernmentSOrPresidentOfIndia","xbrli:stringItemType",0,"xbrli:item",0,"duration","true","true"]
["in-bse-shp","NumberOfTheLockedInShares","Number of the locked-in-shares ",null,1,"in-bse-shp_NumberOfTheLockedInShares","DetailsOfTheLockedInSharesAbstract","NumberOfTheLockedInShares","ShareholdingPatternCentralGovernmentOrStateGovernmentSOrPresidentOfIndia","xbrli:sharesItemType",0,"xbrli:item",0,"instant","false","true"]
["in-bse-shp","LockedInSharesAsAPercentageOfTotalNumberOfShares","Locked-in-shares as a percentage of total number of shares",null,2,"in-bse-shp_LockedInSharesAsAPercentageOfTotalNumberOfShares","DetailsOfTheLockedInSharesAbstract","LockedInSharesAsAPercentageOfTotalNumberOfShares","ShareholdingPatternCentralGovernmentOrStateGovernmentSOrPresidentOfIndia","num:percentItemType",0,"xbrli:item",0,"instant","false","true"]
["in-bse-shp","NumberOfSharesPledgedOrOtherwiseEncumberedAbstract","Number of Shares pledged or otherwise encumbered [Abstract]",null,14,"in-bse-shp_NumberOfSharesPledgedOrOtherwiseEncumberedAbstract","DetailsOfSharesHeldByCentralGovernmentOrStateGovernmentSOrPresidentOfIndiaLineItems","NumberOfSharesPledgedOrOtherwiseEncumberedAbstract","ShareholdingPatternCentralGovernmentOrStateGovernmentSOrPresidentOfIndia","xbrli:stringItemType",0,"xbrli:item",0,"duration","true","true"]
["in-bse-shp","PledgedOrEncumberedNumberOfShares","Pledged or encumbered - number of shares",null,1,"in-bse-shp_PledgedOrEncumberedNumberOfShares","NumberOfSharesPledgedOrOtherwiseEncumberedAbstract","PledgedOrEncumberedNumberOfShares","ShareholdingPatternCentralGovernmentOrStateGovernmentSOrPresidentOfIndia","xbrli:sharesItemType",0,"xbrli:item",0,"instant","false","true"]
["in-bse-shp","PledgedOrEncumberedSharesHeldAsPercentageOfTotalNumberOfShares","Pledged or encumbered shares held as percentage of total number of shares",null,2,"in-bse-shp_PledgedOrEncumberedSharesHeldAsPercentageOfTotalNumberOfShares","NumberOfSharesPledgedOrOtherwiseEncumberedAbstract","PledgedOrEncumberedSharesHeldAsPercentageOfTotalNumberOfShares","ShareholdingPatternCentralGovernmentOrStateGovernmentSOrPresidentOfIndia","num:percentItemType",0,"xbrli:item",0,"instant","false","true"]
["in-bse-shp","NumberOfEquitySharesHeldInDematerializedForm","Number of equity shares held in dematerialized form",null,15,"in-bse-shp_NumberOfEquitySharesHeldInDematerializedForm","DetailsOfSharesHeldByCentralGovernmentOrStateGovernmentSOrPresidentOfIndiaLineItems","NumberOfEquitySharesHeldInDematerializedForm","ShareholdingPatternCentralGovernmentOrStateGovernmentSOrPresidentOfIndia","xbrli:sharesItemType",0,"xbrli:item",0,"instant","false","true"]
["in-bse-shp","DetailsOfSharesHeldByIndividualShareholdersHoldingNominalShareCapitalUpToRsTwoLakhAbstract","Details of shares held by Individual shareholders holding nominal share capital up to Rs two lakh [Abstract]",null,null,"in-bse-shp_DetailsOfSharesHeldByIndividualShareholdersHoldingNominalShareCapitalUpToRsTwoLakhAbstract",null,null,"ShareholdingPatternIndividualShareholdersHoldingNominalShareCapitalUpToRsTwoLakh","xbrli:stringItemType",0,"xbrli:item",0,"duration","true","true"]
["in-bse-shp","DetailsOfSharesHeldByIndividualShareholdersHoldingNominalShareCapitalUpToRsTwoLakhTable","Details of shares held by Individual shareholders holding nominal share capital up to Rs two lakh [Table]",null,1,"in-bse-shp_DetailsOfSharesHeldByIndividualShareholdersHoldingNominalShareCapitalUpToRsTwoLakhTable","DetailsOfSharesHeldByIndividualShareholdersHoldingNominalShareCapitalUpToRsTwoLakhAbstract","DetailsOfSharesHeldByIndividualShareholdersHoldingNominalShareCapitalUpToRsTwoLakhTable","ShareholdingPatternIndividualShareholdersHoldingNominalShareCapitalUpToRsTwoLakh","xbrli:stringItemType",0,"xbrldt:hypercubeItem",0,"duration","true","true"]
["in-bse-shp","DetailsOfSharesHeldByIndividualShareholdersHoldingNominalShareCapitalUpToRsTwoLakhAxis","Details of shares held by Individual shareholders holding nominal share capital up to Rs two lakh [Axis]",null,1,"in-bse-shp_DetailsOfSharesHeldByIndividualShareholdersHoldingNominalShareCapitalUpToRsTwoLakhAxis","DetailsOfSharesHeldByIndividualShareholdersHoldingNominalShareCapitalUpToRsTwoLakhTable","DetailsOfSharesHeldByIndividualShareholdersHoldingNominalShareCapitalUpToRsTwoLakhAxis","ShareholdingPatternIndividualShareholdersHoldingNominalShareCapitalUpToRsTwoLakh","xbrli:stringItemType",0,"xbrldt:dimensionItem",0,"duration","true","true"]
["in-bse-shp","DetailsOfSharesHeldByIndividualShareholdersHoldingNominalShareCapitalUpToRsTwoLakhLineItems","Details of shares held by Individual shareholders holding nominal share capital up to Rs two lakh [Line items]",null,2,"in-bse-shp_DetailsOfSharesHeldByIndividualShareholdersHoldingNominalShareCapitalUpToRsTwoLakhLineItems","DetailsOfSharesHeldByIndividualShareholdersHoldingNominalShareCapitalUpToRsTwoLakhAbstract","DetailsOfSharesHeldByIndividualShareholdersHoldingNominalShareCapitalUpToRsTwoLakhLineItems","ShareholdingPatternIndividualShareholdersHoldingNominalShareCapitalUpToRsTwoLakh","xbrli:stringItemType",0,"xbrli:item",0,"duration","true","true"]
[]
["in-bse-shp","PermanentAccountNumberOfShareholder","Permanent account number of shareholder",null,2,"in-bse-shp_PermenantAccountNumberOfShareholder","DetailsOfSharesHeldByIndividualShareholdersHoldingNominalShareCapitalUpToRsTwoLakhLineItems","PermenantAccountNumberOfShareholder","ShareholdingPatternIndividualShareholdersHoldingNominalShareCapitalUpToRsTwoLakh","xbrli:PermenantAccountNumberOfShareholder",0,"xbrli:item",0,"duration","false","true"]
["in-bse-shp","NumberOfFullyPaidUpEquityShares","Number of fully paid up equity shares",null,3,"in-bse-shp_NumberOfFullyPaidUpEquityShares","DetailsOfSharesHeldByIndividualShareholdersHoldingNominalShareCapitalUpToRsTwoLakhLineItems","NumberOfFullyPaidUpEquityShares","ShareholdingPatternIndividualShareholdersHoldingNominalShareCapitalUpToRsTwoLakh","xbrli:sharesItemType",0,"xbrli:item",0,"instant","false","true"]
["in-bse-shp","NumberOfPartlyPaidUpEquityShares","Number of partly paid-up equity shares",null,4,"in-bse-shp_NumberOfPartlyPaidUpEquityShares","DetailsOfSharesHeldByIndividualShareholdersHoldingNominalShareCapitalUpToRsTwoLakhLineItems","NumberOfPartlyPaidUpEquityShares","ShareholdingPatternIndividualShareholdersHoldingNominalShareCapitalUpToRsTwoLakh","xbrli:sharesItemType",0,"xbrli:item",0,"instant","false","true"]
["in-bse-shp","NumberOfSharesUnderlyingOutstandingDepositoryReceipts","Number of shares underlying outstanding depository receipts",null,5,"in-bse-shp_NumberOfSharesUnderlyingOutstandingDepositoryReceipts","DetailsOfSharesHeldByIndividualShareholdersHoldingNominalShareCapitalUpToRsTwoLakhLineItems","NumberOfSharesUnderlyingOutstandingDepositoryReceipts","ShareholdingPatternIndividualShareholdersHoldingNominalShareCapitalUpToRsTwoLakh","xbrli:sharesItemType",0,"xbrli:item",0,"instant","false","true"]
["in-bse-shp","NumberOfVotingRightsHeldInEachClassOfSecuritiesAbstract","Number of voting rights held in each class of securities [Abstract]",null,8,"in-bse-shp_NumberOfVotingRightsHeldInEachClassOfSecuritiesAbstract","DetailsOfSharesHeldByIndividualShareholdersHoldingNominalShareCapitalUpToRsTwoLakhLineItems","NumberOfVotingRightsHeldInEachClassOfSecuritiesAbstract","ShareholdingPatternIndividualShareholdersHoldingNominalShareCapitalUpToRsTwoLakh","xbrli:stringItemType",0,"xbrli:item",0,"duration","true","true"]
["in-bse-shp","NumberOfVotingRightsHeldBySameClassOfSecurities","Number of voting rights held by same class of securities",null,1,"in-bse-shp_NumberOfVotingRightsHeldBySameClassOfSecurities","NumberOfVotingRightsHeldInEachClassOfSecuritiesAbstract","NumberOfVotingRightsHeldBySameClassOfSecurities","ShareholdingPatternIndividualShareholdersHoldingNominalShareCapitalUpToRsTwoLakh","xbrli:decimalItemType",0,"xbrli:item",0,"instant","false","true"]
["in-bse-shp","NumberOfVotingRightsHeldByDifferentialVotingRights","Number of voting rights held by differential voting rights",null,2,"in-bse-shp_NumberOfVotingRightsHeldByDifferentialVotingRights","NumberOfVotingRightsHeldInEachClassOfSecuritiesAbstract","NumberOfVotingRightsHeldByDifferentialVotingRights","ShareholdingPatternIndividualShareholdersHoldingNominalShareCapitalUpToRsTwoLakh","xbrli:decimalItemType",0,"xbrli:item",0,"instant","false","true"]
["in-bse-shp","NumberOfVotingRights","Total number of voting rights",null,3,"in-bse-shp_NumberOfVotingRights","NumberOfVotingRightsHeldInEachClassOfSecuritiesAbstract","NumberOfVotingRights","ShareholdingPatternIndividualShareholdersHoldingNominalShareCapitalUpToRsTwoLakh","xbrli:decimalItemType",0,"xbrli:item",0,"instant","false","true"]
["in-bse-shp","NumberOfSharesUnderlyingOutstandingConvertibleSecurities","Number of shares underlying outstanding convertible securities",null,9,"in-bse-shp_NumberOfSharesUnderlyingOutstandingConvertibleSecurities","DetailsOfSharesHeldByIndividualShareholdersHoldingNominalShareCapitalUpToRsTwoLakhLineItems","NumberOfSharesUnderlyingOutstandingConvertibleSecurities","ShareholdingPatternIndividualShareholdersHoldingNominalShareCapitalUpToRsTwoLakh","xbrli:sharesItemType",0,"xbrli:item",0,"instant","false","true"]
["in-bse-shp","DetailsOfTheLockedInSharesAbstract","Details of the locked-in-shares [Abstract]",null,13,"in-bse-shp_DetailsOfTheLockedInSharesAbstract","DetailsOfSharesHeldByIndividualShareholdersHoldingNominalShareCapitalUpToRsTwoLakhLineItems","DetailsOfTheLockedInSharesAbstract","ShareholdingPatternIndividualShareholdersHoldingNominalShareCapitalUpToRsTwoLakh","xbrli:stringItemType",0,"xbrli:item",0,"duration","true","true"]
["in-bse-shp","NumberOfTheLockedInShares","Number of the locked-in-shares ",null,1,"in-bse-shp_NumberOfTheLockedInShares","DetailsOfTheLockedInSharesAbstract","NumberOfTheLockedInShares","ShareholdingPatternIndividualShareholdersHoldingNominalShareCapitalUpToRsTwoLakh","xbrli:sharesItemType",0,"xbrli:item",0,"instant","false","true"]
["in-bse-shp","LockedInSharesAsAPercentageOfTotalNumberOfShares","Locked-in-shares as a percentage of total number of shares",null,2,"in-bse-shp_LockedInSharesAsAPercentageOfTotalNumberOfShares","DetailsOfTheLockedInSharesAbstract","LockedInSharesAsAPercentageOfTotalNumberOfShares","ShareholdingPatternIndividualShareholdersHoldingNominalShareCapitalUpToRsTwoLakh","num:percentItemType",0,"xbrli:item",0,"instant","false","true"]
["in-bse-shp","NumberOfSharesPledgedOrOtherwiseEncumberedAbstract","Number of Shares pledged or otherwise encumbered [Abstract]",null,14,"in-bse-shp_NumberOfSharesPledgedOrOtherwiseEncumberedAbstract","DetailsOfSharesHeldByIndividualShareholdersHoldingNominalShareCapitalUpToRsTwoLakhLineItems","NumberOfSharesPledgedOrOtherwiseEncumberedAbstract","ShareholdingPatternIndividualShareholdersHoldingNominalShareCapitalUpToRsTwoLakh","xbrli:stringItemType",0,"xbrli:item",0,"duration","true","true"]
["in-bse-shp","PledgedOrEncumberedNumberOfShares","Pledged or encumbered - number of shares",null,1,"in-bse-shp_PledgedOrEncumberedNumberOfShares","NumberOfSharesPledgedOrOtherwiseEncumberedAbstract","PledgedOrEncumberedNumberOfShares","ShareholdingPatternIndividualShareholdersHoldingNominalShareCapitalUpToRsTwoLakh","xbrli:sharesItemType",0,"xbrli:item",0,"instant","false","true"]
["in-bse-shp","PledgedOrEncumberedSharesHeldAsPercentageOfTotalNumberOfShares","Pledged or encumbered shares held as percentage of total number of shares",null,2,"in-bse-shp_PledgedOrEncumberedSharesHeldAsPercentageOfTotalNumberOfShares","NumberOfSharesPledgedOrOtherwiseEncumberedAbstract","PledgedOrEncumberedSharesHeldAsPercentageOfTotalNumberOfShares","ShareholdingPatternIndividualShareholdersHoldingNominalShareCapitalUpToRsTwoLakh","num:percentItemType",0,"xbrli:item",0,"instant","false","true"]
["in-bse-shp","NumberOfEquitySharesHeldInDematerializedForm","Number of equity shares held in dematerialized form",null,15,"in-bse-shp_NumberOfEquitySharesHeldInDematerializedForm","DetailsOfSharesHeldByIndividualShareholdersHoldingNominalShareCapitalUpToRsTwoLakhLineItems","NumberOfEquitySharesHeldInDematerializedForm","ShareholdingPatternIndividualShareholdersHoldingNominalShareCapitalUpToRsTwoLakh","xbrli:sharesItemType",0,"xbrli:item",0,"instant","false","true"]
["in-bse-shp","DetailsOfSharesHeldByIndividualShareholdersHoldingNominalShareCapitalInExcessOfRsTwoLakhAbstract","Details of shares held by Individual shareholders holding nominal share capital in excess of Rs two lakh [Abstract]",null,null,"in-bse-shp_DetailsOfSharesHeldByIndividualShareholdersHoldingNominalShareCapitalInExcessOfRsTwoLakhAbstract",null,null,"ShareholdingPatternIndividualShareholdersHoldingNominalShareCapitalInExcessOfRsTwoLakh","xbrli:stringItemType",0,"xbrli:item",0,"duration","true","true"]
["in-bse-shp","DetailsOfSharesHeldByIndividualShareholdersHoldingNominalShareCapitalInExcessOfRsTwoLakhTable","Details of shares held by Individual shareholders holding nominal share capital in excess of Rs two lakh [Table]",null,1,"in-bse-shp_DetailsOfSharesHeldByIndividualShareholdersHoldingNominalShareCapitalInExcessOfRsTwoLakhTable","DetailsOfSharesHeldByIndividualShareholdersHoldingNominalShareCapitalInExcessOfRsTwoLakhAbstract","DetailsOfSharesHeldByIndividualShareholdersHoldingNominalShareCapitalInExcessOfRsTwoLakhTable","ShareholdingPatternIndividualShareholdersHoldingNominalShareCapitalInExcessOfRsTwoLakh","xbrli:stringItemType",0,"xbrldt:hypercubeItem",0,"duration","true","true"]
["in-bse-shp","DetailsOfSharesHeldByIndividualShareholdersHoldingNominalShareCapitalInExcessOfRsTwoLakhAxis","Details of shares held by Individual shareholders holding nominal share capital in excess of Rs two lakh [Axis]",null,1,"in-bse-shp_DetailsOfSharesHeldByIndividualShareholdersHoldingNominalShareCapitalInExcessOfRsTwoLakhAxis","DetailsOfSharesHeldByIndividualShareholdersHoldingNominalShareCapitalInExcessOfRsTwoLakhTable","DetailsOfSharesHeldByIndividualShareholdersHoldingNominalShareCapitalInExcessOfRsTwoLakhAxis","ShareholdingPatternIndividualShareholdersHoldingNominalShareCapitalInExcessOfRsTwoLakh","xbrli:stringItemType",0,"xbrldt:dimensionItem",0,"duration","true","true"]
["in-bse-shp","DetailsOfSharesHeldByIndividualShareholdersHoldingNominalShareCapitalInExcessOfRsTwoLakhLineItems","Details of shares held by Individual shareholders holding nominal share capital in excess of Rs two lakh [Line items]",null,2,"in-bse-shp_DetailsOfSharesHeldByIndividualShareholdersHoldingNominalShareCapitalInExcessOfRsTwoLakhLineItems","DetailsOfSharesHeldByIndividualShareholdersHoldingNominalShareCapitalInExcessOfRsTwoLakhAbstract","DetailsOfSharesHeldByIndividualShareholdersHoldingNominalShareCapitalInExcessOfRsTwoLakhLineItems","ShareholdingPatternIndividualShareholdersHoldingNominalShareCapitalInExcessOfRsTwoLakh","xbrli:stringItemType",0,"xbrli:item",0,"duration","true","true"]
[]
["in-bse-shp","PermanentAccountNumberOfShareholder","Permanent account number of shareholder",null,2,"in-bse-shp_PermenantAccountNumberOfShareholder","DetailsOfSharesHeldByIndividualShareholdersHoldingNominalShareCapitalInExcessOfRsTwoLakhLineItems","PermenantAccountNumberOfShareholder","ShareholdingPatternIndividualShareholdersHoldingNominalShareCapitalInExcessOfRsTwoLakh","xbrli:PermenantAccountNumberOfShareholder",0,"xbrli:item",0,"duration","false","true"]
["in-bse-shp","NumberOfFullyPaidUpEquityShares","Number of fully paid up equity shares",null,3,"in-bse-shp_NumberOfFullyPaidUpEquityShares","DetailsOfSharesHeldByIndividualShareholdersHoldingNominalShareCapitalInExcessOfRsTwoLakhLineItems","NumberOfFullyPaidUpEquityShares","ShareholdingPatternIndividualShareholdersHoldingNominalShareCapitalInExcessOfRsTwoLakh","xbrli:sharesItemType",0,"xbrli:item",0,"instant","false","true"]
["in-bse-shp","NumberOfPartlyPaidUpEquityShares","Number of partly paid-up equity shares",null,4,"in-bse-shp_NumberOfPartlyPaidUpEquityShares","DetailsOfSharesHeldByIndividualShareholdersHoldingNominalShareCapitalInExcessOfRsTwoLakhLineItems","NumberOfPartlyPaidUpEquityShares","ShareholdingPatternIndividualShareholdersHoldingNominalShareCapitalInExcessOfRsTwoLakh","xbrli:sharesItemType",0,"xbrli:item",0,"instant","false","true"]
["in-bse-shp","NumberOfSharesUnderlyingOutstandingDepositoryReceipts","Number of shares underlying outstanding depository receipts",null,5,"in-bse-shp_NumberOfSharesUnderlyingOutstandingDepositoryReceipts","DetailsOfSharesHeldByIndividualShareholdersHoldingNominalShareCapitalInExcessOfRsTwoLakhLineItems","NumberOfSharesUnderlyingOutstandingDepositoryReceipts","ShareholdingPatternIndividualShareholdersHoldingNominalShareCapitalInExcessOfRsTwoLakh","xbrli:sharesItemType",0,"xbrli:item",0,"instant","false","true"]
["in-bse-shp","NumberOfVotingRightsHeldInEachClassOfSecuritiesAbstract","Number of voting rights held in each class of securities [Abstract]",null,8,"in-bse-shp_NumberOfVotingRightsHeldInEachClassOfSecuritiesAbstract","DetailsOfSharesHeldByIndividualShareholdersHoldingNominalShareCapitalInExcessOfRsTwoLakhLineItems","NumberOfVotingRightsHeldInEachClassOfSecuritiesAbstract","ShareholdingPatternIndividualShareholdersHoldingNominalShareCapitalInExcessOfRsTwoLakh","xbrli:stringItemType",0,"xbrli:item",0,"duration","true","true"]
["in-bse-shp","NumberOfVotingRightsHeldBySameClassOfSecurities","Number of voting rights held by same class of securities",null,1,"in-bse-shp_NumberOfVotingRightsHeldBySameClassOfSecurities","NumberOfVotingRightsHeldInEachClassOfSecuritiesAbstract","NumberOfVotingRightsHeldBySameClassOfSecurities","ShareholdingPatternIndividualShareholdersHoldingNominalShareCapitalInExcessOfRsTwoLakh","xbrli:decimalItemType",0,"xbrli:item",0,"instant","false","true"]
["in-bse-shp","NumberOfVotingRightsHeldByDifferentialVotingRights","Number of voting rights held by differential voting rights",null,2,"in-bse-shp_NumberOfVotingRightsHeldByDifferentialVotingRights","NumberOfVotingRightsHeldInEachClassOfSecuritiesAbstract","NumberOfVotingRightsHeldByDifferentialVotingRights","ShareholdingPatternIndividualShareholdersHoldingNominalShareCapitalInExcessOfRsTwoLakh","xbrli:decimalItemType",0,"xbrli:item",0,"instant","false","true"]
["in-bse-shp","NumberOfSharesUnderlyingOutstandingConvertibleSecurities","Number of shares underlying outstanding convertible securities",null,9,"in-bse-shp_NumberOfSharesUnderlyingOutstandingConvertibleSecurities","DetailsOfSharesHeldByIndividualShareholdersHoldingNominalShareCapitalInExcessOfRsTwoLakhLineItems","NumberOfSharesUnderlyingOutstandingConvertibleSecurities","ShareholdingPatternIndividualShareholdersHoldingNominalShareCapitalInExcessOfRsTwoLakh","xbrli:sharesItemType",0,"xbrli:item",0,"instant","false","true"]
["in-bse-shp","DetailsOfTheLockedInSharesAbstract","Details of the locked-in-shares [Abstract]",null,13,"in-bse-shp_DetailsOfTheLockedInSharesAbstract","DetailsOfSharesHeldByIndividualShareholdersHoldingNominalShareCapitalInExcessOfRsTwoLakhLineItems","DetailsOfTheLockedInSharesAbstract","ShareholdingPatternIndividualShareholdersHoldingNominalShareCapitalInExcessOfRsTwoLakh","xbrli:stringItemType",0,"xbrli:item",0,"duration","true","true"]
["in-bse-shp","NumberOfTheLockedInShares","Number of the locked-in-shares ",null,1,"in-bse-shp_NumberOfTheLockedInShares","DetailsOfTheLockedInSharesAbstract","NumberOfTheLockedInShares","ShareholdingPatternIndividualShareholdersHoldingNominalShareCapitalInExcessOfRsTwoLakh","xbrli:sharesItemType",0,"xbrli:item",0,"instant","false","true"]
["in-bse-shp","LockedInSharesAsAPercentageOfTotalNumberOfShares","Locked-in-shares as a percentage of total number of shares",null,2,"in-bse-shp_LockedInSharesAsAPercentageOfTotalNumberOfShares","DetailsOfTheLockedInSharesAbstract","LockedInSharesAsAPercentageOfTotalNumberOfShares","ShareholdingPatternIndividualShareholdersHoldingNominalShareCapitalInExcessOfRsTwoLakh","num:percentItemType",0,"xbrli:item",0,"instant","false","true"]
["in-bse-shp","NumberOfSharesPledgedOrOtherwiseEncumberedAbstract","Number of Shares pledged or otherwise encumbered [Abstract]",null,14,"in-bse-shp_NumberOfSharesPledgedOrOtherwiseEncumberedAbstract","DetailsOfSharesHeldByIndividualShareholdersHoldingNominalShareCapitalInExcessOfRsTwoLakhLineItems","NumberOfSharesPledgedOrOtherwiseEncumberedAbstract","ShareholdingPatternIndividualShareholdersHoldingNominalShareCapitalInExcessOfRsTwoLakh","xbrli:stringItemType",0,"xbrli:item",0,"duration","true","true"]
["in-bse-shp","PledgedOrEncumberedNumberOfShares","Pledged or encumbered - number of shares",null,1,"in-bse-shp_PledgedOrEncumberedNumberOfShares","DetailsOfSharesHeldByIndividualShareholdersHoldingNominalShareCapitalInExcessOfRsTwoLakhLineItems","PledgedOrEncumberedNumberOfShares","ShareholdingPatternIndividualShareholdersHoldingNominalShareCapitalInExcessOfRsTwoLakh","xbrli:sharesItemType",0,"xbrli:item",0,"instant","false","true"]
["in-bse-shp","PledgedOrEncumberedSharesHeldAsPercentageOfTotalNumberOfShares","Pledged or encumbered shares held as percentage of total number of shares",null,2,"in-bse-shp_PledgedOrEncumberedSharesHeldAsPercentageOfTotalNumberOfShares","DetailsOfSharesHeldByIndividualShareholdersHoldingNominalShareCapitalInExcessOfRsTwoLakhLineItems","PledgedOrEncumberedSharesHeldAsPercentageOfTotalNumberOfShares","ShareholdingPatternIndividualShareholdersHoldingNominalShareCapitalInExcessOfRsTwoLakh","num:percentItemType",0,"xbrli:item",0,"instant","false","true"]
["in-bse-shp","NumberOfEquitySharesHeldInDematerializedForm","Number of equity shares held in dematerialized form",null,15,"in-bse-shp_NumberOfEquitySharesHeldInDematerializedForm","DetailsOfSharesHeldByIndividualShareholdersHoldingNominalShareCapitalInExcessOfRsTwoLakhLineItems","NumberOfEquitySharesHeldInDematerializedForm","ShareholdingPatternIndividualShareholdersHoldingNominalShareCapitalInExcessOfRsTwoLakh","xbrli:sharesItemType",0,"xbrli:item",0,"instant","false","true"]
["in-bse-shp","DetailsOfSharesHeldByNbfcsRegisteredWithRbiAbstract","Details of shares held by NBFCs registered with RBI [Abstract]",null,null,"in-bse-shp_DetailsOfSharesHeldByNbfcsRegisteredWithRbiAbstract",null,"DetailsOfSharesHeldByNbfcsRegisteredWithRbiAbstract","ShareholdingPatternNbfcsRegisteredWithRBI","xbrli:stringItemType",0,"xbrli:item",0,"duration","true","true"]
["in-bse-shp","DetailsOfSharesHeldByNbfcsRegisteredWithRbiTable","Details of shares held by NBFCs registered with RBI [Table]",null,1,"in-bse-shp_DetailsOfSharesHeldByNbfcsRegisteredWithRbiTable","DetailsOfSharesHeldByNbfcsRegisteredWithRbiAbstract","DetailsOfSharesHeldByNbfcsRegisteredWithRbiTable","ShareholdingPatternNbfcsRegisteredWithRBI","xbrli:stringItemType",0,"xbrldt:hypercubeItem",0,"duration","true","true"]
["in-bse-shp","DetailsOfSharesHeldByNBFCsRegisteredWithRbiAxis","Details of shares held by NBFCs registered with RBI [Axis]",null,1,"in-bse-shp_DetailsOfSharesHeldByNBFCsRegisteredWithRbiAxis","DetailsOfSharesHeldByNbfcsRegisteredWithRbiTable","DetailsOfSharesHeldByNBFCsRegisteredWithRbiAxis","ShareholdingPatternNbfcsRegisteredWithRBI","xbrli:stringItemType",0,"xbrldt:dimensionItem",0,"duration","true","true"]
["in-bse-shp","DetailsOfSharesHeldByNbfcsRegisteredWithRbiLineItems","Details of shares held by NBFCs registered with RBI [Line items]",null,2,"in-bse-shp_DetailsOfSharesHeldByNbfcsRegisteredWithRbiLineItems","DetailsOfSharesHeldByNbfcsRegisteredWithRbiAbstract","DetailsOfSharesHeldByNbfcsRegisteredWithRbiLineItems","ShareholdingPatternNbfcsRegisteredWithRBI","xbrli:stringItemType",0,"xbrli:item",0,"duration","true","true"]
[]
["in-bse-shp","PermanentAccountNumberOfShareholder","Permanent account number of shareholder",null,2,"in-bse-shp_PermenantAccountNumberOfShareholder","DetailsOfSharesHeldByNbfcsRegisteredWithRbiLineItems","PermenantAccountNumberOfShareholder","ShareholdingPatternNbfcsRegisteredWithRBI","xbrli:PermenantAccountNumberOfShareholder",0,"xbrli:item",0,"duration","false","true"]
["in-bse-shp","NumberOfFullyPaidUpEquityShares","Number of fully paid up equity shares",null,3,"in-bse-shp_NumberOfFullyPaidUpEquityShares","DetailsOfSharesHeldByNbfcsRegisteredWithRbiLineItems","NumberOfFullyPaidUpEquityShares","ShareholdingPatternNbfcsRegisteredWithRBI","xbrli:sharesItemType",0,"xbrli:item",0,"instant","false","true"]
["in-bse-shp","NumberOfPartlyPaidUpEquityShares","Number of partly paid-up equity shares",null,4,"in-bse-shp_NumberOfPartlyPaidUpEquityShares","DetailsOfSharesHeldByNbfcsRegisteredWithRbiLineItems","NumberOfPartlyPaidUpEquityShares","ShareholdingPatternNbfcsRegisteredWithRBI","xbrli:sharesItemType",0,"xbrli:item",0,"instant","false","true"]
["in-bse-shp","NumberOfSharesUnderlyingOutstandingDepositoryReceipts","Number of shares underlying outstanding depository receipts",null,5,"in-bse-shp_NumberOfSharesUnderlyingOutstandingDepositoryReceipts","DetailsOfSharesHeldByNbfcsRegisteredWithRbiLineItems","NumberOfSharesUnderlyingOutstandingDepositoryReceipts","ShareholdingPatternNbfcsRegisteredWithRBI","xbrli:sharesItemType",0,"xbrli:item",0,"instant","false","true"]
["in-bse-shp","NumberOfVotingRightsHeldInEachClassOfSecuritiesAbstract","Number of voting rights held in each class of securities [Abstract]",null,8,"in-bse-shp_NumberOfVotingRightsHeldInEachClassOfSecuritiesAbstract","DetailsOfSharesHeldByNbfcsRegisteredWithRbiLineItems","NumberOfVotingRightsHeldInEachClassOfSecuritiesAbstract","ShareholdingPatternNbfcsRegisteredWithRBI","xbrli:stringItemType",0,"xbrli:item",0,"duration","true","true"]
["in-bse-shp","NumberOfVotingRightsHeldBySameClassOfSecurities","Number of voting rights held by same class of securities",null,1,"in-bse-shp_NumberOfVotingRightsHeldBySameClassOfSecurities","NumberOfVotingRightsHeldInEachClassOfSecuritiesAbstract","NumberOfVotingRightsHeldBySameClassOfSecurities","ShareholdingPatternNbfcsRegisteredWithRBI","xbrli:decimalItemType",0,"xbrli:item",0,"instant","false","true"]
["in-bse-shp","NumberOfVotingRightsHeldByDifferentialVotingRights","Number of voting rights held by differential voting rights",null,2,"in-bse-shp_NumberOfVotingRightsHeldByDifferentialVotingRights","NumberOfVotingRightsHeldInEachClassOfSecuritiesAbstract","NumberOfVotingRightsHeldByDifferentialVotingRights","ShareholdingPatternNbfcsRegisteredWithRBI","xbrli:decimalItemType",0,"xbrli:item",0,"instant","false","true"]
["in-bse-shp","NumberOfVotingRights","Total number of voting rights",null,3,"in-bse-shp_NumberOfVotingRights","NumberOfVotingRightsHeldInEachClassOfSecuritiesAbstract","NumberOfVotingRights","ShareholdingPatternNbfcsRegisteredWithRBI","xbrli:decimalItemType",0,"xbrli:item",0,"instant","false","true"]
["in-bse-shp","NumberOfSharesUnderlyingOutstandingConvertibleSecurities","Number of shares underlying outstanding convertible securities",null,9,"in-bse-shp_NumberOfSharesUnderlyingOutstandingConvertibleSecurities","DetailsOfSharesHeldByNbfcsRegisteredWithRbiLineItems","NumberOfSharesUnderlyingOutstandingConvertibleSecurities","ShareholdingPatternNbfcsRegisteredWithRBI","xbrli:sharesItemType",0,"xbrli:item",0,"instant","false","true"]
["in-bse-shp","DetailsOfTheLockedInSharesAbstract","Details of the locked-in-shares [Abstract]",null,13,"in-bse-shp_DetailsOfTheLockedInSharesAbstract","DetailsOfSharesHeldByNbfcsRegisteredWithRbiLineItems","DetailsOfTheLockedInSharesAbstract","ShareholdingPatternNbfcsRegisteredWithRBI","xbrli:stringItemType",0,"xbrli:item",0,"duration","true","true"]
["in-bse-shp","NumberOfTheLockedInShares","Number of the locked-in-shares ",null,1,"in-bse-shp_NumberOfTheLockedInShares","DetailsOfTheLockedInSharesAbstract","NumberOfTheLockedInShares","ShareholdingPatternNbfcsRegisteredWithRBI","xbrli:sharesItemType",0,"xbrli:item",0,"instant","false","true"]
["in-bse-shp","LockedInSharesAsAPercentageOfTotalNumberOfShares","Locked-in-shares as a percentage of total number of shares",null,2,"in-bse-shp_LockedInSharesAsAPercentageOfTotalNumberOfShares","DetailsOfTheLockedInSharesAbstract","LockedInSharesAsAPercentageOfTotalNumberOfShares","ShareholdingPatternNbfcsRegisteredWithRBI","num:percentItemType",0,"xbrli:item",0,"instant","false","true"]
["in-bse-shp","NumberOfSharesPledgedOrOtherwiseEncumberedAbstract","Number of Shares pledged or otherwise encumbered [Abstract]",null,14,"in-bse-shp_NumberOfSharesPledgedOrOtherwiseEncumberedAbstract","DetailsOfSharesHeldByNbfcsRegisteredWithRbiLineItems","NumberOfSharesPledgedOrOtherwiseEncumberedAbstract","ShareholdingPatternNbfcsRegisteredWithRBI","xbrli:stringItemType",0,"xbrli:item",0,"duration","true","true"]
["in-bse-shp","PledgedOrEncumberedNumberOfShares","Pledged or encumbered - number of shares",null,1,"in-bse-shp_PledgedOrEncumberedNumberOfShares","LockedInSharesAsAPercentageOfTotalNumberOfShares","PledgedOrEncumberedNumberOfShares","ShareholdingPatternNbfcsRegisteredWithRBI","xbrli:sharesItemType",0,"xbrli:item",0,"instant","false","true"]
["in-bse-shp","PledgedOrEncumberedSharesHeldAsPercentageOfTotalNumberOfShares","Pledged or encumbered shares held as percentage of total number of shares",null,2,"in-bse-shp_PledgedOrEncumberedSharesHeldAsPercentageOfTotalNumberOfShares","NumberOfSharesPledgedOrOtherwiseEncumberedAbstract","PledgedOrEncumberedSharesHeldAsPercentageOfTotalNumberOfShares","ShareholdingPatternNbfcsRegisteredWithRBI","num:percentItemType",0,"xbrli:item",0,"instant","false","true"]
["in-bse-shp","NumberOfEquitySharesHeldInDematerializedForm","Number of equity shares held in dematerialized form",null,15,"in-bse-shp_NumberOfEquitySharesHeldInDematerializedForm","DetailsOfSharesHeldByNbfcsRegisteredWithRbiLineItems","NumberOfEquitySharesHeldInDematerializedForm","ShareholdingPatternNbfcsRegisteredWithRBI","xbrli:sharesItemType",0,"xbrli:item",0,"instant","false","true"]
["in-bse-shp","DetailsOfSharesHeldByEmployeeTrustsAbstract","Details of shares held by Employee Trusts [Abstract]",null,null,"in-bse-shp_DetailsOfSharesHeldByEmployeeTrustsAbstract",null,null,"ShareholdingPatternEmployeeTrusts","xbrli:stringItemType",0,"xbrli:item",0,"duration","true","true"]
["in-bse-shp","DetailsOfSharesHeldByEmployeeTrustsTable","Details of shares held by Employee Trusts [Table]",null,1,"in-bse-shp_DetailsOfSharesHeldByEmployeeTrustsTable","DetailsOfSharesHeldByEmployeeTrustsAbstract","DetailsOfSharesHeldByEmployeeTrustsTable","ShareholdingPatternEmployeeTrusts","xbrli:stringItemType",0,"xbrldt:hypercubeItem",0,"duration","true","true"]
["in-bse-shp","DetailsOfSharesHeldByEmployeeTrustsAxis","Details of shares held by Employee Trusts [Axis]",null,1,"in-bse-shp_DetailsOfSharesHeldByEmployeeTrustsAxis","DetailsOfSharesHeldByEmployeeTrustsTable","DetailsOfSharesHeldByEmployeeTrustsAxis","ShareholdingPatternEmployeeTrusts","xbrli:stringItemType",0,"xbrldt:dimensionItem",0,"duration","true","true"]
["in-bse-shp","DetailsOfSharesHeldByEmployeeTrustsLineItems","Details of shares held by Employee Trusts [Line items]",null,2,"in-bse-shp_DetailsOfSharesHeldByEmployeeTrustsLineItems","DetailsOfSharesHeldByEmployeeTrustsAbstract","DetailsOfSharesHeldByEmployeeTrustsLineItems","ShareholdingPatternEmployeeTrusts","xbrli:stringItemType",0,"xbrli:item",0,"duration","true","true"]
[]
["in-bse-shp","PermanentAccountNumberOfShareholder","Permanent account number of shareholder",null,2,"in-bse-shp_PermenantAccountNumberOfShareholder","DetailsOfSharesHeldByEmployeeTrustsLineItems","PermenantAccountNumberOfShareholder","ShareholdingPatternEmployeeTrusts","xbrli:PermenantAccountNumberOfShareholder",0,"xbrli:item",0,"duration","false","true"]
["in-bse-shp","NumberOfFullyPaidUpEquityShares","Number of fully paid up equity shares",null,3,"in-bse-shp_NumberOfFullyPaidUpEquityShares","DetailsOfSharesHeldByEmployeeTrustsLineItems","NumberOfFullyPaidUpEquityShares","ShareholdingPatternEmployeeTrusts","xbrli:sharesItemType",0,"xbrli:item",0,"instant","false","true"]
["in-bse-shp","NumberOfPartlyPaidUpEquityShares","Number of partly paid-up equity shares",null,4,"in-bse-shp_NumberOfPartlyPaidUpEquityShares","DetailsOfSharesHeldByEmployeeTrustsLineItems","NumberOfPartlyPaidUpEquityShares","ShareholdingPatternEmployeeTrusts","xbrli:sharesItemType",0,"xbrli:item",0,"instant","false","true"]
["in-bse-shp","NumberOfSharesUnderlyingOutstandingDepositoryReceipts","Number of shares underlying outstanding depository receipts",null,5,"in-bse-shp_NumberOfSharesUnderlyingOutstandingDepositoryReceipts","DetailsOfSharesHeldByEmployeeTrustsLineItems","NumberOfSharesUnderlyingOutstandingDepositoryReceipts","ShareholdingPatternEmployeeTrusts","xbrli:sharesItemType",0,"xbrli:item",0,"instant","false","true"]
["in-bse-shp","NumberOfVotingRightsHeldInEachClassOfSecuritiesAbstract","Number of voting rights held in each class of securities [Abstract]",null,8,"in-bse-shp_NumberOfVotingRightsHeldInEachClassOfSecuritiesAbstract","DetailsOfSharesHeldByEmployeeTrustsLineItems","NumberOfVotingRightsHeldInEachClassOfSecuritiesAbstract","ShareholdingPatternEmployeeTrusts","xbrli:stringItemType",0,"xbrli:item",0,"duration","true","true"]
["in-bse-shp","NumberOfVotingRightsHeldBySameClassOfSecurities","Number of voting rights held by same class of securities",null,1,"in-bse-shp_NumberOfVotingRightsHeldBySameClassOfSecurities","NumberOfVotingRightsHeldInEachClassOfSecuritiesAbstract","NumberOfVotingRightsHeldBySameClassOfSecurities","ShareholdingPatternEmployeeTrusts","xbrli:decimalItemType",0,"xbrli:item",0,"instant","false","true"]
["in-bse-shp","NumberOfVotingRightsHeldByDifferentialVotingRights","Number of voting rights held by differential voting rights",null,2,"in-bse-shp_NumberOfVotingRightsHeldByDifferentialVotingRights","NumberOfVotingRightsHeldInEachClassOfSecuritiesAbstract","NumberOfVotingRightsHeldByDifferentialVotingRights","ShareholdingPatternEmployeeTrusts","xbrli:decimalItemType",0,"xbrli:item",0,"instant","false","true"]
["in-bse-shp","NumberOfVotingRights","Total number of voting rights",null,3,"in-bse-shp_NumberOfVotingRights","NumberOfVotingRightsHeldInEachClassOfSecuritiesAbstract","NumberOfVotingRights","ShareholdingPatternEmployeeTrusts","xbrli:decimalItemType",0,"xbrli:item",0,"instant","false","true"]
["in-bse-shp","NumberOfSharesUnderlyingOutstandingConvertibleSecurities","Number of shares underlying outstanding convertible securities",null,9,"in-bse-shp_NumberOfSharesUnderlyingOutstandingConvertibleSecurities","DetailsOfSharesHeldByEmployeeTrustsLineItems","NumberOfSharesUnderlyingOutstandingConvertibleSecurities","ShareholdingPatternEmployeeTrusts","xbrli:sharesItemType",0,"xbrli:item",0,"instant","false","true"]
["in-bse-shp","DetailsOfTheLockedInSharesAbstract","Details of the locked-in-shares [Abstract]",null,13,"in-bse-shp_DetailsOfTheLockedInSharesAbstract","DetailsOfSharesHeldByEmployeeTrustsLineItems","DetailsOfTheLockedInSharesAbstract","ShareholdingPatternEmployeeTrusts","xbrli:stringItemType",0,"xbrli:item",0,"duration","true","true"]
["in-bse-shp","NumberOfTheLockedInShares","Number of the locked-in-shares ",null,1,"in-bse-shp_NumberOfTheLockedInShares","DetailsOfTheLockedInSharesAbstract","NumberOfTheLockedInShares","ShareholdingPatternEmployeeTrusts","xbrli:sharesItemType",0,"xbrli:item",0,"instant","false","true"]
["in-bse-shp","LockedInSharesAsAPercentageOfTotalNumberOfShares","Locked-in-shares as a percentage of total number of shares",null,2,"in-bse-shp_LockedInSharesAsAPercentageOfTotalNumberOfShares","DetailsOfTheLockedInSharesAbstract","LockedInSharesAsAPercentageOfTotalNumberOfShares","ShareholdingPatternEmployeeTrusts","num:percentItemType",0,"xbrli:item",0,"instant","false","true"]
["in-bse-shp","NumberOfSharesPledgedOrOtherwiseEncumberedAbstract","Number of Shares pledged or otherwise encumbered [Abstract]",null,14,"in-bse-shp_NumberOfSharesPledgedOrOtherwiseEncumberedAbstract","DetailsOfSharesHeldByEmployeeTrustsLineItems","NumberOfSharesPledgedOrOtherwiseEncumberedAbstract","ShareholdingPatternEmployeeTrusts","xbrli:stringItemType",0,"xbrli:item",0,"duration","true","true"]
["in-bse-shp","PledgedOrEncumberedNumberOfShares","Pledged or encumbered - number of shares",null,1,"in-bse-shp_PledgedOrEncumberedNumberOfShares","NumberOfSharesPledgedOrOtherwiseEncumberedAbstract","PledgedOrEncumberedNumberOfShares","ShareholdingPatternEmployeeTrusts","xbrli:sharesItemType",0,"xbrli:item",0,"instant","false","true"]
["in-bse-shp","PledgedOrEncumberedSharesHeldAsPercentageOfTotalNumberOfShares","Pledged or encumbered shares held as percentage of total number of shares",null,2,"in-bse-shp_PledgedOrEncumberedSharesHeldAsPercentageOfTotalNumberOfShares","NumberOfSharesPledgedOrOtherwiseEncumberedAbstract","PledgedOrEncumberedSharesHeldAsPercentageOfTotalNumberOfShares","ShareholdingPatternEmployeeTrusts","num:percentItemType",0,"xbrli:item",0,"instant","false","true"]
["in-bse-shp","NumberOfEquitySharesHeldInDematerializedForm","Number of equity shares held in dematerialized form",null,15,"in-bse-shp_NumberOfEquitySharesHeldInDematerializedForm","DetailsOfSharesHeldByEmployeeTrustsLineItems","NumberOfEquitySharesHeldInDematerializedForm","ShareholdingPatternEmployeeTrusts","xbrli:sharesItemType",0,"xbrli:item",0,"instant","false","true"]
["in-bse-shp","DetailsOfSharesHeldByOthersIndianShareholdersAbstract","Details of shares held by others indian shareholders [Abstract]",null,null,"in-bse-shp_DetailsOfSharesHeldByOthersIndianShareholdersAbstract",null,null,"ShareholdingPatternOtherIndianShareholders","xbrli:stringItemType",0,"xbrli:item",0,"duration","true","true"]
["in-bse-shp","DetailsOfSharesHeldByOthersIndianShareholdersTable","Details of shares held by others indian shareholders [Table]",null,1,"in-bse-shp_DetailsOfSharesHeldByOthersIndianShareholdersTable","DetailsOfSharesHeldByOthersIndianShareholdersAbstract","DetailsOfSharesHeldByOthersIndianShareholdersTable","ShareholdingPatternOtherIndianShareholders","xbrli:stringItemType",0,"xbrldt:hypercubeItem",0,"duration","true","true"]
["in-bse-shp","DetailsOfSharesHeldByOthersIndianShareholdersAxis","Details of shares held by others indian shareholders [Axis]",null,1,"in-bse-shp_DetailsOfSharesHeldByOthersIndianShareholdersAxis","DetailsOfSharesHeldByOthersIndianShareholdersTable","DetailsOfSharesHeldByOthersIndianShareholdersAxis","ShareholdingPatternOtherIndianShareholders","xbrli:stringItemType",0,"xbrldt:dimensionItem",0,"duration","true","true"]
["in-bse-shp","DetailsOfSharesHeldByOthersIndianShareholdersLineItems","Details of shares held by others indian shareholders [Line items]",null,2,"in-bse-shp_DetailsOfSharesHeldByOthersIndianShareholdersLineItems","DetailsOfSharesHeldByOthersIndianShareholdersAbstract","DetailsOfSharesHeldByOthersIndianShareholdersLineItems","ShareholdingPatternOtherIndianShareholders","xbrli:stringItemType",0,"xbrli:item",0,"duration","true","true"]
["in-bse-shp","CategoryOfOtherIndianShareholders","Category of other indian shareholders",null,1,"in-bse-shp_CategoryOfOtherIndianShareholders","DetailsOfSharesHeldByOthersIndianShareholdersLineItems","CategoryOfOtherIndianShareholders","ShareholdingPatternOtherIndianShareholders","in-bse-shp-types:CategoryOfIndianShareholders",0,"xbrli:item",0,"duration","true","true"]
[]
["in-bse-shp","PermanentAccountNumberOfShareholder","Permanent account number of shareholder",null,3,"in-bse-shp_PermenantAccountNumberOfShareholder","DetailsOfSharesHeldByOthersIndianShareholdersLineItems","PermenantAccountNumberOfShareholder","ShareholdingPatternOtherIndianShareholders","xbrli:PermenantAccountNumberOfShareholder",0,"xbrli:item",0,"duration","false","true"]
["in-bse-shp","NumberOfFullyPaidUpEquityShares","Number of fully paid up equity shares",null,4,"in-bse-shp_NumberOfFullyPaidUpEquityShares","DetailsOfSharesHeldByOthersIndianShareholdersLineItems","NumberOfFullyPaidUpEquityShares","ShareholdingPatternOtherIndianShareholders","xbrli:sharesItemType",0,"xbrli:item",0,"instant","false","true"]
["in-bse-shp","NumberOfPartlyPaidUpEquityShares","Number of partly paid-up equity shares",null,5,"in-bse-shp_NumberOfPartlyPaidUpEquityShares","DetailsOfSharesHeldByOthersIndianShareholdersLineItems","NumberOfPartlyPaidUpEquityShares","ShareholdingPatternOtherIndianShareholders","xbrli:sharesItemType",0,"xbrli:item",0,"instant","false","true"]
["in-bse-shp","NumberOfSharesUnderlyingOutstandingDepositoryReceipts","Number of shares underlying outstanding depository receipts",null,6,"in-bse-shp_NumberOfSharesUnderlyingOutstandingDepositoryReceipts","DetailsOfSharesHeldByOthersIndianShareholdersLineItems","NumberOfSharesUnderlyingOutstandingDepositoryReceipts","ShareholdingPatternOtherIndianShareholders","xbrli:sharesItemType",0,"xbrli:item",0,"instant","false","true"]
["in-bse-shp","NumberOfVotingRightsHeldInEachClassOfSecuritiesAbstract","Number of voting rights held in each class of securities [Abstract]",null,9,"in-bse-shp_NumberOfVotingRightsHeldInEachClassOfSecuritiesAbstract","DetailsOfSharesHeldByOthersIndianShareholdersLineItems","NumberOfVotingRightsHeldInEachClassOfSecuritiesAbstract","ShareholdingPatternOtherIndianShareholders","xbrli:stringItemType",0,"xbrli:item",0,"duration","true","true"]
["in-bse-shp","NumberOfVotingRightsHeldBySameClassOfSecurities","Number of voting rights held by same class of securities",null,1,"in-bse-shp_NumberOfVotingRightsHeldBySameClassOfSecurities","NumberOfVotingRightsHeldInEachClassOfSecuritiesAbstract","NumberOfVotingRightsHeldBySameClassOfSecurities","ShareholdingPatternOtherIndianShareholders","xbrli:decimalItemType",0,"xbrli:item",0,"instant","false","true"]
["in-bse-shp","NumberOfVotingRightsHeldByDifferentialVotingRights","Number of voting rights held by differential voting rights",null,2,"in-bse-shp_NumberOfVotingRightsHeldByDifferentialVotingRights","NumberOfVotingRightsHeldInEachClassOfSecuritiesAbstract","NumberOfVotingRightsHeldByDifferentialVotingRights","ShareholdingPatternOtherIndianShareholders","xbrli:decimalItemType",0,"xbrli:item",0,"instant","false","true"]
["in-bse-shp","NumberOfVotingRights","Total number of voting rights",null,3,"in-bse-shp_NumberOfVotingRights","NumberOfVotingRightsHeldInEachClassOfSecuritiesAbstract","NumberOfVotingRights","ShareholdingPatternOtherIndianShareholders","xbrli:decimalItemType",0,"xbrli:item",0,"instant","false","true"]
["in-bse-shp","NumberOfSharesUnderlyingOutstandingConvertibleSecurities","Number of shares underlying outstanding convertible securities",null,10,"in-bse-shp_NumberOfSharesUnderlyingOutstandingConvertibleSecurities","DetailsOfSharesHeldByOthersIndianShareholdersLineItems","NumberOfSharesUnderlyingOutstandingConvertibleSecurities","ShareholdingPatternOtherIndianShareholders","xbrli:sharesItemType",0,"xbrli:item",0,"instant","false","true"]
["in-bse-shp","DetailsOfTheLockedInSharesAbstract","Details of the locked-in-shares [Abstract]",null,14,"in-bse-shp_DetailsOfTheLockedInSharesAbstract","DetailsOfSharesHeldByOthersIndianShareholdersLineItems","DetailsOfTheLockedInSharesAbstract","ShareholdingPatternOtherIndianShareholders","xbrli:stringItemType",0,"xbrli:item",0,"duration","true","true"]
["in-bse-shp","NumberOfTheLockedInShares","Number of the locked-in-shares ",null,1,"in-bse-shp_NumberOfTheLockedInShares","DetailsOfTheLockedInSharesAbstract","NumberOfTheLockedInShares","ShareholdingPatternOtherIndianShareholders","xbrli:sharesItemType",0,"xbrli:item",0,"instant","false","true"]
["in-bse-shp","LockedInSharesAsAPercentageOfTotalNumberOfShares","Locked-in-shares as a percentage of total number of shares",null,2,"in-bse-shp_LockedInSharesAsAPercentageOfTotalNumberOfShares","DetailsOfTheLockedInSharesAbstract","LockedInSharesAsAPercentageOfTotalNumberOfShares","ShareholdingPatternOtherIndianShareholders","num:percentItemType",0,"xbrli:item",0,"instant","false","true"]
["in-bse-shp","NumberOfSharesPledgedOrOtherwiseEncumberedAbstract","Number of Shares pledged or otherwise encumbered [Abstract]",null,15,"in-bse-shp_NumberOfSharesPledgedOrOtherwiseEncumberedAbstract","DetailsOfSharesHeldByOthersIndianShareholdersLineItems","NumberOfSharesPledgedOrOtherwiseEncumberedAbstract","ShareholdingPatternOtherIndianShareholders","xbrli:stringItemType",0,"xbrli:item",0,"duration","true","true"]
["in-bse-shp","PledgedOrEncumberedNumberOfShares","Pledged or encumbered - number of shares",null,1,"in-bse-shp_PledgedOrEncumberedNumberOfShares","NumberOfSharesPledgedOrOtherwiseEncumberedAbstract","PledgedOrEncumberedNumberOfShares","ShareholdingPatternOtherIndianShareholders","xbrli:sharesItemType",0,"xbrli:item",0,"instant","false","true"]
["in-bse-shp","PledgedOrEncumberedSharesHeldAsPercentageOfTotalNumberOfShares","Pledged or encumbered shares held as percentage of total number of shares",null,2,"in-bse-shp_PledgedOrEncumberedSharesHeldAsPercentageOfTotalNumberOfShares","NumberOfSharesPledgedOrOtherwiseEncumberedAbstract","PledgedOrEncumberedSharesHeldAsPercentageOfTotalNumberOfShares","ShareholdingPatternOtherIndianShareholders","num:percentItemType",0,"xbrli:item",0,"instant","false","true"]
["in-bse-shp","NumberOfEquitySharesHeldInDematerializedForm","Number of equity shares held in dematerialized form",null,16,"in-bse-shp_NumberOfEquitySharesHeldInDematerializedForm","DetailsOfSharesHeldByOthersIndianShareholdersLineItems","NumberOfEquitySharesHeldInDematerializedForm","ShareholdingPatternOtherIndianShareholders","xbrli:sharesItemType",0,"xbrli:item",0,"instant","false","true"]
["in-bse-shp","DetailsOfSharesHeldByForeignInstitutionsAbstract","Details of shares held by Foreign institutions [Abstract]",null,null,"in-bse-shp_DetailsOfSharesHeldByForeignInstitutionsAbstract",null,null,"ShareholdingPatternForeignInstitutions","xbrli:stringItemType",0,"xbrli:item",0,"duration","true","true"]
["in-bse-shp","DetailsOfSharesHeldByForeignInstitutionsTable","Details of shares held by Foreign institutions [Table]",null,1,"in-bse-shp_DetailsOfSharesHeldByForeignInstitutionsTable","DetailsOfSharesHeldByForeignInstitutionsAbstract","DetailsOfSharesHeldByForeignInstitutionsTable","ShareholdingPatternForeignInstitutions","xbrli:stringItemType",0,"xbrldt:hypercubeItem",0,"duration","true","true"]
["in-bse-shp","DetailsOfSharesHeldByForeignInstitutionsAxis","Details of shares held by Foreign institutions [Axis]",null,1,"in-bse-shp_DetailsOfSharesHeldByForeignInstitutionsAxis","DetailsOfSharesHeldByForeignInstitutionsTable","DetailsOfSharesHeldByForeignInstitutionsAxis","ShareholdingPatternForeignInstitutions","xbrli:stringItemType",0,"xbrldt:dimensionItem",0,"duration","true","true"]
["in-bse-shp","DetailsOfSharesHeldByForeignInstitutionsLineItems","Details of shares held by Foreign institutions [Line items]",null,2,"in-bse-shp_DetailsOfSharesHeldByForeignInstitutionsLineItems","DetailsOfSharesHeldByForeignInstitutionsAbstract","DetailsOfSharesHeldByForeignInstitutionsLineItems","ShareholdingPatternForeignInstitutions","xbrli:stringItemType",0,"xbrli:item",0,"duration","true","true"]
[]
["in-bse-shp","PermanentAccountNumberOfShareholder","Permanent account number of shareholder",null,2,"in-bse-shp_PermenantAccountNumberOfShareholder","DetailsOfSharesHeldByForeignInstitutionsLineItems","PermenantAccountNumberOfShareholder","ShareholdingPatternForeignInstitutions","xbrli:PermenantAccountNumberOfShareholder",0,"xbrli:item",0,"duration","false","true"]
["in-bse-shp","NumberOfFullyPaidUpEquityShares","Number of fully paid up equity shares",null,3,"in-bse-shp_NumberOfFullyPaidUpEquityShares","DetailsOfSharesHeldByForeignInstitutionsLineItems","NumberOfFullyPaidUpEquityShares","ShareholdingPatternForeignInstitutions","xbrli:sharesItemType",0,"xbrli:item",0,"instant","false","true"]
["in-bse-shp","NumberOfPartlyPaidUpEquityShares","Number of partly paid-up equity shares",null,4,"in-bse-shp_NumberOfPartlyPaidUpEquityShares","DetailsOfSharesHeldByForeignInstitutionsLineItems","NumberOfPartlyPaidUpEquityShares","ShareholdingPatternForeignInstitutions","xbrli:sharesItemType",0,"xbrli:item",0,"instant","false","true"]
["in-bse-shp","NumberOfSharesUnderlyingOutstandingDepositoryReceipts","Number of shares underlying outstanding depository receipts",null,5,"in-bse-shp_NumberOfSharesUnderlyingOutstandingDepositoryReceipts","DetailsOfSharesHeldByForeignInstitutionsLineItems","NumberOfSharesUnderlyingOutstandingDepositoryReceipts","ShareholdingPatternForeignInstitutions","xbrli:sharesItemType",0,"xbrli:item",0,"instant","false","true"]
["in-bse-shp","NumberOfVotingRightsHeldInEachClassOfSecuritiesAbstract","Number of voting rights held in each class of securities [Abstract]",null,8,"in-bse-shp_NumberOfVotingRightsHeldInEachClassOfSecuritiesAbstract","DetailsOfSharesHeldByForeignInstitutionsLineItems","NumberOfVotingRightsHeldInEachClassOfSecuritiesAbstract","ShareholdingPatternForeignInstitutions","xbrli:stringItemType",0,"xbrli:item",0,"duration","true","true"]
["in-bse-shp","NumberOfVotingRightsHeldBySameClassOfSecurities","Number of voting rights held by same class of securities",null,1,"in-bse-shp_NumberOfVotingRightsHeldBySameClassOfSecurities","NumberOfVotingRightsHeldInEachClassOfSecuritiesAbstract","NumberOfVotingRightsHeldBySameClassOfSecurities","ShareholdingPatternForeignInstitutions","xbrli:decimalItemType",0,"xbrli:item",0,"instant","false","true"]
["in-bse-shp","NumberOfVotingRightsHeldByDifferentialVotingRights","Number of voting rights held by differential voting rights",null,2,"in-bse-shp_NumberOfVotingRightsHeldByDifferentialVotingRights","NumberOfVotingRightsHeldInEachClassOfSecuritiesAbstract","NumberOfVotingRightsHeldByDifferentialVotingRights","ShareholdingPatternForeignInstitutions","xbrli:decimalItemType",0,"xbrli:item",0,"instant","false","true"]
["in-bse-shp","NumberOfVotingRights","Total number of voting rights",null,3,"in-bse-shp_NumberOfVotingRights","NumberOfVotingRightsHeldInEachClassOfSecuritiesAbstract","NumberOfVotingRights","ShareholdingPatternForeignInstitutions","xbrli:decimalItemType",0,"xbrli:item",0,"instant","false","true"]
["in-bse-shp","NumberOfSharesUnderlyingOutstandingConvertibleSecurities","Number of shares underlying outstanding convertible securities",null,9,"in-bse-shp_NumberOfSharesUnderlyingOutstandingConvertibleSecurities","DetailsOfSharesHeldByForeignInstitutionsLineItems","NumberOfSharesUnderlyingOutstandingConvertibleSecurities","ShareholdingPatternForeignInstitutions","xbrli:sharesItemType",0,"xbrli:item",0,"instant","false","true"]
["in-bse-shp","DetailsOfTheLockedInSharesAbstract","Details of the locked-in-shares [Abstract]",null,13,"in-bse-shp_DetailsOfTheLockedInSharesAbstract","DetailsOfSharesHeldByForeignInstitutionsLineItems","DetailsOfTheLockedInSharesAbstract","ShareholdingPatternForeignInstitutions","xbrli:stringItemType",0,"xbrli:item",0,"duration","true","true"]
["in-bse-shp","NumberOfTheLockedInShares","Number of the locked-in-shares ",null,1,"in-bse-shp_NumberOfTheLockedInShares","DetailsOfTheLockedInSharesAbstract","NumberOfTheLockedInShares","ShareholdingPatternForeignInstitutions","xbrli:sharesItemType",0,"xbrli:item",0,"instant","false","true"]
["in-bse-shp","LockedInSharesAsAPercentageOfTotalNumberOfShares","Locked-in-shares as a percentage of total number of shares",null,2,"in-bse-shp_LockedInSharesAsAPercentageOfTotalNumberOfShares","DetailsOfTheLockedInSharesAbstract","LockedInSharesAsAPercentageOfTotalNumberOfShares","ShareholdingPatternForeignInstitutions","num:percentItemType",0,"xbrli:item",0,"instant","false","true"]
["in-bse-shp","NumberOfSharesPledgedOrOtherwiseEncumberedAbstract","Number of Shares pledged or otherwise encumbered [Abstract]",null,14,"in-bse-shp_NumberOfSharesPledgedOrOtherwiseEncumberedAbstract","DetailsOfSharesHeldByForeignInstitutionsLineItems","NumberOfSharesPledgedOrOtherwiseEncumberedAbstract","ShareholdingPatternForeignInstitutions","xbrli:stringItemType",0,"xbrli:item",0,"duration","true","true"]
["in-bse-shp","PledgedOrEncumberedNumberOfShares","Pledged or encumbered - number of shares",null,1,"in-bse-shp_PledgedOrEncumberedNumberOfShares","NumberOfSharesPledgedOrOtherwiseEncumberedAbstract","PledgedOrEncumberedNumberOfShares","ShareholdingPatternForeignInstitutions","xbrli:sharesItemType",0,"xbrli:item",0,"instant","false","true"]
["in-bse-shp","PledgedOrEncumberedSharesHeldAsPercentageOfTotalNumberOfShares","Pledged or encumbered shares held as percentage of total number of shares",null,2,"in-bse-shp_PledgedOrEncumberedSharesHeldAsPercentageOfTotalNumberOfShares","NumberOfSharesPledgedOrOtherwiseEncumberedAbstract","PledgedOrEncumberedSharesHeldAsPercentageOfTotalNumberOfShares","ShareholdingPatternForeignInstitutions","num:percentItemType",0,"xbrli:item",0,"instant","false","true"]
["in-bse-shp","NumberOfEquitySharesHeldInDematerializedForm","Number of equity shares held in dematerialized form",null,15,"in-bse-shp_NumberOfEquitySharesHeldInDematerializedForm","DetailsOfSharesHeldByForeignInstitutionsLineItems","NumberOfEquitySharesHeldInDematerializedForm","ShareholdingPatternForeignInstitutions","xbrli:sharesItemType",0,"xbrli:item",0,"instant","false","true"]
["in-bse-shp","DetailsOfSharesHeldByOtherForeignShareholdersAbstract","Details of shares held by other foreign shareholders [Abstract]",null,null,"in-bse-shp_DetailsOfSharesHeldByOtherForeignShareholdersAbstract",null,null,"ShareholdingPatternOtherForeignShareholders","xbrli:stringItemType",0,"xbrli:item",0,"duration","true","true"]
["in-bse-shp","DetailsOfSharesHeldByOtherForeignShareholdersTable","Details of shares held by other foreign shareholders [Table]",null,1,"in-bse-shp_DetailsOfSharesHeldByOtherForeignShareholdersTable","DetailsOfSharesHeldByOtherForeignShareholdersAbstract","DetailsOfSharesHeldByOtherForeignShareholdersTable","ShareholdingPatternOtherForeignShareholders","xbrli:stringItemType",0,"xbrldt:hypercubeItem",0,"duration","true","true"]
["in-bse-shp","DetailsOfSharesHeldByOtherForeignShareholdersAxis","Details of shares held by other foreign shareholders [Axis]",null,1,"in-bse-shp_DetailsOfSharesHeldByOtherForeignShareholdersAxis","DetailsOfSharesHeldByOtherForeignShareholdersTable","DetailsOfSharesHeldByOtherForeignShareholdersAxis","ShareholdingPatternOtherForeignShareholders","xbrli:stringItemType",0,"xbrldt:dimensionItem",0,"duration","true","true"]
["in-bse-shp","DetailsOfSharesHeldByOtherForeignShareholdersLineItems","Details of shares held by other foreign shareholders [Line items]",null,2,"in-bse-shp_DetailsOfSharesHeldByOtherForeignShareholdersLineItems","DetailsOfSharesHeldByOtherForeignShareholdersAbstract","DetailsOfSharesHeldByOtherForeignShareholdersLineItems","ShareholdingPatternOtherForeignShareholders","xbrli:stringItemType",0,"xbrli:item",0,"duration","true","true"]
["in-bse-shp","CategoryOfOtherForeignShareholders","Category of other foreign shareholders",null,1,"in-bse-shp_CategoryOfOtherForeignShareholders","DetailsOfSharesHeldByOtherForeignShareholdersLineItems","CategoryOfOtherForeignShareholders","ShareholdingPatternOtherForeignShareholders","in-bse-shp-types:CategoryOfForeignShareholders",0,"xbrli:item",0,"duration","true","true"]
[]
["in-bse-shp","PermanentAccountNumberOfShareholder","Permanent account number of shareholder",null,3,"in-bse-shp_PermenantAccountNumberOfShareholder","DetailsOfSharesHeldByOtherForeignShareholdersLineItems","PermenantAccountNumberOfShareholder","ShareholdingPatternOtherForeignShareholders","xbrli:PermenantAccountNumberOfShareholder",0,"xbrli:item",0,"duration","false","true"]
["in-bse-shp","NumberOfFullyPaidUpEquityShares","Number of fully paid up equity shares",null,4,"in-bse-shp_NumberOfFullyPaidUpEquityShares","DetailsOfSharesHeldByOtherForeignShareholdersLineItems","NumberOfFullyPaidUpEquityShares","ShareholdingPatternOtherForeignShareholders","xbrli:sharesItemType",0,"xbrli:item",0,"instant","false","true"]
["in-bse-shp","NumberOfPartlyPaidUpEquityShares","Number of partly paid-up equity shares",null,5,"in-bse-shp_NumberOfPartlyPaidUpEquityShares","DetailsOfSharesHeldByOtherForeignShareholdersLineItems","NumberOfPartlyPaidUpEquityShares","ShareholdingPatternOtherForeignShareholders","xbrli:sharesItemType",0,"xbrli:item",0,"instant","false","true"]
["in-bse-shp","NumberOfSharesUnderlyingOutstandingDepositoryReceipts","Number of shares underlying outstanding depository receipts",null,6,"in-bse-shp_NumberOfSharesUnderlyingOutstandingDepositoryReceipts","DetailsOfSharesHeldByOtherForeignShareholdersLineItems","NumberOfSharesUnderlyingOutstandingDepositoryReceipts","ShareholdingPatternOtherForeignShareholders","xbrli:sharesItemType",0,"xbrli:item",0,"instant","false","true"]
["in-bse-shp","NumberOfVotingRightsHeldInEachClassOfSecuritiesAbstract","Number of voting rights held in each class of securities [Abstract]",null,9,"in-bse-shp_NumberOfVotingRightsHeldInEachClassOfSecuritiesAbstract","DetailsOfSharesHeldByOtherForeignShareholdersLineItems","NumberOfVotingRightsHeldInEachClassOfSecuritiesAbstract","ShareholdingPatternOtherForeignShareholders","xbrli:stringItemType",0,"xbrli:item",0,"duration","true","true"]
["in-bse-shp","NumberOfVotingRightsHeldBySameClassOfSecurities","Number of voting rights held by same class of securities",null,1,"in-bse-shp_NumberOfVotingRightsHeldBySameClassOfSecurities","NumberOfVotingRightsHeldInEachClassOfSecuritiesAbstract","NumberOfVotingRightsHeldBySameClassOfSecurities","ShareholdingPatternOtherForeignShareholders","xbrli:decimalItemType",0,"xbrli:item",0,"instant","false","true"]
["in-bse-shp","NumberOfVotingRightsHeldByDifferentialVotingRights","Number of voting rights held by differential voting rights",null,2,"in-bse-shp_NumberOfVotingRightsHeldByDifferentialVotingRights","NumberOfVotingRightsHeldInEachClassOfSecuritiesAbstract","NumberOfVotingRightsHeldByDifferentialVotingRights","ShareholdingPatternOtherForeignShareholders","xbrli:decimalItemType",0,"xbrli:item",0,"instant","false","true"]
["in-bse-shp","NumberOfVotingRights","Total number of voting rights",null,3,"in-bse-shp_NumberOfVotingRights","NumberOfVotingRightsHeldInEachClassOfSecuritiesAbstract","NumberOfVotingRights","ShareholdingPatternOtherForeignShareholders","xbrli:decimalItemType",0,"xbrli:item",0,"instant","false","true"]
["in-bse-shp","NumberOfSharesUnderlyingOutstandingConvertibleSecurities","Number of shares underlying outstanding convertible securities",null,10,"in-bse-shp_NumberOfSharesUnderlyingOutstandingConvertibleSecurities","DetailsOfSharesHeldByOtherForeignShareholdersLineItems","NumberOfSharesUnderlyingOutstandingConvertibleSecurities","ShareholdingPatternOtherForeignShareholders","xbrli:sharesItemType",0,"xbrli:item",0,"instant","false","true"]
["in-bse-shp","DetailsOfTheLockedInSharesAbstract","Details of the locked-in-shares [Abstract]",null,14,"in-bse-shp_DetailsOfTheLockedInSharesAbstract","DetailsOfSharesHeldByOtherForeignShareholdersLineItems","DetailsOfTheLockedInSharesAbstract","ShareholdingPatternOtherForeignShareholders","xbrli:stringItemType",0,"xbrli:item",0,"duration","true","true"]
["in-bse-shp","NumberOfTheLockedInShares","Number of the locked-in-shares ",null,1,"in-bse-shp_NumberOfTheLockedInShares","DetailsOfTheLockedInSharesAbstract","NumberOfTheLockedInShares","ShareholdingPatternOtherForeignShareholders","xbrli:sharesItemType",0,"xbrli:item",0,"instant","false","true"]
["in-bse-shp","LockedInSharesAsAPercentageOfTotalNumberOfShares","Locked-in-shares as a percentage of total number of shares",null,2,"in-bse-shp_LockedInSharesAsAPercentageOfTotalNumberOfShares","DetailsOfTheLockedInSharesAbstract","LockedInSharesAsAPercentageOfTotalNumberOfShares","ShareholdingPatternOtherForeignShareholders","num:percentItemType",0,"xbrli:item",0,"instant","false","true"]
["in-bse-shp","NumberOfSharesPledgedOrOtherwiseEncumberedAbstract","Number of Shares pledged or otherwise encumbered [Abstract]",null,15,"in-bse-shp_NumberOfSharesPledgedOrOtherwiseEncumberedAbstract","DetailsOfSharesHeldByOtherForeignShareholdersLineItems","NumberOfSharesPledgedOrOtherwiseEncumberedAbstract","ShareholdingPatternOtherForeignShareholders","xbrli:stringItemType",0,"xbrli:item",0,"duration","true","true"]
["in-bse-shp","PledgedOrEncumberedNumberOfShares","Pledged or encumbered - number of shares",null,1,"in-bse-shp_PledgedOrEncumberedNumberOfShares","NumberOfSharesPledgedOrOtherwiseEncumberedAbstract","PledgedOrEncumberedNumberOfShares","ShareholdingPatternOtherForeignShareholders","xbrli:sharesItemType",0,"xbrli:item",0,"instant","false","true"]
["in-bse-shp","PledgedOrEncumberedSharesHeldAsPercentageOfTotalNumberOfShares","Pledged or encumbered shares held as percentage of total number of shares",null,2,"in-bse-shp_PledgedOrEncumberedSharesHeldAsPercentageOfTotalNumberOfShares","NumberOfSharesPledgedOrOtherwiseEncumberedAbstract","PledgedOrEncumberedSharesHeldAsPercentageOfTotalNumberOfShares","ShareholdingPatternOtherForeignShareholders","num:percentItemType",0,"xbrli:item",0,"instant","false","true"]
["in-bse-shp","NumberOfEquitySharesHeldInDematerializedForm","Number of equity shares held in dematerialized form",null,16,"in-bse-shp_NumberOfEquitySharesHeldInDematerializedForm","DetailsOfSharesHeldByOtherForeignShareholdersLineItems","NumberOfEquitySharesHeldInDematerializedForm","ShareholdingPatternOtherForeignShareholders","xbrli:sharesItemType",0,"xbrli:item",0,"instant","false","true"]
["in-bse-shp","DetailsOfSharesHeldByMutualFundsOrUtiAbstract","Details of shares held by mutual funds or uti [Abstract]",null,null,"in-bse-shp_DetailsOfSharesHeldByMutualFundsOrUtiAbstract",null,null,"ShareholdingPatternMutualFundsOrUti","xbrli:stringItemType",0,"xbrli:item",0,"duration","true","true"]
["in-bse-shp","DetailsOfSharesHeldByMutualFundsOrUtiTable","Details of shares held by mutual funds or uti [Table]",null,1,"in-bse-shp_DetailsOfSharesHeldByMutualFundsOrUtiTable","DetailsOfSharesHeldByMutualFundsOrUtiAbstract","DetailsOfSharesHeldByMutualFundsOrUtiTable","ShareholdingPatternMutualFundsOrUti","xbrli:stringItemType",0,"xbrldt:hypercubeItem",0,"duration","true","true"]
["in-bse-shp","DetailsOfSharesHeldByMutualFundsOrUtiAxis","Details of shares held by mutual funds or uti [Axis]",null,1,"in-bse-shp_DetailsOfSharesHeldByMutualFundsOrUtiAxis","DetailsOfSharesHeldByMutualFundsOrUtiTable","DetailsOfSharesHeldByMutualFundsOrUtiAxis","ShareholdingPatternMutualFundsOrUti","xbrli:stringItemType",0,"xbrldt:dimensionItem",0,"duration","true","true"]
["in-bse-shp","DetailsOfSharesHeldByMutualFundsOrUtiLineItems","Details of shares held by mutual funds or uti [Line items]",null,2,"in-bse-shp_DetailsOfSharesHeldByMutualFundsOrUtiLineItems","DetailsOfSharesHeldByMutualFundsOrUtiAbstract","DetailsOfSharesHeldByMutualFundsOrUtiLineItems","ShareholdingPatternMutualFundsOrUti","xbrli:stringItemType",0,"xbrli:item",0,"duration","true","true"]
[]
["in-bse-shp","PermanentAccountNumberOfShareholder","Permanent account number of shareholder",null,2,"in-bse-shp_PermenantAccountNumberOfShareholder","DetailsOfSharesHeldByMutualFundsOrUtiLineItems","PermenantAccountNumberOfShareholder","ShareholdingPatternMutualFundsOrUti","xbrli:PermenantAccountNumberOfShareholder",0,"xbrli:item",0,"duration","false","true"]
["in-bse-shp","NumberOfFullyPaidUpEquityShares","Number of fully paid up equity shares",null,3,"in-bse-shp_NumberOfFullyPaidUpEquityShares","DetailsOfSharesHeldByMutualFundsOrUtiLineItems","NumberOfFullyPaidUpEquityShares","ShareholdingPatternMutualFundsOrUti","xbrli:sharesItemType",0,"xbrli:item",0,"instant","false","true"]
["in-bse-shp","NumberOfPartlyPaidUpEquityShares","Number of partly paid-up equity shares",null,4,"in-bse-shp_NumberOfPartlyPaidUpEquityShares","DetailsOfSharesHeldByMutualFundsOrUtiLineItems","NumberOfPartlyPaidUpEquityShares","ShareholdingPatternMutualFundsOrUti","xbrli:sharesItemType",0,"xbrli:item",0,"instant","false","true"]
["in-bse-shp","NumberOfSharesUnderlyingOutstandingDepositoryReceipts","Number of shares underlying outstanding depository receipts",null,5,"in-bse-shp_NumberOfSharesUnderlyingOutstandingDepositoryReceipts","DetailsOfSharesHeldByMutualFundsOrUtiLineItems","NumberOfSharesUnderlyingOutstandingDepositoryReceipts","ShareholdingPatternMutualFundsOrUti","xbrli:sharesItemType",0,"xbrli:item",0,"instant","false","true"]
["in-bse-shp","NumberOfVotingRightsHeldInEachClassOfSecuritiesAbstract","Number of voting rights held in each class of securities [Abstract]",null,8,"in-bse-shp_NumberOfVotingRightsHeldInEachClassOfSecuritiesAbstract","DetailsOfSharesHeldByMutualFundsOrUtiLineItems","NumberOfVotingRightsHeldInEachClassOfSecuritiesAbstract","ShareholdingPatternMutualFundsOrUti","xbrli:stringItemType",0,"xbrli:item",0,"duration","true","true"]
["in-bse-shp","NumberOfVotingRightsHeldBySameClassOfSecurities","Number of voting rights held by same class of securities",null,1,"in-bse-shp_NumberOfVotingRightsHeldBySameClassOfSecurities","NumberOfVotingRightsHeldInEachClassOfSecuritiesAbstract","NumberOfVotingRightsHeldBySameClassOfSecurities","ShareholdingPatternMutualFundsOrUti","xbrli:decimalItemType",0,"xbrli:item",0,"instant","false","true"]
["in-bse-shp","NumberOfVotingRightsHeldByDifferentialVotingRights","Number of voting rights held by differential voting rights",null,2,"in-bse-shp_NumberOfVotingRightsHeldByDifferentialVotingRights","NumberOfVotingRightsHeldInEachClassOfSecuritiesAbstract","NumberOfVotingRightsHeldByDifferentialVotingRights","ShareholdingPatternMutualFundsOrUti","xbrli:decimalItemType",0,"xbrli:item",0,"instant","false","true"]
["in-bse-shp","NumberOfVotingRights","Total number of voting rights",null,3,"in-bse-shp_NumberOfVotingRights","NumberOfVotingRightsHeldInEachClassOfSecuritiesAbstract","NumberOfVotingRights","ShareholdingPatternMutualFundsOrUti","xbrli:decimalItemType",0,"xbrli:item",0,"instant","false","true"]
["in-bse-shp","NumberOfSharesUnderlyingOutstandingConvertibleSecurities","Number of shares underlying outstanding convertible securities",null,9,"in-bse-shp_NumberOfSharesUnderlyingOutstandingConvertibleSecurities","DetailsOfSharesHeldByMutualFundsOrUtiLineItems","NumberOfSharesUnderlyingOutstandingConvertibleSecurities","ShareholdingPatternMutualFundsOrUti","xbrli:sharesItemType",0,"xbrli:item",0,"instant","false","true"]
["in-bse-shp","DetailsOfTheLockedInSharesAbstract","Details of the locked-in-shares [Abstract]",null,13,"in-bse-shp_DetailsOfTheLockedInSharesAbstract","DetailsOfSharesHeldByMutualFundsOrUtiLineItems","DetailsOfTheLockedInSharesAbstract","ShareholdingPatternMutualFundsOrUti","xbrli:stringItemType",0,"xbrli:item",0,"duration","true","true"]
["in-bse-shp","NumberOfTheLockedInShares","Number of the locked-in-shares ",null,1,"in-bse-shp_NumberOfTheLockedInShares","DetailsOfTheLockedInSharesAbstract","NumberOfTheLockedInShares","ShareholdingPatternMutualFundsOrUti","xbrli:sharesItemType",0,"xbrli:item",0,"instant","false","true"]
["in-bse-shp","LockedInSharesAsAPercentageOfTotalNumberOfShares","Locked-in-shares as a percentage of total number of shares",null,2,"in-bse-shp_LockedInSharesAsAPercentageOfTotalNumberOfShares","DetailsOfTheLockedInSharesAbstract","LockedInSharesAsAPercentageOfTotalNumberOfShares","ShareholdingPatternMutualFundsOrUti","num:percentItemType",0,"xbrli:item",0,"instant","false","true"]
["in-bse-shp","NumberOfSharesPledgedOrOtherwiseEncumberedAbstract","Number of Shares pledged or otherwise encumbered [Abstract]",null,14,"in-bse-shp_NumberOfSharesPledgedOrOtherwiseEncumberedAbstract","DetailsOfSharesHeldByMutualFundsOrUtiLineItems","NumberOfSharesPledgedOrOtherwiseEncumberedAbstract","ShareholdingPatternMutualFundsOrUti","xbrli:stringItemType",0,"xbrli:item",0,"duration","true","true"]
["in-bse-shp","PledgedOrEncumberedNumberOfShares","Pledged or encumbered - number of shares",null,1,"in-bse-shp_PledgedOrEncumberedNumberOfShares","NumberOfSharesPledgedOrOtherwiseEncumberedAbstract","PledgedOrEncumberedNumberOfShares","ShareholdingPatternMutualFundsOrUti","xbrli:sharesItemType",0,"xbrli:item",0,"instant","false","true"]
["in-bse-shp","PledgedOrEncumberedSharesHeldAsPercentageOfTotalNumberOfShares","Pledged or encumbered shares held as percentage of total number of shares",null,2,"in-bse-shp_PledgedOrEncumberedSharesHeldAsPercentageOfTotalNumberOfShares","NumberOfSharesPledgedOrOtherwiseEncumberedAbstract","PledgedOrEncumberedSharesHeldAsPercentageOfTotalNumberOfShares","ShareholdingPatternMutualFundsOrUti","num:percentItemType",0,"xbrli:item",0,"instant","false","true"]
["in-bse-shp","NumberOfEquitySharesHeldInDematerializedForm","Number of equity shares held in dematerialized form",null,15,"in-bse-shp_NumberOfEquitySharesHeldInDematerializedForm","DetailsOfSharesHeldByMutualFundsOrUtiLineItems","NumberOfEquitySharesHeldInDematerializedForm","ShareholdingPatternMutualFundsOrUti","xbrli:sharesItemType",0,"xbrli:item",0,"instant","false","true"]
["in-bse-shp","DetailsOfSharesHeldByOtherInstitutionsAbstract","Details of shares held by other institutions [Abstract]",null,null,"in-bse-shp_DetailsOfSharesHeldByOtherInstitutionsAbstract",null,null,"ShareholdingPatternOtherInstitutions","xbrli:stringItemType",0,"xbrli:item",0,"duration","true","true"]
["in-bse-shp","DetailsOfSharesHeldByOtherInstitutionsTable","Details of shares held by other institutions [Table]",null,1,"in-bse-shp_DetailsOfSharesHeldByOtherInstitutionsTable","DetailsOfSharesHeldByOtherInstitutionsAbstract","DetailsOfSharesHeldByOtherInstitutionsTable","ShareholdingPatternOtherInstitutions","xbrli:stringItemType",0,"xbrldt:hypercubeItem",0,"duration","true","true"]
["in-bse-shp","DetailsOfSharesHeldByOtherInstitutionsAxis","Details of shares held by other institutions [Axis]",null,1,"in-bse-shp_DetailsOfSharesHeldByOtherInstitutionsAxis","DetailsOfSharesHeldByOtherInstitutionsTable","DetailsOfSharesHeldByOtherInstitutionsAxis","ShareholdingPatternOtherInstitutions","xbrli:stringItemType",0,"xbrldt:dimensionItem",0,"duration","true","true"]
["in-bse-shp","DetailsOfSharesHeldByOtherInstitutionsLineItems","Details of shares held by other institutions [Line items]",null,2,"in-bse-shp_DetailsOfSharesHeldByOtherInstitutionsLineItems","DetailsOfSharesHeldByOtherInstitutionsAbstract","DetailsOfSharesHeldByOtherInstitutionsLineItems","ShareholdingPatternOtherInstitutions","xbrli:stringItemType",0,"xbrli:item",0,"duration","true","true"]
["in-bse-shp","CategoryOfOtherInstitutions","Category of other institutions",null,1,"in-bse-shp_CategoryOfOtherInstitutions","DetailsOfSharesHeldByOtherInstitutionsLineItems","CategoryOfOtherInstitutions","ShareholdingPatternOtherInstitutions","in-bse-shp-types:CategoryOfInstitutionShareholders",0,"xbrli:item",0,"duration","true","true"]
[]
["in-bse-shp","PermanentAccountNumberOfShareholder","Permanent account number of shareholder",null,3,"in-bse-shp_PermenantAccountNumberOfShareholder","DetailsOfSharesHeldByOtherInstitutionsLineItems","PermenantAccountNumberOfShareholder","ShareholdingPatternOtherInstitutions","xbrli:PermenantAccountNumberOfShareholder",0,"xbrli:item",0,"duration","false","true"]
["in-bse-shp","NumberOfFullyPaidUpEquityShares","Number of fully paid up equity shares",null,4,"in-bse-shp_NumberOfFullyPaidUpEquityShares","DetailsOfSharesHeldByOtherInstitutionsLineItems","NumberOfFullyPaidUpEquityShares","ShareholdingPatternOtherInstitutions","xbrli:sharesItemType",0,"xbrli:item",0,"instant","false","true"]
["in-bse-shp","NumberOfPartlyPaidUpEquityShares","Number of partly paid-up equity shares",null,5,"in-bse-shp_NumberOfPartlyPaidUpEquityShares","DetailsOfSharesHeldByOtherInstitutionsLineItems","NumberOfPartlyPaidUpEquityShares","ShareholdingPatternOtherInstitutions","xbrli:sharesItemType",0,"xbrli:item",0,"instant","false","true"]
["in-bse-shp","NumberOfSharesUnderlyingOutstandingDepositoryReceipts","Number of shares underlying outstanding depository receipts",null,6,"in-bse-shp_NumberOfSharesUnderlyingOutstandingDepositoryReceipts","DetailsOfSharesHeldByOtherInstitutionsLineItems","NumberOfSharesUnderlyingOutstandingDepositoryReceipts","ShareholdingPatternOtherInstitutions","xbrli:sharesItemType",0,"xbrli:item",0,"instant","false","true"]
["in-bse-shp","NumberOfVotingRightsHeldInEachClassOfSecuritiesAbstract","Number of voting rights held in each class of securities [Abstract]",null,9,"in-bse-shp_NumberOfVotingRightsHeldInEachClassOfSecuritiesAbstract","DetailsOfSharesHeldByOtherInstitutionsLineItems","NumberOfVotingRightsHeldInEachClassOfSecuritiesAbstract","ShareholdingPatternOtherInstitutions","xbrli:stringItemType",0,"xbrli:item",0,"duration","true","true"]
["in-bse-shp","NumberOfVotingRightsHeldBySameClassOfSecurities","Number of voting rights held by same class of securities",null,1,"in-bse-shp_NumberOfVotingRightsHeldBySameClassOfSecurities","NumberOfVotingRightsHeldInEachClassOfSecuritiesAbstract","NumberOfVotingRightsHeldBySameClassOfSecurities","ShareholdingPatternOtherInstitutions","xbrli:decimalItemType",0,"xbrli:item",0,"instant","false","true"]
["in-bse-shp","NumberOfVotingRightsHeldByDifferentialVotingRights","Number of voting rights held by differential voting rights",null,2,"in-bse-shp_NumberOfVotingRightsHeldByDifferentialVotingRights","NumberOfVotingRightsHeldInEachClassOfSecuritiesAbstract","NumberOfVotingRightsHeldByDifferentialVotingRights","ShareholdingPatternOtherInstitutions","xbrli:decimalItemType",0,"xbrli:item",0,"instant","false","true"]
["in-bse-shp","NumberOfVotingRights","Total number of voting rights",null,3,"in-bse-shp_NumberOfVotingRights","NumberOfVotingRightsHeldInEachClassOfSecuritiesAbstract","NumberOfVotingRights","ShareholdingPatternOtherInstitutions","xbrli:decimalItemType",0,"xbrli:item",0,"instant","false","true"]
["in-bse-shp","NumberOfSharesUnderlyingOutstandingConvertibleSecurities","Number of shares underlying outstanding convertible securities",null,10,"in-bse-shp_NumberOfSharesUnderlyingOutstandingConvertibleSecurities","DetailsOfSharesHeldByOtherInstitutionsLineItems","NumberOfSharesUnderlyingOutstandingConvertibleSecurities","ShareholdingPatternOtherInstitutions","xbrli:sharesItemType",0,"xbrli:item",0,"instant","false","true"]
["in-bse-shp","DetailsOfTheLockedInSharesAbstract","Details of the locked-in-shares [Abstract]",null,14,"in-bse-shp_DetailsOfTheLockedInSharesAbstract","DetailsOfSharesHeldByOtherInstitutionsLineItems","DetailsOfTheLockedInSharesAbstract","ShareholdingPatternOtherInstitutions","xbrli:stringItemType",0,"xbrli:item",0,"duration","true","true"]
["in-bse-shp","NumberOfTheLockedInShares","Number of the locked-in-shares ",null,1,"in-bse-shp_NumberOfTheLockedInShares","DetailsOfTheLockedInSharesAbstract","NumberOfTheLockedInShares","ShareholdingPatternOtherInstitutions","xbrli:sharesItemType",0,"xbrli:item",0,"instant","false","true"]
["in-bse-shp","LockedInSharesAsAPercentageOfTotalNumberOfShares","Locked-in-shares as a percentage of total number of shares",null,2,"in-bse-shp_LockedInSharesAsAPercentageOfTotalNumberOfShares","DetailsOfTheLockedInSharesAbstract","LockedInSharesAsAPercentageOfTotalNumberOfShares","ShareholdingPatternOtherInstitutions","num:percentItemType",0,"xbrli:item",0,"instant","false","true"]
["in-bse-shp","NumberOfSharesPledgedOrOtherwiseEncumberedAbstract","Number of Shares pledged or otherwise encumbered [Abstract]",null,15,"in-bse-shp_NumberOfSharesPledgedOrOtherwiseEncumberedAbstract","DetailsOfSharesHeldByOtherInstitutionsLineItems","NumberOfSharesPledgedOrOtherwiseEncumberedAbstract","ShareholdingPatternOtherInstitutions","xbrli:stringItemType",0,"xbrli:item",0,"duration","true","true"]
["in-bse-shp","PledgedOrEncumberedNumberOfShares","Pledged or encumbered - number of shares",null,1,"in-bse-shp_PledgedOrEncumberedNumberOfShares","NumberOfSharesPledgedOrOtherwiseEncumberedAbstract","PledgedOrEncumberedNumberOfShares","ShareholdingPatternOtherInstitutions","xbrli:sharesItemType",0,"xbrli:item",0,"instant","false","true"]
["in-bse-shp","PledgedOrEncumberedSharesHeldAsPercentageOfTotalNumberOfShares","Pledged or encumbered shares held as percentage of total number of shares",null,2,"in-bse-shp_PledgedOrEncumberedSharesHeldAsPercentageOfTotalNumberOfShares","NumberOfSharesPledgedOrOtherwiseEncumberedAbstract","PledgedOrEncumberedSharesHeldAsPercentageOfTotalNumberOfShares","ShareholdingPatternOtherInstitutions","num:percentItemType",0,"xbrli:item",0,"instant","false","true"]
["in-bse-shp","NumberOfEquitySharesHeldInDematerializedForm","Number of equity shares held in dematerialized form",null,16,"in-bse-shp_NumberOfEquitySharesHeldInDematerializedForm","DetailsOfSharesHeldByOtherInstitutionsLineItems","NumberOfEquitySharesHeldInDematerializedForm","ShareholdingPatternOtherInstitutions","xbrli:sharesItemType",0,"xbrli:item",0,"instant","false","true"]
["in-bse-shp","DetailsOfSharesHeldByOverseasDepositoriesAbstract","Details of shares held by overseas depositories [Abstract]",null,null,"in-bse-shp_DetailsOfSharesHeldByOverseasDepositoriesAbstract",null,null,"ShareholdingPatternOverseasDepositories","xbrli:stringItemType",0,"xbrli:item",0,"duration","true","true"]
["in-bse-shp","DetailsOfSharesHeldByOverseasDepositoriesTable","Details of shares held by overseas depositories [Table]",null,1,"in-bse-shp_DetailsOfSharesHeldByOverseasDepositoriesTable","DetailsOfSharesHeldByOverseasDepositoriesAbstract","DetailsOfSharesHeldByOverseasDepositoriesTable","ShareholdingPatternOverseasDepositories","xbrli:stringItemType",0,"xbrldt:hypercubeItem",0,"duration","true","true"]
["in-bse-shp","DetailsOfSharesHeldByOverseasDepositoriesAxis","Details of shares held by overseas depositories [Axis]",null,1,"in-bse-shp_DetailsOfSharesHeldByOverseasDepositoriesAxis","DetailsOfSharesHeldByOverseasDepositoriesTable","DetailsOfSharesHeldByOverseasDepositoriesAxis","ShareholdingPatternOverseasDepositories","xbrli:stringItemType",0,"xbrldt:dimensionItem",0,"duration","true","true"]
["in-bse-shp","DetailsOfSharesHeldByOverseasDepositoriesLineItems","Details of shares held by overseas depositories [Line items]",null,2,"in-bse-shp_DetailsOfSharesHeldByOverseasDepositoriesLineItems","DetailsOfSharesHeldByOverseasDepositoriesAbstract","DetailsOfSharesHeldByOverseasDepositoriesLineItems","ShareholdingPatternOverseasDepositories","xbrli:stringItemType",0,"xbrli:item",0,"duration","true","true"]
[]
["in-bse-shp","PermanentAccountNumberOfShareholder","Permanent account number of shareholder",null,2,"in-bse-shp_PermenantAccountNumberOfShareholder","DetailsOfSharesHeldByOverseasDepositoriesLineItems","PermenantAccountNumberOfShareholder","ShareholdingPatternOverseasDepositories","xbrli:PermenantAccountNumberOfShareholder",0,"xbrli:item",0,"duration","false","true"]
["in-bse-shp","NumberOfFullyPaidUpEquityShares","Number of fully paid up equity shares",null,3,"in-bse-shp_NumberOfFullyPaidUpEquityShares","DetailsOfSharesHeldByOverseasDepositoriesLineItems","NumberOfFullyPaidUpEquityShares","ShareholdingPatternOverseasDepositories","xbrli:sharesItemType",0,"xbrli:item",0,"instant","false","true"]
["in-bse-shp","NumberOfPartlyPaidUpEquityShares","Number of partly paid-up equity shares",null,4,"in-bse-shp_NumberOfPartlyPaidUpEquityShares","DetailsOfSharesHeldByOverseasDepositoriesLineItems","NumberOfPartlyPaidUpEquityShares","ShareholdingPatternOverseasDepositories","xbrli:sharesItemType",0,"xbrli:item",0,"instant","false","true"]
["in-bse-shp","NumberOfSharesUnderlyingOutstandingDepositoryReceipts","Number of shares underlying outstanding depository receipts",null,5,"in-bse-shp_NumberOfSharesUnderlyingOutstandingDepositoryReceipts","DetailsOfSharesHeldByOverseasDepositoriesLineItems","NumberOfSharesUnderlyingOutstandingDepositoryReceipts","ShareholdingPatternOverseasDepositories","xbrli:sharesItemType",0,"xbrli:item",0,"instant","false","true"]
["in-bse-shp","NumberOfVotingRightsHeldInEachClassOfSecuritiesAbstract","Number of voting rights held in each class of securities [Abstract]",null,8,"in-bse-shp_NumberOfVotingRightsHeldInEachClassOfSecuritiesAbstract","DetailsOfSharesHeldByOverseasDepositoriesLineItems","NumberOfVotingRightsHeldInEachClassOfSecuritiesAbstract","ShareholdingPatternOverseasDepositories","xbrli:stringItemType",0,"xbrli:item",0,"duration","true","true"]
["in-bse-shp","NumberOfVotingRightsHeldBySameClassOfSecurities","Number of voting rights held by same class of securities",null,1,"in-bse-shp_NumberOfVotingRightsHeldBySameClassOfSecurities","NumberOfVotingRightsHeldInEachClassOfSecuritiesAbstract","NumberOfVotingRightsHeldBySameClassOfSecurities","ShareholdingPatternOverseasDepositories","xbrli:decimalItemType",0,"xbrli:item",0,"instant","false","true"]
["in-bse-shp","NumberOfVotingRightsHeldByDifferentialVotingRights","Number of voting rights held by differential voting rights",null,2,"in-bse-shp_NumberOfVotingRightsHeldByDifferentialVotingRights","NumberOfVotingRightsHeldInEachClassOfSecuritiesAbstract","NumberOfVotingRightsHeldByDifferentialVotingRights","ShareholdingPatternOverseasDepositories","xbrli:decimalItemType",0,"xbrli:item",0,"instant","false","true"]
["in-bse-shp","NumberOfVotingRights","Total number of voting rights",null,3,"in-bse-shp_NumberOfVotingRights","NumberOfVotingRightsHeldInEachClassOfSecuritiesAbstract","NumberOfVotingRights","ShareholdingPatternOverseasDepositories","xbrli:decimalItemType",0,"xbrli:item",0,"instant","false","true"]
["in-bse-shp","NumberOfSharesUnderlyingOutstandingConvertibleSecurities","Number of shares underlying outstanding convertible securities",null,9,"in-bse-shp_NumberOfSharesUnderlyingOutstandingConvertibleSecurities","DetailsOfSharesHeldByOverseasDepositoriesLineItems","NumberOfSharesUnderlyingOutstandingConvertibleSecurities","ShareholdingPatternOverseasDepositories","xbrli:sharesItemType",0,"xbrli:item",0,"instant","false","true"]
["in-bse-shp","DetailsOfTheLockedInSharesAbstract","Details of the locked-in-shares [Abstract]",null,13,"in-bse-shp_DetailsOfTheLockedInSharesAbstract","DetailsOfSharesHeldByOverseasDepositoriesLineItems","DetailsOfTheLockedInSharesAbstract","ShareholdingPatternOverseasDepositories","xbrli:stringItemType",0,"xbrli:item",0,"duration","true","true"]
["in-bse-shp","NumberOfTheLockedInShares","Number of the locked-in-shares ",null,1,"in-bse-shp_NumberOfTheLockedInShares","DetailsOfTheLockedInSharesAbstract","NumberOfTheLockedInShares","ShareholdingPatternOverseasDepositories","xbrli:sharesItemType",0,"xbrli:item",0,"instant","false","true"]
["in-bse-shp","LockedInSharesAsAPercentageOfTotalNumberOfShares","Locked-in-shares as a percentage of total number of shares",null,2,"in-bse-shp_LockedInSharesAsAPercentageOfTotalNumberOfShares","DetailsOfTheLockedInSharesAbstract","LockedInSharesAsAPercentageOfTotalNumberOfShares","ShareholdingPatternOverseasDepositories","num:percentItemType",0,"xbrli:item",0,"instant","false","true"]
["in-bse-shp","NumberOfSharesPledgedOrOtherwiseEncumberedAbstract","Number of Shares pledged or otherwise encumbered [Abstract]",null,14,"in-bse-shp_NumberOfSharesPledgedOrOtherwiseEncumberedAbstract","DetailsOfSharesHeldByOverseasDepositoriesLineItems","NumberOfSharesPledgedOrOtherwiseEncumberedAbstract","ShareholdingPatternOverseasDepositories","xbrli:stringItemType",0,"xbrli:item",0,"duration","true","true"]
["in-bse-shp","PledgedOrEncumberedNumberOfShares","Pledged or encumbered - number of shares",null,1,"in-bse-shp_PledgedOrEncumberedNumberOfShares","NumberOfSharesPledgedOrOtherwiseEncumberedAbstract","PledgedOrEncumberedNumberOfShares","ShareholdingPatternOverseasDepositories","xbrli:sharesItemType",0,"xbrli:item",0,"instant","false","true"]
["in-bse-shp","PledgedOrEncumberedSharesHeldAsPercentageOfTotalNumberOfShares","Pledged or encumbered shares held as percentage of total number of shares",null,2,"in-bse-shp_PledgedOrEncumberedSharesHeldAsPercentageOfTotalNumberOfShares","NumberOfSharesPledgedOrOtherwiseEncumberedAbstract","PledgedOrEncumberedSharesHeldAsPercentageOfTotalNumberOfShares","ShareholdingPatternOverseasDepositories","num:percentItemType",0,"xbrli:item",0,"instant","false","true"]
["in-bse-shp","NumberOfEquitySharesHeldInDematerializedForm","Number of equity shares held in dematerialized form",null,15,"in-bse-shp_NumberOfEquitySharesHeldInDematerializedForm","DetailsOfSharesHeldByOverseasDepositoriesLineItems","NumberOfEquitySharesHeldInDematerializedForm","ShareholdingPatternOverseasDepositories","xbrli:sharesItemType",0,"xbrli:item",0,"instant","false","true"]
["in-bse-shp","DetailsOfSharesHeldByOtherNonInstitutionsAbstract","Details of shares held by other non-Institutions [Abstract]",null,null,"in-bse-shp_DetailsOfSharesHeldByOtherNonInstitutionsAbstract",null,null,"ShareholdingPatternOtherNonInstitutions","xbrli:stringItemType",0,"xbrli:item",0,"duration","true","true"]
["in-bse-shp","DetailsOfSharesHeldByOtherNonInstitutionsTable","Details of shares held by other non-Institutions [Table]",null,1,"in-bse-shp_DetailsOfSharesHeldByOtherNonInstitutionsTable","DetailsOfSharesHeldByOtherNonInstitutionsAbstract","DetailsOfSharesHeldByOtherNonInstitutionsTable","ShareholdingPatternOtherNonInstitutions","xbrli:stringItemType",0,"xbrldt:hypercubeItem",0,"duration","true","true"]
["in-bse-shp","DetailsOfSharesHeldByOtherNonInstitutionsAxis","Details of shares held by other non-Institutions [Axis]",null,1,"in-bse-shp_DetailsOfSharesHeldByOtherNonInstitutionsAxis","DetailsOfSharesHeldByOtherNonInstitutionsTable","DetailsOfSharesHeldByOtherNonInstitutionsAxis","ShareholdingPatternOtherNonInstitutions","xbrli:stringItemType",0,"xbrldt:dimensionItem",0,"duration","true","true"]
["in-bse-shp","DetailsOfSharesHeldByOtherNonInstitutionsLineItems","Details of shares held by other non-Institutions [Line items]",null,2,"in-bse-shp_DetailsOfSharesHeldByOtherNonInstitutionsLineItems","DetailsOfSharesHeldByOtherNonInstitutionsAbstract","DetailsOfSharesHeldByOtherNonInstitutionsLineItems","ShareholdingPatternOtherNonInstitutions","xbrli:stringItemType",0,"xbrli:item",0,"duration","true","true"]
["in-bse-shp","CategoryOfOtherNonInstitutions","Category of other non-institutions",null,1,"in-bse-shp_CategoryOfOtherNonInstitutions","DetailsOfSharesHeldByOtherNonInstitutionsLineItems","CategoryOfOtherNonInstitutions","ShareholdingPatternOtherNonInstitutions","in-bse-shp-types:CategoryOfNonInstitutionsShareholders",0,"xbrli:item",0,"duration","true","true"]
[]
["in-bse-shp","PermanentAccountNumberOfShareholder","Permanent account number of shareholder",null,3,"in-bse-shp_PermenantAccountNumberOfShareholder","DetailsOfSharesHeldByOtherNonInstitutionsLineItems","PermenantAccountNumberOfShareholder","ShareholdingPatternOtherNonInstitutions","xbrli:PermenantAccountNumberOfShareholder",0,"xbrli:item",0,"duration","false","true"]
["in-bse-shp","NumberOfShareholders","Number of shareholders",null,4,"in-bse-shp_NumberOfShareholders","DetailsOfSharesHeldByOtherNonInstitutionsLineItems","NumberOfShareholders","ShareholdingPatternOtherNonInstitutions","xbrli:decimalItemType",0,"xbrli:item",0,"instant","false","true"]
["in-bse-shp","NumberOfFullyPaidUpEquityShares","Number of fully paid up equity shares",null,5,"in-bse-shp_NumberOfFullyPaidUpEquityShares","DetailsOfSharesHeldByOtherNonInstitutionsLineItems","NumberOfFullyPaidUpEquityShares","ShareholdingPatternOtherNonInstitutions","xbrli:sharesItemType",0,"xbrli:item",0,"instant","false","true"]
["in-bse-shp","NumberOfPartlyPaidUpEquityShares","Number of partly paid-up equity shares",null,6,"in-bse-shp_NumberOfPartlyPaidUpEquityShares","DetailsOfSharesHeldByOtherNonInstitutionsLineItems","NumberOfPartlyPaidUpEquityShares","ShareholdingPatternOtherNonInstitutions","xbrli:sharesItemType",0,"xbrli:item",0,"instant","false","true"]
["in-bse-shp","NumberOfSharesUnderlyingOutstandingDepositoryReceipts","Number of shares underlying outstanding depository receipts",null,7,"in-bse-shp_NumberOfSharesUnderlyingOutstandingDepositoryReceipts","DetailsOfSharesHeldByOtherNonInstitutionsLineItems","NumberOfSharesUnderlyingOutstandingDepositoryReceipts","ShareholdingPatternOtherNonInstitutions","xbrli:sharesItemType",0,"xbrli:item",0,"instant","false","true"]
["in-bse-shp","NumberOfVotingRightsHeldInEachClassOfSecuritiesAbstract","Number of voting rights held in each class of securities [Abstract]",null,10,"in-bse-shp_NumberOfVotingRightsHeldInEachClassOfSecuritiesAbstract","DetailsOfSharesHeldByOtherNonInstitutionsLineItems","NumberOfVotingRightsHeldInEachClassOfSecuritiesAbstract","ShareholdingPatternOtherNonInstitutions","xbrli:stringItemType",0,"xbrli:item",0,"duration","true","true"]
["in-bse-shp","NumberOfVotingRightsHeldBySameClassOfSecurities","Number of voting rights held by same class of securities",null,1,"in-bse-shp_NumberOfVotingRightsHeldBySameClassOfSecurities","NumberOfVotingRightsHeldInEachClassOfSecuritiesAbstract","NumberOfVotingRightsHeldBySameClassOfSecurities","ShareholdingPatternOtherNonInstitutions","xbrli:decimalItemType",0,"xbrli:item",0,"instant","false","true"]
["in-bse-shp","NumberOfVotingRightsHeldByDifferentialVotingRights","Number of voting rights held by differential voting rights",null,2,"in-bse-shp_NumberOfVotingRightsHeldByDifferentialVotingRights","NumberOfVotingRightsHeldInEachClassOfSecuritiesAbstract","NumberOfVotingRightsHeldByDifferentialVotingRights","ShareholdingPatternOtherNonInstitutions","xbrli:decimalItemType",0,"xbrli:item",0,"instant","false","true"]
["in-bse-shp","NumberOfSharesUnderlyingOutstandingConvertibleSecurities","Number of shares underlying outstanding convertible securities",null,11,"in-bse-shp_NumberOfSharesUnderlyingOutstandingConvertibleSecurities","DetailsOfSharesHeldByOtherNonInstitutionsLineItems","NumberOfSharesUnderlyingOutstandingConvertibleSecurities","ShareholdingPatternOtherNonInstitutions","xbrli:sharesItemType",0,"xbrli:item",0,"instant","false","true"]
["in-bse-shp","DetailsOfTheLockedInSharesAbstract","Details of the locked-in-shares [Abstract]",null,15,"in-bse-shp_DetailsOfTheLockedInSharesAbstract","DetailsOfSharesHeldByOtherNonInstitutionsLineItems","DetailsOfTheLockedInSharesAbstract","ShareholdingPatternOtherNonInstitutions","xbrli:stringItemType",0,"xbrli:item",0,"duration","true","true"]
["in-bse-shp","NumberOfTheLockedInShares","Number of the locked-in-shares ",null,1,"in-bse-shp_NumberOfTheLockedInShares","DetailsOfTheLockedInSharesAbstract","NumberOfTheLockedInShares","ShareholdingPatternOtherNonInstitutions","xbrli:sharesItemType",0,"xbrli:item",0,"instant","false","true"]
["in-bse-shp","LockedInSharesAsAPercentageOfTotalNumberOfShares","Locked-in-shares as a percentage of total number of shares",null,2,"in-bse-shp_LockedInSharesAsAPercentageOfTotalNumberOfShares","DetailsOfTheLockedInSharesAbstract","LockedInSharesAsAPercentageOfTotalNumberOfShares","ShareholdingPatternOtherNonInstitutions","num:percentItemType",0,"xbrli:item",0,"instant","false","true"]
["in-bse-shp","NumberOfSharesPledgedOrOtherwiseEncumberedAbstract","Number of Shares pledged or otherwise encumbered [Abstract]",null,16,"in-bse-shp_NumberOfSharesPledgedOrOtherwiseEncumberedAbstract","DetailsOfSharesHeldByOtherNonInstitutionsLineItems","NumberOfSharesPledgedOrOtherwiseEncumberedAbstract","ShareholdingPatternOtherNonInstitutions","xbrli:stringItemType",0,"xbrli:item",0,"duration","true","true"]
["in-bse-shp","PledgedOrEncumberedNumberOfShares","Pledged or encumbered - number of shares",null,1,"in-bse-shp_PledgedOrEncumberedNumberOfShares","NumberOfSharesPledgedOrOtherwiseEncumberedAbstract","PledgedOrEncumberedNumberOfShares","ShareholdingPatternOtherNonInstitutions","xbrli:sharesItemType",0,"xbrli:item",0,"instant","false","true"]
["in-bse-shp","PledgedOrEncumberedSharesHeldAsPercentageOfTotalNumberOfShares","Pledged or encumbered shares held as percentage of total number of shares",null,2,"in-bse-shp_PledgedOrEncumberedSharesHeldAsPercentageOfTotalNumberOfShares","NumberOfSharesPledgedOrOtherwiseEncumberedAbstract","PledgedOrEncumberedSharesHeldAsPercentageOfTotalNumberOfShares","ShareholdingPatternOtherNonInstitutions","num:percentItemType",0,"xbrli:item",0,"instant","false","true"]
["in-bse-shp","NumberOfEquitySharesHeldInDematerializedForm","Number of equity shares held in dematerialized form",null,17,"in-bse-shp_NumberOfEquitySharesHeldInDematerializedForm","DetailsOfSharesHeldByOtherNonInstitutionsLineItems","NumberOfEquitySharesHeldInDematerializedForm","ShareholdingPatternOtherNonInstitutions","xbrli:sharesItemType",0,"xbrli:item",0,"instant","false","true"]
["in-bse-shp","DetailsOfSharesHeldByCustodianOrDRHolderAbstract","Details of shares held by custodian or DR holder [Abstract]",null,null,"in-bse-shp_DetailsOfSharesHeldByCustodianOrDRHolderAbstract",null,null,"ShareholdingPatternCustodianOrDRHolder","xbrli:stringItemType",0,"xbrli:item",0,"duration","true","true"]
["in-bse-shp","DetailsOfSharesHeldByCustodianOrDRHolderTable","Details of shares held by custodian or DR holder [Table]",null,1,"in-bse-shp_DetailsOfSharesHeldByCustodianOrDRHolderTable","DetailsOfSharesHeldByCustodianOrDRHolderAbstract","DetailsOfSharesHeldByCustodianOrDRHolderTable","ShareholdingPatternCustodianOrDRHolder","xbrli:stringItemType",0,"xbrldt:hypercubeItem",0,"duration","true","true"]
["in-bse-shp","DetailsOfSharesHeldByCustodianOrDRHolderAxis","Details of shares held by custodian or DR holder [Axis]",null,1,"in-bse-shp_DetailsOfSharesHeldByCustodianOrDRHolderAxis","DetailsOfSharesHeldByCustodianOrDRHolderTable","DetailsOfSharesHeldByCustodianOrDRHolderAxis","ShareholdingPatternCustodianOrDRHolder","xbrli:stringItemType",0,"xbrldt:dimensionItem",0,"duration","true","true"]
["in-bse-shp","DetailsOfSharesHeldByCustodianOrDRHolderLineItems","Details of shares held by custodian or DR holder [Line items]",null,2,"in-bse-shp_DetailsOfSharesHeldByCustodianOrDRHolderLineItems","DetailsOfSharesHeldByCustodianOrDRHolderAbstract","DetailsOfSharesHeldByCustodianOrDRHolderLineItems","ShareholdingPatternCustodianOrDRHolder","xbrli:stringItemType",0,"xbrli:item",0,"duration","true","true"]
["in-bse-shp","TypeOfDepositoryReceipts","Type of depository receipts",null,1,"in-bse-shp_TypeOfDepositoryReceipts","DetailsOfSharesHeldByCustodianOrDRHolderLineItems","TypeOfDepositoryReceipts","ShareholdingPatternCustodianOrDRHolder","xbrli:TypeOfDepositoryReceipts",0,"xbrli:item",0,"duration","true","true"]
["in-bse-shp","NameOfTheBank","Name of the bank",null,2,"in-bse-shp_NameOfTheBank","DetailsOfSharesHeldByCustodianOrDRHolderLineItems","NameOfTheBank","ShareholdingPatternCustodianOrDRHolder","xbrli:stringItemType",0,"xbrli:item",0,"duration","true","true"]
[]
["in-bse-shp","PermanentAccountNumberOfShareholder","Permanent account number of shareholder",null,4,"in-bse-shp_PermenantAccountNumberOfShareholder","DetailsOfSharesHeldByCustodianOrDRHolderLineItems","PermenantAccountNumberOfShareholder","ShareholdingPatternCustodianOrDRHolder","xbrli:PermenantAccountNumberOfShareholder",0,"xbrli:item",0,"duration","false","true"]
["in-bse-shp","NumberOfFullyPaidUpEquityShares","Number of fully paid up equity shares",null,5,"in-bse-shp_NumberOfFullyPaidUpEquityShares","DetailsOfSharesHeldByCustodianOrDRHolderLineItems","NumberOfFullyPaidUpEquityShares","ShareholdingPatternCustodianOrDRHolder","xbrli:sharesItemType",0,"xbrli:item",0,"instant","false","true"]
["in-bse-shp","NumberOfPartlyPaidUpEquityShares","Number of partly paid-up equity shares",null,6,"in-bse-shp_NumberOfPartlyPaidUpEquityShares","DetailsOfSharesHeldByCustodianOrDRHolderLineItems","NumberOfPartlyPaidUpEquityShares","ShareholdingPatternCustodianOrDRHolder","xbrli:sharesItemType",0,"xbrli:item",0,"instant","false","true"]
["in-bse-shp","NumberOfSharesUnderlyingOutstandingDepositoryReceipts","Number of shares underlying outstanding depository receipts",null,7,"in-bse-shp_NumberOfSharesUnderlyingOutstandingDepositoryReceipts","DetailsOfSharesHeldByCustodianOrDRHolderLineItems","NumberOfSharesUnderlyingOutstandingDepositoryReceipts","ShareholdingPatternCustodianOrDRHolder","xbrli:sharesItemType",0,"xbrli:item",0,"instant","false","true"]
["in-bse-shp","NumberOfVotingRightsHeldInEachClassOfSecuritiesAbstract","Number of voting rights held in each class of securities [Abstract]",null,10,"in-bse-shp_NumberOfVotingRightsHeldInEachClassOfSecuritiesAbstract","DetailsOfSharesHeldByCustodianOrDRHolderLineItems","NumberOfVotingRightsHeldInEachClassOfSecuritiesAbstract","ShareholdingPatternCustodianOrDRHolder","xbrli:stringItemType",0,"xbrli:item",0,"duration","true","true"]
["in-bse-shp","NumberOfVotingRightsHeldBySameClassOfSecurities","Number of voting rights held by same class of securities",null,1,"in-bse-shp_NumberOfVotingRightsHeldBySameClassOfSecurities","NumberOfVotingRightsHeldInEachClassOfSecuritiesAbstract","NumberOfVotingRightsHeldBySameClassOfSecurities","ShareholdingPatternCustodianOrDRHolder","xbrli:decimalItemType",0,"xbrli:item",0,"instant","false","true"]
["in-bse-shp","NumberOfVotingRightsHeldByDifferentialVotingRights","Number of voting rights held by differential voting rights",null,2,"in-bse-shp_NumberOfVotingRightsHeldByDifferentialVotingRights","NumberOfVotingRightsHeldInEachClassOfSecuritiesAbstract","NumberOfVotingRightsHeldByDifferentialVotingRights","ShareholdingPatternCustodianOrDRHolder","xbrli:decimalItemType",0,"xbrli:item",0,"instant","false","true"]
["in-bse-shp","NumberOfVotingRights","Total number of voting rights",null,3,"in-bse-shp_NumberOfVotingRights","NumberOfVotingRightsHeldInEachClassOfSecuritiesAbstract","NumberOfVotingRights","ShareholdingPatternCustodianOrDRHolder","xbrli:decimalItemType",0,"xbrli:item",0,"instant","false","true"]
["in-bse-shp","NumberOfSharesUnderlyingOutstandingConvertibleSecurities","Number of shares underlying outstanding convertible securities",null,11,"in-bse-shp_NumberOfSharesUnderlyingOutstandingConvertibleSecurities","DetailsOfSharesHeldByCustodianOrDRHolderLineItems","NumberOfSharesUnderlyingOutstandingConvertibleSecurities","ShareholdingPatternCustodianOrDRHolder","xbrli:sharesItemType",0,"xbrli:item",0,"instant","false","true"]
["in-bse-shp","DetailsOfTheLockedInSharesAbstract","Details of the locked-in-shares [Abstract]",null,15,"in-bse-shp_DetailsOfTheLockedInSharesAbstract","DetailsOfSharesHeldByCustodianOrDRHolderLineItems","DetailsOfTheLockedInSharesAbstract","ShareholdingPatternCustodianOrDRHolder","xbrli:stringItemType",0,"xbrli:item",0,"duration","true","true"]
["in-bse-shp","NumberOfTheLockedInShares","Number of the locked-in-shares ",null,1,"in-bse-shp_NumberOfTheLockedInShares","DetailsOfTheLockedInSharesAbstract","NumberOfTheLockedInShares","ShareholdingPatternCustodianOrDRHolder","xbrli:sharesItemType",0,"xbrli:item",0,"instant","false","true"]
["in-bse-shp","LockedInSharesAsAPercentageOfTotalNumberOfShares","Locked-in-shares as a percentage of total number of shares",null,2,"in-bse-shp_LockedInSharesAsAPercentageOfTotalNumberOfShares","DetailsOfTheLockedInSharesAbstract","LockedInSharesAsAPercentageOfTotalNumberOfShares","ShareholdingPatternCustodianOrDRHolder","num:percentItemType",0,"xbrli:item",0,"instant","false","true"]
["in-bse-shp","NumberOfSharesPledgedOrOtherwiseEncumberedAbstract","Number of Shares pledged or otherwise encumbered [Abstract]",null,16,"in-bse-shp_NumberOfSharesPledgedOrOtherwiseEncumberedAbstract","DetailsOfSharesHeldByCustodianOrDRHolderLineItems","NumberOfSharesPledgedOrOtherwiseEncumberedAbstract","ShareholdingPatternCustodianOrDRHolder","xbrli:stringItemType",0,"xbrli:item",0,"duration","true","true"]
["in-bse-shp","PledgedOrEncumberedNumberOfShares","Pledged or encumbered - number of shares",null,1,"in-bse-shp_PledgedOrEncumberedNumberOfShares","NumberOfSharesPledgedOrOtherwiseEncumberedAbstract","PledgedOrEncumberedNumberOfShares","ShareholdingPatternCustodianOrDRHolder","xbrli:sharesItemType",0,"xbrli:item",0,"instant","false","true"]
["in-bse-shp","PledgedOrEncumberedSharesHeldAsPercentageOfTotalNumberOfShares","Pledged or encumbered shares held as percentage of total number of shares",null,2,"in-bse-shp_PledgedOrEncumberedSharesHeldAsPercentageOfTotalNumberOfShares","NumberOfSharesPledgedOrOtherwiseEncumberedAbstract","PledgedOrEncumberedSharesHeldAsPercentageOfTotalNumberOfShares","ShareholdingPatternCustodianOrDRHolder","num:percentItemType",0,"xbrli:item",0,"instant","false","true"]
["in-bse-shp","NumberOfEquitySharesHeldInDematerializedForm","Number of equity shares held in dematerialized form",null,17,"in-bse-shp_NumberOfEquitySharesHeldInDematerializedForm","DetailsOfSharesHeldByCustodianOrDRHolderLineItems","NumberOfEquitySharesHeldInDematerializedForm","ShareholdingPatternCustodianOrDRHolder","xbrli:sharesItemType",0,"xbrli:item",0,"instant","false","true"]
["in-bse-shp","DetailsOfSharesHeldByEmployeeBenefitsTrustsAbstract","Details of shares held by employee benefits trusts [Abstract]",null,null,"in-bse-shp_DetailsOfSharesHeldByEmployeeBenefitsTrustsAbstract",null,null,"ShareholdingPatternEmployeeBenefitsTrusts","xbrli:stringItemType",0,"xbrli:item",0,"duration","true","true"]
["in-bse-shp","DetailsOfSharesHeldByEmployeeBenefitsTrustsTable","Details of shares held by employee benefits trusts [Table]",null,1,"in-bse-shp_DetailsOfSharesHeldByEmployeeBenefitsTrustsTable","DetailsOfSharesHeldByEmployeeBenefitsTrustsAbstract","DetailsOfSharesHeldByEmployeeBenefitsTrustsTable","ShareholdingPatternEmployeeBenefitsTrusts","xbrli:stringItemType",0,"xbrldt:hypercubeItem",0,"duration","true","true"]
["in-bse-shp","DetailsOfSharesHeldByEmployeeBenefitsTrustsAxis","Details of shares held by employee benefits trusts [Axis]",null,1,"in-bse-shp_DetailsOfSharesHeldByEmployeeBenefitsTrustsAxis","DetailsOfSharesHeldByEmployeeBenefitsTrustsTable","DetailsOfSharesHeldByEmployeeBenefitsTrustsAxis","ShareholdingPatternEmployeeBenefitsTrusts","xbrli:stringItemType",0,"xbrldt:dimensionItem",0,"duration","true","true"]
["in-bse-shp","DetailsOfSharesHeldByEmployeeBenefitsTrustsLineItems","Details of shares held by employee benefits trusts [Line items]",null,1,"in-bse-shp_DetailsOfSharesHeldByEmployeeBenefitsTrustsLineItems","DetailsOfSharesHeldByEmployeeBenefitsTrustsTable","DetailsOfSharesHeldByEmployeeBenefitsTrustsLineItems","ShareholdingPatternEmployeeBenefitsTrusts","xbrli:stringItemType",0,"xbrli:item",0,"duration","true","true"]
[]
["in-bse-shp","PermanentAccountNumberOfShareholder","Permanent account number of shareholder",null,2,"in-bse-shp_PermenantAccountNumberOfShareholder","DetailsOfSharesHeldByEmployeeBenefitsTrustsLineItems","PermenantAccountNumberOfShareholder","ShareholdingPatternEmployeeBenefitsTrusts","xbrli:PermenantAccountNumberOfShareholder",0,"xbrli:item",0,"duration","false","true"]
["in-bse-shp","NumberOfFullyPaidUpEquityShares","Number of fully paid up equity shares",null,3,"in-bse-shp_NumberOfFullyPaidUpEquityShares","DetailsOfSharesHeldByEmployeeBenefitsTrustsLineItems","NumberOfFullyPaidUpEquityShares","ShareholdingPatternEmployeeBenefitsTrusts","xbrli:sharesItemType",0,"xbrli:item",0,"instant","false","true"]
["in-bse-shp","NumberOfPartlyPaidUpEquityShares","Number of partly paid-up equity shares",null,4,"in-bse-shp_NumberOfPartlyPaidUpEquityShares","DetailsOfSharesHeldByEmployeeBenefitsTrustsLineItems","NumberOfPartlyPaidUpEquityShares","ShareholdingPatternEmployeeBenefitsTrusts","xbrli:sharesItemType",0,"xbrli:item",0,"instant","false","true"]
["in-bse-shp","NumberOfSharesUnderlyingOutstandingDepositoryReceipts","Number of shares underlying outstanding depository receipts",null,5,"in-bse-shp_NumberOfSharesUnderlyingOutstandingDepositoryReceipts","DetailsOfSharesHeldByEmployeeBenefitsTrustsLineItems","NumberOfSharesUnderlyingOutstandingDepositoryReceipts","ShareholdingPatternEmployeeBenefitsTrusts","xbrli:sharesItemType",0,"xbrli:item",0,"instant","false","true"]
["in-bse-shp","NumberOfVotingRightsHeldInEachClassOfSecuritiesAbstract","Number of voting rights held in each class of securities [Abstract]",null,8,"in-bse-shp_NumberOfVotingRightsHeldInEachClassOfSecuritiesAbstract","DetailsOfSharesHeldByEmployeeBenefitsTrustsLineItems","NumberOfVotingRightsHeldInEachClassOfSecuritiesAbstract","ShareholdingPatternEmployeeBenefitsTrusts","xbrli:stringItemType",0,"xbrli:item",0,"duration","true","true"]
["in-bse-shp","NumberOfVotingRightsHeldBySameClassOfSecurities","Number of voting rights held by same class of securities",null,1,"in-bse-shp_NumberOfVotingRightsHeldBySameClassOfSecurities","NumberOfVotingRightsHeldInEachClassOfSecuritiesAbstract","NumberOfVotingRightsHeldBySameClassOfSecurities","ShareholdingPatternEmployeeBenefitsTrusts","xbrli:decimalItemType",0,"xbrli:item",0,"instant","false","true"]
["in-bse-shp","NumberOfVotingRightsHeldByDifferentialVotingRights","Number of voting rights held by differential voting rights",null,2,"in-bse-shp_NumberOfVotingRightsHeldByDifferentialVotingRights","NumberOfVotingRightsHeldInEachClassOfSecuritiesAbstract","NumberOfVotingRightsHeldByDifferentialVotingRights","ShareholdingPatternEmployeeBenefitsTrusts","xbrli:decimalItemType",0,"xbrli:item",0,"instant","false","true"]
["in-bse-shp","NumberOfVotingRights","Total number of voting rights",null,3,"in-bse-shp_NumberOfVotingRights","NumberOfVotingRightsHeldInEachClassOfSecuritiesAbstract","NumberOfVotingRights","ShareholdingPatternEmployeeBenefitsTrusts","xbrli:decimalItemType",0,"xbrli:item",0,"instant","false","true"]
["in-bse-shp","NumberOfSharesUnderlyingOutstandingConvertibleSecurities","Number of shares underlying outstanding convertible securities",null,9,"in-bse-shp_NumberOfSharesUnderlyingOutstandingConvertibleSecurities","DetailsOfSharesHeldByEmployeeBenefitsTrustsLineItems","NumberOfSharesUnderlyingOutstandingConvertibleSecurities","ShareholdingPatternEmployeeBenefitsTrusts","xbrli:sharesItemType",0,"xbrli:item",0,"instant","false","true"]
["in-bse-shp","DetailsOfTheLockedInSharesAbstract","Details of the locked-in-shares [Abstract]",null,13,"in-bse-shp_DetailsOfTheLockedInSharesAbstract","DetailsOfSharesHeldByEmployeeBenefitsTrustsLineItems","DetailsOfTheLockedInSharesAbstract","ShareholdingPatternEmployeeBenefitsTrusts","xbrli:stringItemType",0,"xbrli:item",0,"duration","true","true"]
["in-bse-shp","NumberOfTheLockedInShares","Number of the locked-in-shares ",null,1,"in-bse-shp_NumberOfTheLockedInShares","DetailsOfTheLockedInSharesAbstract","NumberOfTheLockedInShares","ShareholdingPatternEmployeeBenefitsTrusts","xbrli:sharesItemType",0,"xbrli:item",0,"instant","false","true"]
["in-bse-shp","LockedInSharesAsAPercentageOfTotalNumberOfShares","Locked-in-shares as a percentage of total number of shares",null,2,"in-bse-shp_LockedInSharesAsAPercentageOfTotalNumberOfShares","DetailsOfTheLockedInSharesAbstract","LockedInSharesAsAPercentageOfTotalNumberOfShares","ShareholdingPatternEmployeeBenefitsTrusts","num:percentItemType",0,"xbrli:item",0,"instant","false","true"]
["in-bse-shp","NumberOfSharesPledgedOrOtherwiseEncumberedAbstract","Number of Shares pledged or otherwise encumbered [Abstract]",null,14,"in-bse-shp_NumberOfSharesPledgedOrOtherwiseEncumberedAbstract","DetailsOfSharesHeldByEmployeeBenefitsTrustsLineItems","NumberOfSharesPledgedOrOtherwiseEncumberedAbstract","ShareholdingPatternEmployeeBenefitsTrusts","xbrli:stringItemType",0,"xbrli:item",0,"duration","true","true"]
["in-bse-shp","PledgedOrEncumberedNumberOfShares","Pledged or encumbered - number of shares",null,1,"in-bse-shp_PledgedOrEncumberedNumberOfShares","NumberOfSharesPledgedOrOtherwiseEncumberedAbstract","PledgedOrEncumberedNumberOfShares","ShareholdingPatternEmployeeBenefitsTrusts","xbrli:sharesItemType",0,"xbrli:item",0,"instant","false","true"]
["in-bse-shp","PledgedOrEncumberedSharesHeldAsPercentageOfTotalNumberOfShares","Pledged or encumbered shares held as percentage of total number of shares",null,2,"in-bse-shp_PledgedOrEncumberedSharesHeldAsPercentageOfTotalNumberOfShares","NumberOfSharesPledgedOrOtherwiseEncumberedAbstract","PledgedOrEncumberedSharesHeldAsPercentageOfTotalNumberOfShares","ShareholdingPatternEmployeeBenefitsTrusts","num:percentItemType",0,"xbrli:item",0,"instant","false","true"]
["in-bse-shp","NumberOfEquitySharesHeldInDematerializedForm","Number of equity shares held in dematerialized form",null,15,"in-bse-shp_NumberOfEquitySharesHeldInDematerializedForm","DetailsOfSharesHeldByEmployeeBenefitsTrustsLineItems","NumberOfEquitySharesHeldInDematerializedForm","ShareholdingPatternEmployeeBenefitsTrusts","xbrli:sharesItemType",0,"xbrli:item",0,"instant","false","true"]
["in-bse-shp","DetailsOfSharesWhichRemainUnclaimedForPromoterAndPromoterGroupAbstract","Details of shares which remain unclaimed for promoter and promoter group [Abstract]",null,null,"in-bse-shp_DetailsOfSharesWhichRemainUnclaimedForPromoterAndPromoterGroupAbstract",null,null,"ShareholdingPatternAdditionalInformation","xbrli:stringItemType",0,"xbrli:item",0,"duration","true","true"]
["in-bse-shp","DetailsOfSharesWhichRemainUnclaimedForPromoterAndPromoterGroupTable","Details of shares which remain unclaimed for promoter and promoter group [Table]",null,1,"in-bse-shp_DetailsOfSharesWhichRemainUnclaimedForPromoterAndPromoterGroupTable","DetailsOfSharesWhichRemainUnclaimedForPromoterAndPromoterGroupAbstract","DetailsOfSharesWhichRemainUnclaimedForPromoterAndPromoterGroupTable","ShareholdingPatternAdditionalInformation","xbrli:stringItemType",0,"xbrldt:hypercubeItem",0,"duration","true","true"]
["in-bse-shp","DetailsOfPromoterAndPromoterGroupAxis","Details of shares which remain unclaimed for promoter and promoter group [Axis]",null,1,"in-bse-shp_DetailsOfPromoterAndPromoterGroupAxis","DetailsOfSharesWhichRemainUnclaimedForPromoterAndPromoterGroupTable","DetailsOfPromoterAndPromoterGroupAxis","ShareholdingPatternAdditionalInformation","xbrli:stringItemType",0,"xbrldt:dimensionItem",0,"duration","true","true"]
["in-bse-shp","DetailsOfSharesWhichRemainUnclaimedForPromoterAndPromoterGroupLineItems","Details of shares which remain unclaimed for promoter and promoter group [Line Items]",null,2,"in-bse-shp_DetailsOfSharesWhichRemainUnclaimedForPromoterAndPromoterGroupLineItems","DetailsOfSharesWhichRemainUnclaimedForPromoterAndPromoterGroupAbstract","DetailsOfSharesWhichRemainUnclaimedForPromoterAndPromoterGroupLineItems","ShareholdingPatternAdditionalInformation","xbrli:stringItemType",0,"xbrli:item",0,"duration","true","true"]
["in-bse-shp","NumberOfShareholders","Number of shareholders",null,1,"in-bse-shp_NumberOfShareholders","DetailsOfSharesWhichRemainUnclaimedForPromoterAndPromoterGroupLineItems","NumberOfShareholders","ShareholdingPatternAdditionalInformation","xbrli:decimalItemType",0,"xbrli:item",0,"instant","false","true"]
["in-bse-shp","OutstandingSharesHeldInDematOrUnclaimedSuspenseAccount","Outstanding shares held in demat or unclaimed suspense account",null,2,"in-bse-shp_OutstandingSharesHeldInDematOrUnclaimedSuspenseAccount","DetailsOfSharesWhichRemainUnclaimedForPromoterAndPromoterGroupLineItems","OutstandingSharesHeldInDematOrUnclaimedSuspenseAccount","ShareholdingPatternAdditionalInformation","xbrli:sharesItemType",0,"xbrli:item",0,"instant","false","true"]
["in-bse-shp","VotingRightsWhichAreFrozen","Voting rights which are frozen",null,3,"in-bse-shp_VotingRightsWhichAreFrozen","DetailsOfSharesWhichRemainUnclaimedForPromoterAndPromoterGroupLineItems","VotingRightsWhichAreFrozen","ShareholdingPatternAdditionalInformation","xbrli:decimalItemType",0,"xbrli:item",0,"instant","false","true"]
["in-bse-shp","DisclosureOfNotesOnSharesWhichRemainUnclaimedForPromoterAndPromoterGroupExplanatoryTextBlock","Disclosure of notes on shares which remain unclaimed for promoter and promoter group",null,4,"in-bse-shp_DisclosureOfNotesOnSharesWhichRemainUnclaimedForPromoterAndPromoterGroup","DetailsOfSharesWhichRemainUnclaimedForPromoterAndPromoterGroupLineItems","DisclosureOfNotesOnSharesWhichRemainUnclaimedForPromoterAndPromoterGroup","ShareholdingPatternAdditionalInformation","nonnum:textBlockItemType",0,"xbrli:item",0,"instant","false","true"]
["in-bse-shp","DetailsOfTheShareholdersActingAsPersonsInConcertForPublicAbstact",{"$nulls":3},"in-bse-shp_DetailsOfTheShareholdersActingAsPersonsInConcertForPublicAbstact",null,null,"ShareholdingPatternAdditionalInformation","xbrli:stringItemType",0,"xbrli:item",0,"duration","true","true"]
["in-bse-shp","DetailsOfTheShareholdersActingAsPersonsInConcertForPublicTable",null,null,1,"in-bse-shp_DetailsOfTheShareholdersActingAsPersonsInConcertForPublicTable","DetailsOfTheShareholdersActingAsPersonsInConcertForPublicAbstact","DetailsOfTheShareholdersActingAsPersonsInConcertForPublicTable","ShareholdingPatternAdditionalInformation","xbrli:stringItemType",0,"xbrldt:hypercubeItem",0,"duration","true","true"]
["in-bse-shp","DetailsOfTheShareholdersActingAsPersonsInConcertForPublicAxis","Details of the shareholders acting as persons in concert for public [Axis]",null,1,"in-bse-shp_DetailsOfTheShareholdersActingAsPersonsInConcertForPublicAxis","DetailsOfTheShareholdersActingAsPersonsInConcertForPublicTable","DetailsOfTheShareholdersActingAsPersonsInConcertForPublicAxis","ShareholdingPatternAdditionalInformation","xbrli:stringItemType",0,"xbrldt:dimensionItem",0,"duration","true","true"]
["in-bse-shp","DetailsOfTheShareholdersActingAsPersonsInConcertForPublicLineItems","Details of the shareholders acting as persons in concert for public [Line Items]",null,2,"in-bse-shp_DetailsOfTheShareholdersActingAsPersonsInConcertForPublicLineItems","DetailsOfTheShareholdersActingAsPersonsInConcertForPublicTable","DetailsOfTheShareholdersActingAsPersonsInConcertForPublicLineItems","ShareholdingPatternAdditionalInformation","xbrli:stringItemType",0,"xbrli:item",0,"duration","true","true"]
["in-bse-shp","NameOfThePAC","Name of the PAC",null,1,"in-bse-shp_NameOfThePAC","DetailsOfTheShareholdersActingAsPersonsInConcertForPublicLineItems","NameOfThePAC","ShareholdingPatternAdditionalInformation","xbrli:stringItemType",0,"xbrli:item",0,"duration","false","true"]
["in-bse-shp","NumberOfShares","Number of shares",null,2,"in-bse-shp_NumberOfShares","DetailsOfTheShareholdersActingAsPersonsInConcertForPublicLineItems","NumberOfShares","ShareholdingPatternAdditionalInformation","xbrli:sharesItemType",0,"xbrli:item",0,"instant","false","true"]
["in-bse-shp","PercentageOfShareholdingByPAC","Percentage of shareholding by PAC",null,3,"in-bse-shp_PercentageOfShareholdingByPAC","DetailsOfTheShareholdersActingAsPersonsInConcertForPublicLineItems","PercentageOfShareholdingByPAC","ShareholdingPatternAdditionalInformation","num:percentItemType",0,"xbrli:item",0,"instant","false","true"]
["in-bse-shp","DetailsOfSharesWhichRemainUnclaimedForPublicShareholdersAbstract","Details of shares which remain unclaimed for public shareholders [Abstract]",null,null,"in-bse-shp_DetailsOfSharesWhichRemainUnclaimedForPublicShareholdersAbstract",null,null,"ShareholdingPatternAdditionalInformation","xbrli:stringItemType",0,"xbrli:item",0,"duration","true","true"]
["in-bse-shp","DetailsOfSharesWhichRemainUnclaimedForPublicShareholdersTable","Details of shares which remain unclaimed for public shareholders [Table]",null,1,"in-bse-shp_DetailsOfSharesWhichRemainUnclaimedForPublicShareholdersTable","DetailsOfSharesWhichRemainUnclaimedForPublicShareholdersAbstract","DetailsOfSharesWhichRemainUnclaimedForPublicShareholdersTable","ShareholdingPatternAdditionalInformation","xbrli:stringItemType",0,"xbrldt:hypercubeItem",0,"duration","true","true"]
["in-bse-shp","DetailsOfSharesWhichRemainUnclaimedForPublicShareholdersAxis","Details of shares which remain unclaimed for public shareholders [Axis]",null,1,"in-bse-shp_DetailsOfSharesWhichRemainUnclaimedForPublicShareholdersAxis","DetailsOfSharesWhichRemainUnclaimedForPublicShareholdersTable","DetailsOfSharesWhichRemainUnclaimedForPublicShareholdersAxis","ShareholdingPatternAdditionalInformation","xbrli:stringItemType",0,"xbrldt:dimensionItem",0,"duration","true","true"]
["in-bse-shp","DetailsOfSharesWhichRemainUnclaimedForPublicShareholdersLineItems","Details of shares which remain unclaimed for public shareholders [Line Items]",null,2,"in-bse-shp_DetailsOfSharesWhichRemainUnclaimedForPublicShareholdersLineItems","DetailsOfSharesWhichRemainUnclaimedForPublicShareholdersAbstract","DetailsOfSharesWhichRemainUnclaimedForPublicShareholdersLineItems","ShareholdingPatternAdditionalInformation","xbrli:stringItemType",0,"xbrli:item",0,"duration","true","true"]
["in-bse-shp","NumberOfShareholders","Number of shareholders",null,1,"in-bse-shp_NumberOfShareholders","DetailsOfSharesWhichRemainUnclaimedForPublicShareholdersLineItems","NumberOfShareholders","ShareholdingPatternAdditionalInformation","xbrli:decimalItemType",0,"xbrli:item",0,"instant","false","true"]
["in-bse-shp","OutstandingSharesHeldInDematOrUnclaimedSuspenseAccount","Outstanding shares held in demat or unclaimed suspense account",null,2,"in-bse-shp_OutstandingSharesHeldInDematOrUnclaimedSuspenseAccount","DetailsOfSharesWhichRemainUnclaimedForPublicShareholdersLineItems","OutstandingSharesHeldInDematOrUnclaimedSuspenseAccount","ShareholdingPatternAdditionalInformation","xbrli:sharesItemType",0,"xbrli:item",0,"instant","false","true"]
["in-bse-shp","VotingRightsWhichAreFrozen","voting rights which are frozen",null,3,"in-bse-shp_VotingRightsWhichAreFrozen","DetailsOfSharesWhichRemainUnclaimedForPublicShareholdersLineItems","VotingRightsWhichAreFrozen","ShareholdingPatternAdditionalInformation","xbrli:decimalItemType",0,"xbrli:item",0,"instant","false","true"]
["in-bse-shp","DisclosureOfNotesOnSharesWhichRemainUnclaimedForPublicShareholdersExplanatoryTextBlock","Disclosure of notes on shares which remain unclaimed for public shareholders",null,4,"in-bse-shp_DisclosureOfNotesOnSharesWhichRemainUnclaimedForPublicShareholders","DetailsOfSharesWhichRemainUnclaimedForPublicShareholdersLineItems","DisclosureOfNotesOnSharesWhichRemainUnclaimedForPublicShareholders","ShareholdingPatternAdditionalInformation","nonnum:textBlockItemType",0,"xbrli:item",0,"instant","false","true"]
[null,"WhetherACategoryOrMoreThan1PercentageOfShareHolding","Category or more than one percentage",{"$nulls":6},"xbrli:stringItemType",{"$nulls":3},"duration"]

{"sheet":"Shareholding Pattern","index":5,"n_rows":59,"n_cols":58,"rows_kept":59,"merged":[[8,4,10,4],[8,5,10,6],[8,7,10,7],[8,8,10,8],[8,9,10,9],[8,10,10,10],[8,11,10,11],[8,12,10,12],[8,13,8,16],[8,17,10,17],[8,18,10,18],[8,19,10,19],[8,20,10,20],[8,21,9,22],[8,23,9,24],[8,25,10,25],[9,13,9,15],[9,16,10,16],[11,5,11,24],[17,4,17,6],[24,4,24,6],[25,4,25,6],[27,5,27,24],[28,5,28,25],[29,23,49,24],[38,4,38,6],[40,4,40,6],[48,4,48,6],[49,4,49,6],[52,5,52,25],[53,23,56,24],[55,4,55,6],[56,4,56,6],[57,4,57,6],[58,4,58,12],[58,13,58,14],[58,23,58,25]]}
[]
[{"$nulls":7},"Number of shareholders","Number of fully paid up equity shares","Number of partly paid-up equity shares","Number of shares underlying outstanding depository receipts","Total number of shares","Shareholding as a percentage of total number of shares held by promoters and public shareholders and custodians or DR holders","Number of voting rights held by same class of securities","Number of voting rights held by differential voting rights","Total Number of voting rights","Percentage of total number of voting rights","Number of shares underlying outstanding convertible securities","Number of warrant","Number of warrant and convertible securities","Total shareholding as a percentage assuming full conversion of convertible securities","Number of the locked-in-shares ","Locked-in-shares as a percentage of total number of shares","Pledged or encumbered - number of shares","Pledged or encumbered shares held as percentage of total number of shares","Number of equity shares held in dematerialized form"]
[]
[]
[]
[]
[]
[]
[{"$nulls":4},"Sr.","Category & Name\nof the\nShareholders\n(I)",null,"Nos. Of shareholders\n(III)","No. of fully paid up equity shares held\n(IV)","No. Of Partly paid-up equity shares held\n(V)","No. Of shares underlying Depository Receipts\n(VI)","Total nos. shares\nheld\n(VII) = (IV)+(V)+ (VI)","Shareholding as a % of total no. of shares (calculated as per SCRR, 1957)\n(VIII)\nAs a % of (A+B+C2)","Number of Voting Rights held in each class of securities\n(IX)",{"$nulls":3},"No. Of Shares Underlying Outstanding convertible securities\n(X)","No. Of Warrants\n(Xi)","No. Of Shares Underlying Outstanding convertible securities and No. Of Warrants\n(Xi) (a)","Shareholding , as a % assuming full conversion of convertible securities ( as a percentage of diluted share capital)\n(XI)= (VII)+(X)\nAs a % of (A+B+C2)","Number of Locked in shares\n(XII)",null,"Number of Shares pledged or otherwise encumbered\n(XIII)",null,"Number of equity shares held in dematerialized form \n(XIV)"]
[{"$nulls":13},"No of Voting (XIV)\nRights",null,null,"Total as\na % of\nTotal\nVoting\nrights"]
[{"$nulls":13},"Class\neg:\nX","Class\neg:y","Total",{"$nulls":5},"No.\n(a)","As a % of total Shares held\n(b)","No.\n(a)","As a % of total Shares held\n(b)"]
[{"$nulls":4},"A","Table II - Statement showing shareholding pattern of the Promoter and Promoter Group"]
[{"$nulls":4},"(1)","Indian"]
[{"$nulls":4},"(a)","Individuals/Hindu undivided Family",null,{"$f":"IFERROR(IF(COUNT(IndHUF!$I$1),IF(IndHUF!$I$1=0,\"\",IndHUF!$I$1),\"\"),\"\")","v":2},{"$f":"+IF(COUNT(IndHUF!H18),IndHUF!H18,\"\")","v":158144},{"$f":"+IF(COUNT(IndHUF!I18),IndHUF!I18,\"\")","v":""},{"$f":"+IF(COUNT(IndHUF!J18),IndHUF!J18,\"\")","v":""},{"$f":"+IF(COUNT(IndHUF!K18),IndHUF!K18,\"\")","v":158144},{"$f":"+IFERROR(IF(COUNT(L14),ROUND(L14/'Shareholding Pattern'!$L$57*100,2),\"\"),\"\")","v":24.44},{"$f":"+IF(COUNT(IndHUF!M18),IndHUF!M18,\"\")","v":{"v":158144,"d":"158144.00"}},{"$f":"+IF(COUNT(IndHUF!N18),IndHUF!N18,\"\")","v":""},{"$f":"+IF(COUNT(IndHUF!O18),IndHUF!O18,\"\")","v":158144},{"$f":"+IF(COUNT(IndHUF!P18),IndHUF!P18,\"\")","v":24.44},{"$f":"+IF(COUNT(IndHUF!Q18),IndHUF!Q18,\"\")","v":""},{"$f":"+IF(COUNT(IndHUF!R18),IndHUF!R18,\"\")","v":""},{"$f":"+IF(COUNT(IndHUF!S18),IndHUF!S18,\"\")","v":""},{"$f":"+IFERROR(IF(COUNT(L14,T14),ROUND(SUM(L14,T14)/SUM('Shareholding Pattern'!$L$57,'Shareholding Pattern'!$T$57)*100,2),\"\"),\"\")","v":24.44},{"$f":"+IF(COUNT(IndHUF!U18),IndHUF!U18,\"\")","v":""},{"$f":"+IFERROR(IF(COUNT(V14),ROUND(SUM(V14)/SUM(I14)*100,2),\"\"),0)","v":""},{"$f":"+IF(COUNT(IndHUF!W18),IndHUF!W18,\"\")","v":""},{"$f":"+IFERROR(IF(COUNT(X14),ROUND(SUM(X14)/SUM(I14)*100,2),\"\"),0)","v":""},{"$f":"+IF(COUNT(IndHUF!Y18),IndHUF!Y18,\"\")","v":158144},{"$nulls":17},"Individuals or Hindu undivided family [Member]",{"$nulls":5},"IndHUF",null,"IndividualsOrHUFDomain",{"$nulls":5},"DetailsSharesHeldByIndividualsOrHUFAxis"]
[{"$nulls":4},"(b)","Central  Government/ State Government(s)",null,{"$f":"IFERROR(IF(COUNT(CGAndSG!$I$1),IF(CGAndSG!$I$1=0,\"\",CGAndSG!$I$1),\"\"),\"\")","v":""},{"$f":"IFERROR(IF(COUNT(CGAndSG!H16),(CGAndSG!H16),\"\"),\"\")","v":""},{"$f":"IFERROR(IF(COUNT(CGAndSG!I16),(CGAndSG!I16),\"\"),\"\")","v":""},{"$f":"IFERROR(IF(COUNT(CGAndSG!J16),(CGAndSG!J16),\"\"),\"\")","v":""},{"$f":"IFERROR(IF(COUNT(CGAndSG!K16),(CGAndSG!K16),\"\"),\"\")","v":""},{"$f":"+IFERROR(IF(COUNT(L15),ROUND(L15/'Shareholding Pattern'!$L$57*100,2),\"\"),\"\")","v":""},{"$f":"IFERROR(IF(COUNT(CGAndSG!M16),(CGAndSG!M16),\"\"),\"\")","v":""},{"$f":"IFERROR(IF(COUNT(CGAndSG!N16),(CGAndSG!N16),\"\"),\"\")","v":""},{"$f":"IFERROR(IF(COUNT(CGAndSG!O16),(CGAndSG!O16),\"\"),\"\")","v":""},{"$f":"IFERROR(IF(COUNT(CGAndSG!P16),(CGAndSG!P16),\"\"),\"\")","v":""},{"$f":"IFERROR(IF(COUNT(CGAndSG!Q16),(CGAndSG!Q16),\"\"),\"\")","v":""},{"$f":"IFERROR(IF(COUNT(CGAndSG!R16),(CGAndSG!R16),\"\"),\"\")","v":""},{"$f":"IFERROR(IF(COUNT(CGAndSG!S16),(CGAndSG!S16),\"\"),\"\")","v":""},{"$f":"+IFERROR(IF(COUNT(L15,T15),ROUND(SUM(L15,T15)/SUM('Shareholding Pattern'!$L$57,'Shareholding Pattern'!$T$57)*100,2),\"\"),\"\")","v":""},{"$f":"IFERROR(IF(COUNT(CGAndSG!U16),(CGAndSG!U16),\"\"),\"\")","v":""},{"$f":"+IFERROR(IF(COUNT(V15),ROUND(SUM(V15)/SUM(I15)*100,2),\"\"),0)","v":""},{"$f":"IFERROR(IF(COUNT(CGAndSG!W16),(CGAndSG!W16),\"\"),\"\")","v":""},{"$f":"+IFERROR(IF(COUNT(X15),ROUND(SUM(X15)/SUM(I15)*100,2),\"\"),0)","v":""},{"$f":"IFERROR(IF(COUNT(CGAndSG!Y16),(CGAndSG!Y16),\"\"),\"\")","v":""},{"$nulls":17},"Central government or State government(s) [Member]",{"$nulls":5},"CGAndSG",null,"CentralGovernmentOrStateGovernmentsDomain",{"$nulls":5},"DetailsOfSharesHeldByCentralGovernmentOrStateGovernmentsAxis"]
[{"$nulls":4},"(c)","Financial  Institutions/ Banks",null,{"$f":"IFERROR(IF(COUNT(Banks!$I$1),IF(Banks!$I$1=0,\"\",Banks!$I$1),\"\"),\"\")","v":""},{"$f":"IFERROR(IF(COUNT(Banks!H16),(Banks!H16),\"\"),\"\")","v":""},{"$f":"IFERROR(IF(COUNT(Banks!I16),(Banks!I16),\"\"),\"\")","v":""},{"$f":"IFERROR(IF(COUNT(Banks!J16),(Banks!J16),\"\"),\"\")","v":""},{"$f":"IFERROR(IF(COUNT(Banks!K16),(Banks!K16),\"\"),\"\")","v":""},{"$f":"+IFERROR(IF(COUNT(L16),ROUND(L16/'Shareholding Pattern'!$L$57*100,2),\"\"),\"\")","v":""},{"$f":"IFERROR(IF(COUNT(Banks!M16),(Banks!M16),\"\"),\"\")","v":""},{"$f":"IFERROR(IF(COUNT(Banks!N16),(Banks!N16),\"\"),\"\")","v":""},{"$f":"IFERROR(IF(COUNT(Banks!O16),(Banks!O16),\"\"),\"\")","v":""},{"$f":"IFERROR(IF(COUNT(Banks!P16),(Banks!P16),\"\"),\"\")","v":""},{"$f":"IFERROR(IF(COUNT(Banks!Q16),(Banks!Q16),\"\"),\"\")","v":""},{"$f":"IFERROR(IF(COUNT(Banks!R16),(Banks!R16),\"\"),\"\")","v":""},{"$f":"IFERROR(IF(COUNT(Banks!S16),(Banks!S16),\"\"),\"\")","v":""},{"$f":"+IFERROR(IF(COUNT(L16,T16),ROUND(SUM(L16,T16)/SUM('Shareholding Pattern'!$L$57,'Shareholding Pattern'!$T$57)*100,2),\"\"),\"\")","v":""},{"$f":"IFERROR(IF(COUNT(Banks!U16),(Banks!U16),\"\"),\"\")","v":""},"",{"$f":"IFERROR(IF(COUNT(Banks!W16),(Banks!W16),\"\"),\"\")","v":""},"",{"$f":"IFERROR(IF(COUNT(Banks!Y16),(Banks!Y16),\"\"),\"\")","v":""},{"$nulls":17},"Indian - financial institutions or banks [Member]",{"$nulls":5},"Banks",null,"IndianFinancialInstitutionsOrBanksDomain",{"$nulls":5},"DetailsOfSharesHeldByIndianFinancialInstitutionsOrBanksAxis"]
[{"$nulls":4},"(d)","Any Other (specify)",null,{"$f":"IFERROR(IF(COUNT(OtherIND!$I$1),IF(OtherIND!$I$1=0,\"\",OtherIND!$I$1),\"\"),\"\")","v":""},{"$f":"IFERROR(IF(COUNT(OtherIND!J16),(OtherIND!J16),\"\"),\"\")","v":""},{"$f":"IFERROR(IF(COUNT(OtherIND!K16),(OtherIND!K16),\"\"),\"\")","v":""},{"$f":"IFERROR(IF(COUNT(OtherIND!L16),(OtherIND!L16),\"\"),\"\")","v":""},{"$f":"IFERROR(IF(COUNT(OtherIND!M16),(OtherIND!M16),\"\"),\"\")","v":""},{"$f":"+IFERROR(IF(COUNT(L17),ROUND(L17/'Shareholding Pattern'!$L$57*100,2),\"\"),\"\")","v":""},{"$f":"IFERROR(IF(COUNT(OtherIND!O16),(OtherIND!O16),\"\"),\"\")","v":""},{"$f":"IFERROR(IF(COUNT(OtherIND!P16),(OtherIND!P16),\"\"),\"\")","v":""},{"$f":"IFERROR(IF(COUNT(OtherIND!Q16),(OtherIND!Q16),\"\"),\"\")","v":""},{"$f":"IFERROR(IF(COUNT(OtherIND!R16),(OtherIND!R16),\"\"),\"\")","v":""},{"$f":"IFERROR(IF(COUNT(OtherIND!S16),(OtherIND!S16),\"\"),\"\")","v":""},{"$f":"IFERROR(IF(COUNT(OtherIND!T16),(OtherIND!T16),\"\"),\"\")","v":""},{"$f":"IFERROR(IF(COUNT(OtherIND!U16),(OtherIND!U16),\"\"),\"\")","v":""},{"$f":"+IFERROR(IF(COUNT(L17,T17),ROUND(SUM(L17,T17)/SUM('Shareholding Pattern'!$L$57,'Shareholding Pattern'!$T$57)*100,2),\"\"),\"\")","v":""},{"$f":"IFERROR(IF(COUNT(OtherIND!W16),(OtherIND!W16),\"\"),\"\")","v":""},"",{"$f":"IFERROR(IF(COUNT(OtherIND!Y16),(OtherIND!Y16),\"\"),\"\")","v":""},"",{"$f":"IFERROR(IF(COUNT(OtherIND!AA16),(OtherIND!AA16),\"\"),\"\")","v":""},{"$nulls":17},"Other Indian shareholders [Member]",{"$nulls":5},"OtherIND",null,"OthersIndianShareholdersDomain",{"$nulls":5},"DetailsOfSharesHeldByOthersIndianShareholdersAxis"]
[{"$nulls":4},"Sub-Total (A)(1)",null,null,{"$f":"+IFERROR(IF(COUNT(H14:H17),ROUND(SUM(H14:H17),0),\"\"),\"\")","v":2},{"$f":"+IFERROR(IF(COUNT(I14:I17),ROUND(SUM(I14:I17),0),\"\"),\"\")","v":158144},"","",158144,{"$f":"+IFERROR(IF(COUNT(L18),ROUND(L18/'Shareholding Pattern'!$L$57*100,2),\"\"),\"\")","v":24.44},{"v":158144,"d":"158144.00"},"",158144,{"$f":"IFERROR(IF(COUNT(P18),ROUND(P18/$P$58*100,2),\"\"),\"\")","v":24.44},"","","",{"$f":"+IFERROR(IF(COUNT(L18,T18),ROUND(SUM(L18,T18)/SUM('Shareholding Pattern'!$L$57,'Shareholding Pattern'!$T$57)*100,2),\"\"),\"\")","v":24.44},"","","","",158144,{"$nulls":17},"Indian [Member]",{"$nulls":5},"Individuals",null,"NonResidentIndividualsOrForeignIndividualsDomain",{"$nulls":5},"DetailsOfSharesHeldByNonResidentIndividualsOrForeignIndividualsAxis"]
[{"$nulls":4},"(2)","Foreign",{"$nulls":43},"Government",null,"ForeignGovernmentDomain",{"$nulls":5},"DetailsOfSharesHeldByForeignGovernmentAxis"]
[{"$nulls":4},"(a)","Individuals (NonResident Individuals/ Foreign Individuals)",null,{"$f":"IFERROR(IF(COUNT(Individuals!$I$1),IF(Individuals!$I$1=0,\"\",Individuals!$I$1),\"\"),\"\")","v":""},{"$f":"IFERROR(IF(COUNT(Individuals!H16),(Individuals!H16),\"\"),\"\")","v":""},{"$f":"IFERROR(IF(COUNT(Individuals!I16),(Individuals!I16),\"\"),\"\")","v":""},{"$f":"IFERROR(IF(COUNT(Individuals!J16),(Individuals!J16),\"\"),\"\")","v":""},{"$f":"IFERROR(IF(COUNT(Individuals!K16),(Individuals!K16),\"\"),\"\")","v":""},{"$f":"+IFERROR(IF(COUNT(L20),ROUND(L20/'Shareholding Pattern'!$L$57*100,2),\"\"),\"\")","v":""},{"$f":"IFERROR(IF(COUNT(Individuals!M16),(Individuals!M16),\"\"),\"\")","v":""},{"$f":"IFERROR(IF(COUNT(Individuals!N16),(Individuals!N16),\"\"),\"\")","v":""},{"$f":"IFERROR(IF(COUNT(Individuals!O16),(Individuals!O16),\"\"),\"\")","v":""},{"$f":"IFERROR(IF(COUNT(Individuals!P16),(Individuals!P16),\"\"),\"\")","v":""},{"$f":"IFERROR(IF(COUNT(Individuals!Q16),(Individuals!Q16),\"\"),\"\")","v":""},{"$f":"IFERROR(IF(COUNT(Individuals!R16),(Individuals!R16),\"\"),\"\")","v":""},{"$f":"IFERROR(IF(COUNT(Individuals!S16),(Individuals!S16),\"\"),\"\")","v":""},{"$f":"+IFERROR(IF(COUNT(L20,T20),ROUND(SUM(L20,T20)/SUM('Shareholding Pattern'!$L$57,'Shareholding Pattern'!$T$57)*100,2),\"\"),\"\")","v":""},{"$f":"IFERROR(IF(COUNT(Individuals!U16),(Individuals!U16),\"\"),\"\")","v":""},"",{"$f":"IFERROR(IF(COUNT(Individuals!W16),(Individuals!W16),\"\"),\"\")","v":""},"",{"$f":"IFERROR(IF(COUNT(Individuals!Y16),(Individuals!Y16),\"\"),\"\")","v":""},{"$nulls":17},"Non-resident individuals or foreign individuals [Member]",{"$nulls":5},"Institutions",null,"ForeignInstitutionsDomain",{"$nulls":5},"DetailsOfSharesHeldByForeignInstitutionsAxis"]
[{"$nulls":4},"(b)","Government",null,{"$f":"IFERROR(IF(COUNT(Government!$I$1),IF(Government!$I$1=0,\"\",Government!$I$1),\"\"),\"\")","v":""},{"$f":"IFERROR(IF(COUNT(Government!H16),(Government!H16),\"\"),\"\")","v":""},{"$f":"IFERROR(IF(COUNT(Government!I16),(Government!I16),\"\"),\"\")","v":""},{"$f":"IFERROR(IF(COUNT(Government!J16),(Government!J16),\"\"),\"\")","v":""},{"$f":"IFERROR(IF(COUNT(Government!K16),(Government!K16),\"\"),\"\")","v":""},{"$f":"+IFERROR(IF(COUNT(L21),ROUND(L21/'Shareholding Pattern'!$L$57*100,2),\"\"),\"\")","v":""},{"$f":"IFERROR(IF(COUNT(Government!M16),(Government!M16),\"\"),\"\")","v":""},{"$f":"IFERROR(IF(COUNT(Government!N16),(Government!N16),\"\"),\"\")","v":""},{"$f":"IFERROR(IF(COUNT(Government!O16),(Government!O16),\"\"),\"\")","v":""},{"$f":"IFERROR(IF(COUNT(Government!P16),(Government!P16),\"\"),\"\")","v":""},{"$f":"IFERROR(IF(COUNT(Government!Q16),(Government!Q16),\"\"),\"\")","v":""},{"$f":"IFERROR(IF(COUNT(Government!R16),(Government!R16),\"\"),\"\")","v":""},{"$f":"IFERROR(IF(COUNT(Government!S16),(Government!S16),\"\"),\"\")","v":""},{"$f":"+IFERROR(IF(COUNT(L21,T21),ROUND(SUM(L21,T21)/SUM('Shareholding Pattern'!$L$57,'Shareholding Pattern'!$T$57)*100,2),\"\"),\"\")","v":""},{"$f":"IFERROR(IF(COUNT(Government!U16),(Government!U16),\"\"),\"\")","v":""},"",{"$f":"IFERROR(IF(COUNT(Government!W16),(Government!W16),\"\"),\"\")","v":""},"",{"$f":"IFERROR(IF(COUNT(Government!Y16),(Government!Y16),\"\"),\"\")","v":""},{"$nulls":17},"Foreign - Government [Member]",{"$nulls":5},"FPIPromoter",null,"ForeignPortfolioInvestorDomain",{"$nulls":5},"DetailsOfSharesHeldByForeignPortfolioInvestorAxis"]
[{"$nulls":4},"(c)","Institutions",null,{"$f":"IFERROR(IF(COUNT(Institutions!$I$1),IF(Institutions!$I$1=0,\"\",Institutions!$I$1),\"\"),\"\")","v":""},{"$f":"IFERROR(IF(COUNT(Institutions!H16),(Institutions!H16),\"\"),\"\")","v":""},{"$f":"IFERROR(IF(COUNT(Institutions!I16),(Institutions!I16),\"\"),\"\")","v":""},{"$f":"IFERROR(IF(COUNT(Institutions!J16),(Institutions!J16),\"\"),\"\")","v":""},{"$f":"IFERROR(IF(COUNT(Institutions!K16),(Institutions!K16),\"\"),\"\")","v":""},{"$f":"+IFERROR(IF(COUNT(L22),ROUND(L22/'Shareholding Pattern'!$L$57*100,2),\"\"),\"\")","v":""},{"$f":"IFERROR(IF(COUNT(Institutions!M16),(Institutions!M16),\"\"),\"\")","v":""},{"$f":"IFERROR(IF(COUNT(Institutions!N16),(Institutions!N16),\"\"),\"\")","v":""},{"$f":"IFERROR(IF(COUNT(Institutions!O16),(Institutions!O16),\"\"),\"\")","v":""},{"$f":"IFERROR(IF(COUNT(Institutions!P16),(Institutions!P16),\"\"),\"\")","v":""},{"$f":"IFERROR(IF(COUNT(Institutions!Q16),(Institutions!Q16),\"\"),\"\")","v":""},{"$f":"IFERROR(IF(COUNT(Institutions!R16),(Institutions!R16),\"\"),\"\")","v":""},{"$f":"IFERROR(IF(COUNT(Institutions!S16),(Institutions!S16),\"\"),\"\")","v":""},{"$f":"+IFERROR(IF(COUNT(L22,T22),ROUND(SUM(L22,T22)/SUM('Shareholding Pattern'!$L$57,'Shareholding Pattern'!$T$57)*100,2),\"\"),\"\")","v":""},{"$f":"IFERROR(IF(COUNT(Institutions!U16),(Institutions!U16),\"\"),\"\")","v":""},"",{"$f":"IFERROR(IF(COUNT(Institutions!W16),(Institutions!W16),\"\"),\"\")","v":""},"",{"$f":"IFERROR(IF(COUNT(Institutions!Y16),(Institutions!Y16),\"\"),\"\")","v":""},{"$nulls":17},"Foreign - institutions [Member]",{"$nulls":5},"OtherForeign",null,"OtherForeignShareholdersDomain",{"$nulls":5},"DetailsOfSharesHeldByOtherForeignShareholdersAxis"]
[{"$nulls":4},"(d)","Foreign Portfolio Investor",null,{"$f":"IFERROR(IF(COUNT(FPIPromoter!$I$1),IF(FPIPromoter!$I$1=0,\"\",FPIPromoter!$I$1),\"\"),\"\")","v":""},{"$f":"IFERROR(IF(COUNT(FPIPromoter!H16),(FPIPromoter!H16),\"\"),\"\")","v":""},{"$f":"IFERROR(IF(COUNT(FPIPromoter!I16),(FPIPromoter!I16),\"\"),\"\")","v":""},{"$f":"IFERROR(IF(COUNT(FPIPromoter!J16),(FPIPromoter!J16),\"\"),\"\")","v":""},{"$f":"IFERROR(IF(COUNT(FPIPromoter!K16),(FPIPromoter!K16),\"\"),\"\")","v":""},{"$f":"+IFERROR(IF(COUNT(L23),ROUND(L23/'Shareholding Pattern'!$L$57*100,2),\"\"),\"\")","v":""},{"$f":"IFERROR(IF(COUNT(FPIPromoter!M16),(FPIPromoter!M16),\"\"),\"\")","v":""},{"$f":"IFERROR(IF(COUNT(FPIPromoter!N16),(FPIPromoter!N16),\"\"),\"\")","v":""},{"$f":"IFERROR(IF(COUNT(FPIPromoter!O16),(FPIPromoter!O16),\"\"),\"\")","v":""},{"$f":"IFERROR(IF(COUNT(FPIPromoter!P16),(FPIPromoter!P16),\"\"),\"\")","v":""},{"$f":"IFERROR(IF(COUNT(FPIPromoter!Q16),(FPIPromoter!Q16),\"\"),\"\")","v":""},{"$f":"IFERROR(IF(COUNT(FPIPromoter!R16),(FPIPromoter!R16),\"\"),\"\")","v":""},{"$f":"IFERROR(IF(COUNT(FPIPromoter!S16),(FPIPromoter!S16),\"\"),\"\")","v":""},{"$f":"+IFERROR(IF(COUNT(L23,T23),ROUND(SUM(L23,T23)/SUM('Shareholding Pattern'!$L$57,'Shareholding Pattern'!$T$57)*100,2),\"\"),\"\")","v":""},{"$f":"IFERROR(IF(COUNT(FPIPromoter!U16),(FPIPromoter!U16),\"\"),\"\")","v":""},"",{"$f":"IFERROR(IF(COUNT(FPIPromoter!W16),(FPIPromoter!W16),\"\"),\"\")","v":""},"",{"$f":"IFERROR(IF(COUNT(FPIPromoter!Y16),(FPIPromoter!Y16),\"\"),\"\")","v":""},{"$nulls":17},"Foreign portfolio investor [Member]",{"$nulls":5},"MutuaFund",null,"MutualFundsOrUtiDomain",{"$nulls":5},"DetailsOfSharesHeldByMutualFundsOrUtiAxis"]
[{"$nulls":4},"(e)","Any Other (specify)",null,{"$f":"IFERROR(IF(COUNT(OtherForeign!$I$1),IF(OtherForeign!$I$1=0,\"\",OtherForeign!$I$1),\"\"),\"\")","v":""},{"$f":"IFERROR(IF(COUNT(OtherForeign!J16),(OtherForeign!J16),\"\"),\"\")","v":""},{"$f":"IFERROR(IF(COUNT(OtherForeign!K16),(OtherForeign!K16),\"\"),\"\")","v":""},{"$f":"IFERROR(IF(COUNT(OtherForeign!L16),(OtherForeign!L16),\"\"),\"\")","v":""},{"$f":"IFERROR(IF(COUNT(OtherForeign!M16),(OtherForeign!M16),\"\"),\"\")","v":""},{"$f":"+IFERROR(IF(COUNT(L24),ROUND(L24/'Shareholding Pattern'!$L$57*100,2),\"\"),\"\")","v":""},{"$f":"IFERROR(IF(COUNT(OtherForeign!O16),(OtherForeign!O16),\"\"),\"\")","v":""},{"$f":"IFERROR(IF(COUNT(OtherForeign!P16),(OtherForeign!P16),\"\"),\"\")","v":""},{"$f":"IFERROR(IF(COUNT(OtherForeign!Q16),(OtherForeign!Q16),\"\"),\"\")","v":""},{"$f":"IFERROR(IF(COUNT(OtherForeign!R16),(OtherForeign!R16),\"\"),\"\")","v":""},{"$f":"IFERROR(IF(COUNT(OtherForeign!S16),(OtherForeign!S16),\"\"),\"\")","v":""},{"$f":"IFERROR(IF(COUNT(OtherForeign!T16),(OtherForeign!T16),\"\"),\"\")","v":""},{"$f":"IFERROR(IF(COUNT(OtherForeign!U16),(OtherForeign!U16),\"\"),\"\")","v":""},{"$f":"+IFERROR(IF(COUNT(L24,T24),ROUND(SUM(L24,T24)/SUM('Shareholding Pattern'!$L$57,'Shareholding Pattern'!$T$57)*100,2),\"\"),\"\")","v":""},{"$f":"IFERROR(IF(COUNT(OtherForeign!W16),(OtherForeign!W16),\"\"),\"\")","v":""},"",{"$f":"IFERROR(IF(COUNT(OtherForeign!Y16),(OtherForeign!Y16),\"\"),\"\")","v":""},"",{"$f":"IFERROR(IF(COUNT(OtherForeign!AA16),(OtherForeign!AA16),\"\"),\"\")","v":""},{"$nulls":17},"Other foreign shareholders [Member]",{"$nulls":5},"VentureCap",null,"VentureCapitalFundsDomain",{"$nulls":5},"DetailsOfSharesHeldByVentureCapitalFundsAxis"]
[{"$nulls":4},"Sub-Total (A)(2)",null,null,{"$f":"+IFERROR(IF(COUNT(H20:H24),ROUND(SUM(H20:H24),0),\"\"),\"\")","v":""},"","","","",{"$f":"+IFERROR(IF(COUNT(L25),ROUND(L25/'Shareholding Pattern'!$L$57*100,2),\"\"),\"\")","v":""},"","","",{"$f":"IFERROR(IF(COUNT(P25),ROUND(P25/$P$58*100,2),\"\"),\"\")","v":""},"","","",{"$f":"+IFERROR(IF(COUNT(L25,T25),ROUND(SUM(L25,T25)/SUM('Shareholding Pattern'!$L$57,'Shareholding Pattern'!$T$57)*100,2),\"\"),\"\")","v":""},"","","","","",{"$nulls":17},"Foreign [Member]",{"$nulls":5},"AIF",null,"AlternativeInvestmentFundsDomain",{"$nulls":5},"DetailsOfSharesHeldByAlternativeInvestmentFundsAxis"]
[{"$nulls":4},"Total Shareholding of Promoter and Promoter Group (A)=(A)(1)+(A)(2) ",null,null,{"$f":"+IFERROR(IF(COUNT(H18,H25),ROUND(SUM(H18,H25),0),\"\"),\"\")","v":2},158144,"","",158144,{"$f":"+IFERROR(IF(COUNT(L26),ROUND(L26/'Shareholding Pattern'!$L$57*100,2),\"\"),\"\")","v":24.44},{"v":158144,"d":"158144.00"},"",158144,{"$f":"IFERROR(IF(COUNT(P26),ROUND(P26/$P$58*100,2),\"\"),\"\")","v":24.44},"","","",{"$f":"+IFERROR(IF(COUNT(L26,T26),ROUND(SUM(L26,T26)/SUM('Shareholding Pattern'!$L$57,'Shareholding Pattern'!$T$57)*100,2),\"\"),\"\")","v":24.44},"","","","",158144,{"$nulls":17},"Shareholding of promoter and promoter group [Member]",{"$nulls":5},"FVC",null,"ForeignVentureCapitalInvestorsDomain",{"$nulls":5},"DetailsOfSharesHeldByForeignVentureCapitalInvestorsAxis"]
[{"$nulls":5},"Details of Shares which remain unclaimed for Promoter & Promoter Group",{"$nulls":43},"FPI_Insti",null,"InstitutionsForeignPortfolioInvestorDomain",{"$nulls":5},"DetailsOfSharesHeldByInstitutionsForeignPortfolioInvestorAxis"]
[{"$nulls":4},"B","Table III - Statement showing shareholding pattern of the Public shareholder",{"$nulls":43},"Bank_Insti",null,"FinancialInstitutionOrBanksDomain",{"$nulls":5},"DetailsOfSharesHeldByFinancialInstitutionOrBanksAxis"]
[{"$nulls":4},"(1)","Institutions",{"$nulls":43},"Insurance",null,"InsuranceCompaniesDomain",{"$nulls":5},"DetailsOfSharesHeldByInsuranceCompaniesAxis"]
[{"$nulls":4},"(a)","Mutual Funds",{"$nulls":5},{"$f":"+IFERROR(IF(COUNT(I30:K30),ROUND(SUM(I30:K30),0),\"\"),\"\")","v":""},{"$f":"+IFERROR(IF(COUNT(L30),ROUND(L30/'Shareholding Pattern'!$L$57*100,2),\"\"),\"\")","v":""},{"$f":"+IF(COUNT(I30),SUM(I30),\"\")","v":""},null,{"$f":"+IFERROR(IF(COUNT(N30:O30),ROUND(SUM(N30:O30),0),\"\"),\"\")","v":""},{"$f":"+IFERROR(IF(COUNT(P30),ROUND(P30/'Shareholding Pattern'!$P$58*100,2),\"\"),\"\")","v":""},null,null,{"$f":"+IFERROR(IF(COUNT(R30:S30),ROUND(SUM(R30:S30),0),\"\"),\"\")","v":""},{"$f":"+IFERROR(IF(COUNT(L30,T30),ROUND(SUM(L30,T30)/SUM('Shareholding Pattern'!$L$57,'Shareholding Pattern'!$T$57)*100,2),\"\"),\"\")","v":""},null,{"$f":"+IFERROR(IF(COUNT(V30),ROUND(SUM(V30)/SUM(I30)*100,2),\"\"),0)","v":""},{"$nulls":20},"Mutual funds or uti [Member]",{"$nulls":5},"Pension",null,"ProvidentFundsOrPensionFundsDomain",{"$nulls":5},"DetailsOfSharesHeldByProvidentFundsOrPensionFundsAxis"]
[{"$nulls":4},"(b)","Venture Capital Funds",{"$nulls":5},{"$f":"+IFERROR(IF(COUNT(I31:K31),ROUND(SUM(I31:K31),0),\"\"),\"\")","v":""},{"$f":"+IFERROR(IF(COUNT(L31),ROUND(L31/'Shareholding Pattern'!$L$57*100,2),\"\"),\"\")","v":""},{"$f":"+IF(COUNT(I31),SUM(I31),\"\")","v":""},null,{"$f":"+IFERROR(IF(COUNT(N31:O31),ROUND(SUM(N31:O31),0),\"\"),\"\")","v":""},{"$f":"+IFERROR(IF(COUNT(P31),ROUND(P31/'Shareholding Pattern'!$P$58*100,2),\"\"),\"\")","v":""},null,null,{"$f":"+IFERROR(IF(COUNT(R31:S31),ROUND(SUM(R31:S31),0),\"\"),\"\")","v":""},{"$f":"+IFERROR(IF(COUNT(L31,T31),ROUND(SUM(L31,T31)/SUM('Shareholding Pattern'!$L$57,'Shareholding Pattern'!$T$57)*100,2),\"\"),\"\")","v":""},null,"",{"$nulls":20},"Venture capital funds [Member]",{"$nulls":5},"Other_Insti",null,"OtherInstitutionsDomain",{"$nulls":5},"DetailsOfSharesHeldByOtherInstitutionsAxis"]
[{"$nulls":4},"(c)","Alternate Investment Funds",{"$nulls":5},"",{"$f":"+IFERROR(IF(COUNT(L32),ROUND(L32/'Shareholding Pattern'!$L$57*100,2),\"\"),\"\")","v":""},"",null,"",{"$f":"+IFERROR(IF(COUNT(P32),ROUND(P32/'Shareholding Pattern'!$P$58*100,2),\"\"),\"\")","v":""},null,null,"",{"$f":"+IFERROR(IF(COUNT(L32,T32),ROUND(SUM(L32,T32)/SUM('Shareholding Pattern'!$L$57,'Shareholding Pattern'!$T$57)*100,2),\"\"),\"\")","v":""},null,"",{"$nulls":20},"Alternative investment funds [Member]",{"$nulls":5},"CG&SG&PI",null,"CentralGovernmentOrStateGovernmentSOrPresidentOfIndiaDomain",{"$nulls":5},"DetailsOfSharesHeldByCentralGovernmentOrStateGovernmentSOrPresidentOfIndiaAxis"]
[{"$nulls":4},"(d)","Foreign Venture Capital Investors",{"$nulls":5},"",{"$f":"+IFERROR(IF(COUNT(L33),ROUND(L33/'Shareholding Pattern'!$L$57*100,2),\"\"),\"\")","v":""},"",null,"",{"$f":"+IFERROR(IF(COUNT(P33),ROUND(P33/'Shareholding Pattern'!$P$58*100,2),\"\"),\"\")","v":""},null,null,"",{"$f":"+IFERROR(IF(COUNT(L33,T33),ROUND(SUM(L33,T33)/SUM('Shareholding Pattern'!$L$57,'Shareholding Pattern'!$T$57)*100,2),\"\"),\"\")","v":""},null,"",{"$nulls":20},"Foreign venture capital investors [Member]",{"$nulls":5},"Indivisual(aI)",null,"IndividualShareholdersHoldingNominalShareCapitalUpToRsTwoLakhDomain",{"$nulls":5},"DetailsOfSharesHeldByIndividualShareholdersHoldingNominalShareCapitalUpToRsTwoLakhAxis"]
[{"$nulls":4},"(e)","Foreign Portfolio Investors",{"$nulls":5},"",{"$f":"+IFERROR(IF(COUNT(L34),ROUND(L34/'Shareholding Pattern'!$L$57*100,2),\"\"),\"\")","v":""},"",null,"",{"$f":"+IFERROR(IF(COUNT(P34),ROUND(P34/'Shareholding Pattern'!$P$58*100,2),\"\"),\"\")","v":""},null,null,{"$f":"+IFERROR(IF(COUNT(R34,S34),ROUND(SUM(R34,S34),0),\"\"),\"\")","v":""},{"$f":"+IFERROR(IF(COUNT(L34,T34),ROUND(SUM(L34,T34)/SUM('Shareholding Pattern'!$L$57,'Shareholding Pattern'!$T$57)*100,2),\"\"),\"\")","v":""},null,"",{"$nulls":20},"Institutions - Foreign portfolio investor [Member]",{"$nulls":5},"Indivisual(aII)",null,"IndividualShareholdersHoldingNominalShareCapitalInExcessOfRsTwoLakhDomain",{"$nulls":5},"DetailsOfSharesHeldByIndividualShareholdersHoldingNominalShareCapitalInExcessOfRsTwoLakhAxis"]
[{"$nulls":4},"(f)","Financial  Institutions/ Banks",{"$nulls":5},"",{"$f":"+IFERROR(IF(COUNT(L35),ROUND(L35/'Shareholding Pattern'!$L$57*100,2),\"\"),\"\")","v":""},"",null,"",{"$f":"+IFERROR(IF(COUNT(P35),ROUND(P35/'Shareholding Pattern'!$P$58*100,2),\"\"),\"\")","v":""},null,null,"",{"$f":"+IFERROR(IF(COUNT(L35,T35),ROUND(SUM(L35,T35)/SUM('Shareholding Pattern'!$L$57,'Shareholding Pattern'!$T$57)*100,2),\"\"),\"\")","v":""},null,"",{"$nulls":20},"Financial Institution or Banks [Member]",{"$nulls":5},"NBFC",null,"NBFCsRegisteredWithRbiDomain",{"$nulls":5},"DetailsOfSharesHeldByNBFCsRegisteredWithRbiAxis"]
[{"$nulls":4},"(g)","Insurance  Companies",{"$nulls":5},"",{"$f":"+IFERROR(IF(COUNT(L36),ROUND(L36/'Shareholding Pattern'!$L$57*100,2),\"\"),\"\")","v":""},"",null,"",{"$f":"+IFERROR(IF(COUNT(P36),ROUND(P36/'Shareholding Pattern'!$P$58*100,2),\"\"),\"\")","v":""},null,null,"",{"$f":"+IFERROR(IF(COUNT(L36,T36),ROUND(SUM(L36,T36)/SUM('Shareholding Pattern'!$L$57,'Shareholding Pattern'!$T$57)*100,2),\"\"),\"\")","v":""},null,"",{"$nulls":20},"Insurance Companies [Member]",{"$nulls":5},"EmpTrust",null,"EmployeeTrustsDomain",{"$nulls":5},"DetailsOfSharesHeldByEmployeeTrustsAxis"]
[{"$nulls":4},"(h)","Provident Funds/ Pension Funds",{"$nulls":5},"",{"$f":"+IFERROR(IF(COUNT(L37),ROUND(L37/'Shareholding Pattern'!$L$57*100,2),\"\"),\"\")","v":""},"",null,"",{"$f":"+IFERROR(IF(COUNT(P37),ROUND(P37/'Shareholding Pattern'!$P$58*100,2),\"\"),\"\")","v":""},null,null,"",{"$f":"+IFERROR(IF(COUNT(L37,T37),ROUND(SUM(L37,T37)/SUM('Shareholding Pattern'!$L$57,'Shareholding Pattern'!$T$57)*100,2),\"\"),\"\")","v":""},null,"",{"$nulls":20},"Provident Funds or pension funds [Member]",{"$nulls":5},"OD",null,"OverseasDepositoriesDomain",{"$nulls":5},"DetailsOfSharesHeldByOverseasDepositoriesAxis"]
[{"$nulls":4},"(i)","Any Other (specify)",{"$nulls":5},"",{"$f":"+IFERROR(IF(COUNT(L38),ROUND(L38/'Shareholding Pattern'!$L$57*100,2),\"\"),\"\")","v":""},"",null,"",{"$f":"+IFERROR(IF(COUNT(P38),ROUND(P38/'Shareholding Pattern'!$P$58*100,2),\"\"),\"\")","v":""},null,null,"",{"$f":"+IFERROR(IF(COUNT(L38,T38),ROUND(SUM(L38,T38)/SUM('Shareholding Pattern'!$L$57,'Shareholding Pattern'!$T$57)*100,2),\"\"),\"\")","v":""},null,"",{"$nulls":20},"Other institutions [Member]",{"$nulls":5},"Other_NonInsti",null,"OtherNonInstitutionsDomain",{"$nulls":5},"DetailsOfSharesHeldByOtherNonInstitutionsAxis"]
[{"$nulls":4},"Sub-Total (B)(1)",null,null,{"$f":"+IFERROR(IF(COUNT(H30:H38),ROUND(SUM(H30:H38),0),\"\"),\"\")","v":""},"","","","",{"$f":"+IFERROR(IF(COUNT(L39),ROUND(L39/'Shareholding Pattern'!$L$57*100,2),\"\"),\"\")","v":""},"","","",{"$f":"+IFERROR(IF(COUNT(P39),ROUND(P39/'Shareholding Pattern'!$P$58*100,2),\"\"),\"\")","v":""},"","","",{"$f":"+IFERROR(IF(COUNT(L39,T39),ROUND(SUM(L39,T39)/SUM('Shareholding Pattern'!$L$57,'Shareholding Pattern'!$T$57)*100,2),\"\"),\"\")","v":""},"","",null,null,"",{"$nulls":17},"Institutions [Member]",{"$nulls":5},"DRHolder",null,"CustodianOrDRHolderDomain",{"$nulls":5},"DetailsOfSharesHeldByCustodianOrDRHolderAxis"]
[{"$nulls":4},"( 2 )","Central  Government/  State  Government(s)/ President of India",{"$nulls":5},{"$f":"+IFERROR(IF(COUNT(I40:K40),ROUND(SUM(I40:K40),0),\"\"),\"\")","v":""},{"$f":"+IFERROR(IF(COUNT(L40),ROUND(L40/'Shareholding Pattern'!$L$57*100,2),\"\"),\"\")","v":""},{"$f":"+IF(COUNT(I40),SUM(I40),\"\")","v":""},null,{"$f":"+IFERROR(IF(COUNT(N40:O40),ROUND(SUM(N40:O40),0),\"\"),\"\")","v":""},{"$f":"+IFERROR(IF(COUNT(P40),ROUND(P40/'Shareholding Pattern'!$P$58*100,2),\"\"),\"\")","v":""},null,null,{"$f":"+IFERROR(IF(COUNT(R40:S40),ROUND(SUM(R40:S40),0),\"\"),\"\")","v":""},{"$f":"+IFERROR(IF(COUNT(L40,T40),ROUND(SUM(L40,T40)/SUM('Shareholding Pattern'!$L$57,'Shareholding Pattern'!$T$57)*100,2),\"\"),\"\")","v":""},null,"",{"$nulls":20},"Central Government or State Government(s) or President of India [Member]",{"$nulls":5},"EBT",null,"EmployeeBenefitsTrustsDomain",{"$nulls":5},"DetailsOfSharesHeldByEmployeeBenefitsTrustsAxis"]
[{"$nulls":4},"Sub-Total (B)(2)",null,null,{"$f":"+IF(COUNT(H40),SUM(H40),\"\")","v":""},{"$f":"+IF(COUNT(I40),SUM(I40),\"\")","v":""},"","","",{"$f":"+IFERROR(IF(COUNT(L41),ROUND(L41/'Shareholding Pattern'!$L$57*100,2),\"\"),\"\")","v":""},"","","",{"$f":"+IFERROR(IF(COUNT(P41),ROUND(P41/'Shareholding Pattern'!$P$58*100,2),\"\"),\"\")","v":""},"","","",{"$f":"+IFERROR(IF(COUNT(L41,T41),ROUND(SUM(L41,T41)/SUM('Shareholding Pattern'!$L$57,'Shareholding Pattern'!$T$57)*100,2),\"\"),\"\")","v":""},"","",null,null,{"$f":"+IF(COUNT(Z40),SUM(Z40),\"\")","v":""},{"$nulls":17},"Goverments [Member]"]
[{"$nulls":4},"( 3 )","Non-institutions"]
[{"$nulls":4},"(a(i))","Individuals -  \ni.Individual shareholders holding nominal share capital up to Rs. 2 lakhs. ",null,3196,232188,null,null,{"$f":"+IFERROR(IF(COUNT(I43:K43),ROUND(SUM(I43:K43),0),\"\"),\"\")","v":232188},{"$f":"+IFERROR(IF(COUNT(L43),ROUND(L43/'Shareholding Pattern'!$L$57*100,2),\"\"),\"\")","v":35.89},{"$f":"+IF(COUNT(I43),SUM(I43),\"\")","v":{"v":232188,"d":"232188.00"}},null,{"$f":"+IFERROR(IF(COUNT(N43:O43),ROUND(SUM(N43:O43),0),\"\"),\"\")","v":232188},{"$f":"+IFERROR(IF(COUNT(P43),ROUND(P43/'Shareholding Pattern'!$P$58*100,2),\"\"),\"\")","v":35.89},null,null,{"$f":"+IFERROR(IF(COUNT(R43:S43),ROUND(SUM(R43:S43),0),\"\"),\"\")","v":""},{"$f":"+IFERROR(IF(COUNT(L43,T43),ROUND(SUM(L43,T43)/SUM('Shareholding Pattern'!$L$57,'Shareholding Pattern'!$T$57)*100,2),\"\"),\"\")","v":35.89},null,"",null,null,99846,{"$nulls":17},"Individual shareholders holding nominal share capital up to Rs two lakh [Member]"]
[{"$nulls":4},"(a(ii))","Individuals -  \nii. Individual shareholders holding nominal share capital in excess of Rs. 2 lakhs.",null,2,16580,null,null,{"$f":"+IFERROR(IF(COUNT(I44:K44),ROUND(SUM(I44:K44),0),\"\"),\"\")","v":16580},{"$f":"+IFERROR(IF(COUNT(L44),ROUND(L44/'Shareholding Pattern'!$L$57*100,2),\"\"),\"\")","v":2.56},{"v":16580,"d":"16580.00"},null,{"$f":"+IFERROR(IF(COUNT(N44:O44),ROUND(SUM(N44:O44),0),\"\"),\"\")","v":16580},{"$f":"+IFERROR(IF(COUNT(P44),ROUND(P44/'Shareholding Pattern'!$P$58*100,2),\"\"),\"\")","v":2.56},null,null,{"$f":"+IFERROR(IF(COUNT(R44:S44),ROUND(SUM(R44:S44),0),\"\"),\"\")","v":""},{"$f":"+IFERROR(IF(COUNT(L44,T44),ROUND(SUM(L44,T44)/SUM('Shareholding Pattern'!$L$57,'Shareholding Pattern'!$T$57)*100,2),\"\"),\"\")","v":2.56},null,"",null,null,8500,{"$nulls":17},"Individual shareholders holding nominal share capital in excess of Rs two lakh [Member]"]
[{"$nulls":4},"(b)","NBFCs registered with RBI",{"$nulls":5},"",{"$f":"+IFERROR(IF(COUNT(L45),ROUND(L45/'Shareholding Pattern'!$L$57*100,2),\"\"),\"\")","v":""},"",null,"",{"$f":"+IFERROR(IF(COUNT(P45),ROUND(P45/'Shareholding Pattern'!$P$58*100,2),\"\"),\"\")","v":""},null,null,"",{"$f":"+IFERROR(IF(COUNT(L45,T45),ROUND(SUM(L45,T45)/SUM('Shareholding Pattern'!$L$57,'Shareholding Pattern'!$T$57)*100,2),\"\"),\"\")","v":""},null,"",{"$nulls":20},"NBFCs registered with RBI [Member]"]
[{"$nulls":4},"(c)","Employee Trusts",{"$nulls":5},"",{"$f":"+IFERROR(IF(COUNT(L46),ROUND(L46/'Shareholding Pattern'!$L$57*100,2),\"\"),\"\")","v":""},"",null,"",{"$f":"+IFERROR(IF(COUNT(P46),ROUND(P46/'Shareholding Pattern'!$P$58*100,2),\"\"),\"\")","v":""},null,null,"",{"$f":"+IFERROR(IF(COUNT(L46,T46),ROUND(SUM(L46,T46)/SUM('Shareholding Pattern'!$L$57,'Shareholding Pattern'!$T$57)*100,2),\"\"),\"\")","v":""},null,"",{"$nulls":20},"Employee Trusts [Member]"]
[{"$nulls":4},"(d)","Overseas Depositories (holding DRs) (balancing figure)",{"$nulls":5},"",{"$f":"+IFERROR(IF(COUNT(L47),ROUND(L47/'Shareholding Pattern'!$L$57*100,2),\"\"),\"\")","v":""},"",null,"",{"$f":"+IFERROR(IF(COUNT(P47),ROUND(P47/'Shareholding Pattern'!$P$58*100,2),\"\"),\"\")","v":""},null,null,"",{"$f":"+IFERROR(IF(COUNT(L47,T47),ROUND(SUM(L47,T47)/SUM('Shareholding Pattern'!$L$57,'Shareholding Pattern'!$T$57)*100,2),\"\"),\"\")","v":""},null,"",{"$nulls":20},"Overseas Depositories [Member]"]
[{"$nulls":4},"(e)","Any Other (specify)",null,106,240088,null,null,240088,{"$f":"+IFERROR(IF(COUNT(L48),ROUND(L48/'Shareholding Pattern'!$L$57*100,2),\"\"),\"\")","v":37.11},{"v":240088,"d":"240088.00"},null,240088,{"$f":"+IFERROR(IF(COUNT(P48),ROUND(P48/'Shareholding Pattern'!$P$58*100,2),\"\"),\"\")","v":37.11},null,null,"",{"$f":"+IFERROR(IF(COUNT(L48,T48),ROUND(SUM(L48,T48)/SUM('Shareholding Pattern'!$L$57,'Shareholding Pattern'!$T$57)*100,2),\"\"),\"\")","v":37.11},null,"",null,null,234838,{"$nulls":17},"Other non-institutions [Member]"]
[{"$nulls":4},"Sub-Total (B)(3)",null,null,{"$f":"+IFERROR(IF(COUNT(H43:H48),ROUND(SUM(H43:H48),0),\"\"),\"\")","v":3304},488856,"","",488856,{"$f":"+IFERROR(IF(COUNT(L49),ROUND(L49/'Shareholding Pattern'!$L$57*100,2),\"\"),\"\")","v":75.56},{"v":488856,"d":"488856.00"},"",{"$f":"+IFERROR(IF(COUNT(N49:O49),ROUND(SUM(N49:O49),0),\"\"),\"\")","v":488856},{"$f":"+IFERROR(IF(COUNT(P49),ROUND(P49/'Shareholding Pattern'!$P$58*100,2),\"\"),\"\")","v":75.56},"","",{"$f":"+IFERROR(IF(COUNT(R49:S49),ROUND(SUM(R49:S49),0),\"\"),\"\")","v":""},{"$f":"+IFERROR(IF(COUNT(L49,T49),ROUND(SUM(L49,T49)/SUM('Shareholding Pattern'!$L$57,'Shareholding Pattern'!$T$57)*100,2),\"\"),\"\")","v":75.56},"","",null,null,{"$f":"+IFERROR(IF(COUNT(Z43:Z48),ROUND(SUM(Z43:Z48),0),\"\"),\"\")","v":343184},{"$nulls":17},"Non-institutions [Member]"]
[{"$nulls":4},"Total Public Shareholding (B)=(B)(1)+(B)(2)+(B)(3)",null,null,{"$f":"+IFERROR(IF(COUNT(H39,H41,H49),ROUND(SUM(H39,H41,H49),0),\"\"),\"\")","v":3304},{"$f":"+IFERROR(IF(COUNT(I39,I41,I49),ROUND(SUM(I39,I41,I49),0),\"\"),\"\")","v":488856},"","",488856,{"$f":"+IFERROR(IF(COUNT(L50),ROUND(L50/'Shareholding Pattern'!$L$57*100,2),\"\"),\"\")","v":75.56},{"v":488856,"d":"488856.00"},"",488856,{"$f":"+IFERROR(IF(COUNT(P50),ROUND(P50/'Shareholding Pattern'!$P$58*100,2),\"\"),\"\")","v":75.56},{"$f":"+IFERROR(IF(COUNT(R39,R40,R49),ROUND(SUM(R39,R40,R49),0),\"\"),\"\")","v":""},{"$f":"+IFERROR(IF(COUNT(S39,S40,S49),ROUND(SUM(S39,S40,S49),0),\"\"),\"\")","v":""},"",{"$f":"+IFERROR(IF(COUNT(L50,T50),ROUND(SUM(L50,T50)/SUM('Shareholding Pattern'!$L$57,'Shareholding Pattern'!$T$57)*100,2),\"\"),\"\")","v":75.56},"","",null,null,{"$f":"+IFERROR(IF(COUNT(Z39,Z41,Z49),ROUND(SUM(Z39,Z41,Z49),0),\"\"),\"\")","v":343184},{"$nulls":17},"Public shareholding [Member]"]
[{"$nulls":5},"Details of the shareholders acting as persons in Concert for Public"]
[{"$nulls":5},"Details of Shares which remain unclaimed for Public"]
[{"$nulls":4},"C","Table IV - Statement showing shareholding pattern of the Non Promoter- Non Public shareholder"]
[{"$nulls":4},"( 1 )","Custodian/DR  Holder - Name of DR Holders  (If Available)",{"$nulls":5},{"$f":"+IFERROR(IF(COUNT(I54:K54),ROUND(SUM(I54:K54),2),\"\"),\"\")","v":""},null,{"$f":"+IF(COUNT(I54),SUM(I54),\"\")","v":""},null,{"$f":"+IFERROR(IF(COUNT(N54:O54),ROUND(SUM(N54:O54),2),\"\"),\"\")","v":""},{"$nulls":3},{"$f":"+IFERROR(IF(COUNT(R54:S54),ROUND(SUM(R54:S54),2),\"\"),\"\")","v":""},null,null,{"$f":"+IFERROR(IF(COUNT(V54),ROUND(SUM(V54)/SUM(I54)*100,2),\"\"),0)","v":""},{"$nulls":20},"Custodian or DR holder [Member]"]
[{"$nulls":4},"( 2 )","Employee Benefit Trust (under SEBI (Share based Employee Benefit) Regulations, 2014)",{"$nulls":5},{"$f":"+IFERROR(IF(COUNT(I55:K55),ROUND(SUM(I55:K55),2),\"\"),\"\")","v":""},{"$f":"+IFERROR(IF(COUNT(L55),ROUND(L55/'Shareholding Pattern'!$L$57*100,2),\"\"),\"\")","v":""},"",null,{"$f":"+IFERROR(IF(COUNT(N55:O55),ROUND(SUM(N55:O55),2),\"\"),\"\")","v":""},{"$nulls":3},{"$f":"+IFERROR(IF(COUNT(R55:S55),ROUND(SUM(R55:S55),2),\"\"),\"\")","v":""},{"$f":"+IFERROR(IF(COUNT(L55,T55),ROUND(SUM(L55,T55)/SUM('Shareholding Pattern'!$L$57,'Shareholding Pattern'!$T$57)*100,2),\"\"),\"\")","v":""},null,"",{"$nulls":20},"Employee benefits trusts [Member]"]
[{"$nulls":4},"Total NonPromoter- Non Public  Shareholding \n(C)= (C)(1)+(C)(2)",null,null,{"$f":"IFERROR(IF(COUNT(H54:H55),ROUND(SUM(H54:H55),0),\"\"),\"\")","v":""},{"$f":"IFERROR(IF(COUNT(I54:I55),ROUND(SUM(I54:I55),0),\"\"),\"\")","v":""},"","","",{"$f":"+IFERROR(IF(COUNT(L56),ROUND(L56/'Shareholding Pattern'!$L$57*100,2),\"\"),\"\")","v":""},"","","",{"$f":"+IFERROR(IF(COUNT(P56),ROUND(P56/'Shareholding Pattern'!$P$58*100,2),\"\"),\"\")","v":""},"","","",{"$f":"+IFERROR(IF(COUNT(L56,T56),ROUND(SUM(L56,T56)/SUM('Shareholding Pattern'!$L$57,'Shareholding Pattern'!$T$57)*100,2),\"\"),\"\")","v":""},"","",null,null,"",{"$nulls":17},"Shares held by non-promoter non-public shareholders [Member]"]
[{"$nulls":4},"Total ( A+B+C2 )",null,null,{"$f":"+IFERROR(IF(COUNT(H26,H50,H55),ROUND(SUM(H26,H50,H55),0),\"\"),\"\")","v":3306},647000,"","",647000,{"$f":"+IFERROR(IF(COUNT(L57),ROUND(L57/'Shareholding Pattern'!$L$57*100,2),\"\"),\"\")","v":{"v":100,"d":"100.00"}},{"v":647000,"d":"647000.00"},"",647000,{"$f":"+IFERROR(IF(COUNT(P57),ROUND(P57/'Shareholding Pattern'!$P$58*100,2),\"\"),\"\")","v":{"v":100,"d":"100.00"}},"","","",{"$f":"+IFERROR(IF(COUNT(L57,T57),ROUND(SUM(L57,T57)/SUM('Shareholding Pattern'!$L$57,'Shareholding Pattern'!$T$57)*100,2),\"\"),\"\")","v":{"v":100,"d":"100.00"}},"","",null,null,501328]
[{"$nulls":4},"Total (A+B+C )",null,null,{"$f":"+IFERROR(IF(COUNT(H26,H50,H56),ROUND(SUM(H26,H50,H56),0),\"\"),\"\")","v":3306},647000,"","",647000,null,{"v":647000,"d":"647000.00"},"",647000,{"$f":"+IFERROR(IF(COUNT(P58),ROUND(P58/'Shareholding Pattern'!$P$58*100,2),\"\"),\"\")","v":{"v":100,"d":"100.00"}},"","","",{"v":100,"d":"100.00"},"","","",{"$f":"+IFERROR(IF(COUNT(X58),ROUND(SUM(X58)/SUM(I58)*100,2),\"\"),0)","v":""},501328,{"$nulls":17},"Shareholding pattern [Member]"]
[{"$nulls":4},"Disclosure of notes on shareholding pattern"]

{"sheet":"IndHUF","index":6,"n_rows":18,"n_cols":25,"rows_kept":18,"hidden":true,"merged":[[8,4,10,4],[8,5,10,5],[8,6,10,6],[8,7,10,7],[8,8,10,8],[8,9,10,9],[8,10,10,10],[8,11,10,11],[8,12,8,15],[8,16,10,16],[8,17,10,17],[8,18,10,18],[8,19,10,19],[8,20,9,21],[8,22,9,23],[8,24,10,24],[9,12,9,14],[9,15,10,15]]}
[{"$nulls":8},2]
[{"$nulls":5},"Name of shareholder","Permanent account number of shareholder","Number of fully paid up equity shares","Number of partly paid-up equity shares","Number of shares underlying outstanding depository receipts","Total number of shares","Shareholding as a percentage of total number of shares held by promoters and public shareholders and custodians or DR holders","Number of voting rights held by same class of securities","Number of voting rights held by differential voting rights","Total Number of voting rights","Percentage of total number of voting rights","Number of shares underlying outstanding convertible securities","Number of warrant","Number of warrant and convertible securities","Total shareholding as a percentage assuming full conversion of convertible securities","Number of the locked-in-shares ","Locked-in-shares as a percentage of total number of shares","Pledged or encumbered - number of shares","Pledged or encumbered shares held as percentage of total number of shares","Number of equity shares held in dematerialized form"]
[]
[]
[]
[]
[]
[]
[{"$nulls":4},"Searial No.","Name\nof the \nShareholders\n     (I)","PAN \n(II)","No. of fully paid up equity shares held\n(IV)","No. Of Partly paid-up equity shares held\n(V)","No. Of shares underlying Depository Receipts\n(VI)","Total nos. shares\nheld\n(VII) = (IV)+(V)+ (VI)","Shareholding as a % of total no. of shares (calculated as per SCRR, 1957)\n(VIII)\nAs a % of (A+B+C2)","Number of Voting Rights held in each class of securities\n(IX)",{"$nulls":3},"No. Of Shares Underlying Outstanding convertible securities\n(X)","No. Of Warrants\n(Xi)","No. Of Shares Underlying Outstanding convertible securities and No. Of Warrants\n(Xi) (a)","Shareholding , as a % assuming full conversion of convertible securities (as a percentage of diluted share capital)\n(XI)= (VII)+(Xi)(a)\nAs a % of (A+B+C2)","Number of Locked in shares\n(XII)",null,"Number of Shares pledged or otherwise encumbered\n(XIII)",null,"Number of equity shares held in dematerialized form \n(XIV)"]
[{"$nulls":12},"No of Voting (XIV) Rights",null,null,"Total as\na % of\nTotal\nVoting\nrights"]
[{"$nulls":12},"Class\neg:X","Class\neg:y","Total",{"$nulls":5},"No.\n(a)","As a % of total Shares held\n(b)","No.\n(a)","As a % of total Shares held\n(b)"]
[{"$nulls":4},"A1(a)","Individuals/Hindu undivided Family"]
[{"$nulls":10},{"$f":"+IFERROR(IF(COUNT(H13:J13),ROUND(SUM(H13:J13),0),\"\"),\"\")","v":""},{"$f":"+IFERROR(IF(COUNT(K13),ROUND(K13/'Shareholding Pattern'!$L$57*100,2),\"\"),\"\")","v":""},{"$f":"IF(H13=\"\",\"\",H13)","v":""},null,{"$f":"+IFERROR(IF(COUNT(M13:N13),ROUND(SUM(M13,N13),2),\"\"),\"\")","v":""},{"$f":"+IFERROR(IF(COUNT(O13),ROUND(O13/('Shareholding Pattern'!$P$58)*100,2),\"\"),\"\")","v":""},null,null,{"$f":"+IFERROR(IF(COUNT(Q13:R13),ROUND(SUM(Q13:R13),0),\"\"),\"\")","v":""},{"$f":"+IFERROR(IF(COUNT(K13,S13),ROUND(SUM(S13,K13)/SUM('Shareholding Pattern'!$L$57,'Shareholding Pattern'!$T$57)*100,2),\"\"),\"\")","v":""},null,{"$f":"+IFERROR(IF(COUNT(U13),ROUND(SUM(U13)/SUM(H13)*100,2),\"\"),0)","v":""},null,{"$f":"+IFERROR(IF(COUNT(W13),ROUND(SUM(W13)/SUM(H13)*100,2),\"\"),0)","v":""}]
[]
[{"$nulls":4},1,"Aishwarya Sethia","CLYPS7582L",7498,null,null,{"$f":"+IFERROR(IF(COUNT(H15:J15),ROUND(SUM(H15:J15),0),\"\"),\"\")","v":7498},{"$f":"+IFERROR(IF(COUNT(K15),ROUND(K15/'Shareholding Pattern'!$L$57*100,2),\"\"),\"\")","v":1.16},{"$f":"IF(H15=\"\",\"\",H15)","v":{"v":7498,"d":"7498.00"}},null,{"$f":"+IFERROR(IF(COUNT(M15:N15),ROUND(SUM(M15,N15),2),\"\"),\"\")","v":{"v":7498,"d":"7498.00"}},{"$f":"+IFERROR(IF(COUNT(O15),ROUND(O15/('Shareholding Pattern'!$P$58)*100,2),\"\"),\"\")","v":1.16},null,null,{"$f":"+IFERROR(IF(COUNT(Q15:R15),ROUND(SUM(Q15:R15),0),\"\"),\"\")","v":""},{"$f":"+IFERROR(IF(COUNT(K15,S15),ROUND(SUM(S15,K15)/SUM('Shareholding Pattern'!$L$57,'Shareholding Pattern'!$T$57)*100,2),\"\"),\"\")","v":1.16},null,{"$f":"+IFERROR(IF(COUNT(U15),ROUND(SUM(U15)/SUM(H15)*100,2),\"\"),0)","v":""},null,{"$f":"+IFERROR(IF(COUNT(W15),ROUND(SUM(W15)/SUM(H15)*100,2),\"\"),0)","v":""},7498]
[{"$nulls":4},2,"Raj Kumar Sethia","AMAPS5392R",150646,null,null,{"$f":"+IFERROR(IF(COUNT(H16:J16),ROUND(SUM(H16:J16),0),\"\"),\"\")","v":150646},{"$f":"+IFERROR(IF(COUNT(K16),ROUND(K16/'Shareholding Pattern'!$L$57*100,2),\"\"),\"\")","v":23.28},{"$f":"IF(H16=\"\",\"\",H16)","v":{"v":150646,"d":"150646.00"}},null,{"$f":"+IFERROR(IF(COUNT(M16:N16),ROUND(SUM(M16,N16),2),\"\"),\"\")","v":{"v":150646,"d":"150646.00"}},{"$f":"+IFERROR(IF(COUNT(O16),ROUND(O16/('Shareholding Pattern'!$P$58)*100,2),\"\"),\"\")","v":23.28},null,null,{"$f":"+IFERROR(IF(COUNT(Q16:R16),ROUND(SUM(Q16:R16),0),\"\"),\"\")","v":""},{"$f":"+IFERROR(IF(COUNT(K16,S16),ROUND(SUM(S16,K16)/SUM('Shareholding Pattern'!$L$57,'Shareholding Pattern'!$T$57)*100,2),\"\"),\"\")","v":23.28},null,{"$f":"+IFERROR(IF(COUNT(U16),ROUND(SUM(U16)/SUM(H16)*100,2),\"\"),0)","v":""},null,{"$f":"+IFERROR(IF(COUNT(W16),ROUND(SUM(W16)/SUM(H16)*100,2),\"\"),0)","v":""},150646]
[]
[{"$nulls":5},"Click here to go back","Total",{"$f":"+IFERROR(IF(COUNT(H14:H17),ROUND(SUM(H14:H17),0),\"\"),\"\")","v":158144},{"$f":"+IFERROR(IF(COUNT(I14:I17),ROUND(SUM(I14:I17),0),\"\"),\"\")","v":""},{"$f":"+IFERROR(IF(COUNT(J14:J17),ROUND(SUM(J14:J17),0),\"\"),\"\")","v":""},{"$f":"+IFERROR(IF(COUNT(K14:K17),ROUND(SUM(K14:K17),0),\"\"),\"\")","v":158144},{"$f":"+IFERROR(IF(COUNT(K18),ROUND(K18/'Shareholding Pattern'!$L$57*100,2),\"\"),\"\")","v":24.44},{"$f":"+IFERROR(IF(COUNT(M14:M17),ROUND(SUM(M14:M17),0),\"\"),\"\")","v":{"v":158144,"d":"158144.00"}},{"$f":"+IFERROR(IF(COUNT(N14:N17),ROUND(SUM(N14:N17),0),\"\"),\"\")","v":""},{"$f":"+IFERROR(IF(COUNT(O14:O17),ROUND(SUM(O14:O17),0),\"\"),\"\")","v":{"v":158144,"d":"158144.00"}},{"$f":"+IFERROR(IF(COUNT(O18),ROUND(O18/('Shareholding Pattern'!$P$58)*100,2),\"\"),\"\")","v":24.44},{"$f":"+IFERROR(IF(COUNT(Q14:Q17),ROUND(SUM(Q14:Q17),0),\"\"),\"\")","v":""},{"$f":"+IFERROR(IF(COUNT(R14:R17),ROUND(SUM(R14:R17),0),\"\"),\"\")","v":""},{"$f":"+IFERROR(IF(COUNT(S14:S17),ROUND(SUM(S14:S17),0),\"\"),\"\")","v":""},{"$f":"+IFERROR(IF(COUNT(K18,S18),ROUND(SUM(S18,K18)/SUM('Shareholding Pattern'!$L$57,'Shareholding Pattern'!$T$57)*100,2),\"\"),\"\")","v":24.44},{"$f":"+IFERROR(IF(COUNT(U14:U17),ROUND(SUM(U14:U17),0),\"\"),\"\")","v":""},{"$f":"+IFERROR(IF(COUNT(U18),ROUND(SUM(U18)/SUM(H18)*100,2),\"\"),0)","v":""},{"$f":"+IFERROR(IF(COUNT(W14:W17),ROUND(SUM(W14:W17),0),\"\"),\"\")","v":""},{"$f":"+IFERROR(IF(COUNT(W18),ROUND(SUM(W18)/SUM(H18)*100,2),\"\"),0)","v":""},{"$f":"+IFERROR(IF(COUNT(Y14:Y17),ROUND(SUM(Y14:Y17),0),\"\"),\"\")","v":158144}]

{"sheet":"CGAndSG","index":7,"n_rows":16,"n_cols":26,"rows_kept":16,"hidden":true,"merged":[[8,4,10,4],[8,5,10,5],[8,6,10,6],[8,7,10,7],[8,8,10,8],[8,9,10,9],[8,10,10,10],[8,11,10,11],[8,12,8,15],[8,16,10,16],[8,17,10,17],[8,18,10,18],[8,19,10,19],[8,20,9,21],[8,22,9,23],[8,24,10,24],[9,12,9,14],[9,15,10,15],[11,5,11,6]]}
[{"$nulls":8},0]
[{"$nulls":5},"Name of shareholder","Permanent account number of shareholder","Number of fully paid up equity shares","Number of partly paid-up equity shares","Number of shares underlying outstanding depository receipts","Total number of shares","Shareholding as a percentage of total number of shares held by promoters and public shareholders and custodians or DR holders","Number of voting rights held by same class of securities","Number of voting rights held by differential voting rights","Total Number of voting rights","Percentage of total number of voting rights","Number of shares underlying outstanding convertible securities","Number of warrant","Number of warrant and convertible securities","Total shareholding as a percentage assuming full conversion of convertible securities","Number of the locked-in-shares ","Locked-in-shares as a percentage of total number of shares","Pledged or encumbered - number of shares","Pledged or encumbered shares held as percentage of total number of shares","Number of equity shares held in dematerialized form","Number of equity shares held in dematerialized form"]
[]
[]
[]
[]
[]
[]
[{"$nulls":4},"Searial No.","Name\nof the \nShareholders\n     (I)","PAN \n(II)","No. of fully paid up equity shares held\n(IV)","No. Of Partly paid-up equity shares held\n(V)","No. Of shares underlying Depository Receipts\n(VI)","Total nos. shares\nheld\n(VII) = (IV)+(V)+ (VI)","Shareholding as a % of total no. of shares (calculated as per SCRR, 1957)\n(VIII)\nAs a % of (A+B+C2)","Number of Voting Rights held in each class of securities\n(IX)",{"$nulls":3},"No. Of Shares Underlying Outstanding convertible securities\n(X)","No. Of Warrants\n(Xi)","No. Of Shares Underlying Outstanding convertible securities and warrants\n(X)","Shareholding , as a % assuming full conversion of convertible securities (as a percentage of diluted share capital)\n(XI)= (VII)+(X)\nAs a % of (A+B+C2)","Number of Locked in shares\n(XII)",null,"Number of Shares pledged or otherwise encumbered\n(XIII)",null,"Number of equity shares held in dematerialized form \n(XIV)"]
[{"$nulls":12},"No of Voting (XIV)\nRights",null,null,"Total as\na % of\nTotal\nVoting\nrights"]
[{"$nulls":12},"Class\neg:\nX","Class\neg:y","Total",{"$nulls":5},"No.\n(a)","As a % of total Shares held\n(b)","No.\n(a)","As a % of total Shares held\n(b)"]
[{"$nulls":4},"A1(b)","Central  Government/ State Government(s)"]
[{"$nulls":10},{"$f":"+IFERROR(IF(COUNT(H13:J13),ROUND(SUM(H13:J13),0),\"\"),\"\")","v":""},{"$f":"+IFERROR(IF(COUNT(K13),ROUND(K13/'Shareholding Pattern'!$L$57*100,2),\"\"),\"\")","v":""},{"$f":"IF(H13=\"\",\"\",H13)","v":""},null,{"$f":"+IFERROR(IF(COUNT(M13:N13),ROUND(SUM(M13,N13),2),\"\"),\"\")","v":""},{"$f":"+IFERROR(IF(COUNT(O13),ROUND(O13/('Shareholding Pattern'!$P$58)*100,2),\"\"),\"\")","v":""},null,null,{"$f":"+IFERROR(IF(COUNT(Q13:R13),ROUND(SUM(Q13:R13),0),\"\"),\"\")","v":""},{"$f":"+IFERROR(IF(COUNT(K13,S13),ROUND(SUM(S13,K13)/SUM('Shareholding Pattern'!$L$57,'Shareholding Pattern'!$T$57)*100,2),\"\"),\"\")","v":""},null,{"$f":"+IFERROR(IF(COUNT(U13),ROUND(SUM(U13)/SUM(H13)*100,2),\"\"),0)","v":""},null,{"$f":"+IFERROR(IF(COUNT(W13),ROUND(SUM(W13)/SUM(H13)*100,2),\"\"),0)","v":""}]
[]
[]
[{"$nulls":5},"Click here to go back","Total",{"$f":"+IFERROR(IF(COUNT(H14:H15),ROUND(SUM(H14:H15),0),\"\"),\"\")","v":""},{"$f":"+IFERROR(IF(COUNT(I14:I15),ROUND(SUM(I14:I15),0),\"\"),\"\")","v":""},{"$f":"+IFERROR(IF(COUNT(J14:J15),ROUND(SUM(J14:J15),0),\"\"),\"\")","v":""},{"$f":"+IFERROR(IF(COUNT(H16:J16),ROUND(SUM(H16:J16),0),\"\"),\"\")","v":""},{"$f":"+IFERROR(IF(COUNT(K16),ROUND(K16/'Shareholding Pattern'!$L$57*100,2),\"\"),\"\")","v":""},{"$f":"+IFERROR(IF(COUNT(M14:M15),ROUND(SUM(M14:M15),0),\"\"),\"\")","v":""},{"$f":"+IFERROR(IF(COUNT(N14:N15),ROUND(SUM(N14:N15),0),\"\"),\"\")","v":""},{"$f":"+IFERROR(IF(COUNT(M16:N16),ROUND(SUM(M16,N16),2),\"\"),\"\")","v":""},{"$f":"+IFERROR(IF(COUNT(O16),ROUND(O16/('Shareholding Pattern'!$P$58)*100,2),\"\"),\"\")","v":""},{"$f":"+IFERROR(IF(COUNT(Q14:Q15),ROUND(SUM(Q14:Q15),0),\"\"),\"\")","v":""},{"$f":"+IFERROR(IF(COUNT(R14:R15),ROUND(SUM(R14:R15),0),\"\"),\"\")","v":""},{"$f":"+IFERROR(IF(COUNT(Q16:R16),ROUND(SUM(Q16:R16),0),\"\"),\"\")","v":""},{"$f":"+IFERROR(IF(COUNT(K16,S16),ROUND(SUM(S16,K16)/SUM('Shareholding Pattern'!$L$57,'Shareholding Pattern'!$T$57)*100,2),\"\"),\"\")","v":""},{"$f":"+IFERROR(IF(COUNT(U14:U15),ROUND(SUM(U14:U15),0),\"\"),\"\")","v":""},{"$f":"+IFERROR(IF(COUNT(U16),ROUND(SUM(U16)/SUM(H16)*100,2),\"\"),0)","v":""},{"$f":"+IFERROR(IF(COUNT(W14:W15),ROUND(SUM(W14:W15),0),\"\"),\"\")","v":""},{"$f":"+IFERROR(IF(COUNT(W16),ROUND(SUM(W16)/SUM(H16)*100,2),\"\"),0)","v":""},{"$f":"+IFERROR(IF(COUNT(Y14:Y15),ROUND(SUM(Y14:Y15),0),\"\"),\"\")","v":""}]

{"sheet":"Banks","index":8,"n_rows":16,"n_cols":44,"rows_kept":16,"hidden":true,"merged":[[8,4,10,4],[8,5,10,5],[8,6,10,6],[8,7,10,7],[8,8,10,8],[8,9,10,9],[8,10,10,10],[8,11,10,11],[8,12,8,15],[8,16,10,16],[8,17,10,17],[8,18,10,18],[8,19,10,19],[8,20,9,21],[8,22,9,23],[8,24,10,24],[9,12,9,14],[9,15,10,15]]}
[{"$nulls":8},0]
[{"$nulls":5},"Name of shareholder","Permanent account number of shareholder","Number of fully paid up equity shares","Number of partly paid-up equity shares","Number of shares underlying outstanding depository receipts","Total number of shares","Shareholding as a percentage of total number of shares held by promoters and public shareholders and custodians or DR holders","Number of voting rights held by same class of securities","Number of voting rights held by differential voting rights","Total Number of voting rights","Percentage of total number of voting rights","Number of shares underlying outstanding convertible securities","Number of warrant","Number of warrant and convertible securities","Total shareholding as a percentage assuming full conversion of convertible securities","Number of the locked-in-shares ","Locked-in-shares as a percentage of total number of shares","Pledged or encumbered - number of shares","Pledged or encumbered shares held as percentage of total number of shares","Number of equity shares held in dematerialized form","Number of equity shares held in dematerialized form"]
[]
[]
[]
[]
[{"$nulls":43},"Trusts"]
[{"$nulls":43},"HUF"]
[{"$nulls":4},"Searial No.","Name\nof the \nShareholders\n     (I)","PAN \n(II)","No. of fully paid up equity shares held\n(IV)","No. Of Partly paid-up equity shares held\n(V)","No. Of shares underlying Depository Receipts\n(VI)","Total nos. shares\nheld\n(VII) = (IV)+(V)+ (VI)","Shareholding as a % of total no. of shares (calculated as per SCRR, 1957)\n(VIII)\nAs a % of (A+B+C2)","Number of Voting Rights held in each class of securities\n(IX)",{"$nulls":3},"No. Of Shares Underlying Outstanding convertible securities\n(X)","No. Of Warrants\n(Xi)","No. Of Shares Underlying Outstanding convertible securities and No. Of Warrants\n(Xi) (a)","Shareholding , as a % assuming full conversion of convertible securities (as a percentage of diluted share capital)\n(XI)= (VII)+(X)\nAs a % of (A+B+C2)","Number of Locked in shares\n(XII)",null,"Number of Shares pledged or otherwise encumbered\n(XIII)",null,"Number of equity shares held in dematerialized form \n(XIV)",{"$nulls":18},"Societies"]
[{"$nulls":12},"No of Voting (XIV)\nRights",null,null,"Total as\na % of\nTotal\nVoting\nrights",{"$nulls":27},"ESOP or ESOS or ESPS"]
[{"$nulls":12},"Class\neg:\nX","Class\neg:y","Total",{"$nulls":5},"No.\n(a)","As a % of total Shares held\n(b)","No.\n(a)","As a % of total Shares held\n(b)",{"$nulls":19},"Employee welfare fund"]
[{"$nulls":4},"A1(c)","Financial  Institutions/ Banks",{"$nulls":37},"Venture capital funds"]
[{"$nulls":10},{"$f":"+IFERROR(IF(COUNT(H13:J13),ROUND(SUM(H13:J13),0),\"\"),\"\")","v":""},{"$f":"+IFERROR(IF(COUNT(K13),ROUND(K13/'Shareholding Pattern'!$L$57*100,2),\"\"),\"\")","v":""},{"$f":"IF(H13=\"\",\"\",H13)","v":""},null,{"$f":"+IFERROR(IF(COUNT(M13:N13),ROUND(SUM(M13,N13),2),\"\"),\"\")","v":""},{"$f":"+IFERROR(IF(COUNT(O13),ROUND(O13/('Shareholding Pattern'!$P$58)*100,2),\"\"),\"\")","v":""},null,null,{"$f":"+IFERROR(IF(COUNT(Q13:R13),ROUND(SUM(Q13:R13),0),\"\"),\"\")","v":""},{"$f":"+IFERROR(IF(COUNT(K13,S13),ROUND(SUM(S13,K13)/SUM('Shareholding Pattern'!$L$57,'Shareholding Pattern'!$T$57)*100,2),\"\"),\"\")","v":""},null,{"$f":"+IFERROR(IF(COUNT(U13),ROUND(SUM(U13)/SUM(H13)*100,2),\"\"),0)","v":""},null,{"$f":"+IFERROR(IF(COUNT(W13),ROUND(SUM(W13)/SUM(H13)*100,2),\"\"),0)","v":""},{"$nulls":19},"Angel Investors"]
[{"$nulls":43},"Private Equity Fund"]
[]
[{"$nulls":5},"Click here to go back","Total",{"$f":"+IFERROR(IF(COUNT(H14:H15),ROUND(SUM(H14:H15),0),\"\"),\"\")","v":""},{"$f":"+IFERROR(IF(COUNT(I14:I15),ROUND(SUM(I14:I15),0),\"\"),\"\")","v":""},{"$f":"+IFERROR(IF(COUNT(J14:J15),ROUND(SUM(J14:J15),0),\"\"),\"\")","v":""},{"$f":"+IFERROR(IF(COUNT(K14:K15),ROUND(SUM(K14:K15),0),\"\"),\"\")","v":""},{"$f":"+IFERROR(IF(COUNT(K16),ROUND(K16/'Shareholding Pattern'!$L$57*100,2),\"\"),\"\")","v":""},{"$f":"+IFERROR(IF(COUNT(M14:M15),ROUND(SUM(M14:M15),0),\"\"),\"\")","v":""},{"$f":"+IFERROR(IF(COUNT(N14:N15),ROUND(SUM(N14:N15),0),\"\"),\"\")","v":""},{"$f":"+IFERROR(IF(COUNT(O14:O15),ROUND(SUM(O14:O15),0),\"\"),\"\")","v":""},{"$f":"+IFERROR(IF(COUNT(O16),ROUND(O16/('Shareholding Pattern'!$P$58)*100,2),\"\"),\"\")","v":""},{"$f":"+IFERROR(IF(COUNT(Q14:Q15),ROUND(SUM(Q14:Q15),0),\"\"),\"\")","v":""},{"$f":"+IFERROR(IF(COUNT(R14:R15),ROUND(SUM(R14:R15),0),\"\"),\"\")","v":""},{"$f":"+IFERROR(IF(COUNT(S14:S15),ROUND(SUM(S14:S15),0),\"\"),\"\")","v":""},{"$f":"+IFERROR(IF(COUNT(K16,S16),ROUND(SUM(S16,K16)/SUM('Shareholding Pattern'!$L$57,'Shareholding Pattern'!$T$57)*100,2),\"\"),\"\")","v":""},{"$f":"+IFERROR(IF(COUNT(U14:U15),ROUND(SUM(U14:U15),0),\"\"),\"\")","v":""},{"$f":"+IFERROR(IF(COUNT(U16),ROUND(SUM(U16)/SUM(H16)*100,2),\"\"),0)","v":""},{"$f":"+IFERROR(IF(COUNT(W14:W15),ROUND(SUM(W14:W15),0),\"\"),\"\")","v":""},{"$f":"+IFERROR(IF(COUNT(W16),ROUND(SUM(W16)/SUM(H16)*100,2),\"\"),0)","v":""},{"$f":"+IFERROR(IF(COUNT(Y14:Y15),ROUND(SUM(Y14:Y15),0),\"\"),\"\")","v":""}]

{"sheet":"OtherIND","index":9,"n_rows":16,"n_cols":48,"rows_kept":16,"hidden":true,"merged":[[8,3,10,3],[8,4,10,4],[8,5,10,5],[8,6,10,6],[8,7,10,7],[8,8,10,8],[8,9,10,9],[8,10,10,10],[8,11,10,11],[8,12,10,12],[8,13,10,13],[8,14,8,17],[8,18,10,18],[8,19,10,19],[8,20,10,20],[8,21,10,21],[8,22,9,23],[8,24,9,25],[8,26,10,26],[9,14,9,16],[9,17,10,17],[11,25,11,26],[13,25,13,26]]}
[{"$nulls":8},0,{"$nulls":34},"Director or Director's Relatives"]
[{"$nulls":4},"Category of other indian shareholders","Category or more than one percentage","Name of shareholder","Permanent account number of shareholder","Number of shareholders","Number of fully paid up equity shares","Number of partly paid-up equity shares","Number of shares underlying outstanding depository receipts","Total number of shares","Shareholding as a percentage of total number of shares held by promoters and public shareholders and custodians or DR holders","Number of voting rights held by same class of securities","Number of voting rights held by differential voting rights","Total Number of voting rights","Percentage of total number of voting rights","Number of shares underlying outstanding convertible securities","Number of warrant","Number of warrant and convertible securities","Total shareholding as a percentage assuming full conversion of convertible securities","Number of the locked-in-shares ","Locked-in-shares as a percentage of total number of shares","Pledged or encumbered - number of shares","Pledged or encumbered shares held as percentage of total number of shares","Number of equity shares held in dematerialized form",{"$nulls":16},"Bodies Corporate"]
[{"$nulls":43},"Partnership Firms"]
[{"$nulls":43},"Trusts"]
[{"$nulls":43},"Person Acting in Concert"]
[{"$nulls":43},"Other"]
[]
[]
[{"$nulls":3},"Searial No.","Category",null,"Name\nof the \nShareholders\n     (I)","PAN \n(II)","No.\nof the \nShareholders\n     (I)","No. of fully paid up equity shares held\n(IV)","No. Of Partly paid-up equity shares held\n(V)","No. Of shares underlying Depository Receipts\n(VI)","Total nos. shares\nheld\n(VII) = (IV)+(V)+ (VI)","Shareholding as a % of total no. of shares (calculated as per SCRR, 1957)\n(VIII)\nAs a % of (A+B+C2)","Number of Voting Rights held in each class of securities\n(IX)",{"$nulls":3},"No. Of Shares Underlying Outstanding convertible securities\n(X)","No. Of Warrants\n(Xi)","No. Of Shares Underlying Outstanding convertible securities and No. Of Warrants\n(Xi) (a)","Shareholding , as a % assuming full conversion of convertible securities (as a percentage of diluted share capital)\n(XI)= (VII)+(X)\nAs a % of (A+B+C2)","Number of Locked in shares\n(XII)",null,"Number of Shares pledged or otherwise encumbered\n(XIII)",null,"Number of equity shares held in dematerialized form \n(XIV)",{"$nulls":20},"Category"]
[{"$nulls":14},"No of Voting (XIV)\nRights",null,null,"Total as\na % of\nTotal\nVoting\nrights",{"$nulls":29},"More than 1 percentage of shareholding"]
[{"$nulls":14},"Class\neg:\nX","Class\neg:y","Total",{"$nulls":5},"No.\n(a)","As a % of total Shares held\n(b)","No.\n(a)","As a % of total Shares held\n(b)"]
[{"$nulls":3},"A1(d)","Any Other (specify)"]
[{"$nulls":8},1,{"$nulls":3},{"$f":"+IFERROR(IF(COUNT(J13:L13),ROUND(SUM(J13:L13),0),\"\"),\"\")","v":""},{"$f":"+IFERROR(IF(COUNT(M13),ROUND(M13/'Shareholding Pattern'!$L$57*100,2),\"\"),\"\")","v":""},{"$f":"IF(J13=\"\",\"\",J13)","v":""},null,{"$f":"+IFERROR(IF(COUNT(O13:P13),ROUND(SUM(O13,P13),2),\"\"),\"\")","v":""},{"$f":"+IFERROR(IF(COUNT(Q13),ROUND(Q13/('Shareholding Pattern'!$P$58)*100,2),\"\"),\"\")","v":""},null,null,{"$f":"+IFERROR(IF(COUNT(S13:T13),ROUND(SUM(S13:T13),0),\"\"),\"\")","v":""},{"$f":"+IFERROR(IF(COUNT(M13,U13),ROUND(SUM(U13,M13)/SUM('Shareholding Pattern'!$L$57,'Shareholding Pattern'!$T$57)*100,2),\"\"),\"\")","v":""},null,{"$f":"+IFERROR(IF(COUNT(W13),ROUND(SUM(W13)/SUM(J13)*100,2),\"\"),0)","v":""},null,{"$f":"+IFERROR(IF(COUNT(Y13),ROUND(SUM(Y13)/SUM(J13)*100,2),\"\"),0)","v":""}]
[]
[]
[{"$nulls":4},"Click here to go back",null,null,"Total",{"$f":"+IFERROR(IF(COUNT(I14:I15),ROUND(SUM(I14:I15),0),\"\"),\"\")","v":""},{"$f":"+IFERROR(IF(COUNT(J14:J15),ROUND(SUM(J14:J15),0),\"\"),\"\")","v":""},{"$f":"+IFERROR(IF(COUNT(K14:K15),ROUND(SUM(K14:K15),0),\"\"),\"\")","v":""},{"$f":"+IFERROR(IF(COUNT(L14:L15),ROUND(SUM(L14:L15),0),\"\"),\"\")","v":""},{"$f":"+IFERROR(IF(COUNT(M14:M15),ROUND(SUM(M14:M15),0),\"\"),\"\")","v":""},{"$f":"+IFERROR(IF(COUNT(M16),ROUND(M16/'Shareholding Pattern'!$L$57*100,2),\"\"),\"\")","v":""},{"$f":"+IFERROR(IF(COUNT(O14:O15),ROUND(SUM(O14:O15),0),\"\"),\"\")","v":""},{"$f":"+IFERROR(IF(COUNT(P14:P15),ROUND(SUM(P14:P15),0),\"\"),\"\")","v":""},{"$f":"+IFERROR(IF(COUNT(Q14:Q15),ROUND(SUM(Q14:Q15),0),\"\"),\"\")","v":""},{"$f":"+IFERROR(IF(COUNT(Q16),ROUND(Q16/('Shareholding Pattern'!$P$58)*100,2),\"\"),\"\")","v":""},{"$f":"+IFERROR(IF(COUNT(S14:S15),ROUND(SUM(S14:S15),0),\"\"),\"\")","v":""},{"$f":"+IFERROR(IF(COUNT(T14:T15),ROUND(SUM(T14:T15),0),\"\"),\"\")","v":""},{"$f":"+IFERROR(IF(COUNT(U14:U15),ROUND(SUM(U14:U15),0),\"\"),\"\")","v":""},{"$f":"+IFERROR(IF(COUNT(M16,U16),ROUND(SUM(U16,M16)/SUM('Shareholding Pattern'!$L$57,'Shareholding Pattern'!$T$57)*100,2),\"\"),\"\")","v":""},{"$f":"+IFERROR(IF(COUNT(W14:W15),ROUND(SUM(W14:W15),0),\"\"),\"\")","v":""},{"$f":"+IFERROR(IF(COUNT(W16),ROUND(SUM(W16)/SUM(J16)*100,2),\"\"),0)","v":""},{"$f":"+IFERROR(IF(COUNT(Y14:Y15),ROUND(SUM(Y14:Y15),0),\"\"),\"\")","v":""},{"$f":"+IFERROR(IF(COUNT(Y16),ROUND(SUM(Y16)/SUM(J16)*100,2),\"\"),0)","v":""},{"$f":"+IFERROR(IF(COUNT(AA14:AA15),ROUND(SUM(AA14:AA15),0),\"\"),\"\")","v":""}]

{"sheet":"Individuals","index":10,"n_rows":16,"n_cols":26,"rows_kept":16,"hidden":true,"merged":[[8,4,10,4],[8,5,10,5],[8,6,10,6],[8,7,10,7],[8,8,10,8],[8,9,10,9],[8,10,10,10],[8,11,10,11],[8,12,8,15],[8,16,10,16],[8,17,10,17],[8,18,10,18],[8,19,10,19],[8,20,9,21],[8,22,9,23],[8,24,10,24],[9,12,9,14],[9,15,10,15],[11,5,11,24]]}
[{"$nulls":8},0]
[{"$nulls":5},"Name of shareholder","Permanent account number of shareholder","Number of fully paid up equity shares","Number of partly paid-up equity shares","Number of shares underlying outstanding depository receipts","Total number of shares","Shareholding as a percentage of total number of shares held by promoters and public shareholders and custodians or DR holders","Number of voting rights held by same class of securities","Number of voting rights held by differential voting rights","Total Number of voting rights","Percentage of total number of voting rights","Number of shares underlying outstanding convertible securities","Number of warrant","Number of warrant and convertible securities","Total shareholding as a percentage assuming full conversion of convertible securities","Number of the locked-in-shares ","Locked-in-shares as a percentage of total number of shares","Pledged or encumbered - number of shares","Pledged or encumbered shares held as percentage of total number of shares","Number of equity shares held in dematerialized form","Number of equity shares held in dematerialized form"]
[]
[]
[]
[]
[]
[]
[{"$nulls":4},"Searial No.","Name\nof the \nShareholders\n     (I)","PAN \n(II)","No. of fully paid up equity shares held\n(IV)","No. Of Partly paid-up equity shares held\n(V)","No. Of shares underlying Depository Receipts\n(VI)","Total nos. shares\nheld\n(VII) = (IV)+(V)+ (VI)","Shareholding as a % of total no. of shares (calculated as per SCRR, 1957)\n(VIII)\nAs a % of (A+B+C2)","Number of Voting Rights held in each class of securities\n(IX)",{"$nulls":3},"No. Of Shares Underlying Outstanding convertible securities\n(X)","No. Of Warrants\n(Xi)","No. Of Shares Underlying Outstanding convertible securities and No. Of Warrants\n(Xi) (a)","Shareholding , as a % assuming full conversion of convertible securities (as a percentage of diluted share capital)\n(XI)= (VII)+(X)\nAs a % of (A+B+C2)","Number of Locked in shares\n(XII)",null,"Number of Shares pledged or otherwise encumbered\n(XIII)",null,"Number of equity shares held in dematerialized form \n(XIV)"]
[{"$nulls":12},"No of Voting (XIV)\nRights",null,null,"Total as\na % of\nTotal\nVoting\nrights"]
[{"$nulls":12},"Class\neg:\nX","Class\neg:y","Total",{"$nulls":5},"No.\n(a)","As a % of total Shares held\n(b)","No.\n(a)","As a % of total Shares held\n(b)"]
[{"$nulls":4},"A2(a)","Individuals (NonResident Individuals/ Foreign Individuals)"]
[{"$nulls":10},{"$f":"+IFERROR(IF(COUNT(H13:J13),ROUND(SUM(H13:J13),0),\"\"),\"\")","v":""},{"$f":"+IFERROR(IF(COUNT(K13),ROUND(K13/'Shareholding Pattern'!$L$57*100,2),\"\"),\"\")","v":""},{"$f":"IF(H13=\"\",\"\",H13)","v":""},null,{"$f":"+IFERROR(IF(COUNT(M13:N13),ROUND(SUM(M13,N13),2),\"\"),\"\")","v":""},{"$f":"+IFERROR(IF(COUNT(O13),ROUND(O13/('Shareholding Pattern'!$P$58)*100,2),\"\"),\"\")","v":""},null,null,{"$f":"+IFERROR(IF(COUNT(Q13:R13),ROUND(SUM(Q13:R13),0),\"\"),\"\")","v":""},{"$f":"+IFERROR(IF(COUNT(K13,S13),ROUND(SUM(S13,K13)/SUM('Shareholding Pattern'!$L$57,'Shareholding Pattern'!$T$57)*100,2),\"\"),\"\")","v":""},null,{"$f":"+IFERROR(IF(COUNT(U13),ROUND(SUM(U13)/SUM(H13)*100,2),\"\"),0)","v":""},null,{"$f":"+IFERROR(IF(COUNT(W13),ROUND(SUM(W13)/SUM(H13)*100,2),\"\"),0)","v":""}]
[]
[]
[{"$nulls":5},"Click here to go back","Total",{"$f":"+IFERROR(IF(COUNT(H14:H15),ROUND(SUM(H14:H15),0),\"\"),\"\")","v":""},{"$f":"+IFERROR(IF(COUNT(I14:I15),ROUND(SUM(I14:I15),0),\"\"),\"\")","v":""},{"$f":"+IFERROR(IF(COUNT(J14:J15),ROUND(SUM(J14:J15),0),\"\"),\"\")","v":""},{"$f":"+IFERROR(IF(COUNT(K14:K15),ROUND(SUM(K14:K15),0),\"\"),\"\")","v":""},{"$f":"+IFERROR(IF(COUNT(K16),ROUND(K16/'Shareholding Pattern'!$L$57*100,2),\"\"),\"\")","v":""},{"$f":"+IFERROR(IF(COUNT(M14:M15),ROUND(SUM(M14:M15),0),\"\"),\"\")","v":""},{"$f":"+IFERROR(IF(COUNT(N14:N15),ROUND(SUM(N14:N15),0),\"\"),\"\")","v":""},{"$f":"+IFERROR(IF(COUNT(O14:O15),ROUND(SUM(O14:O15),0),\"\"),\"\")","v":""},{"$f":"+IFERROR(IF(COUNT(O16),ROUND(O16/('Shareholding Pattern'!$P$58)*100,2),\"\"),\"\")","v":""},{"$f":"+IFERROR(IF(COUNT(Q14:Q15),ROUND(SUM(Q14:Q15),0),\"\"),\"\")","v":""},{"$f":"+IFERROR(IF(COUNT(R14:R15),ROUND(SUM(R14:R15),0),\"\"),\"\")","v":""},{"$f":"+IFERROR(IF(COUNT(S14:S15),ROUND(SUM(S14:S15),0),\"\"),\"\")","v":""},{"$f":"+IFERROR(IF(COUNT(K16,S16),ROUND(SUM(S16,K16)/SUM('Shareholding Pattern'!$L$57,'Shareholding Pattern'!$T$57)*100,2),\"\"),\"\")","v":""},{"$f":"+IFERROR(IF(COUNT(U14:U15),ROUND(SUM(U14:U15),0),\"\"),\"\")","v":""},{"$f":"+IFERROR(IF(COUNT(U16),ROUND(SUM(U16)/SUM(H16)*100,2),\"\"),0)","v":""},{"$f":"+IFERROR(IF(COUNT(W14:W15),ROUND(SUM(W14:W15),0),\"\"),\"\")","v":""},{"$f":"+IFERROR(IF(COUNT(W16),ROUND(SUM(W16)/SUM(H16)*100,2),\"\"),0)","v":""},{"$f":"+IFERROR(IF(COUNT(Y14:Y15),ROUND(SUM(Y14:Y15),0),\"\"),\"\")","v":""}]

{"sheet":"Government","index":11,"n_rows":16,"n_cols":26,"rows_kept":16,"hidden":true,"merged":[[8,4,10,4],[8,5,10,5],[8,6,10,6],[8,7,10,7],[8,8,10,8],[8,9,10,9],[8,10,10,10],[8,11,10,11],[8,12,8,15],[8,16,10,16],[8,17,10,17],[8,18,10,18],[8,19,10,19],[8,20,9,21],[8,22,9,23],[8,24,10,24],[9,12,9,14],[9,15,10,15],[11,5,11,24]]}
[{"$nulls":8},0]
[{"$nulls":5},"Name of shareholder","Permanent account number of shareholder","Number of fully paid up equity shares","Number of partly paid-up equity shares","Number of shares underlying outstanding depository receipts","Total number of shares","Shareholding as a percentage of total number of shares held by promoters and public shareholders and custodians or DR holders","Number of voting rights held by same class of securities","Number of voting rights held by differential voting rights","Total Number of voting rights","Percentage of total number of voting rights","Number of shares underlying outstanding convertible securities","Number of warrant","Number of warrant and convertible securities","Total shareholding as a percentage assuming full conversion of convertible securities","Number of the locked-in-shares ","Locked-in-shares as a percentage of total number of shares","Pledged or encumbered - number of shares","Pledged or encumbered shares held as percentage of total number of shares","Number of equity shares held in dematerialized form","Number of equity shares held in dematerialized form"]
[]
[]
[]
[]
[]
[]
[{"$nulls":4},"Searial No.","Name\nof the \nShareholders\n     (I)","PAN \n(II)","No. of fully paid up equity shares held\n(IV)","No. Of Partly paid-up equity shares held\n(V)","No. Of shares underlying Depository Receipts\n(VI)","Total nos. shares\nheld\n(VII) = (IV)+(V)+ (VI)","Shareholding as a % of total no. of shares (calculated as per SCRR, 1957)\n(VIII)\nAs a % of (A+B+C2)","Number of Voting Rights held in each class of securities\n(IX)",{"$nulls":3},"No. Of Shares Underlying Outstanding convertible securities\n(X)","No. Of Warrants\n(Xi)","No. Of Shares Underlying Outstanding convertible securities and No. Of Warrants\n(Xi) (a)","Shareholding , as a % assuming full conversion of convertible securities (as a percentage of diluted share capital)\n(XI)= (VII)+(X)\nAs a % of (A+B+C2)","Number of Locked in shares\n(XII)",null,"Number of Shares pledged or otherwise encumbered\n(XIII)",null,"Number of equity shares held in dematerialized form \n(XIV)"]
[{"$nulls":12},"No of Voting (XIV)\nRights",null,null,"Total as\na % of\nTotal\nVoting\nrights"]
[{"$nulls":12},"Class\neg:\nX","Class\neg:y","Total",{"$nulls":5},"No.\n(a)","As a % of total Shares held\n(b)","No.\n(a)","As a % of total Shares held\n(b)"]
[{"$nulls":4},"A2(a)","Government"]
[{"$nulls":10},{"$f":"+IFERROR(IF(COUNT(H13:J13),ROUND(SUM(H13:J13),0),\"\"),\"\")","v":""},{"$f":"+IFERROR(IF(COUNT(K13),ROUND(K13/'Shareholding Pattern'!$L$57*100,2),\"\"),\"\")","v":""},{"$f":"IF(H13=\"\",\"\",H13)","v":""},null,{"$f":"+IFERROR(IF(COUNT(M13:N13),ROUND(SUM(M13,N13),2),\"\"),\"\")","v":""},{"$f":"+IFERROR(IF(COUNT(O13),ROUND(O13/('Shareholding Pattern'!$P$58)*100,2),\"\"),\"\")","v":""},null,null,{"$f":"+IFERROR(IF(COUNT(Q13:R13),ROUND(SUM(Q13:R13),0),\"\"),\"\")","v":""},{"$f":"+IFERROR(IF(COUNT(K13,S13),ROUND(SUM(S13,K13)/SUM('Shareholding Pattern'!$L$57,'Shareholding Pattern'!$T$57)*100,2),\"\"),\"\")","v":""},null,{"$f":"+IFERROR(IF(COUNT(U13),ROUND(SUM(U13)/SUM(H13)*100,2),\"\"),0)","v":""},null,{"$f":"+IFERROR(IF(COUNT(W13),ROUND(SUM(W13)/SUM(H13)*100,2),\"\"),0)","v":""}]
[]
[]
[{"$nulls":5},"Click here to go back","Total",{"$f":"+IFERROR(IF(COUNT(H14:H15),ROUND(SUM(H14:H15),0),\"\"),\"\")","v":""},{"$f":"+IFERROR(IF(COUNT(I14:I15),ROUND(SUM(I14:I15),0),\"\"),\"\")","v":""},{"$f":"+IFERROR(IF(COUNT(J14:J15),ROUND(SUM(J14:J15),0),\"\"),\"\")","v":""},{"$f":"+IFERROR(IF(COUNT(K14:K15),ROUND(SUM(K14:K15),0),\"\"),\"\")","v":""},{"$f":"+IFERROR(IF(COUNT(K16),ROUND(K16/'Shareholding Pattern'!$L$57*100,2),\"\"),\"\")","v":""},{"$f":"+IFERROR(IF(COUNT(M14:M15),ROUND(SUM(M14:M15),0),\"\"),\"\")","v":""},{"$f":"+IFERROR(IF(COUNT(N14:N15),ROUND(SUM(N14:N15),0),\"\"),\"\")","v":""},{"$f":"+IFERROR(IF(COUNT(O14:O15),ROUND(SUM(O14:O15),0),\"\"),\"\")","v":""},{"$f":"+IFERROR(IF(COUNT(O16),ROUND(O16/('Shareholding Pattern'!$P$58)*100,2),\"\"),\"\")","v":""},{"$f":"+IFERROR(IF(COUNT(Q14:Q15),ROUND(SUM(Q14:Q15),0),\"\"),\"\")","v":""},{"$f":"+IFERROR(IF(COUNT(R14:R15),ROUND(SUM(R14:R15),0),\"\"),\"\")","v":""},{"$f":"+IFERROR(IF(COUNT(S14:S15),ROUND(SUM(S14:S15),0),\"\"),\"\")","v":""},{"$f":"+IFERROR(IF(COUNT(K16,S16),ROUND(SUM(S16,K16)/SUM('Shareholding Pattern'!$L$57,'Shareholding Pattern'!$T$57)*100,2),\"\"),\"\")","v":""},{"$f":"+IFERROR(IF(COUNT(U14:U15),ROUND(SUM(U14:U15),0),\"\"),\"\")","v":""},{"$f":"+IFERROR(IF(COUNT(U16),ROUND(SUM(U16)/SUM(H16)*100,2),\"\"),0)","v":""},{"$f":"+IFERROR(IF(COUNT(W14:W15),ROUND(SUM(W14:W15),0),\"\"),\"\")","v":""},{"$f":"+IFERROR(IF(COUNT(W16),ROUND(SUM(W16)/SUM(H16)*100,2),\"\"),0)","v":""},{"$f":"+IFERROR(IF(COUNT(Y14:Y15),ROUND(SUM(Y14:Y15),0),\"\"),\"\")","v":""}]

{"sheet":"Institutions","index":12,"n_rows":16,"n_cols":44,"rows_kept":16,"hidden":true,"merged":[[8,4,10,4],[8,5,10,5],[8,6,10,6],[8,7,10,7],[8,8,10,8],[8,9,10,9],[8,10,10,10],[8,11,10,11],[8,12,8,15],[8,16,10,16],[8,17,10,17],[8,18,10,18],[8,19,10,19],[8,20,9,21],[8,22,9,23],[8,24,10,24],[9,12,9,14],[9,15,10,15],[11,5,11,24]]}
[{"$nulls":8},0]
[{"$nulls":5},"Name of shareholder","Permanent account number of shareholder","Number of fully paid up equity shares","Number of partly paid-up equity shares","Number of shares underlying outstanding depository receipts","Total number of shares","Shareholding as a percentage of total number of shares held by promoters and public shareholders and custodians or DR holders","Number of voting rights held by same class of securities","Number of voting rights held by differential voting rights","Total Number of voting rights","Percentage of total number of voting rights","Number of shares underlying outstanding convertible securities","Number of warrant","Number of warrant and convertible securities","Total shareholding as a percentage assuming full conversion of convertible securities","Number of the locked-in-shares ","Locked-in-shares as a percentage of total number of shares","Pledged or encumbered - number of shares","Pledged or encumbered shares held as percentage of total number of shares","Number of equity shares held in dematerialized form","Number of equity shares held in dematerialized form"]
[]
[]
[]
[]
[{"$nulls":43},"Trusts"]
[{"$nulls":43},"Societies"]
[{"$nulls":4},"Searial No.","Name\nof the \nShareholders\n     (I)","PAN \n(II)","No. of fully paid up equity shares held\n(IV)","No. Of Partly paid-up equity shares held\n(V)","No. Of shares underlying Depository Receipts\n(VI)","Total nos. shares\nheld\n(VII) = (IV)+(V)+ (VI)","Shareholding as a % of total no. of shares (calculated as per SCRR, 1957)\n(VIII)\nAs a % of (A+B+C2)","Number of Voting Rights held in each class of securities\n(IX)",{"$nulls":3},"No. Of Shares Underlying Outstanding convertible securities\n(X)","No. Of Warrants\n(Xi)","No. Of Shares Underlying Outstanding convertible securities and No. Of Warrants\n(Xi) (a)","Shareholding , as a % assuming full conversion of convertible securities (as a percentage of diluted share capital)\n(XI)= (VII)+(X)\nAs a % of (A+B+C2)","Number of Locked in shares\n(XII)",null,"Number of Shares pledged or otherwise encumbered\n(XIII)",null,"Number of equity shares held in dematerialized form \n(XIV)",{"$nulls":18},"ESOP or ESOS or ESPS"]
[{"$nulls":12},"No of Voting (XIV)\nRights",null,null,"Total as\na % of\nTotal\nVoting\nrights",{"$nulls":27},"Employee welfare fund"]
[{"$nulls":12},"Class\neg:\nX","Class\neg:y","Total",{"$nulls":5},"No.\n(a)","As a % of total Shares held\n(b)","No.\n(a)","As a % of total Shares held\n(b)",{"$nulls":19},"Overseas corporate bodies"]
[{"$nulls":4},"A2(c)","Institutions",{"$nulls":37},"Venture capital funds"]
[{"$nulls":10},{"$f":"+IFERROR(IF(COUNT(H13:J13),ROUND(SUM(H13:J13),0),\"\"),\"\")","v":""},{"$f":"+IFERROR(IF(COUNT(K13),ROUND(K13/'Shareholding Pattern'!$L$57*100,2),\"\"),\"\")","v":""},{"$f":"IF(H13=\"\",\"\",H13)","v":""},null,{"$f":"+IFERROR(IF(COUNT(M13:N13),ROUND(SUM(M13,N13),2),\"\"),\"\")","v":""},{"$f":"+IFERROR(IF(COUNT(O13),ROUND(O13/('Shareholding Pattern'!$P$58)*100,2),\"\"),\"\")","v":""},null,null,{"$f":"+IFERROR(IF(COUNT(Q13:R13),ROUND(SUM(Q13:R13),0),\"\"),\"\")","v":""},{"$f":"+IFERROR(IF(COUNT(K13,S13),ROUND(SUM(S13,K13)/SUM('Shareholding Pattern'!$L$57,'Shareholding Pattern'!$T$57)*100,2),\"\"),\"\")","v":""},null,{"$f":"+IFERROR(IF(COUNT(U13),ROUND(SUM(U13)/SUM(H13)*100,2),\"\"),0)","v":""},null,{"$f":"+IFERROR(IF(COUNT(W13),ROUND(SUM(W13)/SUM(H13)*100,2),\"\"),0)","v":""},{"$nulls":19},"Angel Investors"]
[{"$nulls":43},"Private Equity Fund"]
[]
[{"$nulls":5},"Click here to go back","Total",{"$f":"+IFERROR(IF(COUNT(H14:H15),ROUND(SUM(H14:H15),0),\"\"),\"\")","v":""},{"$f":"+IFERROR(IF(COUNT(I14:I15),ROUND(SUM(I14:I15),0),\"\"),\"\")","v":""},{"$f":"+IFERROR(IF(COUNT(J14:J15),ROUND(SUM(J14:J15),0),\"\"),\"\")","v":""},{"$f":"+IFERROR(IF(COUNT(K14:K15),ROUND(SUM(K14:K15),0),\"\"),\"\")","v":""},{"$f":"+IFERROR(IF(COUNT(K16),ROUND(K16/'Shareholding Pattern'!$L$57*100,2),\"\"),\"\")","v":""},{"$f":"+IFERROR(IF(COUNT(M14:M15),ROUND(SUM(M14:M15),0),\"\"),\"\")","v":""},{"$f":"+IFERROR(IF(COUNT(N14:N15),ROUND(SUM(N14:N15),0),\"\"),\"\")","v":""},{"$f":"+IFERROR(IF(COUNT(O14:O15),ROUND(SUM(O14:O15),0),\"\"),\"\")","v":""},{"$f":"+IFERROR(IF(COUNT(O16),ROUND(O16/('Shareholding Pattern'!$P$58)*100,2),\"\"),\"\")","v":""},{"$f":"+IFERROR(IF(COUNT(Q14:Q15),ROUND(SUM(Q14:Q15),0),\"\"),\"\")","v":""},{"$f":"+IFERROR(IF(COUNT(R14:R15),ROUND(SUM(R14:R15),0),\"\"),\"\")","v":""},{"$f":"+IFERROR(IF(COUNT(S14:S15),ROUND(SUM(S14:S15),0),\"\"),\"\")","v":""},{"$f":"+IFERROR(IF(COUNT(K16,S16),ROUND(SUM(S16,K16)/SUM('Shareholding Pattern'!$L$57,'Shareholding Pattern'!$T$57)*100,2),\"\"),\"\")","v":""},{"$f":"+IFERROR(IF(COUNT(U14:U15),ROUND(SUM(U14:U15),0),\"\"),\"\")","v":""},{"$f":"+IFERROR(IF(COUNT(U16),ROUND(SUM(U16)/SUM(H16)*100,2),\"\"),0)","v":""},{"$f":"+IFERROR(IF(COUNT(W14:W15),ROUND(SUM(W14:W15),0),\"\"),\"\")","v":""},{"$f":"+IFERROR(IF(COUNT(W16),ROUND(SUM(W16)/SUM(H16)*100,2),\"\"),0)","v":""},{"$f":"+IFERROR(IF(COUNT(Y14:Y15),ROUND(SUM(Y14:Y15),0),\"\"),\"\")","v":""}]

{"sheet":"FPIPromoter","index":13,"n_rows":16,"n_cols":44,"rows_kept":16,"hidden":true,"merged":[[8,4,10,4],[8,5,10,5],[8,6,10,6],[8,7,10,7],[8,8,10,8],[8,9,10,9],[8,10,10,10],[8,11,10,11],[8,12,8,15],[8,16,10,16],[8,17,10,17],[8,18,10,18],[8,19,10,19],[8,20,9,21],[8,22,9,23],[8,24,10,24],[9,12,9,14],[9,15,10,15],[11,5,11,24]]}
[{"$nulls":8},0]
[{"$nulls":5},"Name of shareholder","Permanent account number of shareholder","Number of fully paid up equity shares","Number of partly paid-up equity shares","Number of shares underlying outstanding depository receipts","Total number of shares","Shareholding as a percentage of total number of shares held by promoters and public shareholders and custodians or DR holders","Number of voting rights held by same class of securities","Number of voting rights held by differential voting rights","Total Number of voting rights","Percentage of total number of voting rights","Number of shares underlying outstanding convertible securities","Number of warrant","Number of warrant and convertible securities","Total shareholding as a percentage assuming full conversion of convertible securities","Number of the locked-in-shares ","Locked-in-shares as a percentage of total number of shares","Pledged or encumbered - number of shares","Pledged or encumbered shares held as percentage of total number of shares","Number of equity shares held in dematerialized form","Number of equity shares held in dematerialized form"]
[]
[]
[]
[]
[{"$nulls":43},"Trusts"]
[{"$nulls":43},"Societies"]
[{"$nulls":4},"Searial No.","Name\nof the \nShareholders\n     (I)","PAN \n(II)","No. of fully paid up equity shares held\n(IV)","No. Of Partly paid-up equity shares held\n(V)","No. Of shares underlying Depository Receipts\n(VI)","Total nos. shares\nheld\n(VII) = (IV)+(V)+ (VI)","Shareholding as a % of total no. of shares (calculated as per SCRR, 1957)\n(VIII)\nAs a % of (A+B+C2)","Number of Voting Rights held in each class of securities\n(IX)",{"$nulls":3},"No. Of Shares Underlying Outstanding convertible securities\n(X)","No. Of Warrants\n(Xi)","No. Of Shares Underlying Outstanding convertible securities and No. Of Warrants\n(Xi) (a)","Shareholding , as a % assuming full conversion of convertible securities (as a percentage of diluted share capital)\n(XI)= (VII)+(X)\nAs a % of (A+B+C2)","Number of Locked in shares\n(XII)",null,"Number of Shares pledged or otherwise encumbered\n(XIII)",null,"Number of equity shares held in dematerialized form \n(XIV)",{"$nulls":18},"ESOP or ESOS or ESPS"]
[{"$nulls":12},"No of Voting (XIV)\nRights",null,null,"Total as\na % of\nTotal\nVoting\nrights",{"$nulls":27},"Employee welfare fund"]
[{"$nulls":12},"Class\neg:\nX","Class\neg:y","Total",{"$nulls":5},"No.\n(a)","As a % of total Shares held\n(b)","No.\n(a)","As a % of total Shares held\n(b)",{"$nulls":19},"Overseas corporate bodies"]
[{"$nulls":4},"A2(d)","Foreign Portfolio Investor",{"$nulls":37},"Venture capital funds"]
[{"$nulls":10},{"$f":"+IFERROR(IF(COUNT(H13:J13),ROUND(SUM(H13:J13),0),\"\"),\"\")","v":""},{"$f":"+IFERROR(IF(COUNT(K13),ROUND(K13/'Shareholding Pattern'!$L$57*100,2),\"\"),\"\")","v":""},{"$f":"IF(H13=\"\",\"\",H13)","v":""},null,{"$f":"+IFERROR(IF(COUNT(M13:N13),ROUND(SUM(M13,N13),2),\"\"),\"\")","v":""},{"$f":"+IFERROR(IF(COUNT(O13),ROUND(O13/('Shareholding Pattern'!$P$58)*100,2),\"\"),\"\")","v":""},null,null,{"$f":"+IFERROR(IF(COUNT(Q13:R13),ROUND(SUM(Q13:R13),0),\"\"),\"\")","v":""},{"$f":"+IFERROR(IF(COUNT(K13,S13),ROUND(SUM(S13,K13)/SUM('Shareholding Pattern'!$L$57,'Shareholding Pattern'!$T$57)*100,2),\"\"),\"\")","v":""},null,{"$f":"+IFERROR(IF(COUNT(U13),ROUND(SUM(U13)/SUM(H13)*100,2),\"\"),0)","v":""},null,{"$f":"+IFERROR(IF(COUNT(W13),ROUND(SUM(W13)/SUM(H13)*100,2),\"\"),0)","v":""},{"$nulls":19},"Angel Investors"]
[{"$nulls":43},"Private Equity Fund"]
[]
[{"$nulls":5},"Click here to go back ","Total",{"$f":"+IFERROR(IF(COUNT(H14:H15),ROUND(SUM(H14:H15),0),\"\"),\"\")","v":""},{"$f":"+IFERROR(IF(COUNT(I14:I15),ROUND(SUM(I14:I15),0),\"\"),\"\")","v":""},{"$f":"+IFERROR(IF(COUNT(J14:J15),ROUND(SUM(J14:J15),0),\"\"),\"\")","v":""},{"$f":"+IFERROR(IF(COUNT(K14:K15),ROUND(SUM(K14:K15),0),\"\"),\"\")","v":""},{"$f":"+IFERROR(IF(COUNT(K16),ROUND(K16/'Shareholding Pattern'!$L$57*100,2),\"\"),\"\")","v":""},{"$f":"+IFERROR(IF(COUNT(M14:M15),ROUND(SUM(M14:M15),0),\"\"),\"\")","v":""},{"$f":"+IFERROR(IF(COUNT(N14:N15),ROUND(SUM(N14:N15),0),\"\"),\"\")","v":""},{"$f":"+IFERROR(IF(COUNT(O14:O15),ROUND(SUM(O14:O15),0),\"\"),\"\")","v":""},{"$f":"+IFERROR(IF(COUNT(O16),ROUND(O16/('Shareholding Pattern'!$P$58)*100,2),\"\"),\"\")","v":""},{"$f":"+IFERROR(IF(COUNT(Q14:Q15),ROUND(SUM(Q14:Q15),0),\"\"),\"\")","v":""},{"$f":"+IFERROR(IF(COUNT(R14:R15),ROUND(SUM(R14:R15),0),\"\"),\"\")","v":""},{"$f":"+IFERROR(IF(COUNT(S14:S15),ROUND(SUM(S14:S15),0),\"\"),\"\")","v":""},{"$f":"+IFERROR(IF(COUNT(K16,S16),ROUND(SUM(S16,K16)/SUM('Shareholding Pattern'!$L$57,'Shareholding Pattern'!$T$57)*100,2),\"\"),\"\")","v":""},{"$f":"+IFERROR(IF(COUNT(U14:U15),ROUND(SUM(U14:U15),0),\"\"),\"\")","v":""},{"$f":"+IFERROR(IF(COUNT(U16),ROUND(SUM(U16)/SUM(H16)*100,2),\"\"),0)","v":""},{"$f":"+IFERROR(IF(COUNT(W14:W15),ROUND(SUM(W14:W15),0),\"\"),\"\")","v":""},{"$f":"+IFERROR(IF(COUNT(W16),ROUND(SUM(W16)/SUM(H16)*100,2),\"\"),0)","v":""},{"$f":"+IFERROR(IF(COUNT(Y14:Y15),ROUND(SUM(Y14:Y15),0),\"\"),\"\")","v":""}]

{"sheet":"OtherForeign","index":14,"n_rows":16,"n_cols":48,"rows_kept":16,"hidden":true,"merged":[[8,3,10,3],[8,4,10,4],[8,5,10,5],[8,6,10,6],[8,7,10,7],[8,8,10,8],[8,9,10,9],[8,10,10,10],[8,11,10,11],[8,12,10,12],[8,13,10,13],[8,14,8,17],[8,18,10,18],[8,19,10,19],[8,20,10,20],[8,21,10,21],[8,22,9,23],[8,24,9,25],[8,26,10,26],[9,14,9,16],[9,17,10,17]]}
[{"$nulls":8},0]
[{"$nulls":4},"Category of other foreign shareholders","Category or more than one percentage","Name of shareholder","Permanent account number of shareholder","Number of shareholders","Number of fully paid up equity shares","Number of partly paid-up equity shares","Number of shares underlying outstanding depository receipts","Total number of shares","Shareholding as a percentage of total number of shares held by promoters and public shareholders and custodians or DR holders","Number of voting rights held by same class of securities","Number of voting rights held by differential voting rights","Total Number of voting rights","Percentage of total number of voting rights","Number of shares underlying outstanding convertible securities","Number of warrant","Number of warrant and convertible securities","Total shareholding as a percentage assuming full conversion of convertible securities","Number of the locked-in-shares ","Locked-in-shares as a percentage of total number of shares","Pledged or encumbered - number of shares","Pledged or encumbered shares held as percentage of total number of shares","Number of equity shares held in dematerialized form","Number of equity shares held in dematerialized form"]
[{"$nulls":43},"Bodies Corporate","Other"]
[]
[]
[]
[]
[]
[{"$nulls":3},"Searial No.","Category",null,"Name\nof the \nShareholders\n     (I)","PAN \n(II)","No.\nof the \nShareholders\n     (I)","No. of fully paid up equity shares held\n(IV)","No. Of Partly paid-up equity shares held\n(V)","No. Of shares underlying Depository Receipts\n(VI)","Total nos. shares\nheld\n(VII) = (IV)+(V)+ (VI)","Shareholding as a % of total no. of shares (calculated as per SCRR, 1957)\n(VIII)\nAs a % of (A+B+C2)","Number of Voting Rights held in each class of securities\n(IX)",{"$nulls":3},"No. Of Shares Underlying Outstanding convertible securities\n(X)","No. Of Warrants\n(Xi)","No. Of Shares Underlying Outstanding convertible securities and No. Of Warrants\n(Xi) (a)","Shareholding , as a % assuming full conversion of convertible securities (as a percentage of diluted share capital)\n(XI)= (VII)+(X)\nAs a % of (A+B+C2)","Number of Locked in shares\n(XII)",null,"Number of Shares pledged or otherwise encumbered\n(XIII)",null,"Number of equity shares held in dematerialized form \n(XIV)",{"$nulls":20},"Category"]
[{"$nulls":14},"No of Voting (XIV)\nRights",null,null,"Total as\na % of\nTotal\nVoting\nrights",{"$nulls":29},"More than 1 percentage of shareholding"]
[{"$nulls":14},"Class\neg:\nX","Class\neg:y","Total",{"$nulls":5},"No.\n(a)","As a % of total Shares held\n(b)","No.\n(a)","As a % of total Shares held\n(b)"]
[{"$nulls":3},"A2(d)","Any Other (specify)"]
[{"$nulls":8},1,{"$nulls":3},{"$f":"+IFERROR(IF(COUNT(J13:L13),ROUND(SUM(J13:L13),0),\"\"),\"\")","v":""},{"$f":"+IFERROR(IF(COUNT(M13),ROUND(M13/'Shareholding Pattern'!$L$57*100,2),\"\"),\"\")","v":""},{"$f":"IF(J13=\"\",\"\",J13)","v":""},null,{"$f":"+IFERROR(IF(COUNT(O13:P13),ROUND(SUM(O13,P13),0),\"\"),\"\")","v":""},{"$f":"+IFERROR(IF(COUNT(Q13),ROUND(Q13/('Shareholding Pattern'!$P$58)*100,2),\"\"),\"\")","v":""},null,null,{"$f":"+IFERROR(IF(COUNT(S13:T13),ROUND(SUM(S13:T13),0),\"\"),\"\")","v":""},{"$f":"+IFERROR(IF(COUNT(M13,U13),ROUND(SUM(U13,M13)/SUM('Shareholding Pattern'!$L$57,'Shareholding Pattern'!$T$57)*100,2),\"\"),\"\")","v":""},null,{"$f":"+IFERROR(IF(W13=\"\",\"\",(IF(COUNT(W13,J13),ROUND(SUM(W13)/SUM(J13)*100,2),\"\"))),\"\")","v":""},null,{"$f":"+IFERROR(IF(Y13=\"\",\"\",(IF(COUNT(Y13,J13),ROUND(SUM(Y13)/SUM(J13)*100,2),\"\"))),\"\")","v":""}]
[]
[]
[{"$nulls":6},"Click here to go back","Total",{"$f":"+IFERROR(IF(COUNT(I14:I15),ROUND(SUM(I14:I15),0),\"\"),\"\")","v":""},{"$f":"+IFERROR(IF(COUNT(J14:J15),ROUND(SUM(J14:J15),0),\"\"),\"\")","v":""},{"$f":"+IFERROR(IF(COUNT(K14:K15),ROUND(SUM(K14:K15),0),\"\"),\"\")","v":""},{"$f":"+IFERROR(IF(COUNT(L14:L15),ROUND(SUM(L14:L15),0),\"\"),\"\")","v":""},{"$f":"+IFERROR(IF(COUNT(M14:M15),ROUND(SUM(M14:M15),0),\"\"),\"\")","v":""},{"$f":"+IFERROR(IF(COUNT(M16),ROUND(M16/'Shareholding Pattern'!$L$57*100,2),\"\"),\"\")","v":""},{"$f":"+IFERROR(IF(COUNT(O14:O15),ROUND(SUM(O14:O15),0),\"\"),\"\")","v":""},{"$f":"+IFERROR(IF(COUNT(P14:P15),ROUND(SUM(P14:P15),0),\"\"),\"\")","v":""},{"$f":"+IFERROR(IF(COUNT(Q14:Q15),ROUND(SUM(Q14:Q15),0),\"\"),\"\")","v":""},{"$f":"+IFERROR(IF(COUNT(Q16),ROUND(Q16/('Shareholding Pattern'!$P$58)*100,2),\"\"),\"\")","v":""},{"$f":"+IFERROR(IF(COUNT(S14:S15),ROUND(SUM(S14:S15),0),\"\"),\"\")","v":""},{"$f":"+IFERROR(IF(COUNT(T14:T15),ROUND(SUM(T14:T15),0),\"\"),\"\")","v":""},{"$f":"+IFERROR(IF(COUNT(U14:U15),ROUND(SUM(U14:U15),0),\"\"),\"\")","v":""},{"$f":"+IFERROR(IF(COUNT(M16,U16),ROUND(SUM(U16,M16)/SUM('Shareholding Pattern'!$L$57,'Shareholding Pattern'!$T$57)*100,2),\"\"),\"\")","v":""},{"$f":"+IFERROR(IF(COUNT(W14:W15),ROUND(SUM(W14:W15),0),\"\"),\"\")","v":""},{"$f":"+IFERROR(IF(COUNT(W16,J16),ROUND(SUM(W16)/SUM(J16)*100,2),\"\"),0)","v":""},{"$f":"+IFERROR(IF(COUNT(Y14:Y15),ROUND(SUM(Y14:Y15),0),\"\"),\"\")","v":""},{"$f":"+IFERROR(IF(COUNT(Y16,J16),ROUND(SUM(Y16)/SUM(J16)*100,2),\"\"),0)","v":""},{"$f":"+IFERROR(IF(COUNT(AA14:AA15),ROUND(SUM(AA14:AA15),0),\"\"),\"\")","v":""}]

{"sheet":"MutuaFund","index":15,"n_rows":16,"n_cols":44,"rows_kept":16,"hidden":true,"merged":[[8,4,10,4],[8,5,10,5],[8,6,10,6],[8,7,10,7],[8,8,10,8],[8,9,10,9],[8,10,10,10],[8,11,10,11],[8,12,8,15],[8,16,10,16],[8,17,10,17],[8,18,10,18],[8,19,10,19],[8,20,9,21],[8,22,10,22],[9,12,9,14],[9,15,10,15]]}
[{"$nulls":8},0]
[{"$nulls":5},"Name of shareholder","Permanent account number of shareholder","Number of fully paid up equity shares","Number of partly paid-up equity shares","Number of shares underlying outstanding depository receipts","Total number of shares","Shareholding as a percentage of total number of shares held by promoters and public shareholders and custodians or DR holders","Number of voting rights held by same class of securities","Number of voting rights held by differential voting rights","Total Number of voting rights","Percentage of total number of voting rights","Number of shares underlying outstanding convertible securities","Number of warrant","Number of warrant and convertible securities","Total shareholding as a percentage assuming full conversion of convertible securities","Number of the locked-in-shares ","Locked-in-shares as a percentage of total number of shares","Number of equity shares held in dematerialized form"]
[]
[]
[]
[]
[{"$nulls":43},"NRI"]
[{"$nulls":43},"Trusts"]
[{"$nulls":4},"Searial No.","Name\nof the \nShareholders\n     (I)","PAN \n(II)","No. of fully paid up equity shares held\n(IV)","No. Of Partly paid-up equity shares held\n(V)","No. Of shares underlying Depository Receipts\n(VI)","Total nos. shares\nheld\n(VII) = (IV)+(V)+ (VI)","Shareholding as a % of total no. of shares (calculated as per SCRR, 1957)\n(VIII)\nAs a % of (A+B+C2)","Number of Voting Rights held in each class of securities\n(IX)",{"$nulls":3},"No. Of Shares Underlying Outstanding convertible securities\n(X)","No. Of Warrants\n(Xi)","No. Of Shares Underlying Outstanding convertible securities and No. Of Warrants\n(Xi) (a)","Shareholding , as a % assuming full conversion of convertible securities (as a percentage of diluted share capital)\n(XI)= (VII)+(X)\nAs a % of (A+B+C2)","Number of Locked in shares\n(XII)",null,"Number of equity shares held in dematerialized form \n(XIV)",{"$nulls":20},"Market Maker"]
[{"$nulls":12},"No of Voting (XIV)\nRights",null,null,"Total as\na % of\nTotal\nVoting\nrights",{"$nulls":27},"HUF"]
[{"$nulls":12},"Class\neg:\nX","Class\neg:y","Total",{"$nulls":5},"No.\n(a)","As a % of total Shares held\n(b)",{"$nulls":21},"Clearing Members"]
[{"$nulls":4},"B1(a)","Mutual Funds",{"$nulls":37},"NSDL or CDSL transit"]
[{"$nulls":10},{"$f":"+IFERROR(IF(COUNT(H13:J13),ROUND(SUM(H13:J13),0),\"\"),\"\")","v":""},{"$f":"+IFERROR(IF(COUNT(K13),ROUND(K13/'Shareholding Pattern'!$L$57*100,2),\"\"),\"\")","v":""},{"$f":"IF(H13=\"\",\"\",H13)","v":""},null,{"$f":"+IFERROR(IF(COUNT(M13:N13),ROUND(SUM(M13,N13),2),\"\"),\"\")","v":""},{"$f":"+IFERROR(IF(COUNT(O13),ROUND(O13/('Shareholding Pattern'!$P$58)*100,2),\"\"),\"\")","v":""},null,null,{"$f":"+IFERROR(IF(COUNT(Q13:R13),ROUND(SUM(Q13:R13),0),\"\"),\"\")","v":""},{"$f":"+IFERROR(IF(COUNT(K13,S13),ROUND(SUM(S13,K13)/SUM('Shareholding Pattern'!$L$57,'Shareholding Pattern'!$T$57)*100,2),\"\"),\"\")","v":""},null,{"$f":"+IFERROR(IF(COUNT(U13),ROUND(SUM(U13)/SUM(H13)*100,2),\"\"),0)","v":""},{"$nulls":21},"Employee welfare fund"]
[{"$nulls":6},"Disclosure of shareholder holding more than 1% of total number of shares",{"$nulls":36},"Overseas corporate bodies"]
[]
[{"$nulls":5},"Click here to go back","Total",{"$f":"+IFERROR(IF(COUNT(H14:H15),ROUND(SUM(H14:H15),0),\"\"),\"\")","v":""},{"$f":"+IFERROR(IF(COUNT(I14:I15),ROUND(SUM(I14:I15),0),\"\"),\"\")","v":""},{"$f":"+IFERROR(IF(COUNT(J14:J15),ROUND(SUM(J14:J15),0),\"\"),\"\")","v":""},{"$f":"+IFERROR(IF(COUNT(K14:K15),ROUND(SUM(K14:K15),0),\"\"),\"\")","v":""},{"$f":"+IFERROR(IF(COUNT(K16),ROUND(K16/'Shareholding Pattern'!$L$57*100,2),\"\"),\"\")","v":""},{"$f":"+IFERROR(IF(COUNT(M14:M15),ROUND(SUM(M14:M15),0),\"\"),\"\")","v":""},{"$f":"+IFERROR(IF(COUNT(N14:N15),ROUND(SUM(N14:N15),0),\"\"),\"\")","v":""},{"$f":"+IFERROR(IF(COUNT(O14:O15),ROUND(SUM(O14:O15),0),\"\"),\"\")","v":""},{"$f":"+IFERROR(IF(COUNT(O16),ROUND(O16/('Shareholding Pattern'!$P$58)*100,2),\"\"),\"\")","v":""},{"$f":"+IFERROR(IF(COUNT(Q14:Q15),ROUND(SUM(Q14:Q15),0),\"\"),\"\")","v":""},{"$f":"+IFERROR(IF(COUNT(R14:R15),ROUND(SUM(R14:R15),0),\"\"),\"\")","v":""},{"$f":"+IFERROR(IF(COUNT(S14:S15),ROUND(SUM(S14:S15),0),\"\"),\"\")","v":""},{"$f":"+IFERROR(IF(COUNT(K16,S16),ROUND(SUM(S16,K16)/SUM('Shareholding Pattern'!$L$57,'Shareholding Pattern'!$T$57)*100,2),\"\"),\"\")","v":""},{"$f":"+IFERROR(IF(COUNT(U14:U15),ROUND(SUM(U14:U15),0),\"\"),\"\")","v":""},{"$f":"+IFERROR(IF(COUNT(U16),ROUND(SUM(U16)/SUM(H16)*100,2),\"\"),0)","v":""},{"$f":"+IFERROR(IF(COUNT(W14:W15),ROUND(SUM(W14:W15),0),\"\"),\"\")","v":""}]

{"sheet":"VentureCap","index":16,"n_rows":16,"n_cols":44,"rows_kept":16,"hidden":true,"merged":[[8,4,10,4],[8,5,10,5],[8,6,10,6],[8,7,10,7],[8,8,10,8],[8,9,10,9],[8,10,10,10],[8,11,10,11],[8,12,8,15],[8,16,10,16],[8,17,10,17],[8,18,10,18],[8,19,10,19],[8,20,9,21],[8,22,10,22],[9,12,9,14],[9,15,10,15]]}
[{"$nulls":8},0]
[{"$nulls":5},"Name of shareholder","Permanent account number of shareholder","Number of fully paid up equity shares","Number of partly paid-up equity shares","Number of shares underlying outstanding depository receipts","Total number of shares","Shareholding as a percentage of total number of shares held by promoters and public shareholders and custodians or DR holders","Number of voting rights held by same class of securities","Number of voting rights held by differential voting rights","Total Number of voting rights","Percentage of total number of voting rights","Number of shares underlying outstanding convertible securities","Number of warrant","Number of warrant and convertible securities","Total shareholding as a percentage assuming full conversion of convertible securities","Number of the locked-in-shares ","Locked-in-shares as a percentage of total number of shares","Number of equity shares held in dematerialized form"]
[]
[]
[]
[]
[{"$nulls":43},"NRI"]
[{"$nulls":43},"Trusts"]
[{"$nulls":4},"Searial No.","Name\nof the \nShareholders\n     (I)","PAN \n(II)","No. of fully paid up equity shares held\n(IV)","No. Of Partly paid-up equity shares held\n(V)","No. Of shares underlying Depository Receipts\n(VI)","Total nos. shares\nheld\n(VII) = (IV)+(V)+ (VI)","Shareholding as a % of total no. of shares (calculated as per SCRR, 1957)\n(VIII)\nAs a % of (A+B+C2)","Number of Voting Rights held in each class of securities\n(IX)",{"$nulls":3},"No. Of Shares Underlying Outstanding convertible securities\n(X)","No. Of Warrants\n(Xi)","No. Of Shares Underlying Outstanding convertible securities and No. Of Warrants\n(Xi) (a)","Shareholding , as a % assuming full conversion of convertible securities (as a percentage of diluted share capital)\n(XI)= (VII)+(X)\nAs a % of (A+B+C2)","Number of Locked in shares\n(XII)",null,"Number of equity shares held in dematerialized form \n(XIV)",{"$nulls":20},"Market Maker"]
[{"$nulls":12},"No of Voting (XIV)\nRights",null,null,"Total as\na % of\nTotal\nVoting\nrights",{"$nulls":27},"HUF"]
[{"$nulls":12},"Class\neg:\nX","Class\neg:y","Total",{"$nulls":5},"No.\n(a)","As a % of total Shares held\n(b)",{"$nulls":21},"Clearing Members"]
[{"$nulls":4},"B1(b)","Venture Capital Funds",{"$nulls":37},"NSDL or CDSL transit"]
[{"$nulls":10},{"$f":"+IFERROR(IF(COUNT(H13:J13),ROUND(SUM(H13:J13),0),\"\"),\"\")","v":""},{"$f":"+IFERROR(IF(COUNT(K13),ROUND(K13/'Shareholding Pattern'!$L$57*100,2),\"\"),\"\")","v":""},{"$f":"IF(H13=\"\",\"\",H13)","v":""},null,{"$f":"+IFERROR(IF(COUNT(M13:N13),ROUND(SUM(M13,N13),2),\"\"),\"\")","v":""},{"$f":"+IFERROR(IF(COUNT(O13),ROUND(O13/('Shareholding Pattern'!$P$58)*100,2),\"\"),\"\")","v":""},null,null,{"$f":"+IFERROR(IF(COUNT(Q13:R13),ROUND(SUM(Q13:R13),0),\"\"),\"\")","v":""},{"$f":"+IFERROR(IF(COUNT(K13,S13),ROUND(SUM(S13,K13)/SUM('Shareholding Pattern'!$L$57,'Shareholding Pattern'!$T$57)*100,2),\"\"),\"\")","v":""},null,{"$f":"+IFERROR(IF(COUNT(U13),ROUND(SUM(U13)/SUM(H13)*100,2),\"\"),0)","v":""},{"$nulls":21},"Employee welfare fund"]
[{"$nulls":6},"\nDisclosure of shareholder holding more than 1% of total number of shares",{"$nulls":36},"Overseas corporate bodies"]
[{"$nulls":43},"Private equity fund"]
[{"$nulls":5},"Click here to go back","Total",{"$f":"+IFERROR(IF(COUNT(H14:H15),ROUND(SUM(H14:H15),0),\"\"),\"\")","v":""},{"$f":"+IFERROR(IF(COUNT(I14:I15),ROUND(SUM(I14:I15),0),\"\"),\"\")","v":""},{"$f":"+IFERROR(IF(COUNT(J14:J15),ROUND(SUM(J14:J15),0),\"\"),\"\")","v":""},{"$f":"+IFERROR(IF(COUNT(K14:K15),ROUND(SUM(K14:K15),0),\"\"),\"\")","v":""},{"$f":"+IFERROR(IF(COUNT(K16),ROUND(K16/'Shareholding Pattern'!$L$57*100,2),\"\"),\"\")","v":""},{"$f":"+IFERROR(IF(COUNT(M14:M15),ROUND(SUM(M14:M15),0),\"\"),\"\")","v":""},{"$f":"+IFERROR(IF(COUNT(N14:N15),ROUND(SUM(N14:N15),0),\"\"),\"\")","v":""},{"$f":"+IFERROR(IF(COUNT(O14:O15),ROUND(SUM(O14:O15),0),\"\"),\"\")","v":""},{"$f":"+IFERROR(IF(COUNT(O16),ROUND(O16/('Shareholding Pattern'!$P$58)*100,2),\"\"),\"\")","v":""},{"$f":"+IFERROR(IF(COUNT(Q14:Q15),ROUND(SUM(Q14:Q15),0),\"\"),\"\")","v":""},{"$f":"+IFERROR(IF(COUNT(R14:R15),ROUND(SUM(R14:R15),0),\"\"),\"\")","v":""},{"$f":"+IFERROR(IF(COUNT(S14:S15),ROUND(SUM(S14:S15),0),\"\"),\"\")","v":""},{"$f":"+IFERROR(IF(COUNT(K16,S16),ROUND(SUM(S16,K16)/SUM('Shareholding Pattern'!$L$57,'Shareholding Pattern'!$T$57)*100,2),\"\"),\"\")","v":""},{"$f":"+IFERROR(IF(COUNT(U14:U15),ROUND(SUM(U14:U15),0),\"\"),\"\")","v":""},{"$f":"+IFERROR(IF(COUNT(U16),ROUND(SUM(U16)/SUM(H16)*100,2),\"\"),0)","v":""},{"$f":"+IFERROR(IF(COUNT(W14:W15),ROUND(SUM(W14:W15),0),\"\"),\"\")","v":""},{"$nulls":20},"Other"]

{"sheet":"AIF","index":17,"n_rows":16,"n_cols":44,"rows_kept":16,"hidden":true,"merged":[[8,4,10,4],[8,5,10,5],[8,6,10,6],[8,7,10,7],[8,8,10,8],[8,9,10,9],[8,10,10,10],[8,11,10,11],[8,12,8,15],[8,16,10,16],[8,17,10,17],[8,18,10,18],[8,19,10,19],[8,20,9,21],[8,22,10,22],[9,12,9,14],[9,15,10,15]]}
[{"$nulls":8},0]
[{"$nulls":5},"Name of shareholder","Permanent account number of shareholder","Number of fully paid up equity shares","Number of partly paid-up equity shares","Number of shares underlying outstanding depository receipts","Total number of shares","Shareholding as a percentage of total number of shares held by promoters and public shareholders and custodians or DR holders","Number of voting rights held by same class of securities","Number of voting rights held by differential voting rights","Total Number of voting rights","Percentage of total number of voting rights","Number of shares underlying outstanding convertible securities","Number of warrant","Number of warrant and convertible securities","Total shareholding as a percentage assuming full conversion of convertible securities","Number of the locked-in-shares ","Locked-in-shares as a percentage of total number of shares","Number of equity shares held in dematerialized form"]
[]
[]
[]
[]
[{"$nulls":43},"NRI"]
[{"$nulls":43},"Trusts"]
[{"$nulls":4},"Searial No.","Name\nof the \nShareholders\n     (I)","PAN \n(II)","No. of fully paid up equity shares held\n(IV)","No. Of Partly paid-up equity shares held\n(V)","No. Of shares underlying Depository Receipts\n(VI)","Total nos. shares\nheld\n(VII) = (IV)+(V)+ (VI)","Shareholding as a % of total no. of shares (calculated as per SCRR, 1957)\n(VIII)\nAs a % of (A+B+C2)","Number of Voting Rights held in each class of securities\n(IX)",{"$nulls":3},"No. Of Shares Underlying Outstanding convertible securities\n(X)","No. Of Warrants\n(Xi)","No. Of Shares Underlying Outstanding convertible securities and No. Of Warrants\n(Xi) (a)","Shareholding , as a % assuming full conversion of convertible securities (as a percentage of diluted share capital)\n(XI)= (VII)+(X)\nAs a % of (A+B+C2)","Number of Locked in shares\n(XII)",null,"Number of equity shares held in dematerialized form \n(XIV)",{"$nulls":20},"Market Maker"]
[{"$nulls":12},"No of Voting (XIV)\nRights",null,null,"Total as\na % of\nTotal\nVoting\nrights",{"$nulls":27},"HUF"]
[{"$nulls":12},"Class\neg:\nX","Class\neg:y","Total",{"$nulls":5},"No.\n(a)","As a % of total Shares held\n(b)",{"$nulls":21},"Clearing Members"]
[{"$nulls":4},"B1(c)","Alternate Investment Funds",{"$nulls":37},"NSDL or CDSL transit"]
[{"$nulls":10},{"$f":"+IFERROR(IF(COUNT(H13:J13),ROUND(SUM(H13:J13),0),\"\"),\"\")","v":""},{"$f":"+IFERROR(IF(COUNT(K13),ROUND(K13/'Shareholding Pattern'!$L$57*100,2),\"\"),\"\")","v":""},{"$f":"IF(H13=\"\",\"\",H13)","v":""},null,{"$f":"+IFERROR(IF(COUNT(M13:N13),ROUND(SUM(M13,N13),2),\"\"),\"\")","v":""},{"$f":"+IFERROR(IF(COUNT(O13),ROUND(O13/('Shareholding Pattern'!$P$58)*100,2),\"\"),\"\")","v":""},null,null,{"$f":"+IFERROR(IF(COUNT(Q13:R13),ROUND(SUM(Q13:R13),0),\"\"),\"\")","v":""},{"$f":"+IFERROR(IF(COUNT(K13,S13),ROUND(SUM(S13,K13)/SUM('Shareholding Pattern'!$L$57,'Shareholding Pattern'!$T$57)*100,2),\"\"),\"\")","v":""},null,{"$f":"+IFERROR(IF(COUNT(U13),ROUND(SUM(U13)/SUM(H13)*100,2),\"\"),0)","v":""},{"$nulls":21},"Employee welfare fund"]
[{"$nulls":6},"Disclosure of shareholder holding more than 1% of total number of shares",{"$nulls":36},"Overseas corporate bodies"]
[{"$nulls":43},"Private equity fund"]
[{"$nulls":5},"Click here to go back","Total",{"$f":"+IFERROR(IF(COUNT(H14:H15),ROUND(SUM(H14:H15),0),\"\"),\"\")","v":""},{"$f":"+IFERROR(IF(COUNT(I14:I15),ROUND(SUM(I14:I15),0),\"\"),\"\")","v":""},{"$f":"+IFERROR(IF(COUNT(J14:J15),ROUND(SUM(J14:J15),0),\"\"),\"\")","v":""},{"$f":"+IFERROR(IF(COUNT(K14:K15),ROUND(SUM(K14:K15),0),\"\"),\"\")","v":""},{"$f":"+IFERROR(IF(COUNT(K16),ROUND(K16/'Shareholding Pattern'!$L$57*100,2),\"\"),\"\")","v":""},{"$f":"+IFERROR(IF(COUNT(M14:M15),ROUND(SUM(M14:M15),0),\"\"),\"\")","v":""},{"$f":"+IFERROR(IF(COUNT(N14:N15),ROUND(SUM(N14:N15),0),\"\"),\"\")","v":""},{"$f":"+IFERROR(IF(COUNT(O14:O15),ROUND(SUM(O14:O15),0),\"\"),\"\")","v":""},{"$f":"+IFERROR(IF(COUNT(O16),ROUND(O16/('Shareholding Pattern'!$P$58)*100,2),\"\"),\"\")","v":""},{"$f":"+IFERROR(IF(COUNT(Q14:Q15),ROUND(SUM(Q14:Q15),0),\"\"),\"\")","v":""},{"$f":"+IFERROR(IF(COUNT(R14:R15),ROUND(SUM(R14:R15),0),\"\"),\"\")","v":""},{"$f":"+IFERROR(IF(COUNT(S14:S15),ROUND(SUM(S14:S15),0),\"\"),\"\")","v":""},{"$f":"+IFERROR(IF(COUNT(K16,S16),ROUND(SUM(S16,K16)/SUM('Shareholding Pattern'!$L$57,'Shareholding Pattern'!$T$57)*100,2),\"\"),\"\")","v":""},{"$f":"+IFERROR(IF(COUNT(U14:U15),ROUND(SUM(U14:U15),0),\"\"),\"\")","v":""},{"$f":"+IFERROR(IF(COUNT(U16),ROUND(SUM(U16)/SUM(H16)*100,2),\"\"),0)","v":""},{"$f":"+IFERROR(IF(COUNT(W14:W15),ROUND(SUM(W14:W15),0),\"\"),\"\")","v":""},{"$nulls":20},"Other"]

{"sheet":"FVC","index":18,"n_rows":16,"n_cols":44,"rows_kept":16,"hidden":true,"merged":[[8,4,10,4],[8,5,10,5],[8,6,10,6],[8,7,10,7],[8,8,10,8],[8,9,10,9],[8,10,10,10],[8,11,10,11],[8,12,8,15],[8,16,10,16],[8,17,10,17],[8,18,10,18],[8,19,10,19],[8,20,9,21],[8,22,10,22],[9,12,9,14],[9,15,10,15]]}
[{"$nulls":8},0]
[{"$nulls":5},"Name of shareholder","Permanent account number of shareholder","Number of fully paid up equity shares","Number of partly paid-up equity shares","Number of shares underlying outstanding depository receipts","Total number of shares","Shareholding as a percentage of total number of shares held by promoters and public shareholders and custodians or DR holders","Number of voting rights held by same class of securities","Number of voting rights held by differential voting rights","Total Number of voting rights","Percentage of total number of voting rights","Number of shares underlying outstanding convertible securities","Number of warrant","Number of warrant and convertible securities","Total shareholding as a percentage assuming full conversion of convertible securities","Number of the locked-in-shares ","Locked-in-shares as a percentage of total number of shares","Number of equity shares held in dematerialized form"]
[]
[]
[]
[]
[{"$nulls":43},"NRI"]
[{"$nulls":43},"Trusts"]
[{"$nulls":4},"Searial No.","Name\nof the \nShareholders\n     (I)","PAN \n(II)","No. of fully paid up equity shares held\n(IV)","No. Of Partly paid-up equity shares held\n(V)","No. Of shares underlying Depository Receipts\n(VI)","Total nos. shares\nheld\n(VII) = (IV)+(V)+ (VI)","Shareholding as a % of total no. of shares (calculated as per SCRR, 1957)\n(VIII)\nAs a % of (A+B+C2)","Number of Voting Rights held in each class of securities\n(IX)",{"$nulls":3},"No. Of Shares Underlying Outstanding convertible securities\n(X)","No. Of Warrants\n(Xi)","No. Of Shares Underlying Outstanding convertible securities and No. Of Warrants\n(Xi) (a)","Shareholding , as a % assuming full conversion of convertible securities (as a percentage of diluted share capital)\n(XI)= (VII)+(X)\nAs a % of (A+B+C2)","Number of Locked in shares\n(XII)",null,"Number of equity shares held in dematerialized form \n(XIV)",{"$nulls":20},"Market Maker"]
[{"$nulls":12},"No of Voting (XIV)\nRights",null,null,"Total as\na % of\nTotal\nVoting\nrights",{"$nulls":27},"HUF"]
[{"$nulls":12},"Class\neg:\nX","Class\neg:y","Total",{"$nulls":5},"No.\n(a)","As a % of total Shares held\n(b)",{"$nulls":21},"Clearing Members"]
[{"$nulls":4},"B1(d)","Foreign Venture Capital Investors",{"$nulls":37},"NSDL or CDSL transit"]
[{"$nulls":10},{"$f":"+IFERROR(IF(COUNT(H13:J13),ROUND(SUM(H13:J13),0),\"\"),\"\")","v":""},{"$f":"+IFERROR(IF(COUNT(K13),ROUND(K13/'Shareholding Pattern'!$L$57*100,2),\"\"),\"\")","v":""},{"$f":"IF(H13=\"\",\"\",H13)","v":""},null,{"$f":"+IFERROR(IF(COUNT(M13:N13),ROUND(SUM(M13,N13),2),\"\"),\"\")","v":""},{"$f":"+IFERROR(IF(COUNT(O13),ROUND(O13/('Shareholding Pattern'!$P$58)*100,2),\"\"),\"\")","v":""},null,null,{"$f":"+IFERROR(IF(COUNT(Q13:R13),ROUND(SUM(Q13:R13),0),\"\"),\"\")","v":""},{"$f":"+IFERROR(IF(COUNT(K13,S13),ROUND(SUM(S13,K13)/SUM('Shareholding Pattern'!$L$57,'Shareholding Pattern'!$T$57)*100,2),\"\"),\"\")","v":""},null,{"$f":"+IFERROR(IF(COUNT(U13),ROUND(SUM(U13)/SUM(H13)*100,2),\"\"),0)","v":""},{"$nulls":21},"Employee welfare fund"]
[{"$nulls":6},"Disclosure of shareholder holding more than 1% of total number of shares",{"$nulls":36},"Overseas corporate bodies"]
[{"$nulls":43},"Private equity fund"]
[{"$nulls":5},"Click here to go back","Total",{"$f":"+IFERROR(IF(COUNT(H14:H15),ROUND(SUM(H14:H15),0),\"\"),\"\")","v":""},{"$f":"+IFERROR(IF(COUNT(I14:I15),ROUND(SUM(I14:I15),0),\"\"),\"\")","v":""},{"$f":"+IFERROR(IF(COUNT(J14:J15),ROUND(SUM(J14:J15),0),\"\"),\"\")","v":""},{"$f":"+IFERROR(IF(COUNT(K14:K15),ROUND(SUM(K14:K15),0),\"\"),\"\")","v":""},{"$f":"+IFERROR(IF(COUNT(K16),ROUND(K16/'Shareholding Pattern'!$L$57*100,2),\"\"),\"\")","v":""},{"$f":"+IFERROR(IF(COUNT(M14:M15),ROUND(SUM(M14:M15),0),\"\"),\"\")","v":""},{"$f":"+IFERROR(IF(COUNT(N14:N15),ROUND(SUM(N14:N15),0),\"\"),\"\")","v":""},{"$f":"+IFERROR(IF(COUNT(O14:O15),ROUND(SUM(O14:O15),0),\"\"),\"\")","v":""},{"$f":"+IFERROR(IF(COUNT(O16),ROUND(O16/('Shareholding Pattern'!$P$58)*100,2),\"\"),\"\")","v":""},{"$f":"+IFERROR(IF(COUNT(Q14:Q15),ROUND(SUM(Q14:Q15),0),\"\"),\"\")","v":""},{"$f":"+IFERROR(IF(COUNT(R14:R15),ROUND(SUM(R14:R15),0),\"\"),\"\")","v":""},{"$f":"+IFERROR(IF(COUNT(S14:S15),ROUND(SUM(S14:S15),0),\"\"),\"\")","v":""},{"$f":"+IFERROR(IF(COUNT(K16,S16),ROUND(SUM(S16,K16)/SUM('Shareholding Pattern'!$L$57,'Shareholding Pattern'!$T$57)*100,2),\"\"),\"\")","v":""},{"$f":"+IFERROR(IF(COUNT(U14:U15),ROUND(SUM(U14:U15),0),\"\"),\"\")","v":""},{"$f":"+IFERROR(IF(COUNT(U16),ROUND(SUM(U16)/SUM(H16)*100,2),\"\"),0)","v":""},{"$f":"+IFERROR(IF(COUNT(W14:W15),ROUND(SUM(W14:W15),0),\"\"),\"\")","v":""},{"$nulls":20},"Other"]

{"sheet":"FPI_Insti","index":19,"n_rows":16,"n_cols":44,"rows_kept":16,"hidden":true,"merged":[[8,4,10,4],[8,5,10,5],[8,6,10,6],[8,7,10,7],[8,8,10,8],[8,9,10,9],[8,10,10,10],[8,11,10,11],[8,12,8,15],[8,16,10,16],[8,17,10,17],[8,18,10,18],[8,19,10,19],[8,20,9,21],[8,22,10,22],[9,12,9,14],[9,15,10,15]]}
[{"$nulls":8},0]
[{"$nulls":5},"Name of shareholder","Permanent account number of shareholder","Number of fully paid up equity shares","Number of partly paid-up equity shares","Number of shares underlying outstanding depository receipts","Total number of shares","Shareholding as a percentage of total number of shares held by promoters and public shareholders and custodians or DR holders","Number of voting rights held by same class of securities","Number of voting rights held by differential voting rights","Total Number of voting rights","Percentage of total number of voting rights","Number of shares underlying outstanding convertible securities","Number of warrant","Number of warrant and convertible securities","Total shareholding as a percentage assuming full conversion of convertible securities","Number of the locked-in-shares ","Locked-in-shares as a percentage of total number of shares","Number of equity shares held in dematerialized form"]
[]
[]
[]
[]
[{"$nulls":43},"NRI"]
[{"$nulls":43},"Trusts"]
[{"$nulls":4},"Searial No.","Name\nof the \nShareholders\n     (I)","PAN \n(II)","No. of fully paid up equity shares held\n(IV)","No. Of Partly paid-up equity shares held\n(V)","No. Of shares underlying Depository Receipts\n(VI)","Total nos. shares\nheld\n(VII) = (IV)+(V)+ (VI)","Shareholding as a % of total no. of shares (calculated as per SCRR, 1957)\n(VIII)\nAs a % of (A+B+C2)","Number of Voting Rights held in each class of securities\n(IX)",{"$nulls":3},"No. Of Shares Underlying Outstanding convertible securities\n(X)","No. Of Warrants\n(Xi)","No. Of Shares Underlying Outstanding convertible securities and No. Of Warrants\n(Xi) (a)","Shareholding , as a % assuming full conversion of convertible securities (as a percentage of diluted share capital)\n(XI)= (VII)+(X)\nAs a % of (A+B+C2)","Number of Locked in shares\n(XII)",null,"Number of equity shares held in dematerialized form \n(XIV)",{"$nulls":20},"Market Maker"]
[{"$nulls":12},"No of Voting (XIV)\nRights",null,null,"Total as\na % of\nTotal\nVoting\nrights",{"$nulls":27},"HUF"]
[{"$nulls":12},"Class\neg:\nX","Class\neg:y","Total",{"$nulls":5},"No.\n(a)","As a % of total Shares held\n(b)",{"$nulls":21},"Clearing Members"]
[{"$nulls":4},"B1(e)","Foreign Portfolio Investors",{"$nulls":37},"NSDL or CDSL transit"]
[{"$nulls":10},{"$f":"+IFERROR(IF(COUNT(H13:J13),ROUND(SUM(H13:J13),0),\"\"),\"\")","v":""},{"$f":"+IFERROR(IF(COUNT(K13),ROUND(K13/'Shareholding Pattern'!$L$57*100,2),\"\"),\"\")","v":""},{"$f":"IF(H13=\"\",\"\",H13)","v":""},null,{"$f":"+IFERROR(IF(COUNT(M13:N13),ROUND(SUM(M13,N13),2),\"\"),\"\")","v":""},{"$f":"+IFERROR(IF(COUNT(O13),ROUND(O13/('Shareholding Pattern'!$P$58)*100,2),\"\"),\"\")","v":""},null,null,{"$f":"+IFERROR(IF(COUNT(Q13:R13),ROUND(SUM(Q13:R13),0),\"\"),\"\")","v":""},{"$f":"+IFERROR(IF(COUNT(K13,S13),ROUND(SUM(S13,K13)/SUM('Shareholding Pattern'!$L$57,'Shareholding Pattern'!$T$57)*100,2),\"\"),\"\")","v":""},null,{"$f":"+IFERROR(IF(COUNT(U13),ROUND(SUM(U13)/SUM(H13)*100,2),\"\"),0)","v":""},{"$nulls":21},"Employee welfare fund"]
[{"$nulls":6},"Disclosure of shareholder holding more than 1% of total number of shares",{"$nulls":36},"Overseas corporate bodies"]
[{"$nulls":43},"Private equity fund"]
[{"$nulls":5},"Click here to go back","Total",{"$f":"+IFERROR(IF(COUNT(H14:H15),ROUND(SUM(H14:H15),0),\"\"),\"\")","v":""},{"$f":"+IFERROR(IF(COUNT(I14:I15),ROUND(SUM(I14:I15),0),\"\"),\"\")","v":""},{"$f":"+IFERROR(IF(COUNT(J14:J15),ROUND(SUM(J14:J15),0),\"\"),\"\")","v":""},{"$f":"+IFERROR(IF(COUNT(K14:K15),ROUND(SUM(K14:K15),0),\"\"),\"\")","v":""},{"$f":"+IFERROR(IF(COUNT(K16),ROUND(K16/'Shareholding Pattern'!$L$57*100,2),\"\"),\"\")","v":""},{"$f":"+IFERROR(IF(COUNT(M14:M15),ROUND(SUM(M14:M15),0),\"\"),\"\")","v":""},{"$f":"+IFERROR(IF(COUNT(N14:N15),ROUND(SUM(N14:N15),0),\"\"),\"\")","v":""},{"$f":"+IFERROR(IF(COUNT(O14:O15),ROUND(SUM(O14:O15),0),\"\"),\"\")","v":""},{"$f":"+IFERROR(IF(COUNT(O16),ROUND(O16/('Shareholding Pattern'!$P$58)*100,2),\"\"),\"\")","v":""},{"$f":"+IFERROR(IF(COUNT(Q14:Q15),ROUND(SUM(Q14:Q15),0),\"\"),\"\")","v":""},{"$f":"+IFERROR(IF(COUNT(R14:R15),ROUND(SUM(R14:R15),0),\"\"),\"\")","v":""},{"$f":"+IFERROR(IF(COUNT(S14:S15),ROUND(SUM(S14:S15),0),\"\"),\"\")","v":""},{"$f":"+IFERROR(IF(COUNT(K16,S16),ROUND(SUM(S16,K16)/SUM('Shareholding Pattern'!$L$57,'Shareholding Pattern'!$T$57)*100,2),\"\"),\"\")","v":""},{"$f":"+IFERROR(IF(COUNT(U14:U15),ROUND(SUM(U14:U15),0),\"\"),\"\")","v":""},{"$f":"+IFERROR(IF(COUNT(U16),ROUND(SUM(U16)/SUM(H16)*100,2),\"\"),0)","v":""},{"$f":"+IFERROR(IF(COUNT(W14:W15),ROUND(SUM(W14:W15),0),\"\"),\"\")","v":""},{"$nulls":20},"Other"]

{"sheet":"Bank_Insti","index":20,"n_rows":16,"n_cols":44,"rows_kept":16,"hidden":true,"merged":[[8,4,10,4],[8,5,10,5],[8,6,10,6],[8,7,10,7],[8,8,10,8],[8,9,10,9],[8,10,10,10],[8,11,10,11],[8,12,8,15],[8,16,10,16],[8,17,10,17],[8,18,10,18],[8,19,10,19],[8,20,9,21],[8,22,10,22],[9,12,9,14],[9,15,10,15]]}
[{"$nulls":8},0]
[{"$nulls":5},"Name of shareholder","Permanent account number of shareholder","Number of fully paid up equity shares","Number of partly paid-up equity shares","Number of shares underlying outstanding depository receipts","Total number of shares","Shareholding as a percentage of total number of shares held by promoters and public shareholders and custodians or DR holders","Number of voting rights held by same class of securities","Number of voting rights held by differential voting rights","Total Number of voting rights","Percentage of total number of voting rights","Number of shares underlying outstanding convertible securities","Number of warrant","Number of warrant and convertible securities","Total shareholding as a percentage assuming full conversion of convertible securities","Number of the locked-in-shares ","Locked-in-shares as a percentage of total number of shares","Number of equity shares held in dematerialized form"]
[]
[]
[]
[]
[{"$nulls":43},"NRI"]
[{"$nulls":43},"Trusts"]
[{"$nulls":4},"Searial No.","Name\nof the \nShareholders\n     (I)","PAN \n(II)","No. of fully paid up equity shares held\n(IV)","No. Of Partly paid-up equity shares held\n(V)","No. Of shares underlying Depository Receipts\n(VI)","Total nos. shares\nheld\n(VII) = (IV)+(V)+ (VI)","Shareholding as a % of total no. of shares (calculated as per SCRR, 1957)\n(VIII)\nAs a % of (A+B+C2)","Number of Voting Rights held in each class of securities\n(IX)",{"$nulls":3},"No. Of Shares Underlying Outstanding convertible securities\n(X)","No. Of Warrants\n(Xi)","No. Of Shares Underlying Outstanding convertible securities and No. Of Warrants\n(Xi) (a)","Shareholding , as a % assuming full conversion of convertible securities (as a percentage of diluted share capital)\n(XI)= (VII)+(X)\nAs a % of (A+B+C2)","Number of Locked in shares\n(XII)",null,"Number of equity shares held in dematerialized form \n(XIV)",{"$nulls":20},"Market Maker"]
[{"$nulls":12},"No of Voting (XIV)\nRights",null,null,"Total as\na % of\nTotal\nVoting\nrights",{"$nulls":27},"HUF"]
[{"$nulls":12},"Class\neg:\nX","Class\neg:y","Total",{"$nulls":5},"No.\n(a)","As a % of total Shares held\n(b)",{"$nulls":21},"Clearing Members"]
[{"$nulls":4},"B1(f)","Financial  Institutions/ Banks",{"$nulls":37},"NSDL or CDSL transit"]
[{"$nulls":10},{"$f":"+IFERROR(IF(COUNT(H13:J13),ROUND(SUM(H13:J13),0),\"\"),\"\")","v":""},{"$f":"+IFERROR(IF(COUNT(K13),ROUND(K13/'Shareholding Pattern'!$L$57*100,2),\"\"),\"\")","v":""},{"$f":"IF(H13=\"\",\"\",H13)","v":""},null,{"$f":"+IFERROR(IF(COUNT(M13:N13),ROUND(SUM(M13,N13),2),\"\"),\"\")","v":""},{"$f":"+IFERROR(IF(COUNT(O13),ROUND(O13/('Shareholding Pattern'!$P$58)*100,2),\"\"),\"\")","v":""},null,null,{"$f":"+IFERROR(IF(COUNT(Q13:R13),ROUND(SUM(Q13:R13),0),\"\"),\"\")","v":""},{"$f":"+IFERROR(IF(COUNT(K13,S13),ROUND(SUM(S13,K13)/SUM('Shareholding Pattern'!$L$57,'Shareholding Pattern'!$T$57)*100,2),\"\"),\"\")","v":""},null,{"$f":"+IFERROR(IF(COUNT(U13),ROUND(SUM(U13)/SUM(H13)*100,2),\"\"),0)","v":""},{"$nulls":21},"Employee welfare fund"]
[{"$nulls":6},"Disclosure of shareholder holding more than 1% of total number of shares",{"$nulls":36},"Overseas corporate bodies"]
[{"$nulls":43},"Private equity fund"]
[{"$nulls":5},"Click here to go back","Total",{"$f":"+IFERROR(IF(COUNT(H14:H15),ROUND(SUM(H14:H15),0),\"\"),\"\")","v":""},{"$f":"+IFERROR(IF(COUNT(I14:I15),ROUND(SUM(I14:I15),0),\"\"),\"\")","v":""},{"$f":"+IFERROR(IF(COUNT(J14:J15),ROUND(SUM(J14:J15),0),\"\"),\"\")","v":""},{"$f":"+IFERROR(IF(COUNT(K14:K15),ROUND(SUM(K14:K15),0),\"\"),\"\")","v":""},{"$f":"+IFERROR(IF(COUNT(K16),ROUND(K16/'Shareholding Pattern'!$L$57*100,2),\"\"),\"\")","v":""},{"$f":"+IFERROR(IF(COUNT(M14:M15),ROUND(SUM(M14:M15),0),\"\"),\"\")","v":""},{"$f":"+IFERROR(IF(COUNT(N14:N15),ROUND(SUM(N14:N15),0),\"\"),\"\")","v":""},{"$f":"+IFERROR(IF(COUNT(O14:O15),ROUND(SUM(O14:O15),0),\"\"),\"\")","v":""},{"$f":"+IFERROR(IF(COUNT(O16),ROUND(O16/('Shareholding Pattern'!$P$58)*100,2),\"\"),\"\")","v":""},{"$f":"+IFERROR(IF(COUNT(Q14:Q15),ROUND(SUM(Q14:Q15),0),\"\"),\"\")","v":""},{"$f":"+IFERROR(IF(COUNT(R14:R15),ROUND(SUM(R14:R15),0),\"\"),\"\")","v":""},{"$f":"+IFERROR(IF(COUNT(S14:S15),ROUND(SUM(S14:S15),0),\"\"),\"\")","v":""},{"$f":"+IFERROR(IF(COUNT(K16,S16),ROUND(SUM(S16,K16)/SUM('Shareholding Pattern'!$L$57,'Shareholding Pattern'!$T$57)*100,2),\"\"),\"\")","v":""},{"$f":"+IFERROR(IF(COUNT(U14:U15),ROUND(SUM(U14:U15),0),\"\"),\"\")","v":""},{"$f":"+IFERROR(IF(COUNT(U16),ROUND(SUM(U16)/SUM(H16)*100,2),\"\"),0)","v":""},{"$f":"+IFERROR(IF(COUNT(W14:W15),ROUND(SUM(W14:W15),0),\"\"),\"\")","v":""},{"$nulls":20},"Other"]

{"sheet":"Insurance","index":21,"n_rows":16,"n_cols":44,"rows_kept":16,"hidden":true,"merged":[[8,4,10,4],[8,5,10,5],[8,6,10,6],[8,7,10,7],[8,8,10,8],[8,9,10,9],[8,10,10,10],[8,11,10,11],[8,12,8,15],[8,16,10,16],[8,17,10,17],[8,18,10,18],[8,19,10,19],[8,20,9,21],[8,22,10,22],[9,12,9,14],[9,15,10,15]]}
[{"$nulls":8},0]
[{"$nulls":5},"Name of shareholder","Permanent account number of shareholder","Number of fully paid up equity shares","Number of partly paid-up equity shares","Number of shares underlying outstanding depository receipts","Total number of shares","Shareholding as a percentage of total number of shares held by promoters and public shareholders and custodians or DR holders","Number of voting rights held by same class of securities","Number of voting rights held by differential voting rights","Total Number of voting rights","Percentage of total number of voting rights","Number of shares underlying outstanding convertible securities","Number of warrant","Number of warrant and convertible securities","Total shareholding as a percentage assuming full conversion of convertible securities","Number of the locked-in-shares ","Locked-in-shares as a percentage of total number of shares","Number of equity shares held in dematerialized form"]
[]
[]
[]
[]
[{"$nulls":43},"NRI"]
[{"$nulls":43},"Trusts"]
[{"$nulls":4},"Searial No.","Name\nof the \nShareholders\n     (I)","PAN \n(II)","No. of fully paid up equity shares held\n(IV)","No. Of Partly paid-up equity shares held\n(V)","No. Of shares underlying Depository Receipts\n(VI)","Total nos. shares\nheld\n(VII) = (IV)+(V)+ (VI)","Shareholding as a % of total no. of shares (calculated as per SCRR, 1957)\n(VIII)\nAs a % of (A+B+C2)","Number of Voting Rights held in each class of securities\n(IX)",{"$nulls":3},"No. Of Shares Underlying Outstanding convertible securities\n(X)","No. Of Warrants\n(Xi)","No. Of Shares Underlying Outstanding convertible securities and No. Of Warrants\n(Xi) (a)","Shareholding , as a % assuming full conversion of convertible securities (as a percentage of diluted share capital)\n(XI)= (VII)+(X)\nAs a % of (A+B+C2)","Number of Locked in shares\n(XII)",null,"Number of equity shares held in dematerialized form \n(XIV)",{"$nulls":20},"Market Maker"]
[{"$nulls":12},"No of Voting (XIV)\nRights",null,null,"Total as\na % of\nTotal\nVoting\nrights",{"$nulls":27},"HUF"]
[{"$nulls":12},"Class\neg:\nX","Class\neg:y","Total",{"$nulls":5},"No.\n(a)","As a % of total Shares held\n(b)",{"$nulls":21},"Clearing Members"]
[{"$nulls":4},"B1(g)","Insurance  Companies",{"$nulls":37},"NSDL or CDSL transit"]
[{"$nulls":10},{"$f":"+IFERROR(IF(COUNT(H13:J13),ROUND(SUM(H13:J13),0),\"\"),\"\")","v":""},{"$f":"+IFERROR(IF(COUNT(K13),ROUND(K13/'Shareholding Pattern'!$L$57*100,2),\"\"),\"\")","v":""},{"$f":"IF(H13=\"\",\"\",H13)","v":""},null,{"$f":"+IFERROR(IF(COUNT(M13:N13),ROUND(SUM(M13,N13),2),\"\"),\"\")","v":""},{"$f":"+IFERROR(IF(COUNT(O13),ROUND(O13/('Shareholding Pattern'!$P$58)*100,2),\"\"),\"\")","v":""},null,null,{"$f":"+IFERROR(IF(COUNT(Q13:R13),ROUND(SUM(Q13:R13),0),\"\"),\"\")","v":""},{"$f":"+IFERROR(IF(COUNT(K13,S13),ROUND(SUM(S13,K13)/SUM('Shareholding Pattern'!$L$57,'Shareholding Pattern'!$T$57)*100,2),\"\"),\"\")","v":""},null,{"$f":"+IFERROR(IF(COUNT(U13),ROUND(SUM(U13)/SUM(H13)*100,2),\"\"),0)","v":""},{"$nulls":21},"Employee welfare fund"]
[{"$nulls":6},"\nDisclosure of shareholder holding more than 1% of total number of shares",{"$nulls":36},"Overseas corporate bodies"]
[{"$nulls":43},"Private equity fund"]
[{"$nulls":5},"Click here to go back","Total",{"$f":"+IFERROR(IF(COUNT(H14:H15),ROUND(SUM(H14:H15),0),\"\"),\"\")","v":""},{"$f":"+IFERROR(IF(COUNT(I14:I15),ROUND(SUM(I14:I15),0),\"\"),\"\")","v":""},{"$f":"+IFERROR(IF(COUNT(J14:J15),ROUND(SUM(J14:J15),0),\"\"),\"\")","v":""},{"$f":"+IFERROR(IF(COUNT(K14:K15),ROUND(SUM(K14:K15),0),\"\"),\"\")","v":""},{"$f":"+IFERROR(IF(COUNT(K16),ROUND(K16/'Shareholding Pattern'!$L$57*100,2),\"\"),\"\")","v":""},{"$f":"+IFERROR(IF(COUNT(M14:M15),ROUND(SUM(M14:M15),0),\"\"),\"\")","v":""},{"$f":"+IFERROR(IF(COUNT(N14:N15),ROUND(SUM(N14:N15),0),\"\"),\"\")","v":""},{"$f":"+IFERROR(IF(COUNT(O14:O15),ROUND(SUM(O14:O15),0),\"\"),\"\")","v":""},{"$f":"+IFERROR(IF(COUNT(O16),ROUND(O16/('Shareholding Pattern'!$P$58)*100,2),\"\"),\"\")","v":""},{"$f":"+IFERROR(IF(COUNT(Q14:Q15),ROUND(SUM(Q14:Q15),0),\"\"),\"\")","v":""},{"$f":"+IFERROR(IF(COUNT(R14:R15),ROUND(SUM(R14:R15),0),\"\"),\"\")","v":""},{"$f":"+IFERROR(IF(COUNT(S14:S15),ROUND(SUM(S14:S15),0),\"\"),\"\")","v":""},{"$f":"+IFERROR(IF(COUNT(K16,S16),ROUND(SUM(S16,K16)/SUM('Shareholding Pattern'!$L$57,'Shareholding Pattern'!$T$57)*100,2),\"\"),\"\")","v":""},{"$f":"+IFERROR(IF(COUNT(U14:U15),ROUND(SUM(U14:U15),0),\"\"),\"\")","v":""},{"$f":"+IFERROR(IF(COUNT(U16),ROUND(SUM(U16)/SUM(H16)*100,2),\"\"),0)","v":""},{"$f":"+IFERROR(IF(COUNT(W14:W15),ROUND(SUM(W14:W15),0),\"\"),\"\")","v":""},{"$nulls":20},"Other"]

{"sheet":"Pension","index":22,"n_rows":16,"n_cols":44,"rows_kept":16,"hidden":true,"merged":[[8,4,10,4],[8,5,10,5],[8,6,10,6],[8,7,10,7],[8,8,10,8],[8,9,10,9],[8,10,10,10],[8,11,10,11],[8,12,8,15],[8,16,10,16],[8,17,10,17],[8,18,10,18],[8,19,10,19],[8,20,9,21],[8,22,10,22],[9,12,9,14],[9,15,10,15]]}
[{"$nulls":8},0]
[{"$nulls":5},"Name of shareholder","Permanent account number of shareholder","Number of fully paid up equity shares","Number of partly paid-up equity shares","Number of shares underlying outstanding depository receipts","Total number of shares","Shareholding as a percentage of total number of shares held by promoters and public shareholders and custodians or DR holders","Number of voting rights held by same class of securities","Number of voting rights held by differential voting rights","Total Number of voting rights","Percentage of total number of voting rights","Number of shares underlying outstanding convertible securities","Number of warrant","Number of warrant and convertible securities","Total shareholding as a percentage assuming full conversion of convertible securities","Number of the locked-in-shares ","Locked-in-shares as a percentage of total number of shares","Number of equity shares held in dematerialized form"]
[]
[]
[]
[]
[{"$nulls":43},"NRI"]
[{"$nulls":43},"Trusts"]
[{"$nulls":4},"Searial No.","Name\nof the \nShareholders\n     (I)","PAN \n(II)","No. of fully paid up equity shares held\n(IV)","No. Of Partly paid-up equity shares held\n(V)","No. Of shares underlying Depository Receipts\n(VI)","Total nos. shares\nheld\n(VII) = (IV)+(V)+ (VI)","Shareholding as a % of total no. of shares (calculated as per SCRR, 1957)\n(VIII)\nAs a % of (A+B+C2)","Number of Voting Rights held in each class of securities\n(IX)",{"$nulls":3},"No. Of Shares Underlying Outstanding convertible securities\n(X)","No. Of Warrants\n(Xi)","No. Of Shares Underlying Outstanding convertible securities and No. Of Warrants\n(Xi) (a)","Shareholding , as a % assuming full conversion of convertible securities (as a percentage of diluted share capital)\n(XI)= (VII)+(X)\nAs a % of (A+B+C2)","Number of Locked in shares\n(XII)",null,"Number of equity shares held in dematerialized form \n(XIV)",{"$nulls":20},"Market Maker"]
[{"$nulls":12},"No of Voting (XIV)\nRights",null,null,"Total as\na % of\nTotal\nVoting\nrights",{"$nulls":27},"HUF"]
[{"$nulls":12},"Class\neg:\nX","Class\neg:y","Total",{"$nulls":5},"No.\n(a)","As a % of total Shares held\n(b)",{"$nulls":21},"Clearing Members"]
[{"$nulls":4},"B1(h)","Provident Funds/ Pension Funds",{"$nulls":37},"NSDL or CDSL transit"]
[{"$nulls":10},{"$f":"+IFERROR(IF(COUNT(H13:J13),ROUND(SUM(H13:J13),0),\"\"),\"\")","v":""},{"$f":"+IFERROR(IF(COUNT(K13),ROUND(K13/'Shareholding Pattern'!$L$57*100,2),\"\"),\"\")","v":""},{"$f":"IF(H13=\"\",\"\",H13)","v":""},null,{"$f":"+IFERROR(IF(COUNT(M13:N13),ROUND(SUM(M13,N13),2),\"\"),\"\")","v":""},{"$f":"+IFERROR(IF(COUNT(O13),ROUND(O13/('Shareholding Pattern'!$P$58)*100,2),\"\"),\"\")","v":""},null,null,{"$f":"+IFERROR(IF(COUNT(Q13:R13),ROUND(SUM(Q13:R13),0),\"\"),\"\")","v":""},{"$f":"+IFERROR(IF(COUNT(K13,S13),ROUND(SUM(S13,K13)/SUM('Shareholding Pattern'!$L$57,'Shareholding Pattern'!$T$57)*100,2),\"\"),\"\")","v":""},null,{"$f":"+IFERROR(IF(COUNT(U13),ROUND(SUM(U13)/SUM(H13)*100,2),\"\"),0)","v":""},{"$nulls":21},"Employee welfare fund"]
[{"$nulls":6},"Disclosure of shareholder holding more than 1% of total number of shares",{"$nulls":36},"Overseas corporate bodies"]
[{"$nulls":43},"Private equity fund"]
[{"$nulls":5},"Click here to go back","Total",{"$f":"+IFERROR(IF(COUNT(H14:H15),ROUND(SUM(H14:H15),0),\"\"),\"\")","v":""},{"$f":"+IFERROR(IF(COUNT(I14:I15),ROUND(SUM(I14:I15),0),\"\"),\"\")","v":""},{"$f":"+IFERROR(IF(COUNT(J14:J15),ROUND(SUM(J14:J15),0),\"\"),\"\")","v":""},{"$f":"+IFERROR(IF(COUNT(K14:K15),ROUND(SUM(K14:K15),0),\"\"),\"\")","v":""},{"$f":"+IFERROR(IF(COUNT(K16),ROUND(K16/'Shareholding Pattern'!$L$57*100,2),\"\"),\"\")","v":""},{"$f":"+IFERROR(IF(COUNT(M14:M15),ROUND(SUM(M14:M15),0),\"\"),\"\")","v":""},{"$f":"+IFERROR(IF(COUNT(N14:N15),ROUND(SUM(N14:N15),0),\"\"),\"\")","v":""},{"$f":"+IFERROR(IF(COUNT(O14:O15),ROUND(SUM(O14:O15),0),\"\"),\"\")","v":""},{"$f":"+IFERROR(IF(COUNT(O16),ROUND(O16/('Shareholding Pattern'!$P$58)*100,2),\"\"),\"\")","v":""},{"$f":"+IFERROR(IF(COUNT(Q14:Q15),ROUND(SUM(Q14:Q15),0),\"\"),\"\")","v":""},{"$f":"+IFERROR(IF(COUNT(R14:R15),ROUND(SUM(R14:R15),0),\"\"),\"\")","v":""},{"$f":"+IFERROR(IF(COUNT(S14:S15),ROUND(SUM(S14:S15),0),\"\"),\"\")","v":""},{"$f":"+IFERROR(IF(COUNT(K16,S16),ROUND(SUM(S16,K16)/SUM('Shareholding Pattern'!$L$57,'Shareholding Pattern'!$T$57)*100,2),\"\"),\"\")","v":""},{"$f":"+IFERROR(IF(COUNT(U14:U15),ROUND(SUM(U14:U15),0),\"\"),\"\")","v":""},{"$f":"+IFERROR(IF(COUNT(U16),ROUND(SUM(U16)/SUM(H16)*100,2),\"\"),0)","v":""},{"$f":"+IFERROR(IF(COUNT(W14:W15),ROUND(SUM(W14:W15),0),\"\"),\"\")","v":""},{"$nulls":20},"Other"]

{"sheet":"Other_Insti","index":23,"n_rows":16,"n_cols":48,"rows_kept":16,"hidden":true,"merged":[[8,3,10,3],[8,4,10,4],[8,5,10,5],[8,6,10,6],[8,7,10,7],[8,8,10,8],[8,9,10,9],[8,10,10,10],[8,11,10,11],[8,12,10,12],[8,13,10,13],[8,14,8,17],[8,18,10,18],[8,19,10,19],[8,20,10,20],[8,21,10,21],[8,22,9,23],[8,24,10,24],[9,14,9,16],[9,17,10,17]]}
[{"$nulls":8},0]
[{"$nulls":4},"Category of other institutions","Category or more than one percentage","Name of shareholder","Permanent account number of shareholder","Number of shareholders","Number of fully paid up equity shares","Number of partly paid-up equity shares","Number of shares underlying outstanding depository receipts","Total number of shares","Shareholding as a percentage of total number of shares held by promoters and public shareholders and custodians or DR holders","Number of voting rights held by same class of securities","Number of voting rights held by differential voting rights","Total Number of voting rights","Percentage of total number of voting rights","Number of shares underlying outstanding convertible securities","Number of warrant","Number of warrant and convertible securities","Total shareholding as a percentage assuming full conversion of convertible securities","Number of the locked-in-shares ","Locked-in-shares as a percentage of total number of shares","Number of equity shares held in dematerialized form"]
[{"$nulls":31},"State industrial development Corporation","Provident Fund","Pension Fund","National Investment Fund","Insurance Companies ","Other"]
[{"$nulls":31},"NRI"]
[{"$nulls":31},"Trusts"]
[{"$nulls":31},"Market Maker"]
[{"$nulls":31},"HUF"]
[{"$nulls":31},"Clearing Members"]
[{"$nulls":3},"Searial No.","Category","Category / More than 1 percentage","Name\nof the \nShareholders\n     (I)","PAN \n(II)","No.\nof the \nShareholders\n     (I)","No. of fully paid up equity shares held\n(IV)","No. Of Partly paid-up equity shares held\n(V)","No. Of shares underlying Depository Receipts\n(VI)","Total nos. shares\nheld\n(VII) = (IV)+(V)+ (VI)","Shareholding as a % of total no. of shares (calculated as per SCRR, 1957)\n(VIII)\nAs a % of (A+B+C2)","Number of Voting Rights held in each class of securities\n(IX)",{"$nulls":3},"No. Of Shares Underlying Outstanding convertible securities\n(X)","No. Of Warrants\n(Xi)","No. Of Shares Underlying Outstanding convertible securities and Warrants\n(X)","Shareholding , as a % assuming full conversion of convertible securities (as a percentage of diluted share capital)\n(XI)= (VII)+(X)\nAs a % of (A+B+C2)","Number of Locked in shares\n(XII)",null,"Number of equity shares held in dematerialized form \n(XIV)",{"$nulls":7},"NSDL or CDSL transit",{"$nulls":14},"Category"]
[{"$nulls":14},"No of Voting (XIV)\nRights",null,null,"Total as\na % of\nTotal\nVoting\nrights",{"$nulls":14},"Employee welfare fund",{"$nulls":14},"More than 1 percentage of shareholding"]
[{"$nulls":14},"Class\neg:\nX","Class\neg:y","Total",{"$nulls":5},"No.\n(a)","As a % of total Shares held\n(b)",{"$nulls":8},"Overseas corporate bodies"]
[{"$nulls":3},"B1(i)","Any Other (specify)",{"$nulls":26},"Private equity fund"]
[{"$nulls":12},{"$f":"+IFERROR(IF(COUNT(J13:L13),ROUND(SUM(J13:L13),0),\"\"),\"\")","v":""},{"$f":"+IFERROR(IF(COUNT(M13),ROUND(M13/'Shareholding Pattern'!$L$57*100,2),\"\"),\"\")","v":""},{"$f":"IF(J13=\"\",\"\",J13)","v":""},null,{"$f":"+IFERROR(IF(COUNT(O13:P13),ROUND(SUM(O13,P13),2),\"\"),\"\")","v":""},{"$f":"+IFERROR(IF(COUNT(Q13),ROUND(Q13/('Shareholding Pattern'!$P$58)*100,2),\"\"),\"\")","v":""},null,null,{"$f":"+IFERROR(IF(COUNT(S13:T13),ROUND(SUM(S13:T13),0),\"\"),\"\")","v":""},{"$f":"+IFERROR(IF(COUNT(M13,U13),ROUND(SUM(U13,M13)/SUM('Shareholding Pattern'!$L$57,'Shareholding Pattern'!$T$57)*100,2),\"\"),\"\")","v":""},null,{"$f":"+IFERROR(IF(COUNT(W13),ROUND(SUM(W13)/SUM(J13)*100,2),\"\"),0)","v":""},{"$nulls":7},"Other"]
[]
[]
[{"$nulls":5},"Click here to go back",null,"Total",{"$f":"+IFERROR(IF(COUNT(I14:I15),ROUND(SUM(I14:I15),0),\"\"),\"\")","v":""},{"$f":"+IFERROR(IF(COUNT(J14:J15),ROUND(SUM(J14:J15),0),\"\"),\"\")","v":""},{"$f":"+IFERROR(IF(COUNT(K14:K15),ROUND(SUM(K14:K15),0),\"\"),\"\")","v":""},{"$f":"+IFERROR(IF(COUNT(L14:L15),ROUND(SUM(L14:L15),0),\"\"),\"\")","v":""},{"$f":"+IFERROR(IF(COUNT(M14:M15),ROUND(SUM(M14:M15),0),\"\"),\"\")","v":""},{"$f":"+IFERROR(IF(COUNT(M16),ROUND(M16/'Shareholding Pattern'!$L$57*100,2),\"\"),\"\")","v":""},{"$f":"+IFERROR(IF(COUNT(O14:O15),ROUND(SUM(O14:O15),0),\"\"),\"\")","v":""},{"$f":"+IFERROR(IF(COUNT(P14:P15),ROUND(SUM(P14:P15),0),\"\"),\"\")","v":""},{"$f":"+IFERROR(IF(COUNT(Q14:Q15),ROUND(SUM(Q14:Q15),0),\"\"),\"\")","v":""},{"$f":"+IFERROR(IF(COUNT(Q16),ROUND(Q16/('Shareholding Pattern'!$P$58)*100,2),\"\"),\"\")","v":""},{"$f":"+IFERROR(IF(COUNT(S14:S15),ROUND(SUM(S14:S15),0),\"\"),\"\")","v":""},{"$f":"+IFERROR(IF(COUNT(T14:T15),ROUND(SUM(T14:T15),0),\"\"),\"\")","v":""},{"$f":"+IFERROR(IF(COUNT(U14:U15),ROUND(SUM(U14:U15),0),\"\"),\"\")","v":""},{"$f":"+IFERROR(IF(COUNT(M16,U16),ROUND(SUM(U16,M16)/SUM('Shareholding Pattern'!$L$57,'Shareholding Pattern'!$T$57)*100,2),\"\"),\"\")","v":""},{"$f":"+IFERROR(IF(COUNT(W14:W15),ROUND(SUM(W14:W15),0),\"\"),\"\")","v":""},{"$f":"+IFERROR(IF(COUNT(W16),ROUND(SUM(W16)/SUM(J16)*100,2),\"\"),0)","v":""},{"$f":"+IFERROR(IF(COUNT(Y14:Y15),ROUND(SUM(Y14:Y15),0),\"\"),\"\")","v":""}]

{"sheet":"CG&SG&PI","index":24,"n_rows":16,"n_cols":24,"rows_kept":16,"hidden":true,"merged":[[8,4,10,4],[8,5,10,5],[8,6,10,6],[8,7,10,7],[8,8,10,8],[8,9,10,9],[8,10,10,10],[8,11,10,11],[8,12,8,15],[8,16,10,16],[8,17,10,17],[8,18,10,18],[8,19,10,19],[8,20,9,21],[8,22,10,22],[9,12,9,14],[9,15,10,15]]}
[{"$nulls":8},0]
[{"$nulls":5},"Name of shareholder","Permanent account number of shareholder","Number of fully paid up equity shares","Number of partly paid-up equity shares","Number of shares underlying outstanding depository receipts","Total number of shares","Shareholding as a percentage of total number of shares held by promoters and public shareholders and custodians or DR holders","Number of voting rights held by same class of securities","Number of voting rights held by differential voting rights","Total Number of voting rights","Percentage of total number of voting rights","Number of shares underlying outstanding convertible securities","Number of warrant","Number of warrant and convertible securities","Total shareholding as a percentage assuming full conversion of convertible securities","Number of the locked-in-shares ","Locked-in-shares as a percentage of total number of shares","Number of equity shares held in dematerialized form"]
[]
[]
[]
[]
[]
[]
[{"$nulls":4},"Searial No.","Name\nof the \nShareholders\n     (I)","PAN \n(II)","No. of fully paid up equity shares held\n(IV)","No. Of Partly paid-up equity shares held\n(V)","No. Of shares underlying Depository Receipts\n(VI)","Total nos. shares\nheld\n(VII) = (IV)+(V)+ (VI)","Shareholding as a % of total no. of shares (calculated as per SCRR, 1957)\n(VIII)\nAs a % of (A+B+C2)","Number of Voting Rights held in each class of securities\n(IX)",{"$nulls":3},"No. Of Shares Underlying Outstanding convertible securities\n(X)","No. Of Warrants\n(Xi)","No. Of Shares Underlying Outstanding convertible securities and No. Of Warrants\n(Xi) (a)","Shareholding , as a % assuming full conversion of convertible securities (as a percentage of diluted share capital)\n(XI)= (VII)+(X)\nAs a % of (A+B+C2)","Number of Locked in shares\n(XII)",null,"Number of equity shares held in dematerialized form \n(XIV)"]
[{"$nulls":12},"No of Voting (XIV)\nRights",null,null,"Total as\na % of\nTotal\nVoting\nrights"]
[{"$nulls":12},"Class\neg:\nX","Class\neg:y","Total",{"$nulls":5},"No.\n(a)","As a % of total Shares held\n(b)"]
[{"$nulls":4},"B2","Central  Government/  State  Government(s)/ President of India"]
[{"$nulls":10},{"$f":"+IFERROR(IF(COUNT(H13:J13),ROUND(SUM(H13:J13),0),\"\"),\"\")","v":""},{"$f":"+IFERROR(IF(COUNT(K13),ROUND(K13/'Shareholding Pattern'!$L$57*100,2),\"\"),\"\")","v":""},{"$f":"IF(H13=\"\",\"\",H13)","v":""},null,{"$f":"+IFERROR(IF(COUNT(M13:N13),ROUND(SUM(M13,N13),2),\"\"),\"\")","v":""},{"$f":"+IFERROR(IF(COUNT(O13),ROUND(O13/('Shareholding Pattern'!$P$58)*100,2),\"\"),\"\")","v":""},null,null,{"$f":"+IFERROR(IF(COUNT(Q13:R13),ROUND(SUM(Q13:R13),0),\"\"),\"\")","v":""},{"$f":"+IFERROR(IF(COUNT(K13,S13),ROUND(SUM(S13,K13)/SUM('Shareholding Pattern'!$L$57,'Shareholding Pattern'!$T$57)*100,2),\"\"),\"\")","v":""},null,{"$f":"+IFERROR(IF(COUNT(U13),ROUND(SUM(U13)/SUM(H13)*100,2),\"\"),0)","v":""}]
[{"$nulls":6},"Disclosure of shareholder holding more than 1% of total number of shares"]
[]
[{"$nulls":5},"Click here to go back","Total",{"$f":"+IFERROR(IF(COUNT(H14:H15),ROUND(SUM(H14:H15),0),\"\"),\"\")","v":""},{"$f":"+IFERROR(IF(COUNT(I14:I15),ROUND(SUM(I14:I15),0),\"\"),\"\")","v":""},{"$f":"+IFERROR(IF(COUNT(J14:J15),ROUND(SUM(J14:J15),0),\"\"),\"\")","v":""},{"$f":"+IFERROR(IF(COUNT(K14:K15),ROUND(SUM(K14:K15),0),\"\"),\"\")","v":""},{"$f":"+IFERROR(IF(COUNT(K16),ROUND(K16/'Shareholding Pattern'!$L$57*100,2),\"\"),\"\")","v":""},{"$f":"+IFERROR(IF(COUNT(M14:M15),ROUND(SUM(M14:M15),0),\"\"),\"\")","v":""},{"$f":"+IFERROR(IF(COUNT(N14:N15),ROUND(SUM(N14:N15),0),\"\"),\"\")","v":""},{"$f":"+IFERROR(IF(COUNT(O14:O15),ROUND(SUM(O14:O15),0),\"\"),\"\")","v":""},{"$f":"+IFERROR(IF(COUNT(O16),ROUND(O16/('Shareholding Pattern'!$P$58)*100,2),\"\"),\"\")","v":""},{"$f":"+IFERROR(IF(COUNT(Q14:Q15),ROUND(SUM(Q14:Q15),0),\"\"),\"\")","v":""},{"$f":"+IFERROR(IF(COUNT(R14:R15),ROUND(SUM(R14:R15),0),\"\"),\"\")","v":""},{"$f":"+IFERROR(IF(COUNT(S14:S15),ROUND(SUM(S14:S15),0),\"\"),\"\")","v":""},{"$f":"+IFERROR(IF(COUNT(K16,S16),ROUND(SUM(S16,K16)/SUM('Shareholding Pattern'!$L$57,'Shareholding Pattern'!$T$57)*100,2),\"\"),\"\")","v":""},{"$f":"+IFERROR(IF(COUNT(U14:U15),ROUND(SUM(U14:U15),0),\"\"),\"\")","v":""},{"$f":"+IFERROR(IF(COUNT(U16),ROUND(SUM(U16)/SUM(H16)*100,2),\"\"),0)","v":""},{"$f":"+IFERROR(IF(COUNT(W14:W15),ROUND(SUM(W14:W15),0),\"\"),\"\")","v":""},{"$f":"+IFERROR(IF(COUNT(X13:X15),ROUND(SUM(X13:X15),0),\"\"),\"\")","v":""}]

{"sheet":"Indivisual(aI)","index":25,"n_rows":16,"n_cols":23,"rows_kept":16,"hidden":true,"merged":[[8,4,10,4],[8,5,10,5],[8,6,10,6],[8,7,10,7],[8,8,10,8],[8,9,10,9],[8,10,10,10],[8,11,10,11],[8,12,8,15],[8,16,10,16],[8,17,10,17],[8,18,10,18],[8,19,10,19],[8,20,9,21],[8,22,10,22],[9,12,9,14],[9,15,10,15]]}
[{"$nulls":8},0]
[{"$nulls":5},"Name of shareholder","Permanent account number of shareholder","Number of fully paid up equity shares","Number of partly paid-up equity shares","Number of shares underlying outstanding depository receipts","Total number of shares","Shareholding as a percentage of total number of shares held by promoters and public shareholders and custodians or DR holders","Number of voting rights held by same class of securities","Number of voting rights held by differential voting rights","Total Number of voting rights","Percentage of total number of voting rights","Number of shares underlying outstanding convertible securities","Number of warrant","Number of warrant and convertible securities","Total shareholding as a percentage assuming full conversion of convertible securities","Number of the locked-in-shares ","Locked-in-shares as a percentage of total number of shares","Number of equity shares held in dematerialized form"]
[]
[]
[]
[]
[]
[]
[{"$nulls":4},"Searial No.","Name\nof the \nShareholders\n     (I)","PAN \n(II)","No. of fully paid up equity shares held\n(IV)","No. Of Partly paid-up equity shares held\n(V)","No. Of shares underlying Depository Receipts\n(VI)","Total nos. shares\nheld\n(VII) = (IV)+(V)+ (VI)","Shareholding as a % of total no. of shares (calculated as per SCRR, 1957)\n(VIII)\nAs a % of (A+B+C2)","Number of Voting Rights held in each class of securities\n(IX)",{"$nulls":3},"No. Of Shares Underlying Outstanding convertible securities\n(X)","No. Of Warrants\n(Xi)","No. Of Shares Underlying Outstanding convertible securities and No. Of Warrants\n(Xi) (a)","Shareholding , as a % assuming full conversion of convertible securities (as a percentage of diluted share capital)\n(XI)= (VII)+(X)\nAs a % of (A+B+C2)","Number of Locked in shares\n(XII)",null,"Number of equity shares held in dematerialized form \n(XIV)"]
[{"$nulls":12},"No of Voting (XIV)\nRights",null,null,"Total as\na % of\nTotal\nVoting\nrights"]
[{"$nulls":12},"Class\neg:\nX","Class\neg:y","Total",{"$nulls":5},"No.\n(a)","As a % of total Shares held\n(b)"]
[{"$nulls":4},"B3(a(i))","Individuals -  i.Individual shareholders holding nominal share capital up to Rs. 2 lakhs. "]
[{"$nulls":10},{"$f":"+IFERROR(IF(COUNT(H13:J13),ROUND(SUM(H13:J13),0),\"\"),\"\")","v":""},{"$f":"+IFERROR(IF(COUNT(K13),ROUND(K13/'Shareholding Pattern'!$L$57*100,2),\"\"),\"\")","v":""},{"$f":"IF(H13=\"\",\"\",H13)","v":""},null,{"$f":"+IFERROR(IF(COUNT(M13:N13),ROUND(SUM(M13,N13),2),\"\"),\"\")","v":""},{"$f":"+IFERROR(IF(COUNT(O13),ROUND(O13/('Shareholding Pattern'!$P$58)*100,2),\"\"),\"\")","v":""},null,null,{"$f":"+IFERROR(IF(COUNT(Q13:R13),ROUND(SUM(Q13:R13),0),\"\"),\"\")","v":""},{"$f":"+IFERROR(IF(COUNT(K13,S13),ROUND(SUM(S13,K13)/SUM('Shareholding Pattern'!$L$57,'Shareholding Pattern'!$T$57)*100,2),\"\"),\"\")","v":""},null,{"$f":"+IFERROR(IF(COUNT(U13),ROUND(SUM(U13)/SUM(H13)*100,2),\"\"),0)","v":""}]
[{"$nulls":6},"Disclosure of shareholder holding more than 1% of total number of shares"]
[]
[{"$nulls":5},"Click here to go back","Total",{"$f":"+IFERROR(IF(COUNT(H13:H15),ROUND(SUM(H13:H15),0),\"\"),\"\")","v":""},{"$f":"+IFERROR(IF(COUNT(I13:I15),ROUND(SUM(I13:I15),0),\"\"),\"\")","v":""},{"$f":"+IFERROR(IF(COUNT(J13:J15),ROUND(SUM(J13:J15),0),\"\"),\"\")","v":""},{"$f":"+IFERROR(IF(COUNT(K13:K15),ROUND(SUM(K13:K15),0),\"\"),\"\")","v":""},{"$f":"+IFERROR(IF(COUNT(K16),ROUND(K16/'Shareholding Pattern'!$L$57*100,2),\"\"),\"\")","v":""},{"$f":"+IFERROR(IF(COUNT(M13:M15),ROUND(SUM(M13:M15),0),\"\"),\"\")","v":""},{"$f":"+IFERROR(IF(COUNT(N13:N15),ROUND(SUM(N13:N15),0),\"\"),\"\")","v":""},{"$f":"+IFERROR(IF(COUNT(O13:O15),ROUND(SUM(O13:O15),0),\"\"),\"\")","v":""},{"$f":"+IFERROR(IF(COUNT(O16),ROUND(O16/('Shareholding Pattern'!$P$58)*100,2),\"\"),\"\")","v":""},{"$f":"+IFERROR(IF(COUNT(Q13:Q15),ROUND(SUM(Q13:Q15),0),\"\"),\"\")","v":""},{"$f":"+IFERROR(IF(COUNT(R13:R15),ROUND(SUM(R13:R15),0),\"\"),\"\")","v":""},{"$f":"+IFERROR(IF(COUNT(S13:S15),ROUND(SUM(S13:S15),0),\"\"),\"\")","v":""},{"$f":"+IFERROR(IF(COUNT(K16,S16),ROUND(SUM(S16,K16)/SUM('Shareholding Pattern'!$L$57,'Shareholding Pattern'!$T$57)*100,2),\"\"),\"\")","v":""},{"$f":"+IFERROR(IF(COUNT(U13:U15),ROUND(SUM(U13:U15),0),\"\"),\"\")","v":""},{"$f":"+IFERROR(IF(COUNT(U16),ROUND(SUM(U16)/SUM(H16)*100,2),\"\"),0)","v":""},{"$f":"+IFERROR(IF(COUNT(W13:W15),ROUND(SUM(W13:W15),0),\"\"),\"\")","v":""}]

{"sheet":"Indivisual(aII)","index":26,"n_rows":18,"n_cols":23,"rows_kept":18,"hidden":true,"merged":[[8,4,10,4],[8,5,10,5],[8,6,10,6],[8,7,10,7],[8,8,10,8],[8,9,10,9],[8,10,10,10],[8,11,10,11],[8,12,8,15],[8,16,10,16],[8,17,10,17],[8,18,10,18],[8,19,10,19],[8,20,9,21],[8,22,10,22],[9,12,9,14],[9,15,10,15]]}
[{"$nulls":8},2]
[{"$nulls":5},"Name of shareholder","Permanent account number of shareholder","Number of fully paid up equity shares","Number of partly paid-up equity shares","Number of shares underlying outstanding depository receipts","Total number of shares","Shareholding as a percentage of total number of shares held by promoters and public shareholders and custodians or DR holders","Number of voting rights held by same class of securities","Number of voting rights held by differential voting rights","Total Number of voting rights","Percentage of total number of voting rights","Number of shares underlying outstanding convertible securities","Number of warrant","Number of warrant and convertible securities","Total shareholding as a percentage assuming full conversion of convertible securities","Number of the locked-in-shares ","Locked-in-shares as a percentage of total number of shares","Number of equity shares held in dematerialized form"]
[]
[]
[]
[]
[]
[]
[{"$nulls":4},"Searial No.","Name\nof the \nShareholders\n     (I)","PAN \n(II)","No. of fully paid up equity shares held\n(IV)","No. Of Partly paid-up equity shares held\n(V)","No. Of shares underlying Depository Receipts\n(VI)","Total nos. shares\nheld\n(VII) = (IV)+(V)+ (VI)","Shareholding as a % of total no. of shares (calculated as per SCRR, 1957)\n(VIII)\nAs a % of (A+B+C2)","Number of Voting Rights held in each class of securities\n(IX)",{"$nulls":3},"No. Of Shares Underlying Outstanding convertible securities\n(X)","No. Of Warrants\n(Xi)","No. Of Shares Underlying Outstanding convertible securities and No. Of Warrants\n(Xi) (a)","Shareholding , as a % assuming full conversion of convertible securities (as a percentage of diluted share capital)\n(XI)= (VII)+(X)\nAs a % of (A+B+C2)","Number of Locked in shares\n(XII)",null,"Number of equity shares held in dematerialized form \n(XIV)"]
[{"$nulls":12},"No of Voting (XIV)\nRights",null,null,"Total as\na % of\nTotal\nVoting\nrights"]
[{"$nulls":12},"Class\neg:\nX","Class\neg:y","Total",{"$nulls":5},"No.\n(a)","As a % of total Shares held\n(b)"]
[{"$nulls":4},"B3(a(iI))","Individuals - ii. Individual shareholders holding nominal share capital in excess of Rs. 2 lakhs."]
[{"$nulls":10},{"$f":"+IFERROR(IF(COUNT(H13:J13),ROUND(SUM(H13:J13),0),\"\"),\"\")","v":""},{"$f":"+IFERROR(IF(COUNT(K13),ROUND(K13/'Shareholding Pattern'!$L$57*100,2),\"\"),\"\")","v":""},{"$f":"IF(H13=\"\",\"\",H13)","v":""},null,{"$f":"+IFERROR(IF(COUNT(M13:N13),ROUND(SUM(M13,N13),2),\"\"),\"\")","v":""},{"$f":"+IFERROR(IF(COUNT(O13),ROUND(O13/('Shareholding Pattern'!$P$58)*100,2),\"\"),\"\")","v":""},null,null,{"$f":"+IFERROR(IF(COUNT(Q13:R13),ROUND(SUM(Q13:R13),0),\"\"),\"\")","v":""},{"$f":"+IFERROR(IF(COUNT(K13,S13),ROUND(SUM(S13,K13)/SUM('Shareholding Pattern'!$L$57,'Shareholding Pattern'!$T$57)*100,2),\"\"),\"\")","v":""},null,{"$f":"+IFERROR(IF(COUNT(U13),ROUND(SUM(U13)/SUM(H13)*100,2),\"\"),0)","v":""}]
[{"$nulls":6},"\nDisclosure of shareholder holding more than 1% of total number of shares\n"]
[{"$nulls":4},1,"Anand Kothari","ZZZZZ9999Z",8080,null,null,{"$f":"+IFERROR(IF(COUNT(H15:J15),ROUND(SUM(H15:J15),0),\"\"),\"\")","v":8080},{"$f":"+IFERROR(IF(COUNT(K15),ROUND(K15/'Shareholding Pattern'!$L$57*100,2),\"\"),\"\")","v":1.25},{"$f":"IF(H15=\"\",\"\",H15)","v":{"v":8080,"d":"8080.00"}},null,{"$f":"+IFERROR(IF(COUNT(M15:N15),ROUND(SUM(M15,N15),2),\"\"),\"\")","v":{"v":8080,"d":"8080.00"}},{"$f":"+IFERROR(IF(COUNT(O15),ROUND(O15/('Shareholding Pattern'!$P$58)*100,2),\"\"),\"\")","v":1.25},null,null,{"$f":"+IFERROR(IF(COUNT(Q15:R15),ROUND(SUM(Q15:R15),0),\"\"),\"\")","v":""},{"$f":"+IFERROR(IF(COUNT(K15,S15),ROUND(SUM(S15,K15)/SUM('Shareholding Pattern'!$L$57,'Shareholding Pattern'!$T$57)*100,2),\"\"),\"\")","v":1.25},null,{"$f":"+IFERROR(IF(COUNT(U15),ROUND(SUM(U15)/SUM(H15)*100,2),\"\"),0)","v":""},0]
[{"$nulls":4},2,"Prateek Rajendra Gandhi","AKZPG3393B",8500,null,null,{"$f":"+IFERROR(IF(COUNT(H16:J16),ROUND(SUM(H16:J16),0),\"\"),\"\")","v":8500},{"$f":"+IFERROR(IF(COUNT(K16),ROUND(K16/'Shareholding Pattern'!$L$57*100,2),\"\"),\"\")","v":1.31},{"$f":"IF(H16=\"\",\"\",H16)","v":{"v":8500,"d":"8500.00"}},null,{"$f":"+IFERROR(IF(COUNT(M16:N16),ROUND(SUM(M16,N16),2),\"\"),\"\")","v":{"v":8500,"d":"8500.00"}},{"$f":"+IFERROR(IF(COUNT(O16),ROUND(O16/('Shareholding Pattern'!$P$58)*100,2),\"\"),\"\")","v":1.31},null,null,{"$f":"+IFERROR(IF(COUNT(Q16:R16),ROUND(SUM(Q16:R16),0),\"\"),\"\")","v":""},{"$f":"+IFERROR(IF(COUNT(K16,S16),ROUND(SUM(S16,K16)/SUM('Shareholding Pattern'!$L$57,'Shareholding Pattern'!$T$57)*100,2),\"\"),\"\")","v":1.31},null,{"$f":"+IFERROR(IF(COUNT(U16),ROUND(SUM(U16)/SUM(H16)*100,2),\"\"),0)","v":""},8500]
[]
[{"$nulls":5},"Click here to go back","Total",{"$f":"+IFERROR(IF(COUNT(H14:H17),ROUND(SUM(H14:H17),0),\"\"),\"\")","v":16580},{"$f":"+IFERROR(IF(COUNT(I14:I17),ROUND(SUM(I14:I17),0),\"\"),\"\")","v":""},{"$f":"+IFERROR(IF(COUNT(J14:J17),ROUND(SUM(J14:J17),0),\"\"),\"\")","v":""},{"$f":"+IFERROR(IF(COUNT(K14:K17),ROUND(SUM(K14:K17),0),\"\"),\"\")","v":16580},{"$f":"+IFERROR(IF(COUNT(K18),ROUND(K18/'Shareholding Pattern'!$L$57*100,2),\"\"),\"\")","v":2.56},{"$f":"+IFERROR(IF(COUNT(M14:M17),ROUND(SUM(M14:M17),0),\"\"),\"\")","v":{"v":16580,"d":"16580.00"}},{"$f":"+IFERROR(IF(COUNT(N14:N17),ROUND(SUM(N14:N17),0),\"\"),\"\")","v":""},{"$f":"+IFERROR(IF(COUNT(O14:O17),ROUND(SUM(O14:O17),0),\"\"),\"\")","v":{"v":16580,"d":"16580.00"}},{"$f":"+IFERROR(IF(COUNT(O18),ROUND(O18/('Shareholding Pattern'!$P$58)*100,2),\"\"),\"\")","v":2.56},{"$f":"+IFERROR(IF(COUNT(Q14:Q17),ROUND(SUM(Q14:Q17),0),\"\"),\"\")","v":""},{"$f":"+IFERROR(IF(COUNT(R14:R17),ROUND(SUM(R14:R17),0),\"\"),\"\")","v":""},{"$f":"+IFERROR(IF(COUNT(S14:S17),ROUND(SUM(S14:S17),0),\"\"),\"\")","v":""},{"$f":"+IFERROR(IF(COUNT(K18,S18),ROUND(SUM(S18,K18)/SUM('Shareholding Pattern'!$L$57,'Shareholding Pattern'!$T$57)*100,2),\"\"),\"\")","v":2.56},{"$f":"+IFERROR(IF(COUNT(U14:U17),ROUND(SUM(U14:U17),0),\"\"),\"\")","v":""},{"$f":"+IFERROR(IF(COUNT(U18),ROUND(SUM(U18)/SUM(H18)*100,2),\"\"),0)","v":""},{"$f":"+IFERROR(IF(COUNT(W14:W17),ROUND(SUM(W14:W17),0),\"\"),\"\")","v":8500}]

{"sheet":"NBFC","index":27,"n_rows":16,"n_cols":23,"rows_kept":16,"hidden":true,"merged":[[8,4,10,4],[8,5,10,5],[8,6,10,6],[8,7,10,7],[8,8,10,8],[8,9,10,9],[8,10,10,10],[8,11,10,11],[8,12,8,15],[8,16,10,16],[8,17,10,17],[8,18,10,18],[8,19,10,19],[8,20,9,21],[8,22,10,22],[9,12,9,14],[9,15,10,15]]}
[{"$nulls":8},0]
[{"$nulls":5},"Name of shareholder","Permanent account number of shareholder","Number of fully paid up equity shares","Number of partly paid-up equity shares","Number of shares underlying outstanding depository receipts","Total number of shares","Shareholding as a percentage of total number of shares held by promoters and public shareholders and custodians or DR holders","Number of voting rights held by same class of securities","Number of voting rights held by differential voting rights","Total Number of voting rights","Percentage of total number of voting rights","Number of shares underlying outstanding convertible securities","Number of warrant","Number of warrant and convertible securities","Total shareholding as a percentage assuming full conversion of convertible securities","Number of the locked-in-shares ","Locked-in-shares as a percentage of total number of shares","Number of equity shares held in dematerialized form"]
[]
[]
[]
[]
[]
[]
[{"$nulls":4},"Searial No.","Name\nof the \nShareholders\n     (I)","PAN \n(II)","No. of fully paid up equity shares held\n(IV)","No. Of Partly paid-up equity shares held\n(V)","No. Of shares underlying Depository Receipts\n(VI)","Total nos. shares\nheld\n(VII) = (IV)+(V)+ (VI)","Shareholding as a % of total no. of shares (calculated as per SCRR, 1957)\n(VIII)\nAs a % of (A+B+C2)","Number of Voting Rights held in each class of securities\n(IX)",{"$nulls":3},"No. Of Shares Underlying Outstanding convertible securities\n(X)","No. Of Warrants\n(Xi)","No. Of Shares Underlying Outstanding convertible securities and No. Of Warrants\n(Xi) (a)","Shareholding , as a % assuming full conversion of convertible securities (as a percentage of diluted share capital)\n(XI)= (VII)+(X)\nAs a % of (A+B+C2)","Number of Locked in shares\n(XII)",null,"Number of equity shares held in dematerialized form \n(XIV)"]
[{"$nulls":12},"No of Voting (XIV)\nRights",null,null,"Total as\na % of\nTotal\nVoting\nrights"]
[{"$nulls":12},"Class\neg:\nX","Class\neg:y","Total",{"$nulls":5},"No.\n(a)","As a % of total Shares held\n(b)"]
[{"$nulls":4},"B3(b)","NBFCs registered with RBI"]
[{"$nulls":10},{"$f":"+IFERROR(IF(COUNT(H13:J13),ROUND(SUM(H13:J13),0),\"\"),\"\")","v":""},{"$f":"+IFERROR(IF(COUNT(K13),ROUND(K13/'Shareholding Pattern'!$L$57*100,2),\"\"),\"\")","v":""},{"$f":"IF(H13=\"\",\"\",H13)","v":""},null,{"$f":"+IFERROR(IF(COUNT(M13:N13),ROUND(SUM(M13,N13),2),\"\"),\"\")","v":""},{"$f":"+IFERROR(IF(COUNT(O13),ROUND(O13/('Shareholding Pattern'!$P$58)*100,2),\"\"),\"\")","v":""},null,null,{"$f":"+IFERROR(IF(COUNT(Q13:R13),ROUND(SUM(Q13:R13),0),\"\"),\"\")","v":""},{"$f":"+IFERROR(IF(COUNT(K13,S13),ROUND(SUM(S13,K13)/SUM('Shareholding Pattern'!$L$57,'Shareholding Pattern'!$T$57)*100,2),\"\"),\"\")","v":""},null,{"$f":"+IFERROR(IF(COUNT(U13),ROUND(SUM(U13)/SUM(H13)*100,2),\"\"),0)","v":""}]
[{"$nulls":6},"\nDisclosure of shareholder holding more than 1% of total number of shares\n"]
[]
[{"$nulls":5},"Click here to go back","Total",{"$f":"+IFERROR(IF(COUNT(H13:H15),ROUND(SUM(H13:H15),0),\"\"),\"\")","v":""},{"$f":"+IFERROR(IF(COUNT(I13:I15),ROUND(SUM(I13:I15),0),\"\"),\"\")","v":""},{"$f":"+IFERROR(IF(COUNT(J13:J15),ROUND(SUM(J13:J15),0),\"\"),\"\")","v":""},{"$f":"+IFERROR(IF(COUNT(K13:K15),ROUND(SUM(K13:K15),0),\"\"),\"\")","v":""},{"$f":"+IFERROR(IF(COUNT(K16),ROUND(K16/'Shareholding Pattern'!$L$57*100,2),\"\"),\"\")","v":""},{"$f":"+IFERROR(IF(COUNT(M13:M15),ROUND(SUM(M13:M15),0),\"\"),\"\")","v":""},{"$f":"+IFERROR(IF(COUNT(N13:N15),ROUND(SUM(N13:N15),0),\"\"),\"\")","v":""},{"$f":"+IFERROR(IF(COUNT(O13:O15),ROUND(SUM(O13:O15),0),\"\"),\"\")","v":""},{"$f":"+IFERROR(IF(COUNT(O16),ROUND(O16/('Shareholding Pattern'!$P$58)*100,2),\"\"),\"\")","v":""},{"$f":"+IFERROR(IF(COUNT(Q13:Q15),ROUND(SUM(Q13:Q15),0),\"\"),\"\")","v":""},{"$f":"+IFERROR(IF(COUNT(R13:R15),ROUND(SUM(R13:R15),0),\"\"),\"\")","v":""},{"$f":"+IFERROR(IF(COUNT(S13:S15),ROUND(SUM(S13:S15),0),\"\"),\"\")","v":""},{"$f":"+IFERROR(IF(COUNT(K16,S16),ROUND(SUM(S16,K16)/SUM('Shareholding Pattern'!$L$57,'Shareholding Pattern'!$T$57)*100,2),\"\"),\"\")","v":""},{"$f":"+IFERROR(IF(COUNT(U13:U15),ROUND(SUM(U13:U15),0),\"\"),\"\")","v":""},{"$f":"+IFERROR(IF(COUNT(U16),ROUND(SUM(U16)/SUM(H16)*100,2),\"\"),0)","v":""},{"$f":"+IFERROR(IF(COUNT(W13:W15),ROUND(SUM(W13:W15),0),\"\"),\"\")","v":""}]

{"sheet":"EmpTrust","index":28,"n_rows":16,"n_cols":23,"rows_kept":16,"hidden":true,"merged":[[8,4,10,4],[8,5,10,5],[8,6,10,6],[8,7,10,7],[8,8,10,8],[8,9,10,9],[8,10,10,10],[8,11,10,11],[8,12,8,15],[8,16,10,16],[8,17,10,17],[8,18,10,18],[8,19,10,19],[8,20,9,21],[8,22,10,22],[9,12,9,14],[9,15,10,15]]}
[{"$nulls":8},0]
[{"$nulls":5},"Name of shareholder","Permanent account number of shareholder","Number of fully paid up equity shares","Number of partly paid-up equity shares","Number of shares underlying outstanding depository receipts","Total number of shares","Shareholding as a percentage of total number of shares held by promoters and public shareholders and custodians or DR holders","Number of voting rights held by same class of securities","Number of voting rights held by differential voting rights","Total Number of voting rights","Percentage of total number of voting rights","Number of shares underlying outstanding convertible securities","Number of warrant","Number of warrant and convertible securities","Total shareholding as a percentage assuming full conversion of convertible securities","Number of the locked-in-shares ","Locked-in-shares as a percentage of total number of shares","Number of equity shares held in dematerialized form"]
[]
[]
[]
[]
[]
[]
[{"$nulls":4},"Searial No.","Name\nof the \nShareholders\n     (I)","PAN \n(II)","No. of fully paid up equity shares held\n(IV)","No. Of Partly paid-up equity shares held\n(V)","No. Of shares underlying Depository Receipts\n(VI)","Total nos. shares\nheld\n(VII) = (IV)+(V)+ (VI)","Shareholding as a % of total no. of shares (calculated as per SCRR, 1957)\n(VIII)\nAs a % of (A+B+C2)","Number of Voting Rights held in each class of securities\n(IX)",{"$nulls":3},"No. Of Shares Underlying Outstanding convertible securities\n(X)","No. Of Warrants\n(Xi)","No. Of Shares Underlying Outstanding convertible securities and No. Of Warrants\n(Xi) (a)","Shareholding , as a % assuming full conversion of convertible securities (as a percentage of diluted share capital)\n(XI)= (VII)+(X)\nAs a % of (A+B+C2)","Number of Locked in shares\n(XII)",null,"Number of equity shares held in dematerialized form \n(XIV)"]
[{"$nulls":12},"No of Voting (XIV)\nRights",null,null,"Total as\na % of\nTotal\nVoting\nrights"]
[{"$nulls":12},"Class\neg:\nX","Class\neg:y","Total",{"$nulls":5},"No.\n(a)","As a % of total Shares held\n(b)"]
[{"$nulls":4},"B3(c)","Employee Trusts"]
[{"$nulls":10},{"$f":"+IFERROR(IF(COUNT(H13:J13),ROUND(SUM(H13:J13),0),\"\"),\"\")","v":""},{"$f":"+IFERROR(IF(COUNT(K13),ROUND(K13/'Shareholding Pattern'!$L$57*100,2),\"\"),\"\")","v":""},{"$f":"IF(H13=\"\",\"\",H13)","v":""},null,{"$f":"+IFERROR(IF(COUNT(M13:N13),ROUND(SUM(M13,N13),2),\"\"),\"\")","v":""},{"$f":"+IFERROR(IF(COUNT(O13),ROUND(O13/('Shareholding Pattern'!$P$58)*100,2),\"\"),\"\")","v":""},null,null,{"$f":"+IFERROR(IF(COUNT(Q13:R13),ROUND(SUM(Q13:R13),0),\"\"),\"\")","v":""},{"$f":"+IFERROR(IF(COUNT(K13,S13),ROUND(SUM(S13,K13)/SUM('Shareholding Pattern'!$L$57,'Shareholding Pattern'!$T$57)*100,2),\"\"),\"\")","v":""},null,{"$f":"+IFERROR(IF(COUNT(U13),ROUND(SUM(U13)/SUM(H13)*100,2),\"\"),0)","v":""}]
[{"$nulls":6},"Disclosure of shareholder holding more than 1% of total number of shares"]
[]
[{"$nulls":5},"Click here to go back","Total",{"$f":"+IFERROR(IF(COUNT(H13:H15),ROUND(SUM(H13:H15),0),\"\"),\"\")","v":""},{"$f":"+IFERROR(IF(COUNT(I13:I15),ROUND(SUM(I13:I15),0),\"\"),\"\")","v":""},{"$f":"+IFERROR(IF(COUNT(J13:J15),ROUND(SUM(J13:J15),0),\"\"),\"\")","v":""},{"$f":"+IFERROR(IF(COUNT(K13:K15),ROUND(SUM(K13:K15),0),\"\"),\"\")","v":""},{"$f":"+IFERROR(IF(COUNT(K16),ROUND(K16/'Shareholding Pattern'!$L$57*100,2),\"\"),\"\")","v":""},{"$f":"+IFERROR(IF(COUNT(M13:M15),ROUND(SUM(M13:M15),0),\"\"),\"\")","v":""},{"$f":"+IFERROR(IF(COUNT(N13:N15),ROUND(SUM(N13:N15),0),\"\"),\"\")","v":""},{"$f":"+IFERROR(IF(COUNT(O13:O15),ROUND(SUM(O13:O15),0),\"\"),\"\")","v":""},{"$f":"+IFERROR(IF(COUNT(O16),ROUND(O16/('Shareholding Pattern'!$P$58)*100,2),\"\"),\"\")","v":""},{"$f":"+IFERROR(IF(COUNT(Q13:Q15),ROUND(SUM(Q13:Q15),0),\"\"),\"\")","v":""},{"$f":"+IFERROR(IF(COUNT(R13:R15),ROUND(SUM(R13:R15),0),\"\"),\"\")","v":""},{"$f":"+IFERROR(IF(COUNT(S13:S15),ROUND(SUM(S13:S15),0),\"\"),\"\")","v":""},{"$f":"+IFERROR(IF(COUNT(K16,S16),ROUND(SUM(S16,K16)/SUM('Shareholding Pattern'!$L$57,'Shareholding Pattern'!$T$57)*100,2),\"\"),\"\")","v":""},{"$f":"+IFERROR(IF(COUNT(U13:U15),ROUND(SUM(U13:U15),0),\"\"),\"\")","v":""},{"$f":"+IFERROR(IF(COUNT(U16),ROUND(SUM(U16)/SUM(H16)*100,2),\"\"),0)","v":""},{"$f":"+IFERROR(IF(COUNT(W13:W15),ROUND(SUM(W13:W15),0),\"\"),\"\")","v":""}]

{"sheet":"OD","index":29,"n_rows":16,"n_cols":23,"rows_kept":16,"hidden":true,"merged":[[8,4,10,4],[8,5,10,5],[8,6,10,6],[8,7,10,7],[8,8,10,8],[8,9,10,9],[8,10,10,10],[8,11,10,11],[8,12,8,15],[8,16,10,16],[8,17,10,17],[8,18,10,18],[8,19,10,19],[8,20,9,21],[8,22,10,22],[9,12,9,14],[9,15,10,15]]}
[{"$nulls":8},0]
[{"$nulls":5},"Name of shareholder","Permanent account number of shareholder","Number of fully paid up equity shares","Number of partly paid-up equity shares","Number of shares underlying outstanding depository receipts","Total number of shares","Shareholding as a percentage of total number of shares held by promoters and public shareholders and custodians or DR holders","Number of voting rights held by same class of securities","Number of voting rights held by differential voting rights","Total Number of voting rights","Percentage of total number of voting rights","Number of shares underlying outstanding convertible securities","Number of warrant","Number of warrant and convertible securities","Total shareholding as a percentage assuming full conversion of convertible securities","Number of the locked-in-shares ","Locked-in-shares as a percentage of total number of shares","Number of equity shares held in dematerialized form"]
[]
[]
[]
[]
[]
[]
[{"$nulls":4},"Searial No.","Name\nof the \nShareholders\n     (I)","PAN \n(II)","No. of fully paid up equity shares held\n(IV)","No. Of Partly paid-up equity shares held\n(V)","No. Of shares underlying Depository Receipts\n(VI)","Total nos. shares\nheld\n(VII) = (IV)+(V)+ (VI)","Shareholding as a % of total no. of shares (calculated as per SCRR, 1957)\n(VIII)\nAs a % of (A+B+C2)","Number of Voting Rights held in each class of securities\n(IX)",{"$nulls":3},"No. Of Shares Underlying Outstanding convertible securities\n(X)","No. Of Warrants\n(Xi)","No. Of Shares Underlying Outstanding convertible securities and No. Of Warrants\n(Xi) (a)","Shareholding , as a % assuming full conversion of convertible securities (as a percentage of diluted share capital)\n(XI)= (VII)+(X)\nAs a % of (A+B+C2)","Number of Locked in shares\n(XII)",null,"Number of equity shares held in dematerialized form \n(XIV)"]
[{"$nulls":12},"No of Voting (XIV)\nRights",null,null,"Total as\na % of\nTotal\nVoting\nrights"]
[{"$nulls":12},"Class\neg:\nX","Class\neg:y","Total",{"$nulls":5},"No.\n(a)","As a % of total Shares held\n(b)"]
[{"$nulls":4},"B3(d)","Overseas Depositories (holding DRs) (balancing figure)"]
[{"$nulls":10},{"$f":"+IFERROR(IF(COUNT(H13:J13),ROUND(SUM(H13:J13),0),\"\"),\"\")","v":""},{"$f":"+IFERROR(IF(COUNT(K13),ROUND(K13/'Shareholding Pattern'!$L$57*100,2),\"\"),\"\")","v":""},{"$f":"IF(H13=\"\",\"\",H13)","v":""},null,{"$f":"+IFERROR(IF(COUNT(M13:N13),ROUND(SUM(M13,N13),2),\"\"),\"\")","v":""},{"$f":"+IFERROR(IF(COUNT(O13),ROUND(O13/('Shareholding Pattern'!$P$58)*100,2),\"\"),\"\")","v":""},null,null,{"$f":"+IFERROR(IF(COUNT(Q13:R13),ROUND(SUM(Q13:R13),0),\"\"),\"\")","v":""},{"$f":"+IFERROR(IF(COUNT(K13,S13),ROUND(SUM(S13,K13)/SUM('Shareholding Pattern'!$L$57,'Shareholding Pattern'!$T$57)*100,2),\"\"),\"\")","v":""},null,{"$f":"+IFERROR(IF(COUNT(U13),ROUND(SUM(U13)/SUM(H13)*100,2),\"\"),0)","v":""}]
[{"$nulls":6},"Disclosure of shareholder holding more than 1% of total number of shares"]
[]
[{"$nulls":5},"Click here to go back","Total",{"$f":"+IFERROR(IF(COUNT(H13:H15),ROUND(SUM(H13:H15),0),\"\"),\"\")","v":""},{"$f":"+IFERROR(IF(COUNT(I13:I15),ROUND(SUM(I13:I15),0),\"\"),\"\")","v":""},{"$f":"+IFERROR(IF(COUNT(J13:J15),ROUND(SUM(J13:J15),0),\"\"),\"\")","v":""},{"$f":"+IFERROR(IF(COUNT(K13:K15),ROUND(SUM(K13:K15),0),\"\"),\"\")","v":""},{"$f":"+IFERROR(IF(COUNT(K16),ROUND(K16/'Shareholding Pattern'!$L$57*100,2),\"\"),\"\")","v":""},{"$f":"+IFERROR(IF(COUNT(M13:M15),ROUND(SUM(M13:M15),0),\"\"),\"\")","v":""},{"$f":"+IFERROR(IF(COUNT(N13:N15),ROUND(SUM(N13:N15),0),\"\"),\"\")","v":""},{"$f":"+IFERROR(IF(COUNT(O13:O15),ROUND(SUM(O13:O15),0),\"\"),\"\")","v":""},{"$f":"+IFERROR(IF(COUNT(O16),ROUND(O16/('Shareholding Pattern'!$P$58)*100,2),\"\"),\"\")","v":""},{"$f":"+IFERROR(IF(COUNT(Q13:Q15),ROUND(SUM(Q13:Q15),0),\"\"),\"\")","v":""},{"$f":"+IFERROR(IF(COUNT(R13:R15),ROUND(SUM(R13:R15),0),\"\"),\"\")","v":""},{"$f":"+IFERROR(IF(COUNT(S13:S15),ROUND(SUM(S13:S15),0),\"\"),\"\")","v":""},{"$f":"+IFERROR(IF(COUNT(K16,S16),ROUND(SUM(S16,K16)/SUM('Shareholding Pattern'!$L$57,'Shareholding Pattern'!$T$57)*100,2),\"\"),\"\")","v":""},{"$f":"+IFERROR(IF(COUNT(U13:U15),ROUND(SUM(U13:U15),0),\"\"),\"\")","v":""},{"$f":"+IFERROR(IF(COUNT(U16),ROUND(SUM(U16)/SUM(H16)*100,2),\"\"),0)","v":""},{"$f":"+IFERROR(IF(COUNT(W13:W15),ROUND(SUM(W13:W15),0),\"\"),\"\")","v":""}]

{"sheet":"Other_NonInsti","index":30,"n_rows":29,"n_cols":50,"rows_kept":29,"hidden":true,"merged":[[8,3,10,3],[8,4,10,4],[8,5,10,5],[8,6,10,6],[8,7,10,7],[8,8,10,8],[8,9,10,9],[8,10,10,10],[8,11,10,11],[8,12,10,12],[8,13,10,13],[8,14,8,17],[8,18,10,18],[8,19,10,19],[8,20,10,20],[8,21,10,21],[8,22,9,23],[8,24,10,24],[9,14,9,16],[9,17,10,17]]}
[{"$nulls":8},13,0,{"$nulls":22},"Foreign Individuals or NRI","Trusts","Unclaimed or Suspense or Escrow Account","Market Maker","HUF","Clearing Members","NSDL or CDSL transit","Employees","Societies","ESOP or ESOS or ESPS","Employee welfare fund","Overseas corporate bodies","Angel investors","Private equity fund","Director or Director's Relatives","Enemy Property","Bodies Corporate","Other"]
[{"$nulls":4},"Category of other non-institutions","Category or more than one percentage","Name of shareholder","Permanent account number of shareholder","Number of shareholders","Number of fully paid up equity shares","Number of partly paid-up equity shares","Number of shares underlying outstanding depository receipts","Total number of shares","Shareholding as a percentage of total number of shares held by promoters and public shareholders and custodians or DR holders","Number of voting rights held by same class of securities","Number of voting rights held by differential voting rights","Total Number of voting rights","Percentage of total number of voting rights","Number of shares underlying outstanding convertible securities","Number of warrant","Number of warrant and convertible securities","Total shareholding as a percentage assuming full conversion of convertible securities","Number of the locked-in-shares ","Locked-in-shares as a percentage of total number of shares","Number of equity shares held in dematerialized form"]
[]
[]
[]
[]
[]
[]
[{"$nulls":3},"Searial No.","Category","Category / More than 1 percentage","Name\nof the \nShareholders\n     (I)","PAN \n(II)","No.\nof the \nShareholders\n     (I)","No. of fully paid up equity shares held\n(IV)","No. Of Partly paid-up equity shares held\n(V)","No. Of shares underlying Depository Receipts\n(VI)","Total nos. shares\nheld\n(VII) = (IV)+(V)+ (VI)","Shareholding as a % of total no. of shares (calculated as per SCRR, 1957)\n(VIII)\nAs a % of (A+B+C2)","Number of Voting Rights held in each class of securities\n(IX)",{"$nulls":3},"No. Of Shares Underlying Outstanding convertible securities\n(X)","No. Of Warrants\n(Xi)","No. Of Shares Underlying Outstanding convertible securities and No. Of Warrants\n(Xi) (a)","Shareholding , as a % assuming full conversion of convertible securities (as a percentage of diluted share capital)\n(XI)= (VII)+(X)\nAs a % of (A+B+C2)","Number of Locked in shares\n(XII)",null,"Number of equity shares held in dematerialized form \n(XIV)",{"$nulls":22},"Category"]
[{"$nulls":14},"No of Voting (XIV)\nRights",null,null,"Total as\na % of\nTotal\nVoting\nrights",{"$nulls":29},"More than 1 percentage of shareholding"]
[{"$nulls":14},"Class\neg:\nX","Class\neg:y","Total",{"$nulls":5},"No.\n(a)","As a % of total Shares held\n(b)"]
[{"$nulls":3},"B3(e)","Any Other (specify)"]
[{"$nulls":12},{"$f":"+IFERROR(IF(COUNT(J13:L13),ROUND(SUM(J13:L13),0),\"\"),\"\")","v":""},{"$f":"+IFERROR(IF(COUNT(M13),ROUND(M13/'Shareholding Pattern'!$L$57*100,2),\"\"),\"\")","v":""},{"$f":"IF(J13=\"\",\"\",J13)","v":""},null,{"$f":"+IFERROR(IF(COUNT(O13:P13),ROUND(SUM(O13,P13),2),\"\"),\"\")","v":""},{"$f":"+IFERROR(IF(COUNT(Q13),ROUND(Q13/('Shareholding Pattern'!$P$58)*100,2),\"\"),\"\")","v":""},null,null,{"$f":"+IFERROR(IF(COUNT(S13:T13),ROUND(SUM(S13:T13),0),\"\"),\"\")","v":""},{"$f":"+IFERROR(IF(COUNT(M13,U13),ROUND(SUM(U13,M13)/SUM('Shareholding Pattern'!$L$57,'Shareholding Pattern'!$T$57)*100,2),\"\"),\"\")","v":""},null,{"$f":"+IFERROR(IF(COUNT(W13),ROUND(SUM(W13)/SUM(J13)*100,2),\"\"),0)","v":""}]
[{"$nulls":17},{"$f":"+IFERROR(IF(COUNT(Q14),ROUND(Q14/('Shareholding Pattern'!$P$58)*100,2),\"\"),\"\")","v":""}]
[{"$nulls":3},1,"Bodies Corporate","More than 1 percentage of shareholding","Ashini Texfab Private Limited","AAHCA8318H",null,28910,null,null,{"$f":"+IFERROR(IF(COUNT(J15:L15),ROUND(SUM(J15:L15),0),\"\"),\"\")","v":28910},{"$f":"+IFERROR(IF(COUNT(M15),ROUND(M15/'Shareholding Pattern'!$L$57*100,2),\"\"),\"\")","v":4.47},{"$f":"IF(J15=\"\",\"\",J15)","v":28910},null,{"$f":"+IFERROR(IF(COUNT(O15:P15),ROUND(SUM(O15,P15),2),\"\"),\"\")","v":28910},{"$f":"+IFERROR(IF(COUNT(Q15),ROUND(Q15/('Shareholding Pattern'!$P$58)*100,2),\"\"),\"\")","v":4.47},null,null,{"$f":"+IFERROR(IF(COUNT(S15:T15),ROUND(SUM(S15:T15),0),\"\"),\"\")","v":""},{"$f":"+IFERROR(IF(COUNT(M15,U15),ROUND(SUM(U15,M15)/SUM('Shareholding Pattern'!$L$57,'Shareholding Pattern'!$T$57)*100,2),\"\"),\"\")","v":4.47},null,{"$f":"+IFERROR(IF(COUNT(W15),ROUND(SUM(W15)/SUM(J15)*100,2),\"\"),0)","v":""},28910]
[{"$nulls":3},2,"Bodies Corporate","Category",null,null,51,16815,null,null,16815,{"$f":"+IFERROR(IF(COUNT(M16),ROUND(M16/'Shareholding Pattern'!$L$57*100,2),\"\"),\"\")","v":{"v":2.6,"d":"2.60"}},16815,null,16815,{"$f":"+IFERROR(IF(COUNT(Q16),ROUND(Q16/('Shareholding Pattern'!$P$58)*100,2),\"\"),\"\")","v":{"v":2.6,"d":"2.60"}},null,null,"",{"$f":"+IFERROR(IF(COUNT(M16,U16),ROUND(SUM(U16,M16)/SUM('Shareholding Pattern'!$L$57,'Shareholding Pattern'!$T$57)*100,2),\"\"),\"\")","v":{"v":2.6,"d":"2.60"}},null,"",16815]
[{"$nulls":3},3,"Bodies Corporate","More than 1 percentage of shareholding","Cabtech India Private Limited","AABCC6592M",null,44833,null,null,44833,{"$f":"+IFERROR(IF(COUNT(M17),ROUND(M17/'Shareholding Pattern'!$L$57*100,2),\"\"),\"\")","v":6.93},44833,null,44833,{"$f":"+IFERROR(IF(COUNT(Q17),ROUND(Q17/('Shareholding Pattern'!$P$58)*100,2),\"\"),\"\")","v":6.93},null,null,"",{"$f":"+IFERROR(IF(COUNT(M17,U17),ROUND(SUM(U17,M17)/SUM('Shareholding Pattern'!$L$57,'Shareholding Pattern'!$T$57)*100,2),\"\"),\"\")","v":6.93},null,"",44833]
[{"$nulls":3},4,"Bodies Corporate","More than 1 percentage of shareholding","Dhan Kuber Infra Private Limited","AADCD1379F",null,23000,null,null,23000,{"$f":"+IFERROR(IF(COUNT(M18),ROUND(M18/'Shareholding Pattern'!$L$57*100,2),\"\"),\"\")","v":3.55},23000,null,23000,{"$f":"+IFERROR(IF(COUNT(Q18),ROUND(Q18/('Shareholding Pattern'!$P$58)*100,2),\"\"),\"\")","v":3.55},null,null,"",{"$f":"+IFERROR(IF(COUNT(M18,U18),ROUND(SUM(U18,M18)/SUM('Shareholding Pattern'!$L$57,'Shareholding Pattern'!$T$57)*100,2),\"\"),\"\")","v":3.55},null,"",23000]
[{"$nulls":3},5,"Bodies Corporate","More than 1 percentage of shareholding","Dulichand Jethmal Trading Pvt Ltd","AADCD0327R",null,28068,null,null,28068,{"$f":"+IFERROR(IF(COUNT(M19),ROUND(M19/'Shareholding Pattern'!$L$57*100,2),\"\"),\"\")","v":4.34},28068,null,28068,{"$f":"+IFERROR(IF(COUNT(Q19),ROUND(Q19/('Shareholding Pattern'!$P$58)*100,2),\"\"),\"\")","v":4.34},null,null,"",{"$f":"+IFERROR(IF(COUNT(M19,U19),ROUND(SUM(U19,M19)/SUM('Shareholding Pattern'!$L$57,'Shareholding Pattern'!$T$57)*100,2),\"\"),\"\")","v":4.34},null,"",28068]
[{"$nulls":3},6,"Bodies Corporate","More than 1 percentage of shareholding","Golden Girl Resorts Pvt Ltd","AADCG7169G",null,6839,null,null,6839,{"$f":"+IFERROR(IF(COUNT(M20),ROUND(M20/'Shareholding Pattern'!$L$57*100,2),\"\"),\"\")","v":1.06},6839,null,6839,{"$f":"+IFERROR(IF(COUNT(Q20),ROUND(Q20/('Shareholding Pattern'!$P$58)*100,2),\"\"),\"\")","v":1.06},null,null,"",{"$f":"+IFERROR(IF(COUNT(M20,U20),ROUND(SUM(U20,M20)/SUM('Shareholding Pattern'!$L$57,'Shareholding Pattern'!$T$57)*100,2),\"\"),\"\")","v":1.06},null,"",6839]
[{"$nulls":3},7,"Bodies Corporate","More than 1 percentage of shareholding","Jethmal Shreechand Trading Private Limited","AACCJ3121G",null,17400,null,null,17400,{"$f":"+IFERROR(IF(COUNT(M21),ROUND(M21/'Shareholding Pattern'!$L$57*100,2),\"\"),\"\")","v":2.69},17400,null,17400,{"$f":"+IFERROR(IF(COUNT(Q21),ROUND(Q21/('Shareholding Pattern'!$P$58)*100,2),\"\"),\"\")","v":2.69},null,null,"",{"$f":"+IFERROR(IF(COUNT(M21,U21),ROUND(SUM(U21,M21)/SUM('Shareholding Pattern'!$L$57,'Shareholding Pattern'!$T$57)*100,2),\"\"),\"\")","v":2.69},null,"",17400]
[{"$nulls":3},8,"Bodies Corporate","More than 1 percentage of shareholding","Neeta Resorts And Spa Private Limited","AACCN8819M",null,15450,null,null,15450,{"$f":"+IFERROR(IF(COUNT(M22),ROUND(M22/'Shareholding Pattern'!$L$57*100,2),\"\"),\"\")","v":2.39},15450,null,15450,{"$f":"+IFERROR(IF(COUNT(Q22),ROUND(Q22/('Shareholding Pattern'!$P$58)*100,2),\"\"),\"\")","v":2.39},null,null,"",{"$f":"+IFERROR(IF(COUNT(M22,U22),ROUND(SUM(U22,M22)/SUM('Shareholding Pattern'!$L$57,'Shareholding Pattern'!$T$57)*100,2),\"\"),\"\")","v":2.39},null,"",15450]
[{"$nulls":3},9,"Bodies Corporate","More than 1 percentage of shareholding","Techmech Electricals Private Limited","AADCT2009A",null,18600,null,null,18600,{"$f":"+IFERROR(IF(COUNT(M23),ROUND(M23/'Shareholding Pattern'!$L$57*100,2),\"\"),\"\")","v":2.87},18600,null,18600,{"$f":"+IFERROR(IF(COUNT(Q23),ROUND(Q23/('Shareholding Pattern'!$P$58)*100,2),\"\"),\"\")","v":2.87},null,null,"",{"$f":"+IFERROR(IF(COUNT(M23,U23),ROUND(SUM(U23,M23)/SUM('Shareholding Pattern'!$L$57,'Shareholding Pattern'!$T$57)*100,2),\"\"),\"\")","v":2.87},null,"",18600]
[{"$nulls":3},10,"Bodies Corporate","More than 1 percentage of shareholding","Techmech Steel Private Limited","AADCT1976A",null,32414,null,null,32414,{"$f":"+IFERROR(IF(COUNT(M24),ROUND(M24/'Shareholding Pattern'!$L$57*100,2),\"\"),\"\")","v":5.01},32414,null,32414,{"$f":"+IFERROR(IF(COUNT(Q24),ROUND(Q24/('Shareholding Pattern'!$P$58)*100,2),\"\"),\"\")","v":5.01},null,null,"",{"$f":"+IFERROR(IF(COUNT(M24,U24),ROUND(SUM(U24,M24)/SUM('Shareholding Pattern'!$L$57,'Shareholding Pattern'!$T$57)*100,2),\"\"),\"\")","v":5.01},null,"",32414]
[{"$nulls":3},11,"Foreign Individuals or NRI","Category",null,null,44,4485,null,null,4485,{"$f":"+IFERROR(IF(COUNT(M25),ROUND(M25/'Shareholding Pattern'!$L$57*100,2),\"\"),\"\")","v":0.69},4485,null,4485,{"$f":"+IFERROR(IF(COUNT(Q25),ROUND(Q25/('Shareholding Pattern'!$P$58)*100,2),\"\"),\"\")","v":0.69},null,null,"",{"$f":"+IFERROR(IF(COUNT(M25,U25),ROUND(SUM(U25,M25)/SUM('Shareholding Pattern'!$L$57,'Shareholding Pattern'!$T$57)*100,2),\"\"),\"\")","v":0.69},null,"",125]
[{"$nulls":3},12,"Clearing Members","Category",null,null,4,1495,null,null,1495,{"$f":"+IFERROR(IF(COUNT(M26),ROUND(M26/'Shareholding Pattern'!$L$57*100,2),\"\"),\"\")","v":0.23},1495,null,1495,{"$f":"+IFERROR(IF(COUNT(Q26),ROUND(Q26/('Shareholding Pattern'!$P$58)*100,2),\"\"),\"\")","v":0.23},null,null,"",{"$f":"+IFERROR(IF(COUNT(M26,U26),ROUND(SUM(U26,M26)/SUM('Shareholding Pattern'!$L$57,'Shareholding Pattern'!$T$57)*100,2),\"\"),\"\")","v":0.23},null,"",1495]
[{"$nulls":3},13,"Other","Category","Individual HUF",null,7,1779,null,null,1779,{"$f":"+IFERROR(IF(COUNT(M27),ROUND(M27/'Shareholding Pattern'!$L$57*100,2),\"\"),\"\")","v":0.27},1779,null,1779,{"$f":"+IFERROR(IF(COUNT(Q27),ROUND(Q27/('Shareholding Pattern'!$P$58)*100,2),\"\"),\"\")","v":0.27},null,null,"",{"$f":"+IFERROR(IF(COUNT(M27,U27),ROUND(SUM(U27,M27)/SUM('Shareholding Pattern'!$L$57,'Shareholding Pattern'!$T$57)*100,2),\"\"),\"\")","v":0.27},null,"",1779]
[]
[{"$nulls":6},"Click here to go back","Total",{"$f":"+IFERROR(IF(COUNT(I13:I28),ROUND(SUM(I13:I28),0),\"\"),\"\")","v":106},{"$f":"+IFERROR(IF(COUNT(J13:J28),ROUND(SUM(J13:J28),0),\"\"),\"\")","v":240088},{"$f":"+IFERROR(IF(COUNT(K13:K28),ROUND(SUM(K13:K28),0),\"\"),\"\")","v":""},{"$f":"+IFERROR(IF(COUNT(L13:L28),ROUND(SUM(L13:L28),0),\"\"),\"\")","v":""},{"$f":"+IFERROR(IF(COUNT(M13:M28),ROUND(SUM(M13:M28),0),\"\"),\"\")","v":240088},{"$f":"+IFERROR(IF(COUNT(M29),ROUND(M29/'Shareholding Pattern'!$L$57*100,2),\"\"),\"\")","v":37.11},{"$f":"+IFERROR(IF(COUNT(O13:O28),ROUND(SUM(O13:O28),0),\"\"),\"\")","v":{"v":240088,"d":"240088.00"}},{"$f":"+IFERROR(IF(COUNT(P13:P28),ROUND(SUM(P13:P28),0),\"\"),\"\")","v":""},{"$f":"+IFERROR(IF(COUNT(Q13:Q28),ROUND(SUM(Q13:Q28),0),\"\"),\"\")","v":{"v":240088,"d":"240088.00"}},{"$f":"+IFERROR(IF(COUNT(Q29),ROUND(Q29/('Shareholding Pattern'!$P$58)*100,2),\"\"),\"\")","v":37.11},{"$f":"+IFERROR(IF(COUNT(S13:S28),ROUND(SUM(S13:S28),0),\"\"),\"\")","v":""},{"$f":"+IFERROR(IF(COUNT(T13:T28),ROUND(SUM(T13:T28),0),\"\"),\"\")","v":""},{"$f":"+IFERROR(IF(COUNT(U13:U28),ROUND(SUM(U13:U28),0),\"\"),\"\")","v":""},{"$f":"+IFERROR(IF(COUNT(M29,U29),ROUND(SUM(U29,M29)/SUM('Shareholding Pattern'!$L$57,'Shareholding Pattern'!$T$57)*100,2),\"\"),\"\")","v":37.11},{"$f":"+IFERROR(IF(COUNT(W13:W28),ROUND(SUM(W13:W28),0),\"\"),\"\")","v":""},{"$f":"+IFERROR(IF(COUNT(W29),ROUND(SUM(W29)/SUM(J29)*100,2),\"\"),0)","v":""},{"$f":"+IFERROR(IF(COUNT(Y13:Y28),ROUND(SUM(Y13:Y28),0),\"\"),\"\")","v":235728}]

{"sheet":"DRHolder","index":31,"n_rows":16,"n_cols":29,"rows_kept":16,"hidden":true,"merged":[[8,2,10,2],[8,3,10,3],[8,4,10,4],[8,5,10,5],[8,6,10,6],[8,7,10,7],[8,8,10,8],[8,9,10,9],[8,10,10,10],[8,11,10,11],[8,12,10,12],[8,13,8,16],[8,17,10,17],[8,18,10,18],[8,19,10,19],[8,20,10,20],[8,21,9,22],[8,23,10,23],[9,13,9,15],[9,16,10,16]]}
[{"$nulls":8},0]
[{"$nulls":3},"Type of depository receipts","Name of the bank","Name of shareholder","Permanent account number of shareholder","Number of shareholders","Number of fully paid up equity shares","Number of partly paid-up equity shares","Number of shares underlying outstanding depository receipts","Total number of shares","Shareholding as a percentage of total number of shares held by promoters and public shareholders and custodians or DR holders","Number of voting rights held by same class of securities","Number of voting rights held by differential voting rights","Total Number of voting rights","Percentage of total number of voting rights","Number of shares underlying outstanding convertible securities","Number of warrant","Number of warrant and convertible securities","Total shareholding as a percentage assuming full conversion of convertible securities","Number of the locked-in-shares ","Locked-in-shares as a percentage of total number of shares","Number of equity shares held in dematerialized form",{"$nulls":4},"GDR"]
[{"$nulls":28},"GDS"]
[{"$nulls":28},"ADR"]
[{"$nulls":28},"ADS"]
[{"$nulls":28},"SDR"]
[{"$nulls":28},"Other"]
[]
[null,null,"Serial No.","Category","Bank Name","Name\nof the \nShareholders\n     (I)","PAN \n(II)","No.\nof the \nShareholders\n     (I)","No. of fully paid up equity shares held\n(IV)","No. Of Partly paid-up equity shares held\n(V)","No. Of shares underlying Depository Receipts\n(VI)","Total nos. shares\nheld\n(VII) = (IV)+(V)+ (VI)","Shareholding as a % of total no. of shares (calculated as per SCRR, 1957)\n(VIII)\nAs a % of (A+B+C2)","Number of Voting Rights held in each class of securities\n(IX)",{"$nulls":3},"No. Of Shares Underlying Outstanding convertible securities\n(X)","No. Of Warrants\n(Xi)","No. Of Shares Underlying Outstanding convertible securities and No. Of Warrants\n(Xi) (a)","Shareholding , as a % assuming full conversion of convertible securities (as a percentage of diluted share capital)\n(XI)= (VII)+(X)\nAs a % of (A+B+C2)","Number of Locked in shares\n(XII)",null,"Number of equity shares held in dematerialized form \n(XIV)"]
[{"$nulls":13},"No of Voting (XIV)\nRights",null,null,"Total as\na % of\nTotal\nVoting\nrights"]
[{"$nulls":13},"Class\neg:\nX","Class\neg:y","Total",{"$nulls":5},"No.\n(a)","As a % of total Shares held\n(b)"]
[null,null,"C1","Custodian/DR  Holder - Name of DR Holders  (If Available)"]
[{"$nulls":7},1,{"$nulls":3},{"$f":"+IFERROR(IF(COUNT(I13:K13),ROUND(SUM(I13:K13),0),\"\"),\"\")","v":""},null,{"$f":"IF(I13=\"\",\"\",I13)","v":""},null,{"$f":"+IFERROR(IF(COUNT(N13:O13),ROUND(SUM(N13,O13),2),\"\"),\"\")","v":""},{"$f":"+IFERROR(IF(COUNT(P13),ROUND(P13/('Shareholding Pattern'!$P$58)*100,2),\"\"),\"\")","v":""},null,null,{"$f":"+IFERROR(IF(COUNT(R13:S13),ROUND(SUM(R13:S13),2),\"\"),\"\")","v":""},null,null,{"$f":"+IFERROR(IF(V13=\"\",\"\",(IF(COUNT(V13,I13),ROUND(SUM(V13)/SUM(I13)*100,2),\"\"))),\"\")","v":""}]
[{"$nulls":4},"Disclosure of shareholder holding more than 1% of total number of shares"]
[{"$nulls":12},{"$f":"+IFERROR(IF(COUNT(L15),ROUND(L15/('Shareholding Pattern'!$L$57)*100,2),\"\"),\"\")","v":""},{"$nulls":3},{"$f":"+IFERROR(IF(COUNT(P15),ROUND(P15/('Shareholding Pattern'!$P$58)*100,2),\"\"),\"\")","v":""},{"$nulls":3},{"$f":"+IFERROR(IF(COUNT(L15,T15),ROUND(SUM(T15,L15)/SUM('Shareholding Pattern'!$L$57,'Shareholding Pattern'!$T$57)*100,2),\"\"),\"\")","v":""}]
[{"$nulls":5},"Click here to go back","Total",{"$f":"+IFERROR(IF(COUNT(H14:H15),ROUND(SUM(H14:H15),0),\"\"),\"\")","v":""},{"$f":"+IFERROR(IF(COUNT(I13:I15),ROUND(SUM(I13:I15),0),\"\"),\"\")","v":""},{"$f":"+IFERROR(IF(COUNT(J13:J15),ROUND(SUM(J13:J15),0),\"\"),\"\")","v":""},{"$f":"+IFERROR(IF(COUNT(K13:K15),ROUND(SUM(K13:K15),0),\"\"),\"\")","v":""},{"$f":"+IFERROR(IF(COUNT(L13:L15),ROUND(SUM(L13:L15),0),\"\"),\"\")","v":""},null,{"$f":"+IFERROR(IF(COUNT(N13:N15),ROUND(SUM(N13:N15),0),\"\"),\"\")","v":""},{"$f":"+IFERROR(IF(COUNT(O13:O15),ROUND(SUM(O13:O15),0),\"\"),\"\")","v":""},{"$f":"+IFERROR(IF(COUNT(P13:P15),ROUND(SUM(P13:P15),0),\"\"),\"\")","v":""},{"$f":"+IFERROR(IF(COUNT(P16),ROUND(P16/('Shareholding Pattern'!$P$58)*100,2),\"\"),\"\")","v":""},{"$f":"+IFERROR(IF(COUNT(R13:R15),ROUND(SUM(R13:R15),0),\"\"),\"\")","v":""},{"$f":"+IFERROR(IF(COUNT(S13:S15),ROUND(SUM(S13:S15),0),\"\"),\"\")","v":""},{"$f":"+IFERROR(IF(COUNT(T13:T15),ROUND(SUM(T13:T15),0),\"\"),\"\")","v":""},null,{"$f":"+IFERROR(IF(COUNT(V13:V15),ROUND(SUM(V13:V15),0),\"\"),\"\")","v":""},{"$f":"+IFERROR(IF(COUNT(V16,I16),ROUND(SUM(V16)/SUM(I16)*100,2),\"\"),\"\")","v":""},{"$f":"+IFERROR(IF(COUNT(X13:X15),ROUND(SUM(X13:X15),0),\"\"),\"\")","v":""}]

{"sheet":"EBT","index":32,"n_rows":16,"n_cols":23,"rows_kept":16,"hidden":true,"merged":[[8,3,10,3],[8,4,10,4],[8,5,10,5],[8,6,10,6],[8,7,10,7],[8,8,10,8],[8,9,10,9],[8,10,10,10],[8,11,10,11],[8,12,8,15],[8,16,10,16],[8,17,10,17],[8,18,10,18],[8,19,10,19],[8,20,9,21],[8,22,10,22],[9,12,9,14],[9,15,10,15]]}
[{"$nulls":8},0]
[{"$nulls":4},"Name of shareholder","Permanent account number of shareholder","Number of shareholders","Number of fully paid up equity shares","Number of partly paid-up equity shares","Number of shares underlying outstanding depository receipts","Total number of shares","Shareholding as a percentage of total number of shares held by promoters and public shareholders and custodians or DR holders","Number of voting rights held by same class of securities","Number of voting rights held by differential voting rights","Total Number of voting rights","Percentage of total number of voting rights","Number of shares underlying outstanding convertible securities","Number of warrant","Number of warrant and convertible securities","Total shareholding as a percentage assuming full conversion of convertible securities","Number of the locked-in-shares ","Locked-in-shares as a percentage of total number of shares","Number of equity shares held in dematerialized form"]
[]
[]
[]
[]
[]
[]
[{"$nulls":3},"Searial No.","Name\nof the \nShareholders\n     (I)","PAN \n(II)","No.\nof the \nShareholders\n     (I)","No. of fully paid up equity shares held\n(IV)","No. Of Partly paid-up equity shares held\n(V)","No. Of shares underlying Depository Receipts\n(VI)","Total nos. shares\nheld\n(VII) = (IV)+(V)+ (VI)","Shareholding as a % of total no. of shares (calculated as per SCRR, 1957)\n(VIII)\nAs a % of (A+B+C2)","Number of Voting Rights held in each class of securities\n(IX)",{"$nulls":3},"No. Of Shares Underlying Outstanding convertible securities\n(X)","No. Of Warrants\n(Xi)","No. Of Shares Underlying Outstanding convertible securities and No. Of Warrants\n(Xi) (a)","Shareholding , as a % assuming full conversion of convertible securities (as a percentage of diluted share capital)\n(XI)= (VII)+(X)\nAs a % of (A+B+C2)","Number of Locked in shares\n(XII)",null,"Number of equity shares held in dematerialized form \n(XIV)"]
[{"$nulls":12},"No of Voting (XIV)\nRights",null,null,"Total as\na % of\nTotal\nVoting\nrights"]
[{"$nulls":12},"Class\neg:\nX","Class\neg:y","Total",{"$nulls":5},"No.\n(a)","As a % of total Shares held\n(b)"]
[{"$nulls":3},"C2","Employee Benefit Trust (under SEBI (Share based Employee Benefit) Regulations, 2014)"]
[{"$nulls":6},1,{"$nulls":3},{"$f":"+IFERROR(IF(COUNT(H13:J13),ROUND(SUM(H13:J13),0),\"\"),\"\")","v":""},{"$f":"+IFERROR(IF(COUNT(K13),ROUND(K13/'Shareholding Pattern'!$L$57*100,2),\"\"),\"\")","v":""},{"$f":"IF(H13=\"\",\"\",H13)","v":""},null,{"$f":"+IFERROR(IF(COUNT(M13:N13),ROUND(SUM(M13,N13),0),\"\"),\"\")","v":""},{"$f":"+IFERROR(IF(COUNT(O13),ROUND(O13/('Shareholding Pattern'!$P$58)*100,2),\"\"),\"\")","v":""},null,null,{"$f":"+IFERROR(IF(COUNT(Q13:R13),ROUND(SUM(Q13:R13),0),\"\"),\"\")","v":""},{"$f":"+IFERROR(IF(COUNT(K13,S13),ROUND(SUM(S13,K13)/SUM('Shareholding Pattern'!$L$57,'Shareholding Pattern'!$T$57)*100,2),\"\"),\"\")","v":""},null,{"$f":"+IFERROR(IF(U13=\"\",\"\",(IF(COUNT(U13,H13),ROUND(SUM(U13)/SUM(H13)*100,2),\"\"))),\"\")","v":""}]
[{"$nulls":5},"Disclosure of shareholder holding more than 1% of total number of shares\n"]
[]
[{"$nulls":4},"Click here to go back","Total",{"$f":"+IFERROR(IF(COUNT(G14:G15),ROUND(SUM(G14:G15),0),\"\"),\"\")","v":""},{"$f":"+IFERROR(IF(COUNT(H13:H15),ROUND(SUM(H13:H15),0),\"\"),\"\")","v":""},{"$f":"+IFERROR(IF(COUNT(I13:I15),ROUND(SUM(I13:I15),0),\"\"),\"\")","v":""},{"$f":"+IFERROR(IF(COUNT(J13:J15),ROUND(SUM(J13:J15),0),\"\"),\"\")","v":""},{"$f":"+IFERROR(IF(COUNT(K13:K15),ROUND(SUM(K13:K15),0),\"\"),\"\")","v":""},{"$f":"+IFERROR(IF(COUNT(K16),ROUND(K16/'Shareholding Pattern'!$L$57*100,2),\"\"),\"\")","v":""},{"$f":"+IFERROR(IF(COUNT(M13:M15),ROUND(SUM(M13:M15),0),\"\"),\"\")","v":""},{"$f":"+IFERROR(IF(COUNT(N13:N15),ROUND(SUM(N13:N15),0),\"\"),\"\")","v":""},{"$f":"+IFERROR(IF(COUNT(O13:O15),ROUND(SUM(O13:O15),0),\"\"),\"\")","v":""},{"$f":"+IFERROR(IF(COUNT(O16),ROUND(O16/('Shareholding Pattern'!$P$58)*100,2),\"\"),\"\")","v":""},{"$f":"+IFERROR(IF(COUNT(Q13:Q15),ROUND(SUM(Q13:Q15),0),\"\"),\"\")","v":""},{"$f":"+IFERROR(IF(COUNT(R13:R15),ROUND(SUM(R13:R15),0),\"\"),\"\")","v":""},{"$f":"+IFERROR(IF(COUNT(S13:S15),ROUND(SUM(S13:S15),0),\"\"),\"\")","v":""},{"$f":"+IFERROR(IF(COUNT(K16,S16),ROUND(SUM(S16,K16)/SUM('Shareholding Pattern'!$L$57,'Shareholding Pattern'!$T$57)*100,2),\"\"),\"\")","v":""},{"$f":"+IFERROR(IF(COUNT(U13:U15),ROUND(SUM(U13:U15),0),\"\"),\"\")","v":""},{"$f":"+IFERROR(IF(COUNT(U16,H16),ROUND(SUM(U16)/SUM(H16)*100,2),\"\"),0)","v":""},{"$f":"+IFERROR(IF(COUNT(W13:W15),ROUND(SUM(W13:W15),0),\"\"),\"\")","v":""}]

{"sheet":"Unclaimed_Prom","index":33,"n_rows":14,"n_cols":9,"rows_kept":14,"hidden":true,"merged":[[8,4,8,8],[9,4,11,4],[9,5,11,5],[9,6,11,6],[9,7,11,7],[9,8,11,8]]}
[{"$nulls":8},0]
{"$rows_empty":7}
[{"$nulls":4},"Details of Shares which remain unclaimed for Promoter & Promoter Group                    "]
[{"$nulls":4},"Searial No.","Number of shareholders","Outstanding shares held in demat or unclaimed suspense account","Voting rights which are frozen","Disclosure of notes on shares which remain unclaimed for promoter and promoter group"]
[]
[]
[]
[{"$nulls":8},"Click here to go back "]

{"sheet":"PAC_Public","index":34,"n_rows":14,"n_cols":9,"rows_kept":14,"hidden":true,"merged":[[8,4,8,7],[9,4,11,4],[9,5,11,5],[9,6,11,6],[9,7,11,7]]}
[{"$nulls":8},0]
{"$rows_empty":7}
[{"$nulls":4},"Details of the shareholders acting as persons in Concert for Public"]
[{"$nulls":4},"Searial No.","Name of the PAC","Number of shares","Percentage of shareholding by PAC"]
[]
[]
[]
[{"$nulls":7},"Cick here to go back"]

{"sheet":"Unclaimed_Public","index":35,"n_rows":14,"n_cols":9,"rows_kept":14,"hidden":true,"merged":[[8,4,8,7],[9,4,11,4],[9,5,11,5],[9,6,11,6],[9,7,11,7],[9,8,11,8]]}
[{"$nulls":8},0]
{"$rows_empty":7}
[{"$nulls":4},"Details of Shares which remain unclaimed for Public"]
[{"$nulls":4},"Searial No.","Number of shareholders","Outstanding shares held in demat or unclaimed suspense account","voting rights which are frozen","Disclosure of notes on shares which remain unclaimed for public shareholders"]
[]
[]
[]
[{"$nulls":8},"Click here to go back"]

{"sheet":"TextBlock","index":36,"n_rows":1,"n_cols":5,"rows_kept":1,"hidden":true}
[{"$nulls":4},2]